Workbook

Sheet 2015-16 (hidden)
A1: Budget and Expenditure in 2015-16 - SSA, Jharkhand
A2: S. No. | B2: Head | C2: Outlay Approved | G2: Expenditure
C3: Spill Over | D3: Deferred Liability | E3: Fresh | F3: Total | G3: Spill Over | H3: Deferred Liability | I3: Fresh | J3: Total
A4: 1 | B4: SSA | C4: ='Achiv_15-16'!C79-C5 -> 34586.56 | E4: ='Achiv_15-16'!E79-E5 -> 109081.964 | F4: =SUM(C4:E4) -> 143668.524 | I4: ='Jharkhand (Annexure-IV)'!F430 -> 129577.7601 | J4: =SUM(G4:I4) -> 129577.7601
A5: 2 | B5: KGBV | C5: ='Achiv_15-16'!C15 -> 300.27 | E5: ='Achiv_15-16'!E15 -> 10693.635 | F5: =SUM(C5:E5) -> 10993.905 | I5: ='Jharkhand (Annexure-IV)'!F543 -> 9081.82608 | J5: =SUM(G5:I5) -> 9081.82608
B6: Total | C6: =SUM(C4:C5) -> 34886.83 | D6: 0 | E6: 119775.599 | F6: 154662.429 | G6: 0 | H6: 0 | I6: 138659.5862 | J6: 138659.5862
C8: ='Achiv_15-16'!C79 -> 34886.83 | E8: ='Achiv_15-16'!E79 -> 119775.599 | F8: =SUM(C8:E8) -> 154662.429 | G8: =G4 -> 0 | I8: ='Jharkhand (Annexure-IV)'!F544 -> 138659.5862 | J8: =SUM(G8:I8) -> 138659.5862
C9: =C6-C8 -> 0 | E9: =E6-E8 -> 0 | F9: =F6-F8 -> 0 | I9: =I6-I8 -> 0 | J9: =J6-J8 -> 0

Sheet Achiv_15-16 (hidden)
A1: Progress against AWP&B 2015-16
B2: State : Jharkhand | K2: Rs. In lakh
A3: S.No | B3: Activities | C3: Spill Over | D3: Sanctioned in 2015-16 | H3: Achievement upto Mar-16 | J3: Progress in Percentage
D4: Fresh | F4: Total
D5: Phy | E5: Fin | F5: Phy | G5: Fin | H5: Phy | I5: Fin | J5: Phy | K5: Fin
A6: Category-1
A7: 1 | B7: Reimbursement under Section 12 (1) (C) | C7: 0 | D7: ='Jharkhand (Annexure-IV)'!C155 -> 0 | E7: ='Jharkhand (Annexure-IV)'!D155 -> 0 | F7: =D7 -> 0 | G7: =C7+E7 -> 0 | H7: ='Jharkhand (Annexure-IV)'!E149 -> 0 | I7: ='Jharkhand (Annexure-IV)'!F155 -> 0 | J7: =IF(F7>0,H7/F7," ") ->  | K7: =IF(G7>0,I7/G7," ") -> 
A8: 2 | B8: Free Text Books
B9: a. Primary | C9: 0 | D9: ='Jharkhand (Annexure-IV)'!C203+'Jharkhand (Annexure-IV)'!C206 -> 2621165 | E9: ='Jharkhand (Annexure-IV)'!D203+'Jharkhand (Annexure-IV)'!D206 -> 3931.7475 | F9: =D9 -> 2621165 | G9: =C9+E9 -> 3931.7475 | H9: ='Jharkhand (Annexure-IV)'!E203+'Jharkhand (Annexure-IV)'!E206 -> 2621165 | I9: ='Jharkhand (Annexure-IV)'!F203+'Jharkhand (Annexure-IV)'!F206 -> 3931.7475 | J9: =IF(F9>0,H9/F9," ") -> 1 | K9: =IF(G9>0,I9/G9," ") -> 1
B10: b. Upper Primary | C10: 0 | D10: ='Jharkhand (Annexure-IV)'!C209 -> 1133103 | E10: ='Jharkhand (Annexure-IV)'!D209 -> 2832.7575 | F10: =D10 -> 1133103 | G10: 2832.7575 | H10: ='Jharkhand (Annexure-IV)'!E209 -> 1133103 | I10: ='Jharkhand (Annexure-IV)'!F209 -> 2832.7575 | J10: =IF(F10>0,H10/F10," ") -> 1 | K10: 1
B11: c. Large Print Book | C11: 0 | D11: ='Jharkhand (Annexure-IV)'!C205+'Jharkhand (Annexure-IV)'!C208+'Jharkhand (Annexure-IV)'!C211 -> 4068 | E11: ='Jharkhand (Annexure-IV)'!D205+'Jharkhand (Annexure-IV)'!D208+'Jharkhand (Annexure-IV)'!D211 -> 7.178 | F11: =D11 -> 4068 | G11: 7.178 | H11: ='Jharkhand (Annexure-IV)'!E205+'Jharkhand (Annexure-IV)'!E208+'Jharkhand (Annexure-IV)'!E211 -> 4068 | I11: ='Jharkhand (Annexure-IV)'!F205+'Jharkhand (Annexure-IV)'!F208+'Jharkhand (Annexure-IV)'!F211 -> 7.178 | J11: 1 | K11: 1
B12: d. Braille Book | C12: 0 | D12: ='Jharkhand (Annexure-IV)'!C204+'Jharkhand (Annexure-IV)'!C207+'Jharkhand (Annexure-IV)'!C210 -> 2324 | E12: ='Jharkhand (Annexure-IV)'!D204+'Jharkhand (Annexure-IV)'!D207+'Jharkhand (Annexure-IV)'!D210 -> 4.053 | F12: =D12 -> 2324 | G12: 4.053 | H12: ='Jharkhand (Annexure-IV)'!E204+'Jharkhand (Annexure-IV)'!E207+'Jharkhand (Annexure-IV)'!E210 -> 2324 | I12: ='Jharkhand (Annexure-IV)'!F204+'Jharkhand (Annexure-IV)'!F207+'Jharkhand (Annexure-IV)'!F210 -> 4.053 | J12: 1 | K12: 1
A13: 3 | B13: Free Uniform | C13: 0 | D13: ='Jharkhand (Annexure-IV)'!C220 -> 4446505 | E13: ='Jharkhand (Annexure-IV)'!D220 -> 17786.02 | F13: =D13 -> 4446505 | G13: 17786.02 | H13: ='Jharkhand (Annexure-IV)'!E220 -> 4446505 | I13: ='Jharkhand (Annexure-IV)'!F220 -> 17786.02 | J13: 1 | K13: 1
A14: 4 | B14: Residential School/ Hostel | C14: 0 | D14: ='Jharkhand (Annexure-IV)'!C77 -> 12 | E14: ='Jharkhand (Annexure-IV)'!D77-C14 -> 507.7 | F14: 12 | G14: 507.7 | H14: ='Jharkhand (Annexure-IV)'!E77 -> 12 | I14: ='Jharkhand (Annexure-IV)'!F77 -> 218.6775 | J14: 1 | K14: 0.430721883
A15: 5 | B15: KGBV | C15: 300.27 | D15: ='Jharkhand (Annexure-IV)'!C468 -> 203 | E15: ='Jharkhand (Annexure-IV)'!D468-C15 -> 10693.635 | F15: 203 | G15: 10993.905 | H15: ='Jharkhand (Annexure-IV)'!E468 -> 203 | I15: ='Jharkhand (Annexure-IV)'!F468 -> 9081.82608 | J15: 1 | K15: 0.8260782752
A16: 6 | B16: IE | C16: 0 | D16: ='Jharkhand (Annexure-IV)'!C362 -> 71304 | E16: ='Jharkhand (Annexure-IV)'!D362 -> 2139.12 | F16: 71304 | G16: 2139.12 | H16: ='Jharkhand (Annexure-IV)'!E362 -> 71304 | I16: ='Jharkhand (Annexure-IV)'!F362 -> 1344.24293 | J16: 1 | K16: 0.6284093132
A17: 7 | B17: School Grant | C17: 0 | D17: ='Jharkhand (Annexure-IV)'!C350 -> 55209 | E17: ='Jharkhand (Annexure-IV)'!D350 -> 3052.47 | F17: 55209 | G17: 3052.47 | H17: ='Jharkhand (Annexure-IV)'!E350 -> 54257 | I17: ='Jharkhand (Annexure-IV)'!F350 -> 3003.59 | J17: 0.9827564346 | K17: 0.9839867386
A18: 8 | B18: Project Management including state | C18: 0 | D18: 25 | E18: ='Jharkhand (Annexure-IV)'!D417+'Jharkhand (Annexure-IV)'!D426-E72 -> 5768.605233 | F18: 25 | G18: 5768.605233 | H18: 25 | I18: ='Jharkhand (Annexure-IV)'!F417+'Jharkhand (Annexure-IV)'!F426-I72 -> 4787.31135 | J18: 1 | K18: 0.8298906159
A19: Sub Total | C19: =SUM(C9:C18) -> 300.27 | E19: =SUM(E9:E18) -> 46723.28623 | G19: =SUM(G9:G18) -> 47023.55623 | I19: =SUM(I9:I18) -> 42997.40386 | K19: 0.9143800959
A20: Category-2
A21: 9 | B21: Transport / Escort facility | C21: 0 | D21: ='Jharkhand (Annexure-IV)'!C147 -> 0 | E21: ='Jharkhand (Annexure-IV)'!D147 -> 0 | F21: =D21 -> 0 | G21: =C21+E21 -> 0 | H21: ='Jharkhand (Annexure-IV)'!E147 -> 0 | I21: ='Jharkhand (Annexure-IV)'!F147 -> 0 | J21: =IF(F21>0,H21/F21," ") ->  | K21: =IF(G21>0,I21/G21," ") -> 
A22: 10 | B22: Special Training for Age appropriate admission of OoSC
B23: Residential (Fresh)
B24: a. 12 months | C24: 0 | D24: ='Jharkhand (Annexure-IV)'!C158 -> 0 | E24: ='Jharkhand (Annexure-IV)'!D158 -> 0 | F24: 0 | G24: 0 | H24: ='Jharkhand (Annexure-IV)'!E158 -> 0 | I24: ='Jharkhand (Annexure-IV)'!F158 -> 0 | J24: =IF(F24>0,H24/F24," ") -> 
B25: b. 9 months | C25: 0 | D25: ='Jharkhand (Annexure-IV)'!C159 -> 0 | E25: ='Jharkhand (Annexure-IV)'!D159 -> 0 | F25: =D25 -> 0 | G25: =C25+E25 -> 0 | H25: ='Jharkhand (Annexure-IV)'!E159 -> 0 | I25: ='Jharkhand (Annexure-IV)'!F159 -> 0
B26: c. 6 months | C26: 0 | D26: ='Jharkhand (Annexure-IV)'!C160 -> 5126 | E26: ='Jharkhand (Annexure-IV)'!D160 -> 512.6 | F26: =D26 -> 5126 | G26: =C26+E26 -> 512.6 | H26: ='Jharkhand (Annexure-IV)'!E160 -> 3107 | I26: ='Jharkhand (Annexure-IV)'!F160 -> 299.41 | J26: 0.606125634 | K26: 0.5841006633
B27: d. 3 Months | C27: 0 | D27: ='Jharkhand (Annexure-IV)'!C161 -> 0 | E27: ='Jharkhand (Annexure-IV)'!D161 -> 0 | F27: =D27 -> 0 | G27: =C27+E27 -> 0 | H27: ='Jharkhand (Annexure-IV)'!E161 -> 0 | I27: ='Jharkhand (Annexure-IV)'!F161 -> 0
B28: Residential continuing from previous year
B29: a. 6 months | C29: 0 | D29: ='Jharkhand (Annexure-IV)'!C166 -> 0 | E29: ='Jharkhand (Annexure-IV)'!D166 -> 0 | F29: 0 | G29: =C29+E29 -> 0 | H29: ='Jharkhand (Annexure-IV)'!E166 -> 0 | I29: ='Jharkhand (Annexure-IV)'!F166 -> 0 | J29: =IF(F29>0,H29/F29," ") ->  | K29: =IF(G29>0,I29/G29," ") -> 
B30: b. 3 Months | C30: 0 | D30: ='Jharkhand (Annexure-IV)'!C167 -> 1533 | E30: ='Jharkhand (Annexure-IV)'!D167 -> 39.22 | F30: =D30 -> 1533 | G30: =C30+E30 -> 39.22 | H30: ='Jharkhand (Annexure-IV)'!E167 -> 1533 | I30: ='Jharkhand (Annexure-IV)'!F167 -> 37.63 | J30: =IF(F30>0,H30/F30," ") -> 1 | K30: =IF(G30>0,I30/G30," ") -> 0.9594594595
B31: Non Residential (Fresh)
B32: a. 9 months | C32: 0 | D32: ='Jharkhand (Annexure-IV)'!C171 -> 0 | E32: ='Jharkhand (Annexure-IV)'!D171 -> 0 | F32: 0 | G32: 0 | H32: ='Jharkhand (Annexure-IV)'!E171 -> 0 | I32: ='Jharkhand (Annexure-IV)'!F171 -> 0 | J32: =IF(F32>0,H32/F32," ") -> 
B33: b. 6 months | C33: 0 | D33: ='Jharkhand (Annexure-IV)'!C172 -> 97996 | E33: ='Jharkhand (Annexure-IV)'!D172 -> 2939.88 | F33: 97996 | G33: 2939.88 | H33: ='Jharkhand (Annexure-IV)'!E172 -> 68254 | I33: ='Jharkhand (Annexure-IV)'!F172 -> 1771.31313 | J33: 0.6964978162 | K33: 0.6025120515
B34: c. 3 Months | C34: 0 | D34: ='Jharkhand (Annexure-IV)'!C173 -> 0 | E34: ='Jharkhand (Annexure-IV)'!D173 -> 0 | F34: 0 | G34: 0 | H34: ='Jharkhand (Annexure-IV)'!E173 -> 0 | I34: ='Jharkhand (Annexure-IV)'!F173 -> 0
B35: Non Residential continuing from previous year
B36: a. 9 months | C36: 0 | D36: ='Jharkhand (Annexure-IV)'!C177 -> 0 | E36: ='Jharkhand (Annexure-IV)'!D177 -> 0 | F36: 0 | G36: 0 | H36: ='Jharkhand (Annexure-IV)'!E177 -> 0 | I36: ='Jharkhand (Annexure-IV)'!F177 -> 0 | J36: =IF(F36>0,H36/F36," ") -> 
B37: b. 6 months | C37: 0 | D37: ='Jharkhand (Annexure-IV)'!C178 -> 803 | E37: ='Jharkhand (Annexure-IV)'!D178 -> 2.61 | F37: =D37 -> 803 | G37: =C37+E37 -> 2.61 | H37: ='Jharkhand (Annexure-IV)'!E178 -> 0 | I37: ='Jharkhand (Annexure-IV)'!F178 -> 0 | J37: 0 | K37: 0
B38: c. 3 Months | C38: 0 | D38: ='Jharkhand (Annexure-IV)'!C179 -> 7735 | E38: ='Jharkhand (Annexure-IV)'!D179 -> 78.07 | F38: 7735 | G38: 78.07 | H38: ='Jharkhand (Annexure-IV)'!E179 -> 5759 | I38: ='Jharkhand (Annexure-IV)'!F179 -> 15.56 | J38: 0.7445378151 | K38: 0.1993083131
B39: Seasonal Hostel (Residential)
B40: a. 6 months | C40: 0 | D40: ='Jharkhand (Annexure-IV)'!C190 -> 1026 | E40: ='Jharkhand (Annexure-IV)'!D190 -> 102.6 | F40: 1026 | G40: 102.6 | H40: ='Jharkhand (Annexure-IV)'!E190 -> 780 | I40: ='Jharkhand (Annexure-IV)'!F190 -> 74.785 | J40: =IF(F40>0,H40/F40," ") -> 0.7602339181 | K40: =IF(G40>0,I40/G40," ") -> 0.7288986355
B41: Seasonal Hostel (Non-Residential)
B42: a. 9 months (Drop-in-Centre) | C42: 0 | D42: ='Jharkhand (Annexure-IV)'!C195 -> 739 | E42: ='Jharkhand (Annexure-IV)'!D195 -> 37.1717 | F42: 739 | G42: 37.1717 | H42: ='Jharkhand (Annexure-IV)'!E195 -> 667 | I42: ='Jharkhand (Annexure-IV)'!F195 -> 32.038 | J42: =IF(F42>0,H42/F42," ") -> 0.9025710419 | K42: =IF(G42>0,I42/G42," ") -> 0.861892246
A43: 11 | B43: Teacher Training | C43: 0 | D43: ='Jharkhand (Annexure-IV)'!C305 -> 171744 | E43: ='Jharkhand (Annexure-IV)'!D305 -> 1897.036 | F43: 171744 | G43: 1897.036 | H43: ='Jharkhand (Annexure-IV)'!E305 -> 148603 | I43: ='Jharkhand (Annexure-IV)'!F305 -> 1134.31438 | J43: =IF(F43>0,H43/F43," ") -> 0.8652587572 | K43: =IF(G43>0,I43/G43," ") -> 0.5979403554
A44: 12 | B44: Academic Support through BRC/CRC
B45: a) BRC | C45: 0 | D45: ='Jharkhand (Annexure-IV)'!C320 -> 265 | E45: ='Jharkhand (Annexure-IV)'!D320 -> 2052.174 | F45: 265 | G45: 2052.174 | H45: ='Jharkhand (Annexure-IV)'!E320 -> 265 | I45: ='Jharkhand (Annexure-IV)'!F320 -> 1625.262876 | J45: =IF(F45>0,H45/F45," ") -> 1 | K45: 0.7919712833
B46: b) CRC | C46: 0 | D46: ='Jharkhand (Annexure-IV)'!C330 -> 2264 | E46: ='Jharkhand (Annexure-IV)'!D330 -> 4240.64 | F46: 2264 | G46: 4240.64 | H46: ='Jharkhand (Annexure-IV)'!E330 -> 2264 | I46: ='Jharkhand (Annexure-IV)'!F330 -> 4062.77487 | J46: 1 | K46: 0.9580570079
A47: 13 | B47: Learning Enhancement Programme (LEP) | C47: 0 | D47: ='Jharkhand (Annexure-IV)'!C419+'Jharkhand (Annexure-IV)'!C420+'Jharkhand (Annexure-IV)'!C421 -> 0 | E47: ='Jharkhand (Annexure-IV)'!D419+'Jharkhand (Annexure-IV)'!D420+'Jharkhand (Annexure-IV)'!D421 -> 3000.00255 | F47: 0 | G47: 3000.00255 | H47: ='Jharkhand (Annexure-IV)'!E419+'Jharkhand (Annexure-IV)'!E420+'Jharkhand (Annexure-IV)'!E421 -> 0 | I47: ='Jharkhand (Annexure-IV)'!F419+'Jharkhand (Annexure-IV)'!F420+'Jharkhand (Annexure-IV)'!F421 -> 3000.00255 | K47: 1
A48: 14 | B48: Innovation fund for CAL | C48: 0 | D48: ='Jharkhand (Annexure-IV)'!C334 -> 792 | E48: ='Jharkhand (Annexure-IV)'!D334 -> 0 | F48: 792 | G48: 0 | H48: ='Jharkhand (Annexure-IV)'!E334 -> 792 | I48: ='Jharkhand (Annexure-IV)'!F334 -> 0 | J48: 1
A49: 15 | B49: Library | C49: 0 | D49: ='Jharkhand (Annexure-IV)'!C339 -> 123 | E49: ='Jharkhand (Annexure-IV)'!D339 -> 5.65 | F49: 123 | G49: 5.65 | H49: ='Jharkhand (Annexure-IV)'!E339 -> 123 | I49: ='Jharkhand (Annexure-IV)'!F339 -> 5.65 | J49: 1 | K49: 1
A50: 16 | B50: Teacher Grant | C50: 0 | D50: ='Jharkhand (Annexure-IV)'!C346 -> 118407 | E50: ='Jharkhand (Annexure-IV)'!D346 -> 592.035 | F50: 118407 | G50: 592.035 | H50: ='Jharkhand (Annexure-IV)'!E346 -> 115108 | I50: ='Jharkhand (Annexure-IV)'!F346 -> 575.95 | J50: 0.9721384715 | K50: 0.9728309982
A51: 17 | B51: TLE for New Schools | C51: 0 | D51: ='Jharkhand (Annexure-IV)'!C224 -> 0 | E51: ='Jharkhand (Annexure-IV)'!D224 -> 0 | F51: 0 | G51: 0 | H51: ='Jharkhand (Annexure-IV)'!E224 -> 0 | I51: ='Jharkhand (Annexure-IV)'!F224 -> 0
A52: 18 | B52: REMS | C52: 0 | D52: ='Jharkhand (Annexure-IV)'!C355 -> 0 | E52: ='Jharkhand (Annexure-IV)'!D355+'Jharkhand (Annexure-IV)'!D428 -> 0 | F52: 0 | G52: 0 | H52: ='Jharkhand (Annexure-IV)'!E355 -> 0 | I52: ='Jharkhand (Annexure-IV)'!F355+'Jharkhand (Annexure-IV)'!F428 -> 0
A53: 19 | B53: Innovation | C53: 0 | D53: ='Jharkhand (Annexure-IV)'!C364 -> 24 | E53: ='Jharkhand (Annexure-IV)'!D368 -> 1200 | F53: 24 | G53: 1200 | H53: ='Jharkhand (Annexure-IV)'!E364 -> 24 | I53: ='Jharkhand (Annexure-IV)'!F368 -> 1177.68773 | J53: 1 | K53: 0.9814064417
A54: 20 | B54: Community Mobilization (0.5%) | C54: 0 | D54: ='Jharkhand (Annexure-IV)'!C422 -> 24 | E54: ='Jharkhand (Annexure-IV)'!D422 -> 400.005 | F54: 24 | G54: 400.005 | H54: ='Jharkhand (Annexure-IV)'!E422 -> 24 | I54: ='Jharkhand (Annexure-IV)'!F422 -> 378.63114 | J54: 1 | K54: 0.9465660179
A55: 21 | B55: SMC Training | C55: 0 | D55: ='Jharkhand (Annexure-IV)'!C372 -> 241044 | E55: ='Jharkhand (Annexure-IV)'!D372 -> 723.132 | F55: 241044 | G55: 723.132 | H55: ='Jharkhand (Annexure-IV)'!E372 -> 222154 | I55: ='Jharkhand (Annexure-IV)'!F372 -> 634.38692 | J55: 0.921632565 | K55: 0.8772767904
B56: Sub Total | C56: =SUM(C21:C55) -> 0 | E56: =SUM(E21:E55) -> 17822.82625 | G56: =SUM(G21:G55) -> 17822.82625 | I56: =SUM(I21:I55) -> 14825.3966 | K56: 0.8318207443
A57: Category-3
A58: 22 | B58: Teacher Salary | C58: 0 | D58: ='Jharkhand (Annexure-IV)'!C279 -> 72790 | E58: ='Jharkhand (Annexure-IV)'!D279 -> 71436.66 | F58: =D58 -> 72790 | G58: =C58+E58 -> 71436.66 | H58: ='Jharkhand (Annexure-IV)'!E279 -> 68075 | I58: ='Jharkhand (Annexure-IV)'!F279 -> 65696.49297 | J58: =IF(F58>0,H58/F58," ") -> 0.9352246188 | K58: 0.9196467608
A59: 23 | B59: New Primary Schools (Building) | C59: 1343.93 | D59: 0 | E59: ='Jharkhand (Annexure-IV)'!D375-C59 -> -867.955 | F59: 0 | G59: 475.975 | H59: 0 | I59: ='Jharkhand (Annexure-IV)'!F375 -> 41.33 | K59: 0.08683229161
A60: 24 | B60: New U. Primary Schools (Building) | C60: 711.52 | D60: 0 | E60: ='Jharkhand (Annexure-IV)'!D377-C60 -> -346.695 | F60: =D60 -> 0 | G60: =C60+E60 -> 364.825 | H60: 0 | I60: ='Jharkhand (Annexure-IV)'!F377 -> 109.664 | J60: =IF(F60>0,H60/F60," ") ->  | K60: =IF(G60>0,I60/G60," ") -> 0.3005934352
A61: 25 | B61: Additional Classrooms (ACR) | C61: 31103.08 | D61: 0 | E61: ='Jharkhand (Annexure-IV)'!D380-C61 -> -22679.605 | F61: 0 | G61: 8423.475 | H61: 0 | I61: ='Jharkhand (Annexure-IV)'!F380 -> 4847.12637 | K61: 0.5754307302
A62: 26 | B62: Block Resource Centers | C62: 0 | D62: 0 | E62: ='Jharkhand (Annexure-IV)'!D381-C62 -> 0 | F62: 0 | G62: 0 | H62: 0 | I62: 0
A63: 27 | B63: Cluster Resource Centers | C63: 0 | D63: 0 | E63: ='Jharkhand (Annexure-IV)'!D382-C63 -> 0 | F63: 0 | G63: 0 | H63: 0 | I63: 0
A64: 28 | B64: Residential Schools (Building) | C64: 666.28 | D64: 0 | E64: ='Jharkhand (Annexure-IV)'!D404-C64 -> -666.28 | F64: 0 | G64: 0 | H64: 0 | I64: ='Jharkhand (Annexure-IV)'!F404 -> 0
A65: 29 | B65: Toilets & Drinking Water | C65: 624.64 | D65: 252 | E65: ='Jharkhand (Annexure-IV)'!D385+'Jharkhand (Annexure-IV)'!D386-C65 -> -624.64 | F65: 252 | G65: 0 | H65: 244 | I65: ='Jharkhand (Annexure-IV)'!F385+'Jharkhand (Annexure-IV)'!F386 -> 0 | J65: 0.9682539683
A66: 30 | B66: Furniture | C66: 0 | D66: 0 | E66: ='Jharkhand (Annexure-IV)'!D398 -> 5814.95 | F66: 0 | G66: 5814.95 | H66: 0 | I66: ='Jharkhand (Annexure-IV)'!F398 -> 5316.725 | K66: 0.9143199856
A67: 31 | B67: Civil Works
B68: a. Boundary Walls | C68: 0 | D68: 0 | E68: ='Jharkhand (Annexure-IV)'!D388 -> 0 | F68: =D68 -> 0 | G68: =C68+E68 -> 0 | H68: 0 | I68: ='Jharkhand (Annexure-IV)'!F388 -> 0
B69: b. Ramps | C69: 137.11 | D69: 0 | E69: ='Jharkhand (Annexure-IV)'!D393-C69 -> -137.11 | F69: 0 | G69: 0 | H69: 0 | I69: ='Jharkhand (Annexure-IV)'!F393 -> 0
A70: 32 | B70: Repairs to School Buildings | C70: 0 | D70: ='Jharkhand (Annexure-IV)'!C399+'Jharkhand (Annexure-IV)'!C400 -> 230 | E70: ='Jharkhand (Annexure-IV)'!D399+'Jharkhand (Annexure-IV)'!D400 -> 416.3865 | F70: 230 | G70: 416.3865 | H70: ='Jharkhand (Annexure-IV)'!E399+'Jharkhand (Annexure-IV)'!E400 -> 230 | I70: ='Jharkhand (Annexure-IV)'!F399+'Jharkhand (Annexure-IV)'!F400 -> 416.3865 | J70: 1 | K70: 1
A71: 33 | B71: Maintenance Grant | C71: 0 | D71: ='Jharkhand (Annexure-IV)'!C358 -> 39139 | E71: ='Jharkhand (Annexure-IV)'!D358 -> 2883.775 | F71: 39139 | G71: 2883.775 | H71: ='Jharkhand (Annexure-IV)'!E358 -> 38356 | I71: ='Jharkhand (Annexure-IV)'!F358 -> 2831.94503 | J71: 0.979994379 | K71: 0.9820270409
A72: 34 | B72: School and Social Mapping: | C72: 0 | D72: ='Jharkhand (Annexure-IV)'!C415 -> 0 | E72: ='Jharkhand (Annexure-IV)'!D415 -> 0 | F72: 0 | G72: 0 | H72: ='Jharkhand (Annexure-IV)'!E415 -> 0 | I72: ='Jharkhand (Annexure-IV)'!F415 -> 0
A73: 35 | B73: Opening new Primary Schools: | D73: ='Jharkhand (Annexure-IV)'!C7 -> 0 | F73: 0 | H73: ='Jharkhand (Annexure-IV)'!E7 -> 0
A74: 36 | B74: Opening Upper Primary Schools/Sections: | D74: ='Jharkhand (Annexure-IV)'!C8 -> 0 | F74: 0 | H74: ='Jharkhand (Annexure-IV)'!E8 -> 0
A75: 37 | B75: Conversion of EGS Centres into schools: | D75: 0 | F75: 0 | H75: 0
A76: 38 | B76: SIEMAT | C76: 0 | D76: 0 | E76: 0 | F76: 0 | G76: 0 | H76: 0 | I76: 0
A77: 39 | B77: NPGEL | C77: 0 | D77: 0 | E77: 0 | F77: 0 | G77: 0 | H77: 0 | I77: 0
A78: Sub Total | C78: =SUM(C58:C77) -> 34586.56 | E78: =SUM(E58:E77) -> 55229.4865 | G78: =SUM(G58:G77) -> 89816.0465 | I78: =SUM(I58:I77) -> 79259.66987 | K78: 0.8824666968
A79: Grand Total | C79: =C19+C56+C78 -> 34886.83 | E79: =E19+E56+E78 -> 119775.599 | G79: =G19+G56+G78 -> 154662.429 | I79: =I19+I56+I78 -> 137082.4703 | J79: =IF(F79>0,H79/F79," ") ->  | K79: =IF(G79>0,I79/G79," ") -> 0.8863333599

Sheet Sheet1 (hidden)
A1: Category | B1: Amount Approved (in lakh)
A2: I | B2: ='Recomm_2017-18'!L21 -> 47729.261
A3: II | B3: ='Recomm_2017-18'!L54 -> 18221.3108
A4: III | B4: ='Recomm_2017-18'!L78 -> 85032.02167
A5: Total | B5: =SUM(B2:B4) -> 150982.5935

Sheet Recomm_2017-18 (hidden)
A1: Proposal & Recommendation for 2016-17
A2: Rs. in lakhs
A3: State : Jharkhand | C3: Proposed by State for FY 2016-2017 | H3: Recommendation for FY 2016-2017 | M3: Remarks
A4: S. No. | B4: Intervention | C4: Spill over | D4: Fresh Proposal | F4: Total | H4: Spill over | I4: Fresh Proposal | K4: Total
C5: Fin. | D5: Phy. | E5: Fin | F5: Phy. | G5: Fin | H5: Fin. | I5: Phy. | J5: Fin | K5: Phy. | L5: Fin
A6: Category-1
A7: 1 | B7: Reimbursement under Section 12(1)(c) | C7: 0 | D7: ='Jharkhand (Annexure-IV)'!P155 -> 13263 | E7: ='Jharkhand (Annexure-IV)'!Q155 -> 1000 | F7: =D7 -> 13263 | G7: =C7+E7 -> 1000 | H7: ='Jharkhand (Annexure-IV)'!U155 -> 0 | I7: ='Jharkhand (Annexure-IV)'!Y155 -> 13263 | J7: ='Jharkhand (Annexure-IV)'!Z155 -> 0 | K7: =I7 -> 13263 | L7: =H7+J7 -> 0 | M7: Not recommended
A8: 2 | B8: Free Text Books
B9: a. Primary | C9: 0 | D9: ='Jharkhand (Annexure-IV)'!P203+'Jharkhand (Annexure-IV)'!P206 -> 2621165 | E9: ='Jharkhand (Annexure-IV)'!Q203+'Jharkhand (Annexure-IV)'!Q206 -> 3931.7475 | F9: =D9 -> 2621165 | G9: =C9+E9 -> 3931.7475 | H9: 0 | I9: ='Jharkhand (Annexure-IV)'!Y203+'Jharkhand (Annexure-IV)'!Y206 -> 2621165 | J9: ='Jharkhand (Annexure-IV)'!Z203+'Jharkhand (Annexure-IV)'!Z206 -> 3931.7475 | K9: =I9 -> 2621165 | L9: =H9+J9 -> 3931.7475 | M9: Recommended as proposed.
B10: b. Upper Primary | C10: 0 | D10: ='Jharkhand (Annexure-IV)'!P209 -> 1133103 | E10: ='Jharkhand (Annexure-IV)'!Q209 -> 2832.7575 | F10: 1133103 | G10: 2832.7575 | H10: =0 -> 0 | I10: ='Jharkhand (Annexure-IV)'!Y209 -> 1133103 | J10: ='Jharkhand (Annexure-IV)'!Z209 -> 2832.7575 | K10: 1133103 | L10: 2832.7575
B11: c. Large Print Book | C11: 0 | D11: ='Jharkhand (Annexure-IV)'!P205+'Jharkhand (Annexure-IV)'!P208+'Jharkhand (Annexure-IV)'!P211 -> 3212 | E11: ='Jharkhand (Annexure-IV)'!Q205+'Jharkhand (Annexure-IV)'!Q208+'Jharkhand (Annexure-IV)'!Q211 -> 5.9 | F11: 3212 | G11: 5.9 | H11: 0 | I11: ='Jharkhand (Annexure-IV)'!Y205+'Jharkhand (Annexure-IV)'!Y208+'Jharkhand (Annexure-IV)'!Y211 -> 3212 | J11: ='Jharkhand (Annexure-IV)'!Z205+'Jharkhand (Annexure-IV)'!Z208+'Jharkhand (Annexure-IV)'!Z211 -> 5.9 | K11: 3212 | L11: 5.9
B12: d. Braille Book | C12: 0 | D12: ='Jharkhand (Annexure-IV)'!P204+'Jharkhand (Annexure-IV)'!P207+'Jharkhand (Annexure-IV)'!P210 -> 1686 | E12: ='Jharkhand (Annexure-IV)'!Q204+'Jharkhand (Annexure-IV)'!Q207+'Jharkhand (Annexure-IV)'!Q210 -> 2.954 | F12: 1686 | G12: 2.954 | H12: 0 | I12: ='Jharkhand (Annexure-IV)'!Y204+'Jharkhand (Annexure-IV)'!Y207+'Jharkhand (Annexure-IV)'!Y210 -> 1686 | J12: ='Jharkhand (Annexure-IV)'!Z204+'Jharkhand (Annexure-IV)'!Z207+'Jharkhand (Annexure-IV)'!Z210 -> 2.954 | K12: 1686 | L12: 2.954
B13: d. Tribal Language Class I & II | C13: 0 | D13: ='Jharkhand (Annexure-IV)'!P213 -> 3754268 | E13: ='Jharkhand (Annexure-IV)'!Q213 -> 1877.134 | F13: =D13 -> 3754268 | G13: =C13+E13 -> 1877.134 | H13: 0 | I13: ='Jharkhand (Annexure-IV)'!Y213 -> 0 | J13: ='Jharkhand (Annexure-IV)'!Z213 -> 0 | K13: =I13 -> 0 | L13: =H13+J13 -> 0 | M13: Not recommended
A14: 3 | B14: Free Uniform | C14: 0 | D14: ='Jharkhand (Annexure-IV)'!P220 -> 4446505 | E14: ='Jharkhand (Annexure-IV)'!Q220 -> 17786.02 | F14: 4446505 | G14: 17786.02 | H14: 0 | I14: ='Jharkhand (Annexure-IV)'!Y220 -> 4446505 | J14: ='Jharkhand (Annexure-IV)'!Z220 -> 17786.02 | K14: 4446505 | L14: 17786.02 | M14: Recommended as proposed.
A15: 4 | B15: Residential School/ Hostel | C15: ='Jharkhand (Annexure-IV)'!L78+'Jharkhand (Annexure-IV)'!L143 -> 0.75 | D15: ='Jharkhand (Annexure-IV)'!P78+'Jharkhand (Annexure-IV)'!P143 -> 18 | E15: ='Jharkhand (Annexure-IV)'!Q78+'Jharkhand (Annexure-IV)'!Q143 ->  | F15: 18 | H15: ='Jharkhand (Annexure-IV)'!U78+'Jharkhand (Annexure-IV)'!U143 -> 0 | I15: ='Jharkhand (Annexure-IV)'!X78+'Jharkhand (Annexure-IV)'!Y143 -> 0 | J15: ='Jharkhand (Annexure-IV)'!Z78+'Jharkhand (Annexure-IV)'!Z143 -> 846.9 | K15: 0 | L15: 846.9
A16: 5 | B16: KGBV | C16: ='Jharkhand (Annexure-IV)'!L468 -> 5.07 | D16: ='Jharkhand (Annexure-IV)'!P468 -> 203 | E16: ='Jharkhand (Annexure-IV)'!Q468 -> 13548.312 | F16: 203 | G16: 13553.382 | H16: ='Jharkhand (Annexure-IV)'!U468 -> 1 | I16: ='Jharkhand (Annexure-IV)'!Y468 -> 203 | J16: ='Jharkhand (Annexure-IV)'!Z468 -> 11841.46 | K16: 203 | L16: 11842.46 | M16: Recommended as appraised. Proposal of 42 new KGBVs not recommended.
A17: 6 | B17: IE | C17: 0 | D17: ='Jharkhand (Annexure-IV)'!P362 -> 70739 | E17: ='Jharkhand (Annexure-IV)'!Q362 -> 2122.17 | F17: 70739 | G17: 2122.17 | H17: 0 | I17: ='Jharkhand (Annexure-IV)'!Y362 -> 70739 | J17: ='Jharkhand (Annexure-IV)'!Z362 -> 2122.17 | K17: 70739 | L17: 2122.17 | M17: Recommended as proposed.
A18: 7 | B18: School Grant | C18: 0 | D18: ='Jharkhand (Annexure-IV)'!P350 -> 54128 | E18: ='Jharkhand (Annexure-IV)'!Q350 -> 3000.72 | F18: 54128 | G18: 3000.72 | H18: 0 | I18: ='Jharkhand (Annexure-IV)'!Y350 -> 54128 | J18: ='Jharkhand (Annexure-IV)'!Z350 -> 3000.72 | K18: 54128 | L18: 3000.72 | M18: Recommended as appraised.
A19: 8 | B19: a. Project Management | C19: 0 | D19: ='Jharkhand (Annexure-IV)'!P413+'Jharkhand (Annexure-IV)'!P426 -> 25 | E19: ='Jharkhand (Annexure-IV)'!Q413+'Jharkhand (Annexure-IV)'!Q416+'Jharkhand (Annexure-IV)'!Q426 -> 12453.75 | F19: 25 | G19: 12453.75 | H19: 0 | I19: ='Jharkhand (Annexure-IV)'!Y413+'Jharkhand (Annexure-IV)'!Y426 -> 25 | J19: ='Jharkhand (Annexure-IV)'!Z413+'Jharkhand (Annexure-IV)'!Z416+'Jharkhand (Annexure-IV)'!Z426 -> 5357.632 | K19: 25 | L19: 5357.632 | M19: 3.5% to covers only salary and other activities restricted within the balance amount.
B20: b. Finance | C20: Covered Under Project Management and Overall allocation
A21: Sub Total | C21: =SUM(C7:C19) -> 5.82 | G21: =SUM(G7:G19) ->  | H21: 1 | J21: 47728.261 | L21: 47729.261
A22: Category-2
A23: 9 | B23: Transport / Escort facility | C23: 0 | D23: ='Jharkhand (Annexure-IV)'!P145 -> 329 | E23: ='Jharkhand (Annexure-IV)'!Q147 -> 9.87 | F23: =D23 -> 329 | G23: =C23+E23 -> 9.87 | H23: 0 | I23: ='Jharkhand (Annexure-IV)'!Y145 -> 0 | J23: ='Jharkhand (Annexure-IV)'!Z145 -> 0 | K23: =I23 -> 0 | L23: =H23+J23 -> 0 | M23: Not recommended
A24: 10 | B24: Special Training for Age appropriate addmission of OoSC
B25: Residential (Fresh)
B26: a. 6 months | C26: 0 | D26: ='Jharkhand (Annexure-IV)'!P160 -> 2760 | E26: ='Jharkhand (Annexure-IV)'!Q160 -> 276 | F26: 2760 | G26: 276 | H26: 0 | I26: ='Jharkhand (Annexure-IV)'!Y160 -> 2760 | J26: ='Jharkhand (Annexure-IV)'!Z160 -> 276 | K26: 2760 | L26: 276 | M26: Recommended as proposed.
B27: Residential continuing from previous year
B28: a. 3 months | C28: 0 | D28: ='Jharkhand (Annexure-IV)'!P167 -> 0 | E28: ='Jharkhand (Annexure-IV)'!Q167 -> 0 | F28: 0 | G28: 0 | H28: 0 | I28: ='Jharkhand (Annexure-IV)'!Y167 -> 0 | J28: ='Jharkhand (Annexure-IV)'!Z167 -> 0 | K28: 0 | L28: 0 | M28: Recommended as proposed.
B29: Non Residential (Fresh)
B30: a. 6 Months | C30: 0 | D30: ='Jharkhand (Annexure-IV)'!P172 -> 44728 | E30: ='Jharkhand (Annexure-IV)'!Q172 -> 1610.208 | F30: 44728 | G30: 1610.208 | H30: 0 | I30: ='Jharkhand (Annexure-IV)'!Y172 -> 44728 | J30: ='Jharkhand (Annexure-IV)'!Z172 -> 1341.84 | K30: 44728 | L30: 1341.84 | M30: Recommended as proposed.
B31: NonResidential continuing from previous year
B32: a. 6 Months | C32: 0 | D32: ='Jharkhand (Annexure-IV)'!P178 -> 0 | E32: ='Jharkhand (Annexure-IV)'!Q178 -> 0 | F32: 0 | G32: 0 | H32: 0 | I32: ='Jharkhand (Annexure-IV)'!Y178 -> 0 | J32: ='Jharkhand (Annexure-IV)'!Z178 -> 0 | K32: 0 | L32: 0 | M32: Recommended as proposed.
B33: b. 3 months | C33: 0 | D33: ='Jharkhand (Annexure-IV)'!P179 -> 0 | E33: ='Jharkhand (Annexure-IV)'!Q179 -> 0 | F33: =D33 -> 0 | G33: =C33+E33 -> 0 | H33: 0 | I33: ='Jharkhand (Annexure-IV)'!Y179 -> 0 | J33: ='Jharkhand (Annexure-IV)'!Z179 -> 0 | K33: 0 | L33: 0 | M33: Recommended as proposed.
B34: Seasonal Hostel (Residential)
B35: a. 6 Months | C35: 0 | D35: ='Jharkhand (Annexure-IV)'!P190 -> 447 | E35: ='Jharkhand (Annexure-IV)'!Q190 -> 44.7 | F35: 447 | G35: 44.7 | H35: 0 | I35: ='Jharkhand (Annexure-IV)'!Y190 -> 547 | J35: ='Jharkhand (Annexure-IV)'!Z190 -> 54.7 | K35: 547 | L35: 54.7 | M35: Recommended as proposed.
B36: Seasonal Hostel (Non Residential)
B37: a. 9 months (Drop-in-Centre) | C37: 0 | D37: ='Jharkhand (Annexure-IV)'!P195 -> 1250 | E37: ='Jharkhand (Annexure-IV)'!Q195 -> 78.75 | F37: 1250 | G37: 78.75 | H37: 0 | I37: ='Jharkhand (Annexure-IV)'!Y195 -> 1225 | J37: ='Jharkhand (Annexure-IV)'!Z195 -> 55.125 | K37: 1225 | L37: 55.125 | M37: Recommended as proposed.
A38: 11 | B38: Teacher Training | C38: ='Jharkhand (Annexure-IV)'!L305 -> 0 | D38: ='Jharkhand (Annexure-IV)'!P305 -> 172498 | E38: ='Jharkhand (Annexure-IV)'!Q305 -> 2973.59 | F38: 172498 | G38: 2973.59 | H38: ='Jharkhand (Annexure-IV)'!U305 -> 0 | I38: ='Jharkhand (Annexure-IV)'!Y305 -> 172498 | J38: ='Jharkhand (Annexure-IV)'!Z305 -> 2973.59 | K38: 172498 | L38: 2973.59 | M38: Recommended as proposed.
A39: 12 | B39: Academic Support through BRC/CRC
B40: a) BRC | C40: ='Jharkhand (Annexure-IV)'!L320 -> 0 | D40: ='Jharkhand (Annexure-IV)'!P320 -> 265 | E40: ='Jharkhand (Annexure-IV)'!Q320 -> 2058.573 | F40: 265 | G40: 2058.573 | H40: ='Jharkhand (Annexure-IV)'!U320 -> 0 | I40: ='Jharkhand (Annexure-IV)'!Y320 -> 0 | J40: ='Jharkhand (Annexure-IV)'!Z320 -> 1635.1528 | K40: 0 | L40: 1635.1528 | M40: Recommended as appraised.
B41: b) CRC | C41: ='Jharkhand (Annexure-IV)'!L330 -> 0 | D41: ='Jharkhand (Annexure-IV)'!P330 -> 2264 | E41: ='Jharkhand (Annexure-IV)'!Q330 -> 4959.248 | F41: 2264 | G41: 4959.248 | H41: ='Jharkhand (Annexure-IV)'!U330 -> 0 | I41: ='Jharkhand (Annexure-IV)'!Y330 -> 0 | J41: ='Jharkhand (Annexure-IV)'!Z330 -> 4447.916 | K41: 0 | L41: 4447.916 | M41: Recommended as appraised.
A42: 13 | B42: Learning Enhancement Programme (LEP) | C42: ='Jharkhand (Annexure-IV)'!L419+'Jharkhand (Annexure-IV)'!L420+'Jharkhand (Annexure-IV)'!L421 -> 0 | D42: ='Jharkhand (Annexure-IV)'!P419+'Jharkhand (Annexure-IV)'!P421 -> 38931 | E42: ='Jharkhand (Annexure-IV)'!Q419+'Jharkhand (Annexure-IV)'!Q420+'Jharkhand (Annexure-IV)'!Q421 -> 7138.12328 | F42: 38931 | G42: 7138.12328 | H42: ='Jharkhand (Annexure-IV)'!U419+'Jharkhand (Annexure-IV)'!U420+'Jharkhand (Annexure-IV)'!U421 -> 0 | I42: ='Jharkhand (Annexure-IV)'!Y419+'Jharkhand (Annexure-IV)'!Y421 -> 0 | J42: ='Jharkhand (Annexure-IV)'!Z419+'Jharkhand (Annexure-IV)'!Z420+'Jharkhand (Annexure-IV)'!Z421 -> 2989.141 | K42: 0 | L42: 2989.141 | M42: Recommended as appraised within the overall ceiling of 2%
A43: 14 | B43: a. Innovation fund for CAL | C43: ='Jharkhand (Annexure-IV)'!L335 -> 0 | D43: ='Jharkhand (Annexure-IV)'!P334 -> 4083 | E43: ='Jharkhand (Annexure-IV)'!Q335 -> 14290.5 | F43: 4083 | G43: 14290.5 | H43: ='Jharkhand (Annexure-IV)'!U335 -> 0 | I43: ='Jharkhand (Annexure-IV)'!Y334 -> 24 | J43: ='Jharkhand (Annexure-IV)'!Z335 -> 1200 | K43: 24 | L43: 1200 | M43: Recommended as proposed.
B44: b. Rashtriya Avishkar Abhiyan (RAA) | C44: This acitvity is support under CAL
A45: 15 | B45: Library | C45: ='Jharkhand (Annexure-IV)'!L339 -> 0 | D45: ='Jharkhand (Annexure-IV)'!P339 -> 0 | E45: ='Jharkhand (Annexure-IV)'!Q339 -> 0 | F45: =D45 -> 0 | G45: =C45+E45 -> 0 | H45: ='Jharkhand (Annexure-IV)'!U339 -> 0 | I45: ='Jharkhand (Annexure-IV)'!Y339 -> 0 | J45: ='Jharkhand (Annexure-IV)'!Z339 -> 0 | K45: =I45 -> 0 | L45: =H45+J45 -> 0 | M45: Recommended as appraised.
A46: 16 | B46: Teacher Grant | C46: ='Jharkhand (Annexure-IV)'!L346 -> 0 | D46: ='Jharkhand (Annexure-IV)'!P346 -> 118212 | E46: ='Jharkhand (Annexure-IV)'!Q346 -> 591.06 | F46: =D46 -> 118212 | G46: =C46+E46 -> 591.06 | H46: ='Jharkhand (Annexure-IV)'!U346 -> 0 | I46: ='Jharkhand (Annexure-IV)'!Y346 -> 118212 | J46: ='Jharkhand (Annexure-IV)'!Z346 -> 591.06 | K46: =I46 -> 118212 | L46: =H46+J46 -> 591.06 | M46: Recommended as proposed.
A47: =A46+1 -> 17 | B47: TLE for New Schools | C47: ='Jharkhand (Annexure-IV)'!L224 -> 0 | D47: ='Jharkhand (Annexure-IV)'!P224 -> 0 | E47: ='Jharkhand (Annexure-IV)'!Q224 -> 0 | F47: 0 | G47: 0 | H47: ='Jharkhand (Annexure-IV)'!U224 -> 0 | I47: ='Jharkhand (Annexure-IV)'!Y224 -> 0 | J47: ='Jharkhand (Annexure-IV)'!Z224 -> 0 | K47: 0 | L47: 0 | M47: Not recommended
A48: 18 | B48: a. REMS | C48: ='Jharkhand (Annexure-IV)'!L352+'Jharkhand (Annexure-IV)'!L428 -> 0 | D48: ='Jharkhand (Annexure-IV)'!P352 -> 54128 | E48: ='Jharkhand (Annexure-IV)'!Q352+'Jharkhand (Annexure-IV)'!Q428 -> 1141.28 | F48: 54128 | G48: 1141.28 | H48: 0 | I48: ='Jharkhand (Annexure-IV)'!Y352 -> 0 | J48: ='Jharkhand (Annexure-IV)'!Z352+'Jharkhand (Annexure-IV)'!Z428 -> 0 | K48: 0 | L48: 0 | M48: Recommended as appraised.
B49: b. ABEAS in School | C49: 0 | D49: ='Jharkhand (Annexure-IV)'!P354 -> 14716 | E49: ='Jharkhand (Annexure-IV)'!Q354 -> 1765.92 | F49: =D49 -> 14716 | G49: =C49+E49 -> 1765.92 | H49: 0 | I49: ='Jharkhand (Annexure-IV)'!Y354 -> 0 | J49: ='Jharkhand (Annexure-IV)'!Z354 -> 0 | K49: =I49 -> 0 | L49: =H49+J49 -> 0 | M49: Not recommended
A50: =A48+1 -> 19 | B50: a. Innovation | C50: 0 | D50: ='Jharkhand (Annexure-IV)'!P364 -> 24 | E50: ='Jharkhand (Annexure-IV)'!Q368 -> 1200 | F50: 24 | G50: 1200 | H50: 0 | I50: ='Jharkhand (Annexure-IV)'!Y364 -> 24 | J50: ='Jharkhand (Annexure-IV)'!Z368 -> 1200 | K50: 24 | L50: 1200 | M50: Rs. 50 lakh per district for all the activities of PBBB.
B51: b. Pade Bharat Bade Bharat (PBBB) | F51: 0 | G51: 0 | K51: 0 | L51: 0
A52: =A50+1 -> 20 | B52: Community Mobilization (0.5%) | C52: 0 | D52: ='Jharkhand (Annexure-IV)'!P422 -> 24 | E52: ='Jharkhand (Annexure-IV)'!Q422 -> 1341.704904 | F52: 24 | G52: 1341.704904 | H52: 0 | I52: ='Jharkhand (Annexure-IV)'!Y422 -> 24 | J52: ='Jharkhand (Annexure-IV)'!Z422 -> 756.028 | K52: 24 | L52: 756.028 | M52: Recommended as appraised within the overall ceiling of 0.5%
A53: 21 | B53: SMC/PRI Training | C53: 0 | D53: ='Jharkhand (Annexure-IV)'!P372 -> 470956 | E53: ='Jharkhand (Annexure-IV)'!Q372 -> 1412.868 | F53: 470956 | G53: 1412.868 | H53: 0 | I53: ='Jharkhand (Annexure-IV)'!Y372 -> 233586 | J53: ='Jharkhand (Annexure-IV)'!Z372 -> 700.758 | K53: 233586 | L53: 700.758 | M53: Recommended as appraised.
A54: Total | C54: =SUM(C23:C53) -> 0 | E54: =SUM(E23:E53) -> 40892.39518 | G54: =SUM(G23:G53) -> 40892.39518 | H54: =SUM(H23:H53) -> 0 | J54: =SUM(J23:J53) -> 18221.3108 | L54: =SUM(L23:L53) -> 18221.3108
A55: Category-3
A56: 22 | B56: Teacher Salary | C56: 0 | D56: ='Jharkhand (Annexure-IV)'!P279 -> 74370 | E56: ='Jharkhand (Annexure-IV)'!Q279 -> 78594.0672 | F56: =D56 -> 74370 | G56: =C56+E56 -> 78594.0672 | H56: 0 | I56: ='Jharkhand (Annexure-IV)'!Y279 -> 68075 | J56: ='Jharkhand (Annexure-IV)'!Z279 -> 74253.16008 | K56: =I56 -> 68075 | L56: =H56+J56 -> 74253.16008 | M56: Recommended as appraised.
A57: =A56+1 -> 23 | B57: New Schools (Building) | C57: ='Jharkhand (Annexure-IV)'!L375+'Jharkhand (Annexure-IV)'!L377+'Jharkhand (Annexure-IV)'!N375+'Jharkhand (Annexure-IV)'!N377 -> 689.806 | D57: ='Jharkhand (Annexure-IV)'!P375+'Jharkhand (Annexure-IV)'!P377 -> 0 | E57: ='Jharkhand (Annexure-IV)'!Q375+'Jharkhand (Annexure-IV)'!Q377 -> 0 | F57: 0 | G57: 689.806 | H57: ='Jharkhand (Annexure-IV)'!U375+'Jharkhand (Annexure-IV)'!U377+'Jharkhand (Annexure-IV)'!W375+'Jharkhand (Annexure-IV)'!W377 -> 689.806 | I57: ='Jharkhand (Annexure-IV)'!Y375+'Jharkhand (Annexure-IV)'!Y377 -> 0 | J57: ='Jharkhand (Annexure-IV)'!Z375+'Jharkhand (Annexure-IV)'!Z377 -> 0 | K57: 0 | L57: 689.806 | M57: Recommended as appraised. Only spill over.
A58: =A57+1 -> 24 | B58: Additional Classrooms (ACR) | C58: ='Jharkhand (Annexure-IV)'!L380+'Jharkhand (Annexure-IV)'!N380+'Jharkhand (Annexure-IV)'!L381+'Jharkhand (Annexure-IV)'!N381+'Jharkhand (Annexure-IV)'!L382+'Jharkhand (Annexure-IV)'!N382+'Jharkhand (Annexure-IV)'!L383+'Jharkhand (Annexure-IV)'!N383 -> 3576.34863 | D58: ='Jharkhand (Annexure-IV)'!P380+'Jharkhand (Annexure-IV)'!P381+'Jharkhand (Annexure-IV)'!P382+'Jharkhand (Annexure-IV)'!P383 -> 2626 | E58: ='Jharkhand (Annexure-IV)'!Q380+'Jharkhand (Annexure-IV)'!Q381+'Jharkhand (Annexure-IV)'!Q382+'Jharkhand (Annexure-IV)'!Q383 -> 13240.31826 | F58: 2626 | G58: 16816.66689 | H58: ='Jharkhand (Annexure-IV)'!U380+'Jharkhand (Annexure-IV)'!W380+'Jharkhand (Annexure-IV)'!U381+'Jharkhand (Annexure-IV)'!W381+'Jharkhand (Annexure-IV)'!U382+'Jharkhand (Annexure-IV)'!W382+'Jharkhand (Annexure-IV)'!U383+'Jharkhand (Annexure-IV)'!W383 -> 3576.34863 | I58: ='Jharkhand (Annexure-IV)'!Y380+'Jharkhand (Annexure-IV)'!Y381+'Jharkhand (Annexure-IV)'!Y382+'Jharkhand (Annexure-IV)'!Y383 -> 286 | J58: ='Jharkhand (Annexure-IV)'!Z380+'Jharkhand (Annexure-IV)'!Z381+'Jharkhand (Annexure-IV)'!Z382+'Jharkhand (Annexure-IV)'!Z383 -> 1442.012 | K58: 286 | L58: 5018.36063 | M58: Recommended as appraised. Only spill over.
A59: 25 | B59: Block Resource Centers | F59: 0 | G59: 0 | K59: 0 | L59: 0
A60: 26 | B60: HM Room | C60: ='Jharkhand (Annexure-IV)'!L390+'Jharkhand (Annexure-IV)'!L391+'Jharkhand (Annexure-IV)'!N390+'Jharkhand (Annexure-IV)'!N391 -> 2834.26 | D60: ='Jharkhand (Annexure-IV)'!P390+'Jharkhand (Annexure-IV)'!P391 -> 0 | E60: ='Jharkhand (Annexure-IV)'!Q390+'Jharkhand (Annexure-IV)'!Q391 -> 0 | F60: 0 | G60: 2834.26 | H60: ='Jharkhand (Annexure-IV)'!U390+'Jharkhand (Annexure-IV)'!U391+'Jharkhand (Annexure-IV)'!W390+'Jharkhand (Annexure-IV)'!W391 -> 0 | I60: ='Jharkhand (Annexure-IV)'!Y390+'Jharkhand (Annexure-IV)'!Y391 -> 0 | J60: ='Jharkhand (Annexure-IV)'!Z390+'Jharkhand (Annexure-IV)'!Z391 -> 0 | K60: 0 | L60: 0 | M60: Not recommended
A61: 27 | B61: Residential Schools (Building) | C61: ='Jharkhand (Annexure-IV)'!L404+'Jharkhand (Annexure-IV)'!L405 -> 0 | D61: ='Jharkhand (Annexure-IV)'!P404+'Jharkhand (Annexure-IV)'!P405 -> 13 | E61: ='Jharkhand (Annexure-IV)'!Q404+'Jharkhand (Annexure-IV)'!Q405 -> 2052.063 | F61: 13 | G61: 2052.063 | H61: ='Jharkhand (Annexure-IV)'!U404+'Jharkhand (Annexure-IV)'!W404+'Jharkhand (Annexure-IV)'!U405+'Jharkhand (Annexure-IV)'!W405 -> 0 | I61: ='Jharkhand (Annexure-IV)'!Y404+'Jharkhand (Annexure-IV)'!Y405 -> 7 | J61: ='Jharkhand (Annexure-IV)'!Z404+'Jharkhand (Annexure-IV)'!Z405 -> 1153.18 | K61: 7 | L61: 1153.18 | M61: Not recommended
A62: 28 | B62: Toilets & Drinking Water | C62: ='Jharkhand (Annexure-IV)'!L384+'Jharkhand (Annexure-IV)'!L385+'Jharkhand (Annexure-IV)'!L386+'Jharkhand (Annexure-IV)'!L387+'Jharkhand (Annexure-IV)'!N384+'Jharkhand (Annexure-IV)'!N385+'Jharkhand (Annexure-IV)'!N386+'Jharkhand (Annexure-IV)'!N387 -> 0 | D62: ='Jharkhand (Annexure-IV)'!P384+'Jharkhand (Annexure-IV)'!P385+'Jharkhand (Annexure-IV)'!P386+'Jharkhand (Annexure-IV)'!P387 -> 4438 | E62: ='Jharkhand (Annexure-IV)'!Q384+'Jharkhand (Annexure-IV)'!Q385+'Jharkhand (Annexure-IV)'!Q386+'Jharkhand (Annexure-IV)'!Q387 -> 5002.24732 | F62: 4438 | G62: 5002.24732 | H62: ='Jharkhand (Annexure-IV)'!U384+'Jharkhand (Annexure-IV)'!U385+'Jharkhand (Annexure-IV)'!U386+'Jharkhand (Annexure-IV)'!U387+'Jharkhand (Annexure-IV)'!W384+'Jharkhand (Annexure-IV)'!W385+'Jharkhand (Annexure-IV)'!W386+'Jharkhand (Annexure-IV)'!W387 -> 0 | I62: ='Jharkhand (Annexure-IV)'!Y384+'Jharkhand (Annexure-IV)'!Y385+'Jharkhand (Annexure-IV)'!Y386+'Jharkhand (Annexure-IV)'!Y387 -> 164 | J62: ='Jharkhand (Annexure-IV)'!Z384+'Jharkhand (Annexure-IV)'!Z385+'Jharkhand (Annexure-IV)'!Z386+'Jharkhand (Annexure-IV)'!Z387 -> 184.85096 | K62: 164 | L62: 184.85096 | M62: Not recommended
A63: 29 | B63: Furniture | C63: ='Jharkhand (Annexure-IV)'!L398+'Jharkhand (Annexure-IV)'!N398 -> 498.225 | D63: ='Jharkhand (Annexure-IV)'!P398 -> 195671 | E63: ='Jharkhand (Annexure-IV)'!Q398 -> 3668.83125 | F63: 195671 | G63: 4167.05625 | H63: ='Jharkhand (Annexure-IV)'!U398+'Jharkhand (Annexure-IV)'!W398 -> 498.225 | I63: ='Jharkhand (Annexure-IV)'!Y398 -> 0 | J63: ='Jharkhand (Annexure-IV)'!Z398 -> 0 | K63: 0 | L63: 498.225 | M63: Recommended as appraised @ Rs. 500/- per child
A64: 30 | B64: Civil Works
B65: a. Boundary Walls | C65: ='Jharkhand (Annexure-IV)'!L388+'Jharkhand (Annexure-IV)'!N388 -> 4656.2 | D65: ='Jharkhand (Annexure-IV)'!P388 -> 442772 | E65: ='Jharkhand (Annexure-IV)'!Q388 -> 19752.05892 | F65: 442772 | G65: 24408.25892 | H65: ='Jharkhand (Annexure-IV)'!U388+'Jharkhand (Annexure-IV)'!W388 -> 0 | I65: ='Jharkhand (Annexure-IV)'!Y388 -> 0 | J65: ='Jharkhand (Annexure-IV)'!Z388 -> 0 | K65: 0 | L65: 0 | M65: Not recommended
B66: b. Ramps | C66: ='Jharkhand (Annexure-IV)'!L393+'Jharkhand (Annexure-IV)'!N393 -> 0 | D66: ='Jharkhand (Annexure-IV)'!P393 -> 52 | E66: ='Jharkhand (Annexure-IV)'!Q393 -> 10.556 | F66: 52 | G66: 10.556 | H66: ='Jharkhand (Annexure-IV)'!U393+'Jharkhand (Annexure-IV)'!W393 -> 0 | I66: ='Jharkhand (Annexure-IV)'!Y393 -> 0 | J66: ='Jharkhand (Annexure-IV)'!Z393 -> 0 | K66: 0 | L66: 0
B67: c. Electrification | C67: ='Jharkhand (Annexure-IV)'!L389+'Jharkhand (Annexure-IV)'!N389 -> 0 | D67: ='Jharkhand (Annexure-IV)'!P389 -> 0 | E67: ='Jharkhand (Annexure-IV)'!Q389 -> 0 | F67: =D67 -> 0 | G67: =C67+E67 -> 0 | H67: ='Jharkhand (Annexure-IV)'!U389+'Jharkhand (Annexure-IV)'!W389 -> 0 | I67: ='Jharkhand (Annexure-IV)'!Y389 -> 0 | J67: ='Jharkhand (Annexure-IV)'!Z389 -> 0 | K67: =I67 -> 0 | L67: =H67+J67 -> 0 | M67: Not recommended
B68: d. Augumentation of training facility in BRC & CFE | C68: ='Jharkhand (Annexure-IV)'!L392+'Jharkhand (Annexure-IV)'!N392+'Jharkhand (Annexure-IV)'!L408+'Jharkhand (Annexure-IV)'!N408 -> 0 | D68: ='Jharkhand (Annexure-IV)'!P392+'Jharkhand (Annexure-IV)'!P408 -> 0 | E68: ='Jharkhand (Annexure-IV)'!Q392+'Jharkhand (Annexure-IV)'!Q408 -> 0 | F68: =D68 -> 0 | G68: =C68+E68 -> 0 | H68: ='Jharkhand (Annexure-IV)'!U392+'Jharkhand (Annexure-IV)'!W392+'Jharkhand (Annexure-IV)'!U408+'Jharkhand (Annexure-IV)'!W408 -> 0 | I68: ='Jharkhand (Annexure-IV)'!Y392+'Jharkhand (Annexure-IV)'!Y408 -> 0 | J68: ='Jharkhand (Annexure-IV)'!Z392+'Jharkhand (Annexure-IV)'!Z408 -> 0 | K68: =I68 -> 0 | L68: =H68+J68 -> 0
A69: =A64+1 -> 31 | B69: Repairs to School Buildings | C69: ='Jharkhand (Annexure-IV)'!L399+'Jharkhand (Annexure-IV)'!L400+'Jharkhand (Annexure-IV)'!L401+'Jharkhand (Annexure-IV)'!N399+'Jharkhand (Annexure-IV)'!N400+'Jharkhand (Annexure-IV)'!N401 -> 0 | D69: ='Jharkhand (Annexure-IV)'!P399+'Jharkhand (Annexure-IV)'!P400+'Jharkhand (Annexure-IV)'!P401 -> 32323 | E69: ='Jharkhand (Annexure-IV)'!Q399+'Jharkhand (Annexure-IV)'!Q400+'Jharkhand (Annexure-IV)'!Q401 -> 8204.027 | F69: =D69 -> 32323 | G69: =C69+E69 -> 8204.027 | H69: ='Jharkhand (Annexure-IV)'!U399+'Jharkhand (Annexure-IV)'!U400+'Jharkhand (Annexure-IV)'!U401+'Jharkhand (Annexure-IV)'!W399+'Jharkhand (Annexure-IV)'!W400+'Jharkhand (Annexure-IV)'!W401 -> 0 | I69: ='Jharkhand (Annexure-IV)'!Y399+'Jharkhand (Annexure-IV)'!Y400+'Jharkhand (Annexure-IV)'!Y401 -> 235 | J69: ='Jharkhand (Annexure-IV)'!Z399+'Jharkhand (Annexure-IV)'!Z400+'Jharkhand (Annexure-IV)'!Z401 -> 418.414 | K69: =I69 -> 235 | L69: =H69+J69 -> 418.414 | M69: Recommended as appraised.
A70: 32 | B70: (a) Maintenance Grant | C70: 0 | D70: ='Jharkhand (Annexure-IV)'!P358 -> 38270 | E70: ='Jharkhand (Annexure-IV)'!Q358 -> 2870.25 | F70: 38270 | G70: 2870.25 | H70: 0 | I70: ='Jharkhand (Annexure-IV)'!Y358 -> 38270 | J70: ='Jharkhand (Annexure-IV)'!Z358 -> 2816.025 | K70: 38270 | L70: 2816.025 | M70: Recommended as admissible.
B71: (b) Swacchh Vidyalaya | C71: Covered under School Maintenance grant
A72: =A70+1 -> 33 | B72: School and Social Mapping: | F72: =D72 -> 0 | G72: =C72+E72 -> 0 | K72: =I72 -> 0 | L72: =H72+J72 -> 0
A73: 34 | B73: Opening new Primary Schools: | F73: =D73 -> 0 | G73: =C73+E73 -> 0 | K73: =I73 -> 0 | L73: =H73+J73 -> 0
A74: 35 | B74: Opening Upper Primary Schools/Sections: | F74: =D74 -> 0 | G74: =C74+E74 -> 0 | K74: =I74 -> 0 | L74: =H74+J74 -> 0
A75: 36 | B75: Conversion of EGS Centres into schools: | C75: All EGS already converted in Schools
A76: 37 | B76: SIEMAT | C76: One time grant
A77: 38 | B77: NPEGEL | C77: Activity Closed
B78: Total | C78: =SUM(C56:C77) -> 12254.83963 | E78: =SUM(E56:E77) -> 133394.419 | G78: =SUM(G56:G77) -> 145649.2586 | H78: =SUM(H56:H77) -> 4764.37963 | J78: =SUM(J56:J77) -> 80267.64204 | L78: =SUM(L56:L77) -> 85032.02167
B79: Grand Total | C79: =C21+C54+C78 -> 12260.65963 | H79: 4765.37963 | J79: 146217.2138 | L79: 150982.5935
L81: =L79-(L19+L42+L52) -> 141879.7925
J82: Mgt. | K82: 5768.6 | L82: =L19 -> 5357.632
J83: LEP | K83: 3060 | L83: =L42 -> 2989.141
J84: CM | K84: 400 | L84: =L52 -> 756.028
K86: =L81+K82+K83+K84 -> 151108.3925 | L86: =L79 -> 150982.5935
K87: =K82/K86*100 -> 3.817524563 | L87: =L19/L79*100 -> 3.548509717
K88: =K83/K86*100 -> 2.025036432 | L88: =L42/L79*100 -> 1.979791797
K89: =K84/K86*100 -> 0.2647106448 | L89: =L52/L79*100 -> 0.5007385174 | M89: =L87+L89 -> 4.049248234
K90: =SUM(K87:K89) -> 6.107271641 | L90: =SUM(L87:L89) -> 6.029040031
K92: =K87+K89 -> 4.082235208
B175: (b)Vedic Pathshala | X175: 0.06
X355: 7.6
X362: 1.2
AC525: =AB517*0.5/100 -> 0

Sheet 2016-17 (hidden)
A1: Proposal and Recommendation 2016-17
A2: S. No. | B2: Head | C2: Outlay Proposed | G2: Approved Outlay
C3: Spill Over | D3: Deferred Liability | E3: Fresh | F3: Total | G3: Spill Over | H3: Deferred Liability | I3: Fresh | J3: Total
A4: 1 | B4: SSA | C4: ='Jharkhand (Annexure-IV)'!L430 -> 4765.12963 | D4: ='Jharkhand (Annexure-IV)'!N430 -> 7490.46 | E4: ='Jharkhand (Annexure-IV)'!Q430 ->  | F4: =SUM(C4:E4) ->  | G4: ='Jharkhand (Annexure-IV)'!U430 -> 4764.37963 | H4: ='Jharkhand (Annexure-IV)'!W430 -> 0 | I4: ='Jharkhand (Annexure-IV)'!Z430 -> 136612.0416 | J4: =SUM(G4:I4) -> 141376.4212
A5: 2 | B5: KGBV | C5: ='Jharkhand (Annexure-IV)'!L543 -> 5.07 | D5: ='Jharkhand (Annexure-IV)'!N543 -> 0 | E5: ='Jharkhand (Annexure-IV)'!Q543 -> 13548.312 | F5: =SUM(C5:E5) -> 13553.382 | G5: ='Jharkhand (Annexure-IV)'!U543 -> 1 | H5: ='Jharkhand (Annexure-IV)'!W543 -> 0 | I5: ='Jharkhand (Annexure-IV)'!Z543 -> 11841.46 | J5: =SUM(G5:I5) -> 11842.46
B6: Total | C6: =SUM(C4:C5) -> 4770.19963 | D6: 7490.46 | G6: 4765.37963 | H6: 0 | I6: 148453.5016 | J6: 153218.8812
C8: ='Jharkhand (Annexure-IV)'!L544 -> 4770.19963 | D8: ='Jharkhand (Annexure-IV)'!N544 -> 7490.46 | E8: ='Jharkhand (Annexure-IV)'!Q544 ->  | F8: =SUM(C8:E8) ->  | G8: ='Jharkhand (Annexure-IV)'!U544 -> 4765.37963 | H8: ='Jharkhand (Annexure-IV)'!W544 -> 0 | I8: ='Jharkhand (Annexure-IV)'!Z544 -> 148453.5016 | J8: =SUM(G8:I8) -> 153218.8812
C9: =C6-C8 -> 0 | D9: =D6-D8 -> 0 | G9: 0 | H9: 0 | I9: 0 | J9: 0

Sheet Fund released-2015-16 (hidden)
A1: Fund released 2015-16 & Recommended outlay 2016-17 SSA, Jharkhand
A2: S. No. | B2: Particulars | C2: Amount Rs. in Crore | D2: Amount Rs. in Lakh
A3: 1 | B3: Approved outlay for the year 2015-16 | C3: =D3/100 -> 1566.59349 | D3: ='Jharkhand (Annexure-IV)'!D544 -> 156659.349
A4: 2 | B4: Opening balance with State as on 01/04/2015 | C4: =D4/100 -> 422.7825 | D4: 42278.25
A5: 3 | B5: Actual outlay size (after deducting opening bal.) | C5: =C3-C4 -> 1143.81099 | D5: =D3-D4 -> 114381.099
A6: 4 | B6: GOI Share of outlay as per sharing pattern (60%) | C6: =C5*60% -> 686.2865939 | D6: =D5*60% -> 68628.65939
A7: 5 | B7: Status of GOI releases during 2015-16
B8: Adhoc Funds (Released) | C8: =D8/100 -> 219.3861 | D8: 21938.61
B9: Balance of 1st installment (Released) | C9: =D9/100 -> 166.9337 | D9: 16693.37
B10: 2nd installment (to be released) | C10: =D10/100 -> 172.3133046 | D10: 17231.33046
A11: 6 | B11: Balance amount due from GOI | C11: =C6-C8-C9-C10 -> 127.6534893 | D11: =D6-D9-D10 -> 34703.95893
A12: 7 | B12: Current year’s proposal (2016-17) | C12: ='Jharkhand (Annexure-IV)'!S544 ->  | D12: 428639.8709
A13: 8 | B13: Current year’s recommendations (2016-17) | C13: ='Jharkhand (Annexure-IV)'!AB544 -> 153218.8812 | D13: 228381.6239
A14: 9 | B14: Additional fund allocated as per 14th Finance Commission | C14: =D14 -> 7011.79 | D14: =16498.8-9487.01 -> 7011.79

Sheet categorywise-2016-17 (hidden)
A1: Break up of Interventions-2016-17-SSA, Jharkhand
A2: SNo. | B2: Category | D2: Outlay approved by PAB (including spillover)-2014-15 | E2: % | F2: Outlay approved by PAB (including spillover)-2015-16 | G2: Achievement | H2: % | I2: Financial Proposal for 2016-17 | J2: % | K2: Financial Recommendation for 2016-17 | L2: %
B3: Category-1
A4: 1 | B4: Reimbursement under Section 12(1)(c) | E4: =D4/$D$35*100 -> 0 | F4: ='Jharkhand (Annexure-IV)'!$D$155 -> 0 | G4: ='Jharkhand (Annexure-IV)'!$F$155 -> 0 | I4: ='Jharkhand (Annexure-IV)'!$S$155 -> 1000 | J4: =I4/$I$35*100 ->  | K4: ='Jharkhand (Annexure-IV)'!$AB$155 -> 0 | L4: =K4/$K$35*100 -> 0
A5: 2 | B5: Textbooks | D5: 7044.2735 | E5: 3.634919287 | F5: ='Jharkhand (Annexure-IV)'!$D$214 -> 6775.736 | G5: ='Jharkhand (Annexure-IV)'!$F$214 -> 6775.736 | H5: =G5/F5*100 -> 100 | I5: ='Jharkhand (Annexure-IV)'!$S$214 -> 8677.7015 | K5: ='Jharkhand (Annexure-IV)'!$AB$214 -> 6773.359 | L5: 4.443875083
A6: 3 | B6: Uniforms | D6: 18507.316 | E6: 9.549969899 | F6: ='Jharkhand (Annexure-IV)'!$D$220 -> 17786.02 | G6: ='Jharkhand (Annexure-IV)'!$F$220 -> 17786.02 | H6: =G6/F6*100 -> 100 | I6: ='Jharkhand (Annexure-IV)'!$S$220 -> 17786.02 | K6: ='Jharkhand (Annexure-IV)'!$AB$220 -> 17786.02 | L6: 11.6690775
A7: 4 (a) | B7: Residential Hostels | D7: 201.85 | E7: 0.1041567251 | F7: ='Jharkhand (Annexure-IV)'!$D$143 -> 0 | G7: ='Jharkhand (Annexure-IV)'!$F$143 -> 0 | I7: ='Jharkhand (Annexure-IV)'!$S$143 -> 0 | K7: ='Jharkhand (Annexure-IV)'!$AB$143 -> 0 | L7: 0
A8: 4 (b) | B8: Residential Schools | E8: 0 | F8: ='Jharkhand (Annexure-IV)'!$D$78 -> 507.7 | G8: ='Jharkhand (Annexure-IV)'!$F$78 -> 218.6775 | H8: =G8/F8*100 -> 43.0721883 | I8: ='Jharkhand (Annexure-IV)'!$S$78 ->  | K8: ='Jharkhand (Annexure-IV)'!$AB$78 -> 846.9 | L8: 0.5556353661
A9: 5 | B9: KGBV | D9: 9007.33 | E9: 4.647877108 | F9: ='Jharkhand (Annexure-IV)'!$D$543 -> 10993.905 | G9: ='Jharkhand (Annexure-IV)'!$F$543 -> 9081.82608 | H9: 82.60782752 | I9: ='Jharkhand (Annexure-IV)'!$S$543 -> 13553.382 | K9: ='Jharkhand (Annexure-IV)'!$AB$543 -> 11842.46 | L9: 7.769618135
A10: 6 | B10: IE | D10: 1621.82 | E10: 0.8368761944 | F10: ='Jharkhand (Annexure-IV)'!$D$362 -> 2139.12 | G10: ='Jharkhand (Annexure-IV)'!$F$362 -> 1344.24293 | H10: 62.84093132 | I10: ='Jharkhand (Annexure-IV)'!$S$362 -> 2122.17 | K10: ='Jharkhand (Annexure-IV)'!$AB$362 -> 2122.17 | L10: 1.392316336
A11: 7 | B11: School Grant | D11: 3063.74 | E11: 1.580922095 | F11: ='Jharkhand (Annexure-IV)'!$D$350 -> 3052.47 | G11: ='Jharkhand (Annexure-IV)'!$F$350 -> 3003.59 | H11: 98.39867386 | I11: ='Jharkhand (Annexure-IV)'!$S$350 -> 3000.72 | K11: ='Jharkhand (Annexure-IV)'!$AB$350 -> 3000.72 | L11: 1.96871668
A12: 8 | B12: Programme Management | D12: 7637.8 | E12: 3.94118521 | F12: ='Jharkhand (Annexure-IV)'!$D$417+'Jharkhand (Annexure-IV)'!$D$426 -> 5768.605233 | G12: ='Jharkhand (Annexure-IV)'!$F$417+'Jharkhand (Annexure-IV)'!$F$426 -> 4787.31135 | H12: 82.98906159 | I12: ='Jharkhand (Annexure-IV)'!$S$417+'Jharkhand (Annexure-IV)'!$S$426 -> 12453.75 | K12: ='Jharkhand (Annexure-IV)'!$AB$417+'Jharkhand (Annexure-IV)'!$AB$426 -> 5357.632 | L12: 3.515042883
B13: Sub Total | D13: =SUM(D4:D12) -> 47084.1295 | E13: 24.29590652 | F13: =SUM(F4:F12) -> 47023.55623 | G13: =SUM(G4:G12) -> 42997.40386 | H13: 91.43800959 | I13: =SUM(I4:I12) ->  | K13: =SUM(K4:K12) -> 47729.261 | L13: 31.31428198
B14: Category-2 | E14: 0 | L14: 0
A15: 9 | B15: Transport/Escort Facility | E15: 0 | F15: ='Jharkhand (Annexure-IV)'!$D$147 -> 0 | G15: ='Jharkhand (Annexure-IV)'!$F$147 -> 0 | I15: ='Jharkhand (Annexure-IV)'!$S$147 -> 9.87 | K15: ='Jharkhand (Annexure-IV)'!$AB$147 -> 0 | L15: 0
A16: 10 | B16: Special training | D16: 2543.13162 | E16: 1.31228269 | F16: ='Jharkhand (Annexure-IV)'!$D$199 -> 3712.1517 | G16: ='Jharkhand (Annexure-IV)'!$F$199 -> 2230.73613 | H16: =G16/F16*100 -> 60.09280628 | I16: ='Jharkhand (Annexure-IV)'!$S$199 -> 2614.065 | K16: ='Jharkhand (Annexure-IV)'!$AB$199 -> 2069.815 | L16: 1.357967193
A17: 11 | B17: Teachers’ Training | D17: 2145.097 | E17: 1.106892635 | F17: ='Jharkhand (Annexure-IV)'!$D$305 -> 1897.036 | G17: ='Jharkhand (Annexure-IV)'!$F$305 -> 1134.31438 | H17: 59.79403554 | I17: ='Jharkhand (Annexure-IV)'!$S$305 -> 2973.59 | K17: ='Jharkhand (Annexure-IV)'!$AB$305 -> 2973.59 | L17: 1.95091719
A18: 12 (a) | B18: BRC/URC | D18: 1937.58 | E18: 0.9998116787 | F18: ='Jharkhand (Annexure-IV)'!$D$320 -> 2052.174 | G18: ='Jharkhand (Annexure-IV)'!$F$320 -> 1625.262876 | H18: 79.19712833 | I18: ='Jharkhand (Annexure-IV)'!$S$320 -> 2058.573 | K18: ='Jharkhand (Annexure-IV)'!$AB$320 -> 1635.1528 | L18: 1.072793393
A19: 12 (b) | B19: CRC | D19: 3768.2 | E19: 1.944430871 | F19: ='Jharkhand (Annexure-IV)'!$D$330 -> 4240.64 | G19: ='Jharkhand (Annexure-IV)'!$F$330 -> 4062.77487 | H19: 95.80570079 | I19: ='Jharkhand (Annexure-IV)'!$S$330 -> 4959.248 | K19: ='Jharkhand (Annexure-IV)'!$AB$330 -> 4447.916 | L19: 2.918195106
A20: 13 | B20: LEP | D20: 184.6155 | E20: 0.09526354161 | F20: ='Jharkhand (Annexure-IV)'!$D$419+'Jharkhand (Annexure-IV)'!$D$420+'Jharkhand (Annexure-IV)'!$D$421 -> 3000.00255 | G20: ='Jharkhand (Annexure-IV)'!$F$419+'Jharkhand (Annexure-IV)'!$F$420+'Jharkhand (Annexure-IV)'!$F$421 -> 3000.00255 | H20: 100 | I20: ='Jharkhand (Annexure-IV)'!$S$419+'Jharkhand (Annexure-IV)'!$S$420+'Jharkhand (Annexure-IV)'!$S$421 -> 7138.12328 | K20: ='Jharkhand (Annexure-IV)'!$AB$419+'Jharkhand (Annexure-IV)'!$AB$420+'Jharkhand (Annexure-IV)'!$AB$421 -> 2989.141 | L20: 1.961119913
A21: 14 | B21: Innovation for CAL | E21: 0 | F21: ='Jharkhand (Annexure-IV)'!$D$335 -> 1200 | G21: ='Jharkhand (Annexure-IV)'!$F$335 -> 1065.42587 | H21: 88.78548917 | I21: ='Jharkhand (Annexure-IV)'!$S$335 -> 14290.5 | K21: ='Jharkhand (Annexure-IV)'!$AB$335 -> 1200 | L21: 0.7872977204
A22: 15 | B22: Libraries in schools | E22: 0 | F22: ='Jharkhand (Annexure-IV)'!$D$339 -> 5.65 | G22: ='Jharkhand (Annexure-IV)'!$F$339 -> 5.65 | I22: ='Jharkhand (Annexure-IV)'!$S$339 -> 0 | K22: ='Jharkhand (Annexure-IV)'!$AB$339 -> 0 | L22: 0
A23: 16 | B23: Teachers Grant | D23: 615.385 | E23: 0.3175451387 | F23: ='Jharkhand (Annexure-IV)'!$D$346 -> 592.035 | G23: ='Jharkhand (Annexure-IV)'!$F$346 -> 575.95 | I23: ='Jharkhand (Annexure-IV)'!$S$346 -> 591.06 | K23: ='Jharkhand (Annexure-IV)'!$AB$346 -> 591.06 | L23: 0.3877834922
A24: 17 | B24: TLE for new schools | D24: 13.5 | E24: 0.006966142127 | F24: ='Jharkhand (Annexure-IV)'!$D$224 -> 0 | G24: ='Jharkhand (Annexure-IV)'!$F$224 -> 0 | I24: ='Jharkhand (Annexure-IV)'!$S$224 -> 0 | K24: ='Jharkhand (Annexure-IV)'!$AB$224 -> 0 | L24: 0
A25: 18 | B25: REMS | D25: 297.52 | E25: 0.1535234523 | F25: ='Jharkhand (Annexure-IV)'!$D$355+'Jharkhand (Annexure-IV)'!$D$428 -> 0 | G25: ='Jharkhand (Annexure-IV)'!$F$355+'Jharkhand (Annexure-IV)'!$F$428 -> 0 | I25: ='Jharkhand (Annexure-IV)'!$S$355+'Jharkhand (Annexure-IV)'!$S$428 -> 2907.2 | K25: ='Jharkhand (Annexure-IV)'!$AB$355+'Jharkhand (Annexure-IV)'!$AB$428 -> 0 | L25: 0
A26: 19 | B26: Innovative Activities | D26: 501.58802 | E26: 0.258824699 | F26: ='Jharkhand (Annexure-IV)'!$D$368 -> 1200 | G26: ='Jharkhand (Annexure-IV)'!$F$368 -> 1177.68773 | H26: 98.14064417 | I26: ='Jharkhand (Annexure-IV)'!$S$368 -> 1200 | K26: ='Jharkhand (Annexure-IV)'!$AB$368 -> 1200 | L26: 0.7872977204
A27: 20 | B27: Community Mobilization | D27: 795 | E27: 0.4102283697 | F27: ='Jharkhand (Annexure-IV)'!$D$422 -> 400.005 | G27: ='Jharkhand (Annexure-IV)'!$F$422 -> 378.63114 | H27: 94.65660179 | I27: ='Jharkhand (Annexure-IV)'!$S$422 -> 1341.704904 | K27: ='Jharkhand (Annexure-IV)'!$AB$422 -> 756.028 | L27: 0.4960159341
A28: 21 | B28: SMC/PRI Training | D28: 723.618 | E28: 0.3733945062 | F28: ='Jharkhand (Annexure-IV)'!$D$372 -> 723.132 | G28: ='Jharkhand (Annexure-IV)'!$F$372 -> 634.38692 | H28: 87.72767904 | I28: ='Jharkhand (Annexure-IV)'!$S$372 -> 1412.868 | K28: ='Jharkhand (Annexure-IV)'!$AB$372 -> 700.758 | L28: 0.4597543133
B29: Sub Total | D29: =SUM(D15:D28) -> 13525.23514 | E29: 6.979163725 | F29: =SUM(F15:F28) -> 19022.82625 | G29: =SUM(G15:G28) -> 15890.82247 | H29: =G29/F29*100 -> 83.53554965 | I29: =SUM(I15:I28) -> 41496.80218 | K29: =SUM(K15:K28) -> 18563.4608 | L29: 12.17914197
B30: Category-3 | E30: 0 | L30: 0
A31: 23 | B31: Teacher's Salary | D31: 88664.181 | E31: 45.75165084 | F31: ='Jharkhand (Annexure-IV)'!$D$279 -> 71436.66 | G31: ='Jharkhand (Annexure-IV)'!$F$279 -> 65696.49297 | H31: =G31/F31*100 -> 91.96467608 | I31: ='Jharkhand (Annexure-IV)'!$S$279 -> 78594.0672 | K31: ='Jharkhand (Annexure-IV)'!$AB$279 -> 74253.16008 | L31: 48.71611972
A32: 24 | B32: Civil Works | D32: 41658.23 | E32: 21.49608525 | F32: ='Jharkhand (Annexure-IV)'!$D$409 -> 15495.6115 | G32: ='Jharkhand (Annexure-IV)'!$F$409 -> 10731.23187 | H32: =G32/F32*100 -> 69.25336164 | I32: ='Jharkhand (Annexure-IV)'!$S$409 -> 91150.30138 | K32: ='Jharkhand (Annexure-IV)'!$AB$409 -> 9058.19659 | L32: 5.942914605
A33: 25 | B33: Maintenance Grant | D33: 2862.72 | E33: 1.477193658 | F33: ='Jharkhand (Annexure-IV)'!$D$358 -> 2883.775 | G33: ='Jharkhand (Annexure-IV)'!$F$358 -> 2831.94503 | H33: =G33/F33*100 -> 98.20270409 | I33: ='Jharkhand (Annexure-IV)'!$S$358 -> 2870.25 | K33: ='Jharkhand (Annexure-IV)'!$AB$358 -> 2816.025 | L33: 1.847541719
B34: Sub Total | D34: =SUM(D31:D33) -> 133185.131 | E34: 68.72492976 | F34: =SUM(F31:F33) -> 89816.0465 | G34: =SUM(G31:G33) -> 79259.66987 | H34: =G34/F34*100 -> 88.24666968 | I34: =SUM(I31:I33) -> 172614.6186 | K34: =SUM(K31:K33) -> 86127.38167 | L34: 56.50657604
B35: TOTAL | D35: =D13+D29+D34 -> 193794.4956 | E35: 100 | F35: =F13+F29+F34 -> 155862.429 | G35: =G13+G29+G34 -> 138147.8962 | H35: =G35/F35*100 -> 88.63450743 | I35: =I13+I29+I34 ->  | K35: =K13+K29+K34 -> 152420.1035 | L35: 100
D37: 193794.4956 | F37: ='Jharkhand (Annexure-IV)'!$D$544 -> 156659.349 | G37: ='Jharkhand (Annexure-IV)'!$F$544 -> 138659.5862 | I37: ='Jharkhand (Annexure-IV)'!$S$544 ->  | K37: ='Jharkhand (Annexure-IV)'!$AB$544 -> 153218.8812
D38: =D37-D35 -> 0
F39: =F37-F35 -> 796.92 | G39: =G37-G35 -> 511.69 | I39: =I37-I35 ->  | K39: =K37-K35 -> 798.7777216

Sheet REMS (hidden)
A1: S.No. | B1: Research & Evaluation activities at state level | C1: Proposal | D1: Recommendation | E1: Remarks
A3: 1 | B3: Achievement Survey for Class (I-V) | C3: 240 | D3: 240 | E3: 240.00 lakh recommended @ 10.00 lakh per District covering Classes(I-V)
A4: 2 | B4: Research Studies | C4: 37 | D4: 0 | E4: Not recommended
A5: 3 | B5: 5% sample check U DISE | C5: 8 | D5: 0 | E5: Not recommended
A6: 4 | B6: Shala Sidhi | C6: 400.12 | D6: 400.12 | E6: 400.12 lakh recommended @ .0009 per Child.
B7: Sub Total | C7: =SUM(C3:C6) -> 685.12 | D7: =SUM(D3:D6) -> 640.12
A8: 1 B | B8: Supervision & Monitoring
A9: 1 | B9: CCE register | C9: 48 | D9: 10 | E9: 10 lakh recommended for CCE register.
A10: 2 | B10: PINDICS | C10: 15 | D10: 0 | E10: Not recommended
A11: 3 | B11: QMT | C11: 10 | D11: 0 | E11: Not recommended
A12: 4 | B12: Child tracking System | C12: 65.2 | D12: 65.2 | E12: 6.48 recommended @ .00001 per Child.
A13: 5 | B13: Server at State level | C13: 10 | D13: 10 | E13: Recommended 10 lakh
A14: 6 | B14: Online management at BRC/CRC level | C14: 41.6 | D14: 24 | E14: Recommended 39.6 lakh for SFD and @1 lakh for non-SFD= 41.6 lakh.
A15: 7 | B15: Updation of HHS | C15: 55 | D15: 20 | E15: 48 lakh recommended for HHS
B16: Sub Total | C16: =SUM(C9:C15) -> 244.8 | D16: =SUM(D9:D15) -> 129.2 | F16: 55470 | G16: 55209
A17: 8 | B17: SCPCR@Rs 50 per Child | C17: =55470*0.0005 -> 27.735 | D17: 27.6 | E17: Recommended Rs 27.61 | F17: =55470*0.0005 -> 27.735 | G17: =G16*0.0005 -> 27.6045
B18: Total | C18: =C7+C16+C17 -> 957.655 | D18: =D7+D16+D17 -> 796.92 | G18: =D7+D16+G17 -> 796.9245
B20: Recommendations: Break-up of REMS proposed for 2016-17. Total No of school (55214) | G20: =55214*0.0009 -> 49.6926
C22: State level @ Rs.1443.33 / per school | D22: District level @ Rs. / per school | E22: Total recommended funds @ Rs. 1443.33/ per school | G22: =G18/G16 -> 0.01443468456
B23: Research & Evaluation | C23: =D7 -> 640.12 | D23: 0 | E23: =SUM(C23:D23) -> 640.12
B24: Supervision & Monitoring | C24: =D16 -> 129.2 | D24: 0 | E24: =SUM(C24:D24) -> 129.2
B25: SCPCR @50 per School. | C25: =D17 -> 27.6 | D25: 0 | E25: =SUM(C25:D25) -> 27.6
B26: Total | C26: =SUM(C23:C25) -> 796.92 | D26: 0 | E26: =SUM(E23:E25) -> 796.92
C28: =C26/55214 -> 0.0144332959

Sheet Exe.Sum-2016-17 (hidden)
A1: S.No. | B1: Activity | C1: Year 2015-16 | I1: Outlay Proposed for 2016-17 | P1: Outlay Recommended for 2016-17 | W1: Remarks
C2: Outlay approved by PAB (including spillover) | E2: Anticipated Achievement up to March'16 | I2: Spill Over | J2: Deferred laibility of 2014-15 | K2: Fresh | N2: Total | P2: Spill Over | Q2: Deferred laibility of 2014-15 | R2: Fresh | U2: Total
C3: Phy. | D3: Fin | E3: Phy. | F3: Fin. | G3: Phy. (%) | H3: Fin. (%) | I3: Fin. | J3: Fin. | K3: Unit Cost | L3: Phy. | M3: Fin. | N3: Phy. | O3: Fin. | P3: Fin. | Q3: Fin. | R3: Unit Cost | S3: Phy. | T3: Fin. | U3: Phy. | V3: Fin.
A4: I | B4: ACCESS | C4: ='Jharkhand (Annexure-IV)'!C4 -> 0 | D4: ='Jharkhand (Annexure-IV)'!D4 -> 0 | E4: ='Jharkhand (Annexure-IV)'!E4 -> 0 | F4: ='Jharkhand (Annexure-IV)'!F4 -> 0 | G4: ='Jharkhand (Annexure-IV)'!G4 -> 0 | H4: ='Jharkhand (Annexure-IV)'!H4 -> 0 | I4: ='Jharkhand (Annexure-IV)'!L4 -> 0 | J4: ='Jharkhand (Annexure-IV)'!N4 -> 0 | K4: ='Jharkhand (Annexure-IV)'!O4 -> 0 | L4: ='Jharkhand (Annexure-IV)'!P4 -> 0 | M4: ='Jharkhand (Annexure-IV)'!Q4 -> 0 | N4: ='Jharkhand (Annexure-IV)'!R4 -> 0 | O4: ='Jharkhand (Annexure-IV)'!S4 -> 0 | P4: ='Jharkhand (Annexure-IV)'!U4 -> 0 | Q4: ='Jharkhand (Annexure-IV)'!W4 -> 0 | R4: ='Jharkhand (Annexure-IV)'!X4 -> 0 | S4: ='Jharkhand (Annexure-IV)'!Y4 -> 0 | T4: ='Jharkhand (Annexure-IV)'!Z4 -> 0 | U4: ='Jharkhand (Annexure-IV)'!AA4 -> 0 | V4: ='Jharkhand (Annexure-IV)'!AB4 -> 0 | W4: ='Jharkhand (Annexure-IV)'!AC4 -> 0
B5: SSA | C5: ='Jharkhand (Annexure-IV)'!C5 -> 0 | D5: ='Jharkhand (Annexure-IV)'!D5 -> 0 | E5: ='Jharkhand (Annexure-IV)'!E5 -> 0 | F5: ='Jharkhand (Annexure-IV)'!F5 -> 0 | G5: ='Jharkhand (Annexure-IV)'!G5 -> 0 | H5: ='Jharkhand (Annexure-IV)'!H5 -> 0 | I5: ='Jharkhand (Annexure-IV)'!L5 -> 0 | J5: ='Jharkhand (Annexure-IV)'!N5 -> 0 | K5: ='Jharkhand (Annexure-IV)'!O5 -> 0 | L5: ='Jharkhand (Annexure-IV)'!P5 -> 0 | M5: ='Jharkhand (Annexure-IV)'!Q5 -> 0 | N5: ='Jharkhand (Annexure-IV)'!R5 -> 0 | O5: ='Jharkhand (Annexure-IV)'!S5 -> 0 | P5: ='Jharkhand (Annexure-IV)'!U5 -> 0 | Q5: ='Jharkhand (Annexure-IV)'!W5 -> 0 | R5: ='Jharkhand (Annexure-IV)'!X5 -> 0 | S5: ='Jharkhand (Annexure-IV)'!Y5 -> 0 | T5: ='Jharkhand (Annexure-IV)'!Z5 -> 0 | U5: ='Jharkhand (Annexure-IV)'!AA5 -> 0 | V5: ='Jharkhand (Annexure-IV)'!AB5 -> 0 | W5: ='Jharkhand (Annexure-IV)'!AC5 -> 0
A6: 1 | B6: Opening of New Schools | C6: ='Jharkhand (Annexure-IV)'!C6 -> 0 | D6: ='Jharkhand (Annexure-IV)'!D6 -> 0 | E6: ='Jharkhand (Annexure-IV)'!E6 -> 0 | F6: ='Jharkhand (Annexure-IV)'!F6 -> 0 | G6: ='Jharkhand (Annexure-IV)'!G6 -> 0 | H6: ='Jharkhand (Annexure-IV)'!H6 -> 0 | I6: ='Jharkhand (Annexure-IV)'!L6 -> 0 | J6: ='Jharkhand (Annexure-IV)'!N6 -> 0 | K6: ='Jharkhand (Annexure-IV)'!O6 -> 0 | L6: ='Jharkhand (Annexure-IV)'!P6 -> 0 | M6: ='Jharkhand (Annexure-IV)'!Q6 -> 0 | N6: ='Jharkhand (Annexure-IV)'!R6 -> 0 | O6: ='Jharkhand (Annexure-IV)'!S6 -> 0 | P6: ='Jharkhand (Annexure-IV)'!U6 -> 0 | Q6: ='Jharkhand (Annexure-IV)'!W6 -> 0 | R6: ='Jharkhand (Annexure-IV)'!X6 -> 0 | S6: ='Jharkhand (Annexure-IV)'!Y6 -> 0 | T6: ='Jharkhand (Annexure-IV)'!Z6 -> 0 | U6: ='Jharkhand (Annexure-IV)'!AA6 -> 0 | V6: ='Jharkhand (Annexure-IV)'!AB6 -> 0 | W6: ='Jharkhand (Annexure-IV)'!AC6 -> The State has surrendered three primary schools in Hazaribagh district. This has been approved by PAB.
A7: 1.01 | B7: New Primary School | C7: ='Jharkhand (Annexure-IV)'!C7 -> 0 | D7: ='Jharkhand (Annexure-IV)'!D7 -> 0 | E7: ='Jharkhand (Annexure-IV)'!E7 -> 0 | F7: ='Jharkhand (Annexure-IV)'!F7 -> 0 | G7: ='Jharkhand (Annexure-IV)'!G7 ->  | H7: ='Jharkhand (Annexure-IV)'!H7 ->  | I7: ='Jharkhand (Annexure-IV)'!L7 -> 0 | J7: ='Jharkhand (Annexure-IV)'!N7 -> 0 | K7: ='Jharkhand (Annexure-IV)'!O7 -> 0 | L7: ='Jharkhand (Annexure-IV)'!P7 -> 0 | M7: ='Jharkhand (Annexure-IV)'!Q7 -> 0 | N7: ='Jharkhand (Annexure-IV)'!R7 -> 0 | O7: ='Jharkhand (Annexure-IV)'!S7 -> 0 | P7: ='Jharkhand (Annexure-IV)'!U7 -> 0 | Q7: ='Jharkhand (Annexure-IV)'!W7 -> 0 | R7: ='Jharkhand (Annexure-IV)'!X7 -> 0 | S7: ='Jharkhand (Annexure-IV)'!Y7 -> 0 | T7: ='Jharkhand (Annexure-IV)'!Z7 -> 0 | U7: ='Jharkhand (Annexure-IV)'!AA7 -> 0 | V7: ='Jharkhand (Annexure-IV)'!AB7 -> 0 | W7: ='Jharkhand (Annexure-IV)'!AC7 -> 0
A8: 1.02 | B8: Upgradation of PS to UPS | C8: ='Jharkhand (Annexure-IV)'!C8 -> 0 | D8: ='Jharkhand (Annexure-IV)'!D8 -> 0 | E8: ='Jharkhand (Annexure-IV)'!E8 -> 0 | F8: ='Jharkhand (Annexure-IV)'!F8 -> 0 | G8: ='Jharkhand (Annexure-IV)'!G8 ->  | H8: ='Jharkhand (Annexure-IV)'!H8 ->  | I8: ='Jharkhand (Annexure-IV)'!L8 -> 0 | J8: ='Jharkhand (Annexure-IV)'!N8 -> 0 | K8: ='Jharkhand (Annexure-IV)'!O8 -> 0 | L8: ='Jharkhand (Annexure-IV)'!P8 -> 0 | M8: ='Jharkhand (Annexure-IV)'!Q8 -> 0 | N8: ='Jharkhand (Annexure-IV)'!R8 -> 0 | O8: ='Jharkhand (Annexure-IV)'!S8 -> 0 | P8: ='Jharkhand (Annexure-IV)'!U8 -> 0 | Q8: ='Jharkhand (Annexure-IV)'!W8 -> 0 | R8: ='Jharkhand (Annexure-IV)'!X8 -> 0 | S8: ='Jharkhand (Annexure-IV)'!Y8 -> 0 | T8: ='Jharkhand (Annexure-IV)'!Z8 -> 0 | U8: ='Jharkhand (Annexure-IV)'!AA8 -> 0 | V8: ='Jharkhand (Annexure-IV)'!AB8 -> 0 | W8: ='Jharkhand (Annexure-IV)'!AC8 -> 0
A9: 1.03 | B9: Composite Schools | C9: ='Jharkhand (Annexure-IV)'!C9 -> 0 | D9: ='Jharkhand (Annexure-IV)'!D9 -> 0 | E9: ='Jharkhand (Annexure-IV)'!E9 -> 0 | F9: ='Jharkhand (Annexure-IV)'!F9 -> 0 | G9: ='Jharkhand (Annexure-IV)'!G9 ->  | H9: ='Jharkhand (Annexure-IV)'!H9 ->  | I9: ='Jharkhand (Annexure-IV)'!L9 -> 0 | J9: ='Jharkhand (Annexure-IV)'!N9 -> 0 | K9: ='Jharkhand (Annexure-IV)'!O9 -> 0 | L9: ='Jharkhand (Annexure-IV)'!P9 -> 0 | M9: ='Jharkhand (Annexure-IV)'!Q9 -> 0 | N9: ='Jharkhand (Annexure-IV)'!R9 -> 0 | O9: ='Jharkhand (Annexure-IV)'!S9 -> 0 | P9: ='Jharkhand (Annexure-IV)'!U9 -> 0 | Q9: ='Jharkhand (Annexure-IV)'!W9 -> 0 | R9: ='Jharkhand (Annexure-IV)'!X9 -> 0 | S9: ='Jharkhand (Annexure-IV)'!Y9 -> 0 | T9: ='Jharkhand (Annexure-IV)'!Z9 -> 0 | U9: ='Jharkhand (Annexure-IV)'!AA9 -> 0 | V9: ='Jharkhand (Annexure-IV)'!AB9 -> 0 | W9: ='Jharkhand (Annexure-IV)'!AC9 -> 0
A10: 1.04 | B10: Residential schools for specific category of children | C10: ='Jharkhand (Annexure-IV)'!C10 -> 0 | D10: ='Jharkhand (Annexure-IV)'!D10 -> 0 | E10: ='Jharkhand (Annexure-IV)'!E10 -> 0 | F10: ='Jharkhand (Annexure-IV)'!F10 -> 0 | G10: ='Jharkhand (Annexure-IV)'!G10 ->  | H10: ='Jharkhand (Annexure-IV)'!H10 ->  | I10: ='Jharkhand (Annexure-IV)'!L10 -> 0 | J10: ='Jharkhand (Annexure-IV)'!N10 -> 0 | K10: ='Jharkhand (Annexure-IV)'!O10 -> 0 | L10: ='Jharkhand (Annexure-IV)'!P10 -> 0 | M10: ='Jharkhand (Annexure-IV)'!Q10 -> 0 | N10: ='Jharkhand (Annexure-IV)'!R10 -> 0 | O10: ='Jharkhand (Annexure-IV)'!S10 -> 0 | P10: ='Jharkhand (Annexure-IV)'!U10 -> 0 | Q10: ='Jharkhand (Annexure-IV)'!W10 -> 0 | R10: ='Jharkhand (Annexure-IV)'!X10 -> 0 | S10: ='Jharkhand (Annexure-IV)'!Y10 -> 0 | T10: ='Jharkhand (Annexure-IV)'!Z10 -> 0 | U10: ='Jharkhand (Annexure-IV)'!AA10 -> 0 | V10: ='Jharkhand (Annexure-IV)'!AB10 -> 0 | W10: ='Jharkhand (Annexure-IV)'!AC10 -> 0
A11: 1.05 | B11: Residential Hostel | C11: ='Jharkhand (Annexure-IV)'!C11 -> 0 | D11: ='Jharkhand (Annexure-IV)'!D11 -> 0 | E11: ='Jharkhand (Annexure-IV)'!E11 -> 0 | F11: ='Jharkhand (Annexure-IV)'!F11 -> 0 | G11: ='Jharkhand (Annexure-IV)'!G11 ->  | H11: ='Jharkhand (Annexure-IV)'!H11 ->  | I11: ='Jharkhand (Annexure-IV)'!L11 -> 0 | J11: ='Jharkhand (Annexure-IV)'!N11 -> 0 | K11: ='Jharkhand (Annexure-IV)'!O11 -> 0 | L11: ='Jharkhand (Annexure-IV)'!P11 -> 0 | M11: ='Jharkhand (Annexure-IV)'!Q11 -> 0 | N11: ='Jharkhand (Annexure-IV)'!R11 -> 0 | O11: ='Jharkhand (Annexure-IV)'!S11 -> 0 | P11: ='Jharkhand (Annexure-IV)'!U11 -> 0 | Q11: ='Jharkhand (Annexure-IV)'!W11 -> 0 | R11: ='Jharkhand (Annexure-IV)'!X11 -> 0 | S11: ='Jharkhand (Annexure-IV)'!Y11 -> 0 | T11: ='Jharkhand (Annexure-IV)'!Z11 -> 0 | U11: ='Jharkhand (Annexure-IV)'!AA11 -> 0 | V11: ='Jharkhand (Annexure-IV)'!AB11 -> 0 | W11: ='Jharkhand (Annexure-IV)'!AC11 -> 0
A12: 1.06 | B12: Integration of Class V with primary schools | C12: ='Jharkhand (Annexure-IV)'!C12 -> 0 | D12: ='Jharkhand (Annexure-IV)'!D12 -> 0 | E12: ='Jharkhand (Annexure-IV)'!E12 -> 0 | F12: ='Jharkhand (Annexure-IV)'!F12 -> 0 | G12: ='Jharkhand (Annexure-IV)'!G12 ->  | H12: ='Jharkhand (Annexure-IV)'!H12 ->  | I12: ='Jharkhand (Annexure-IV)'!L12 -> 0 | J12: ='Jharkhand (Annexure-IV)'!N12 -> 0 | K12: ='Jharkhand (Annexure-IV)'!O12 -> 0 | L12: ='Jharkhand (Annexure-IV)'!P12 -> 0 | M12: ='Jharkhand (Annexure-IV)'!Q12 -> 0 | N12: ='Jharkhand (Annexure-IV)'!R12 -> 0 | O12: ='Jharkhand (Annexure-IV)'!S12 -> 0 | P12: ='Jharkhand (Annexure-IV)'!U12 -> 0 | Q12: ='Jharkhand (Annexure-IV)'!W12 -> 0 | R12: ='Jharkhand (Annexure-IV)'!X12 -> 0 | S12: ='Jharkhand (Annexure-IV)'!Y12 -> 0 | T12: ='Jharkhand (Annexure-IV)'!Z12 -> 0 | U12: ='Jharkhand (Annexure-IV)'!AA12 -> 0 | V12: ='Jharkhand (Annexure-IV)'!AB12 -> 0 | W12: ='Jharkhand (Annexure-IV)'!AC12 -> 0
A13: 1.07 | B13: Integration of Class VIII with upper primary schools | C13: ='Jharkhand (Annexure-IV)'!C13 -> 0 | D13: ='Jharkhand (Annexure-IV)'!D13 -> 0 | E13: ='Jharkhand (Annexure-IV)'!E13 -> 0 | F13: ='Jharkhand (Annexure-IV)'!F13 -> 0 | G13: ='Jharkhand (Annexure-IV)'!G13 ->  | H13: ='Jharkhand (Annexure-IV)'!H13 ->  | I13: ='Jharkhand (Annexure-IV)'!L13 -> 0 | J13: ='Jharkhand (Annexure-IV)'!N13 -> 0 | K13: ='Jharkhand (Annexure-IV)'!O13 -> 0 | L13: ='Jharkhand (Annexure-IV)'!P13 -> 0 | M13: ='Jharkhand (Annexure-IV)'!Q13 -> 0 | N13: ='Jharkhand (Annexure-IV)'!R13 -> 0 | O13: ='Jharkhand (Annexure-IV)'!S13 -> 0 | P13: ='Jharkhand (Annexure-IV)'!U13 -> 0 | Q13: ='Jharkhand (Annexure-IV)'!W13 -> 0 | R13: ='Jharkhand (Annexure-IV)'!X13 -> 0 | S13: ='Jharkhand (Annexure-IV)'!Y13 -> 0 | T13: ='Jharkhand (Annexure-IV)'!Z13 -> 0 | U13: ='Jharkhand (Annexure-IV)'!AA13 -> 0 | V13: ='Jharkhand (Annexure-IV)'!AB13 -> 0 | W13: ='Jharkhand (Annexure-IV)'!AC13 -> 0
A14: 2 | B14: Residential Schools for specific category of children | C14: ='Jharkhand (Annexure-IV)'!C14 -> 0 | D14: ='Jharkhand (Annexure-IV)'!D14 -> 0 | E14: ='Jharkhand (Annexure-IV)'!E14 -> 0 | F14: ='Jharkhand (Annexure-IV)'!F14 -> 0 | G14: ='Jharkhand (Annexure-IV)'!G14 ->  | H14: ='Jharkhand (Annexure-IV)'!H14 ->  | I14: ='Jharkhand (Annexure-IV)'!L14 -> 0 | J14: ='Jharkhand (Annexure-IV)'!N14 -> 0 | K14: ='Jharkhand (Annexure-IV)'!O14 -> 0 | L14: ='Jharkhand (Annexure-IV)'!P14 -> 0 | M14: ='Jharkhand (Annexure-IV)'!Q14 -> 0 | N14: ='Jharkhand (Annexure-IV)'!R14 -> 0 | O14: ='Jharkhand (Annexure-IV)'!S14 -> 0 | P14: ='Jharkhand (Annexure-IV)'!U14 -> 0 | Q14: ='Jharkhand (Annexure-IV)'!W14 -> 0 | R14: ='Jharkhand (Annexure-IV)'!X14 -> 0 | S14: ='Jharkhand (Annexure-IV)'!Y14 -> 0 | T14: ='Jharkhand (Annexure-IV)'!Z14 -> 0 | U14: ='Jharkhand (Annexure-IV)'!AA14 -> 0 | V14: ='Jharkhand (Annexure-IV)'!AB14 -> 0 | W14: ='Jharkhand (Annexure-IV)'!AC14 -> 0
B15: 50 children | C15: ='Jharkhand (Annexure-IV)'!C15 -> 0 | D15: ='Jharkhand (Annexure-IV)'!D15 -> 0 | E15: ='Jharkhand (Annexure-IV)'!E15 -> 0 | F15: ='Jharkhand (Annexure-IV)'!F15 -> 0 | G15: ='Jharkhand (Annexure-IV)'!G15 ->  | H15: ='Jharkhand (Annexure-IV)'!H15 ->  | I15: ='Jharkhand (Annexure-IV)'!L15 -> 0 | J15: ='Jharkhand (Annexure-IV)'!N15 -> 0 | K15: ='Jharkhand (Annexure-IV)'!O15 -> 0 | L15: ='Jharkhand (Annexure-IV)'!P15 -> 0 | M15: ='Jharkhand (Annexure-IV)'!Q15 -> 0 | N15: ='Jharkhand (Annexure-IV)'!R15 -> 0 | O15: ='Jharkhand (Annexure-IV)'!S15 -> 0 | P15: ='Jharkhand (Annexure-IV)'!U15 -> 0 | Q15: ='Jharkhand (Annexure-IV)'!W15 -> 0 | R15: ='Jharkhand (Annexure-IV)'!X15 -> 0 | S15: ='Jharkhand (Annexure-IV)'!Y15 -> 0 | T15: ='Jharkhand (Annexure-IV)'!Z15 -> 0 | U15: ='Jharkhand (Annexure-IV)'!AA15 -> 0 | V15: ='Jharkhand (Annexure-IV)'!AB15 -> 0 | W15: ='Jharkhand (Annexure-IV)'!AC15 -> 0
B16: Non-recurring (one time grant) | C16: ='Jharkhand (Annexure-IV)'!C16 -> 0 | D16: ='Jharkhand (Annexure-IV)'!D16 -> 0 | E16: ='Jharkhand (Annexure-IV)'!E16 -> 0 | F16: ='Jharkhand (Annexure-IV)'!F16 -> 0 | G16: ='Jharkhand (Annexure-IV)'!G16 ->  | H16: ='Jharkhand (Annexure-IV)'!H16 ->  | I16: ='Jharkhand (Annexure-IV)'!L16 -> 0 | J16: ='Jharkhand (Annexure-IV)'!N16 -> 0 | K16: ='Jharkhand (Annexure-IV)'!O16 -> 0 | L16: ='Jharkhand (Annexure-IV)'!P16 -> 0 | M16: ='Jharkhand (Annexure-IV)'!Q16 -> 0 | N16: ='Jharkhand (Annexure-IV)'!R16 -> 0 | O16: ='Jharkhand (Annexure-IV)'!S16 -> 0 | P16: ='Jharkhand (Annexure-IV)'!U16 -> 0 | Q16: ='Jharkhand (Annexure-IV)'!W16 -> 0 | R16: ='Jharkhand (Annexure-IV)'!X16 -> 0 | S16: ='Jharkhand (Annexure-IV)'!Y16 -> 0 | T16: ='Jharkhand (Annexure-IV)'!Z16 -> 0 | U16: ='Jharkhand (Annexure-IV)'!AA16 -> 0 | V16: ='Jharkhand (Annexure-IV)'!AB16 -> 0 | W16: ='Jharkhand (Annexure-IV)'!AC16 -> 0
A17: 2.01 | B17: Furniture/ Equipment (including kitchen) | C17: ='Jharkhand (Annexure-IV)'!C17 -> 0 | D17: ='Jharkhand (Annexure-IV)'!D17 -> 0 | E17: ='Jharkhand (Annexure-IV)'!E17 -> 0 | F17: ='Jharkhand (Annexure-IV)'!F17 -> 0 | G17: ='Jharkhand (Annexure-IV)'!G17 ->  | H17: ='Jharkhand (Annexure-IV)'!H17 ->  | I17: ='Jharkhand (Annexure-IV)'!L17 -> 0 | J17: ='Jharkhand (Annexure-IV)'!N17 -> 0 | K17: ='Jharkhand (Annexure-IV)'!O17 -> 2 | L17: ='Jharkhand (Annexure-IV)'!P17 -> 0 | M17: ='Jharkhand (Annexure-IV)'!Q17 -> 0 | N17: ='Jharkhand (Annexure-IV)'!R17 -> 0 | O17: ='Jharkhand (Annexure-IV)'!S17 -> 0 | P17: ='Jharkhand (Annexure-IV)'!U17 -> 0 | Q17: ='Jharkhand (Annexure-IV)'!W17 -> 0 | R17: ='Jharkhand (Annexure-IV)'!X17 -> 0 | S17: ='Jharkhand (Annexure-IV)'!Y17 -> 0 | T17: ='Jharkhand (Annexure-IV)'!Z17 -> 0 | U17: ='Jharkhand (Annexure-IV)'!AA17 -> 0 | V17: ='Jharkhand (Annexure-IV)'!AB17 -> 0 | W17: ='Jharkhand (Annexure-IV)'!AC17 -> 0 | X17: =(L17*K17)+P17+Q17 -> 0 | Y17: =SUM(Bokaro:Simdega!M17) -> 0
A18: 2.02 | B18: TLM and equipment including library books | C18: ='Jharkhand (Annexure-IV)'!C18 -> 0 | D18: ='Jharkhand (Annexure-IV)'!D18 -> 0 | E18: ='Jharkhand (Annexure-IV)'!E18 -> 0 | F18: ='Jharkhand (Annexure-IV)'!F18 -> 0 | G18: ='Jharkhand (Annexure-IV)'!G18 ->  | H18: ='Jharkhand (Annexure-IV)'!H18 ->  | I18: ='Jharkhand (Annexure-IV)'!L18 -> 0 | J18: ='Jharkhand (Annexure-IV)'!N18 -> 0 | K18: ='Jharkhand (Annexure-IV)'!O18 -> 3 | L18: ='Jharkhand (Annexure-IV)'!P18 -> 0 | M18: ='Jharkhand (Annexure-IV)'!Q18 -> 0 | N18: ='Jharkhand (Annexure-IV)'!R18 -> 0 | O18: ='Jharkhand (Annexure-IV)'!S18 -> 0 | P18: ='Jharkhand (Annexure-IV)'!U18 -> 0 | Q18: ='Jharkhand (Annexure-IV)'!W18 -> 0 | R18: ='Jharkhand (Annexure-IV)'!X18 -> 0 | S18: ='Jharkhand (Annexure-IV)'!Y18 -> 0 | T18: ='Jharkhand (Annexure-IV)'!Z18 -> 0 | U18: ='Jharkhand (Annexure-IV)'!AA18 -> 0 | V18: ='Jharkhand (Annexure-IV)'!AB18 -> 0 | W18: ='Jharkhand (Annexure-IV)'!AC18 -> 0 | X18: 0 | Y18: =SUM(Bokaro:Simdega!M18) -> 0
A19: 2.03 | B19: Bedding (new) | C19: ='Jharkhand (Annexure-IV)'!C19 -> 0 | D19: ='Jharkhand (Annexure-IV)'!D19 -> 0 | E19: ='Jharkhand (Annexure-IV)'!E19 -> 0 | F19: ='Jharkhand (Annexure-IV)'!F19 -> 0 | G19: ='Jharkhand (Annexure-IV)'!G19 ->  | H19: ='Jharkhand (Annexure-IV)'!H19 ->  | I19: ='Jharkhand (Annexure-IV)'!L19 -> 0 | J19: ='Jharkhand (Annexure-IV)'!N19 -> 0 | K19: ='Jharkhand (Annexure-IV)'!O19 -> 0.375 | L19: ='Jharkhand (Annexure-IV)'!P19 -> 0 | M19: ='Jharkhand (Annexure-IV)'!Q19 -> 0 | N19: ='Jharkhand (Annexure-IV)'!R19 -> 0 | O19: ='Jharkhand (Annexure-IV)'!S19 -> 0 | P19: ='Jharkhand (Annexure-IV)'!U19 -> 0 | Q19: ='Jharkhand (Annexure-IV)'!W19 -> 0 | R19: ='Jharkhand (Annexure-IV)'!X19 -> 0 | S19: ='Jharkhand (Annexure-IV)'!Y19 -> 0 | T19: ='Jharkhand (Annexure-IV)'!Z19 -> 0 | U19: ='Jharkhand (Annexure-IV)'!AA19 -> 0 | V19: ='Jharkhand (Annexure-IV)'!AB19 -> 0 | W19: ='Jharkhand (Annexure-IV)'!AC19 -> 0 | X19: 0 | Y19: =SUM(Bokaro:Simdega!M19) -> 0
A20: 2.04 | B20: Replacement of bedding (once in 3 years) | C20: ='Jharkhand (Annexure-IV)'!C20 -> 0 | D20: ='Jharkhand (Annexure-IV)'!D20 -> 0 | E20: ='Jharkhand (Annexure-IV)'!E20 -> 0 | F20: ='Jharkhand (Annexure-IV)'!F20 -> 0 | G20: ='Jharkhand (Annexure-IV)'!G20 ->  | H20: ='Jharkhand (Annexure-IV)'!H20 ->  | I20: ='Jharkhand (Annexure-IV)'!L20 -> 0 | J20: ='Jharkhand (Annexure-IV)'!N20 -> 0 | K20: ='Jharkhand (Annexure-IV)'!O20 -> 0 | L20: ='Jharkhand (Annexure-IV)'!P20 -> 0 | M20: ='Jharkhand (Annexure-IV)'!Q20 -> 0 | N20: ='Jharkhand (Annexure-IV)'!R20 -> 0 | O20: ='Jharkhand (Annexure-IV)'!S20 -> 0 | P20: ='Jharkhand (Annexure-IV)'!U20 -> 0 | Q20: ='Jharkhand (Annexure-IV)'!W20 -> 0 | R20: ='Jharkhand (Annexure-IV)'!X20 -> 0 | S20: ='Jharkhand (Annexure-IV)'!Y20 -> 0 | T20: ='Jharkhand (Annexure-IV)'!Z20 -> 0 | U20: ='Jharkhand (Annexure-IV)'!AA20 -> 0 | V20: ='Jharkhand (Annexure-IV)'!AB20 -> 0 | W20: ='Jharkhand (Annexure-IV)'!AC20 -> 0 | X20: 0 | Y20: =SUM(Bokaro:Simdega!M20) -> 0
B21: Sub Total (Non Recurring) | C21: ='Jharkhand (Annexure-IV)'!C21 -> 0 | D21: ='Jharkhand (Annexure-IV)'!D21 -> 0 | E21: ='Jharkhand (Annexure-IV)'!E21 -> 0 | F21: ='Jharkhand (Annexure-IV)'!F21 -> 0 | G21: ='Jharkhand (Annexure-IV)'!G21 ->  | H21: ='Jharkhand (Annexure-IV)'!H21 ->  | I21: ='Jharkhand (Annexure-IV)'!L21 -> 0 | J21: ='Jharkhand (Annexure-IV)'!N21 -> 0 | K21: ='Jharkhand (Annexure-IV)'!O21 -> 0 | L21: ='Jharkhand (Annexure-IV)'!P21 -> 0 | M21: ='Jharkhand (Annexure-IV)'!Q21 -> 0 | N21: ='Jharkhand (Annexure-IV)'!R21 -> 0 | O21: ='Jharkhand (Annexure-IV)'!S21 -> 0 | P21: ='Jharkhand (Annexure-IV)'!U21 -> 0 | Q21: ='Jharkhand (Annexure-IV)'!W21 -> 0 | R21: ='Jharkhand (Annexure-IV)'!X21 -> 0 | S21: ='Jharkhand (Annexure-IV)'!Y21 -> 0 | T21: ='Jharkhand (Annexure-IV)'!Z21 -> 0 | U21: ='Jharkhand (Annexure-IV)'!AA21 -> 0 | V21: ='Jharkhand (Annexure-IV)'!AB21 -> 0 | W21: ='Jharkhand (Annexure-IV)'!AC21 -> 0 | X21: 0 | Y21: =SUM(Bokaro:Simdega!M21) -> 0
B22: Recurring (50 children) | C22: ='Jharkhand (Annexure-IV)'!C22 -> 0 | D22: ='Jharkhand (Annexure-IV)'!D22 -> 0 | E22: ='Jharkhand (Annexure-IV)'!E22 -> 0 | F22: ='Jharkhand (Annexure-IV)'!F22 -> 0 | G22: ='Jharkhand (Annexure-IV)'!G22 ->  | H22: ='Jharkhand (Annexure-IV)'!H22 ->  | I22: ='Jharkhand (Annexure-IV)'!L22 -> 0 | J22: ='Jharkhand (Annexure-IV)'!N22 -> 0 | K22: ='Jharkhand (Annexure-IV)'!O22 -> 0 | L22: ='Jharkhand (Annexure-IV)'!P22 -> 0 | M22: ='Jharkhand (Annexure-IV)'!Q22 -> 0 | N22: ='Jharkhand (Annexure-IV)'!R22 -> 0 | O22: ='Jharkhand (Annexure-IV)'!S22 -> 0 | P22: ='Jharkhand (Annexure-IV)'!U22 -> 0 | Q22: ='Jharkhand (Annexure-IV)'!W22 -> 0 | R22: ='Jharkhand (Annexure-IV)'!X22 -> 0 | S22: ='Jharkhand (Annexure-IV)'!Y22 -> 0 | T22: ='Jharkhand (Annexure-IV)'!Z22 -> 0 | U22: ='Jharkhand (Annexure-IV)'!AA22 -> 0 | V22: ='Jharkhand (Annexure-IV)'!AB22 -> 0 | W22: ='Jharkhand (Annexure-IV)'!AC22 -> 0 | X22: 0 | Y22: =SUM(Bokaro:Simdega!M22) -> 0
A23: 2.05 | B23: Maintenance per child Per month @ Rs.1500/- | C23: ='Jharkhand (Annexure-IV)'!C23 -> 0 | D23: ='Jharkhand (Annexure-IV)'!D23 -> 0 | E23: ='Jharkhand (Annexure-IV)'!E23 -> 0 | F23: ='Jharkhand (Annexure-IV)'!F23 -> 0 | G23: ='Jharkhand (Annexure-IV)'!G23 ->  | H23: ='Jharkhand (Annexure-IV)'!H23 ->  | I23: ='Jharkhand (Annexure-IV)'!L23 -> 0 | J23: ='Jharkhand (Annexure-IV)'!N23 -> 0 | K23: ='Jharkhand (Annexure-IV)'!O23 -> 9 | L23: ='Jharkhand (Annexure-IV)'!P23 -> 0 | M23: ='Jharkhand (Annexure-IV)'!Q23 -> 0 | N23: ='Jharkhand (Annexure-IV)'!R23 -> 0 | O23: ='Jharkhand (Annexure-IV)'!S23 -> 0 | P23: ='Jharkhand (Annexure-IV)'!U23 -> 0 | Q23: ='Jharkhand (Annexure-IV)'!W23 -> 0 | R23: ='Jharkhand (Annexure-IV)'!X23 -> 0 | S23: ='Jharkhand (Annexure-IV)'!Y23 -> 0 | T23: ='Jharkhand (Annexure-IV)'!Z23 -> 0 | U23: ='Jharkhand (Annexure-IV)'!AA23 -> 0 | V23: ='Jharkhand (Annexure-IV)'!AB23 -> 0 | W23: ='Jharkhand (Annexure-IV)'!AC23 -> 0 | X23: 0 | Y23: =SUM(Bokaro:Simdega!M23) -> 0
A24: 2.06 | B24: Stipend per child per month @ Rs.100/- | C24: ='Jharkhand (Annexure-IV)'!C24 -> 0 | D24: ='Jharkhand (Annexure-IV)'!D24 -> 0 | E24: ='Jharkhand (Annexure-IV)'!E24 -> 0 | F24: ='Jharkhand (Annexure-IV)'!F24 -> 0 | G24: ='Jharkhand (Annexure-IV)'!G24 ->  | H24: ='Jharkhand (Annexure-IV)'!H24 ->  | I24: ='Jharkhand (Annexure-IV)'!L24 -> 0 | J24: ='Jharkhand (Annexure-IV)'!N24 -> 0 | K24: ='Jharkhand (Annexure-IV)'!O24 -> 0.6 | L24: ='Jharkhand (Annexure-IV)'!P24 -> 0 | M24: ='Jharkhand (Annexure-IV)'!Q24 -> 0 | N24: ='Jharkhand (Annexure-IV)'!R24 -> 0 | O24: ='Jharkhand (Annexure-IV)'!S24 -> 0 | P24: ='Jharkhand (Annexure-IV)'!U24 -> 0 | Q24: ='Jharkhand (Annexure-IV)'!W24 -> 0 | R24: ='Jharkhand (Annexure-IV)'!X24 -> 0 | S24: ='Jharkhand (Annexure-IV)'!Y24 -> 0 | T24: ='Jharkhand (Annexure-IV)'!Z24 -> 0 | U24: ='Jharkhand (Annexure-IV)'!AA24 -> 0 | V24: ='Jharkhand (Annexure-IV)'!AB24 -> 0 | W24: ='Jharkhand (Annexure-IV)'!AC24 -> 0 | X24: 0 | Y24: =SUM(Bokaro:Simdega!M24) -> 0
A25: 2.07 | B25: Supplementary TLM, Stationery and other educational material @Rs.1000/- per child per annum | C25: ='Jharkhand (Annexure-IV)'!C25 -> 0 | D25: ='Jharkhand (Annexure-IV)'!D25 -> 0 | E25: ='Jharkhand (Annexure-IV)'!E25 -> 0 | F25: ='Jharkhand (Annexure-IV)'!F25 -> 0 | G25: ='Jharkhand (Annexure-IV)'!G25 ->  | H25: ='Jharkhand (Annexure-IV)'!H25 ->  | I25: ='Jharkhand (Annexure-IV)'!L25 -> 0 | J25: ='Jharkhand (Annexure-IV)'!N25 -> 0 | K25: ='Jharkhand (Annexure-IV)'!O25 -> 0.5 | L25: ='Jharkhand (Annexure-IV)'!P25 -> 0 | M25: ='Jharkhand (Annexure-IV)'!Q25 -> 0 | N25: ='Jharkhand (Annexure-IV)'!R25 -> 0 | O25: ='Jharkhand (Annexure-IV)'!S25 -> 0 | P25: ='Jharkhand (Annexure-IV)'!U25 -> 0 | Q25: ='Jharkhand (Annexure-IV)'!W25 -> 0 | R25: ='Jharkhand (Annexure-IV)'!X25 -> 0 | S25: ='Jharkhand (Annexure-IV)'!Y25 -> 0 | T25: ='Jharkhand (Annexure-IV)'!Z25 -> 0 | U25: ='Jharkhand (Annexure-IV)'!AA25 -> 0 | V25: ='Jharkhand (Annexure-IV)'!AB25 -> 0 | W25: ='Jharkhand (Annexure-IV)'!AC25 -> 0 | X25: 0 | Y25: =SUM(Bokaro:Simdega!M25) -> 0
A26: 2.08 | B26: Salaries | C26: ='Jharkhand (Annexure-IV)'!C26 -> 0 | D26: ='Jharkhand (Annexure-IV)'!D26 -> 0 | E26: ='Jharkhand (Annexure-IV)'!E26 -> 0 | F26: ='Jharkhand (Annexure-IV)'!F26 -> 0 | G26: ='Jharkhand (Annexure-IV)'!G26 ->  | H26: ='Jharkhand (Annexure-IV)'!H26 ->  | I26: ='Jharkhand (Annexure-IV)'!L26 -> 0 | J26: ='Jharkhand (Annexure-IV)'!N26 -> 0 | K26: ='Jharkhand (Annexure-IV)'!O26 -> 0 | L26: ='Jharkhand (Annexure-IV)'!P26 -> 0 | M26: ='Jharkhand (Annexure-IV)'!Q26 -> 0 | N26: ='Jharkhand (Annexure-IV)'!R26 -> 0 | O26: ='Jharkhand (Annexure-IV)'!S26 -> 0 | P26: ='Jharkhand (Annexure-IV)'!U26 -> 0 | Q26: ='Jharkhand (Annexure-IV)'!W26 -> 0 | R26: ='Jharkhand (Annexure-IV)'!X26 -> 0 | S26: ='Jharkhand (Annexure-IV)'!Y26 -> 0 | T26: ='Jharkhand (Annexure-IV)'!Z26 -> 0 | U26: ='Jharkhand (Annexure-IV)'!AA26 -> 0 | V26: ='Jharkhand (Annexure-IV)'!AB26 -> 0 | W26: ='Jharkhand (Annexure-IV)'!AC26 -> 0 | X26: 0 | Y26: =SUM(Bokaro:Simdega!M26) -> 0
A27: (a) | B27: 1 Warden @ Rs.25000/- per month | C27: ='Jharkhand (Annexure-IV)'!C27 -> 0 | D27: ='Jharkhand (Annexure-IV)'!D27 -> 0 | E27: ='Jharkhand (Annexure-IV)'!E27 -> 0 | F27: ='Jharkhand (Annexure-IV)'!F27 -> 0 | G27: ='Jharkhand (Annexure-IV)'!G27 ->  | H27: ='Jharkhand (Annexure-IV)'!H27 ->  | I27: ='Jharkhand (Annexure-IV)'!L27 -> 0 | J27: ='Jharkhand (Annexure-IV)'!N27 -> 0 | K27: ='Jharkhand (Annexure-IV)'!O27 -> 3 | L27: ='Jharkhand (Annexure-IV)'!P27 -> 0 | M27: ='Jharkhand (Annexure-IV)'!Q27 -> 0 | N27: ='Jharkhand (Annexure-IV)'!R27 -> 0 | O27: ='Jharkhand (Annexure-IV)'!S27 -> 0 | P27: ='Jharkhand (Annexure-IV)'!U27 -> 0 | Q27: ='Jharkhand (Annexure-IV)'!W27 -> 0 | R27: ='Jharkhand (Annexure-IV)'!X27 -> 0 | S27: ='Jharkhand (Annexure-IV)'!Y27 -> 0 | T27: ='Jharkhand (Annexure-IV)'!Z27 -> 0 | U27: ='Jharkhand (Annexure-IV)'!AA27 -> 0 | V27: ='Jharkhand (Annexure-IV)'!AB27 -> 0 | W27: ='Jharkhand (Annexure-IV)'!AC27 -> 0 | X27: 0 | Y27: =SUM(Bokaro:Simdega!M27) -> 0
A28: (b) | B28: 4 Fulltime teachers as per RTE Norms @ Rs. 20,000/- per month per teacher | C28: ='Jharkhand (Annexure-IV)'!C28 -> 0 | D28: ='Jharkhand (Annexure-IV)'!D28 -> 0 | E28: ='Jharkhand (Annexure-IV)'!E28 -> 0 | F28: ='Jharkhand (Annexure-IV)'!F28 -> 0 | G28: ='Jharkhand (Annexure-IV)'!G28 ->  | H28: ='Jharkhand (Annexure-IV)'!H28 ->  | I28: ='Jharkhand (Annexure-IV)'!L28 -> 0 | J28: ='Jharkhand (Annexure-IV)'!N28 -> 0 | K28: ='Jharkhand (Annexure-IV)'!O28 -> 9.6 | L28: ='Jharkhand (Annexure-IV)'!P28 -> 0 | M28: ='Jharkhand (Annexure-IV)'!Q28 -> 0 | N28: ='Jharkhand (Annexure-IV)'!R28 -> 0 | O28: ='Jharkhand (Annexure-IV)'!S28 -> 0 | P28: ='Jharkhand (Annexure-IV)'!U28 -> 0 | Q28: ='Jharkhand (Annexure-IV)'!W28 -> 0 | R28: ='Jharkhand (Annexure-IV)'!X28 -> 0 | S28: ='Jharkhand (Annexure-IV)'!Y28 -> 0 | T28: ='Jharkhand (Annexure-IV)'!Z28 -> 0 | U28: ='Jharkhand (Annexure-IV)'!AA28 -> 0 | V28: ='Jharkhand (Annexure-IV)'!AB28 -> 0 | W28: ='Jharkhand (Annexure-IV)'!AC28 -> 0 | X28: 0 | Y28: =SUM(Bokaro:Simdega!M28) -> 0
A29: (c) | B29: 2 Urdu Teachers (only for Blocks with muslim population above 20% and select urban areas) @ Rs.12,000/- per month per teacher. | C29: ='Jharkhand (Annexure-IV)'!C29 -> 0 | D29: ='Jharkhand (Annexure-IV)'!D29 -> 0 | E29: ='Jharkhand (Annexure-IV)'!E29 -> 0 | F29: ='Jharkhand (Annexure-IV)'!F29 -> 0 | G29: ='Jharkhand (Annexure-IV)'!G29 ->  | H29: ='Jharkhand (Annexure-IV)'!H29 ->  | I29: ='Jharkhand (Annexure-IV)'!L29 -> 0 | J29: ='Jharkhand (Annexure-IV)'!N29 -> 0 | K29: ='Jharkhand (Annexure-IV)'!O29 -> 2.88 | L29: ='Jharkhand (Annexure-IV)'!P29 -> 0 | M29: ='Jharkhand (Annexure-IV)'!Q29 -> 0 | N29: ='Jharkhand (Annexure-IV)'!R29 -> 0 | O29: ='Jharkhand (Annexure-IV)'!S29 -> 0 | P29: ='Jharkhand (Annexure-IV)'!U29 -> 0 | Q29: ='Jharkhand (Annexure-IV)'!W29 -> 0 | R29: ='Jharkhand (Annexure-IV)'!X29 -> 0 | S29: ='Jharkhand (Annexure-IV)'!Y29 -> 0 | T29: ='Jharkhand (Annexure-IV)'!Z29 -> 0 | U29: ='Jharkhand (Annexure-IV)'!AA29 -> 0 | V29: ='Jharkhand (Annexure-IV)'!AB29 -> 0 | W29: ='Jharkhand (Annexure-IV)'!AC29 -> 0 | X29: 0 | Y29: =SUM(Bokaro:Simdega!M29) -> 0
A30: (d) | B30: 3 Part time teachers @ Rs.5,000/- per month per teacher | C30: ='Jharkhand (Annexure-IV)'!C30 -> 0 | D30: ='Jharkhand (Annexure-IV)'!D30 -> 0 | E30: ='Jharkhand (Annexure-IV)'!E30 -> 0 | F30: ='Jharkhand (Annexure-IV)'!F30 -> 0 | G30: ='Jharkhand (Annexure-IV)'!G30 ->  | H30: ='Jharkhand (Annexure-IV)'!H30 ->  | I30: ='Jharkhand (Annexure-IV)'!L30 -> 0 | J30: ='Jharkhand (Annexure-IV)'!N30 -> 0 | K30: ='Jharkhand (Annexure-IV)'!O30 -> 1.5 | L30: ='Jharkhand (Annexure-IV)'!P30 -> 0 | M30: ='Jharkhand (Annexure-IV)'!Q30 -> 0 | N30: ='Jharkhand (Annexure-IV)'!R30 -> 0 | O30: ='Jharkhand (Annexure-IV)'!S30 -> 0 | P30: ='Jharkhand (Annexure-IV)'!U30 -> 0 | Q30: ='Jharkhand (Annexure-IV)'!W30 -> 0 | R30: ='Jharkhand (Annexure-IV)'!X30 -> 0 | S30: ='Jharkhand (Annexure-IV)'!Y30 -> 0 | T30: ='Jharkhand (Annexure-IV)'!Z30 -> 0 | U30: ='Jharkhand (Annexure-IV)'!AA30 -> 0 | V30: ='Jharkhand (Annexure-IV)'!AB30 -> 0 | W30: ='Jharkhand (Annexure-IV)'!AC30 -> 0 | X30: 0 | Y30: =SUM(Bokaro:Simdega!M30) -> 0
A31: (e) | B31: 1 Full time Accountant @ Rs. 10,000/- per month | C31: ='Jharkhand (Annexure-IV)'!C31 -> 0 | D31: ='Jharkhand (Annexure-IV)'!D31 -> 0 | E31: ='Jharkhand (Annexure-IV)'!E31 -> 0 | F31: ='Jharkhand (Annexure-IV)'!F31 -> 0 | G31: ='Jharkhand (Annexure-IV)'!G31 ->  | H31: ='Jharkhand (Annexure-IV)'!H31 ->  | I31: ='Jharkhand (Annexure-IV)'!L31 -> 0 | J31: ='Jharkhand (Annexure-IV)'!N31 -> 0 | K31: ='Jharkhand (Annexure-IV)'!O31 -> 1.2 | L31: ='Jharkhand (Annexure-IV)'!P31 -> 0 | M31: ='Jharkhand (Annexure-IV)'!Q31 -> 0 | N31: ='Jharkhand (Annexure-IV)'!R31 -> 0 | O31: ='Jharkhand (Annexure-IV)'!S31 -> 0 | P31: ='Jharkhand (Annexure-IV)'!U31 -> 0 | Q31: ='Jharkhand (Annexure-IV)'!W31 -> 0 | R31: ='Jharkhand (Annexure-IV)'!X31 -> 0 | S31: ='Jharkhand (Annexure-IV)'!Y31 -> 0 | T31: ='Jharkhand (Annexure-IV)'!Z31 -> 0 | U31: ='Jharkhand (Annexure-IV)'!AA31 -> 0 | V31: ='Jharkhand (Annexure-IV)'!AB31 -> 0 | W31: ='Jharkhand (Annexure-IV)'!AC31 -> 0 | X31: 0 | Y31: =SUM(Bokaro:Simdega!M31) -> 0
A32: (f) | B32: 2 Support staff - (Accountant/Assistant, Peon, Chowkidar) @ Rs. 5,000/- per month per staff | C32: ='Jharkhand (Annexure-IV)'!C32 -> 0 | D32: ='Jharkhand (Annexure-IV)'!D32 -> 0 | E32: ='Jharkhand (Annexure-IV)'!E32 -> 0 | F32: ='Jharkhand (Annexure-IV)'!F32 -> 0 | G32: ='Jharkhand (Annexure-IV)'!G32 ->  | H32: ='Jharkhand (Annexure-IV)'!H32 ->  | I32: ='Jharkhand (Annexure-IV)'!L32 -> 0 | J32: ='Jharkhand (Annexure-IV)'!N32 -> 0 | K32: ='Jharkhand (Annexure-IV)'!O32 -> 1.2 | L32: ='Jharkhand (Annexure-IV)'!P32 -> 0 | M32: ='Jharkhand (Annexure-IV)'!Q32 -> 0 | N32: ='Jharkhand (Annexure-IV)'!R32 -> 0 | O32: ='Jharkhand (Annexure-IV)'!S32 -> 0 | P32: ='Jharkhand (Annexure-IV)'!U32 -> 0 | Q32: ='Jharkhand (Annexure-IV)'!W32 -> 0 | R32: ='Jharkhand (Annexure-IV)'!X32 -> 0 | S32: ='Jharkhand (Annexure-IV)'!Y32 -> 0 | T32: ='Jharkhand (Annexure-IV)'!Z32 -> 0 | U32: ='Jharkhand (Annexure-IV)'!AA32 -> 0 | V32: ='Jharkhand (Annexure-IV)'!AB32 -> 0 | W32: ='Jharkhand (Annexure-IV)'!AC32 -> 0 | X32: 0 | Y32: =SUM(Bokaro:Simdega!M32) -> 0
A33: (g) | B33: 1 Head Cook @ Rs. 6,000/- per month and upto 2 Asstt. Cooks @ Rs. 4,500/- per month per cook | C33: ='Jharkhand (Annexure-IV)'!C33 -> 0 | D33: ='Jharkhand (Annexure-IV)'!D33 -> 0 | E33: ='Jharkhand (Annexure-IV)'!E33 -> 0 | F33: ='Jharkhand (Annexure-IV)'!F33 -> 0 | G33: ='Jharkhand (Annexure-IV)'!G33 ->  | H33: ='Jharkhand (Annexure-IV)'!H33 ->  | I33: ='Jharkhand (Annexure-IV)'!L33 -> 0 | J33: ='Jharkhand (Annexure-IV)'!N33 -> 0 | K33: ='Jharkhand (Annexure-IV)'!O33 -> 1.8 | L33: ='Jharkhand (Annexure-IV)'!P33 -> 0 | M33: ='Jharkhand (Annexure-IV)'!Q33 -> 0 | N33: ='Jharkhand (Annexure-IV)'!R33 -> 0 | O33: ='Jharkhand (Annexure-IV)'!S33 -> 0 | P33: ='Jharkhand (Annexure-IV)'!U33 -> 0 | Q33: ='Jharkhand (Annexure-IV)'!W33 -> 0 | R33: ='Jharkhand (Annexure-IV)'!X33 -> 0 | S33: ='Jharkhand (Annexure-IV)'!Y33 -> 0 | T33: ='Jharkhand (Annexure-IV)'!Z33 -> 0 | U33: ='Jharkhand (Annexure-IV)'!AA33 -> 0 | V33: ='Jharkhand (Annexure-IV)'!AB33 -> 0 | W33: ='Jharkhand (Annexure-IV)'!AC33 -> 0 | X33: 0 | Y33: =SUM(Bokaro:Simdega!M33) -> 0
A34: 2.09 | B34: Specific Skill training @ Rs.1000/- per annum per child | C34: ='Jharkhand (Annexure-IV)'!C34 -> 0 | D34: ='Jharkhand (Annexure-IV)'!D34 -> 0 | E34: ='Jharkhand (Annexure-IV)'!E34 -> 0 | F34: ='Jharkhand (Annexure-IV)'!F34 -> 0 | G34: ='Jharkhand (Annexure-IV)'!G34 ->  | H34: ='Jharkhand (Annexure-IV)'!H34 ->  | I34: ='Jharkhand (Annexure-IV)'!L34 -> 0 | J34: ='Jharkhand (Annexure-IV)'!N34 -> 0 | K34: ='Jharkhand (Annexure-IV)'!O34 -> 0.5 | L34: ='Jharkhand (Annexure-IV)'!P34 -> 0 | M34: ='Jharkhand (Annexure-IV)'!Q34 -> 0 | N34: ='Jharkhand (Annexure-IV)'!R34 -> 0 | O34: ='Jharkhand (Annexure-IV)'!S34 -> 0 | P34: ='Jharkhand (Annexure-IV)'!U34 -> 0 | Q34: ='Jharkhand (Annexure-IV)'!W34 -> 0 | R34: ='Jharkhand (Annexure-IV)'!X34 -> 0 | S34: ='Jharkhand (Annexure-IV)'!Y34 -> 0 | T34: ='Jharkhand (Annexure-IV)'!Z34 -> 0 | U34: ='Jharkhand (Annexure-IV)'!AA34 -> 0 | V34: ='Jharkhand (Annexure-IV)'!AB34 -> 0 | W34: ='Jharkhand (Annexure-IV)'!AC34 -> 0 | X34: 0 | Y34: =SUM(Bokaro:Simdega!M34) -> 0
A35: 2.1 | B35: Electricity / water charges @ Rs. 1000/- per annum per child | C35: ='Jharkhand (Annexure-IV)'!C35 -> 0 | D35: ='Jharkhand (Annexure-IV)'!D35 -> 0 | E35: ='Jharkhand (Annexure-IV)'!E35 -> 0 | F35: ='Jharkhand (Annexure-IV)'!F35 -> 0 | G35: ='Jharkhand (Annexure-IV)'!G35 ->  | H35: ='Jharkhand (Annexure-IV)'!H35 ->  | I35: ='Jharkhand (Annexure-IV)'!L35 -> 0 | J35: ='Jharkhand (Annexure-IV)'!N35 -> 0 | K35: ='Jharkhand (Annexure-IV)'!O35 -> 0.5 | L35: ='Jharkhand (Annexure-IV)'!P35 -> 0 | M35: ='Jharkhand (Annexure-IV)'!Q35 -> 0 | N35: ='Jharkhand (Annexure-IV)'!R35 -> 0 | O35: ='Jharkhand (Annexure-IV)'!S35 -> 0 | P35: ='Jharkhand (Annexure-IV)'!U35 -> 0 | Q35: ='Jharkhand (Annexure-IV)'!W35 -> 0 | R35: ='Jharkhand (Annexure-IV)'!X35 -> 0 | S35: ='Jharkhand (Annexure-IV)'!Y35 -> 0 | T35: ='Jharkhand (Annexure-IV)'!Z35 -> 0 | U35: ='Jharkhand (Annexure-IV)'!AA35 -> 0 | V35: ='Jharkhand (Annexure-IV)'!AB35 -> 0 | W35: ='Jharkhand (Annexure-IV)'!AC35 -> 0 | X35: 0 | Y35: =SUM(Bokaro:Simdega!M35) -> 0
A36: =+A35+0.01 -> 2.11 | B36: Medical care/contingencies @ Rs.1250/- per annum per child | C36: ='Jharkhand (Annexure-IV)'!C36 -> 0 | D36: ='Jharkhand (Annexure-IV)'!D36 -> 0 | E36: ='Jharkhand (Annexure-IV)'!E36 -> 0 | F36: ='Jharkhand (Annexure-IV)'!F36 -> 0 | G36: ='Jharkhand (Annexure-IV)'!G36 ->  | H36: ='Jharkhand (Annexure-IV)'!H36 ->  | I36: ='Jharkhand (Annexure-IV)'!L36 -> 0 | J36: ='Jharkhand (Annexure-IV)'!N36 -> 0 | K36: ='Jharkhand (Annexure-IV)'!O36 -> 0.625 | L36: ='Jharkhand (Annexure-IV)'!P36 -> 0 | M36: ='Jharkhand (Annexure-IV)'!Q36 -> 0 | N36: ='Jharkhand (Annexure-IV)'!R36 -> 0 | O36: ='Jharkhand (Annexure-IV)'!S36 -> 0 | P36: ='Jharkhand (Annexure-IV)'!U36 -> 0 | Q36: ='Jharkhand (Annexure-IV)'!W36 -> 0 | R36: ='Jharkhand (Annexure-IV)'!X36 -> 0 | S36: ='Jharkhand (Annexure-IV)'!Y36 -> 0 | T36: ='Jharkhand (Annexure-IV)'!Z36 -> 0 | U36: ='Jharkhand (Annexure-IV)'!AA36 -> 0 | V36: ='Jharkhand (Annexure-IV)'!AB36 -> 0 | W36: ='Jharkhand (Annexure-IV)'!AC36 -> 0 | X36: 0 | Y36: =SUM(Bokaro:Simdega!M36) -> 0
A37: =+A36+0.01 -> 2.12 | B37: Maintenance @ Rs. 750/- per child per annum | C37: ='Jharkhand (Annexure-IV)'!C37 -> 0 | D37: ='Jharkhand (Annexure-IV)'!D37 -> 0 | E37: ='Jharkhand (Annexure-IV)'!E37 -> 0 | F37: ='Jharkhand (Annexure-IV)'!F37 -> 0 | G37: ='Jharkhand (Annexure-IV)'!G37 ->  | H37: ='Jharkhand (Annexure-IV)'!H37 ->  | I37: ='Jharkhand (Annexure-IV)'!L37 -> 0 | J37: ='Jharkhand (Annexure-IV)'!N37 -> 0 | K37: ='Jharkhand (Annexure-IV)'!O37 -> 0.375 | L37: ='Jharkhand (Annexure-IV)'!P37 -> 0 | M37: ='Jharkhand (Annexure-IV)'!Q37 -> 0 | N37: ='Jharkhand (Annexure-IV)'!R37 -> 0 | O37: ='Jharkhand (Annexure-IV)'!S37 -> 0 | P37: ='Jharkhand (Annexure-IV)'!U37 -> 0 | Q37: ='Jharkhand (Annexure-IV)'!W37 -> 0 | R37: ='Jharkhand (Annexure-IV)'!X37 -> 0 | S37: ='Jharkhand (Annexure-IV)'!Y37 -> 0 | T37: ='Jharkhand (Annexure-IV)'!Z37 -> 0 | U37: ='Jharkhand (Annexure-IV)'!AA37 -> 0 | V37: ='Jharkhand (Annexure-IV)'!AB37 -> 0 | W37: ='Jharkhand (Annexure-IV)'!AC37 -> 0 | X37: 0 | Y37: =SUM(Bokaro:Simdega!M37) -> 0
A38: 2.13 | B38: Miscellaneous @ Rs. 750/- per child per annum | C38: ='Jharkhand (Annexure-IV)'!C38 -> 0 | D38: ='Jharkhand (Annexure-IV)'!D38 -> 0 | E38: ='Jharkhand (Annexure-IV)'!E38 -> 0 | F38: ='Jharkhand (Annexure-IV)'!F38 -> 0 | G38: ='Jharkhand (Annexure-IV)'!G38 ->  | H38: ='Jharkhand (Annexure-IV)'!H38 ->  | I38: ='Jharkhand (Annexure-IV)'!L38 -> 0 | J38: ='Jharkhand (Annexure-IV)'!N38 -> 0 | K38: ='Jharkhand (Annexure-IV)'!O38 -> 0.375 | L38: ='Jharkhand (Annexure-IV)'!P38 -> 0 | M38: ='Jharkhand (Annexure-IV)'!Q38 -> 0 | N38: ='Jharkhand (Annexure-IV)'!R38 -> 0 | O38: ='Jharkhand (Annexure-IV)'!S38 -> 0 | P38: ='Jharkhand (Annexure-IV)'!U38 -> 0 | Q38: ='Jharkhand (Annexure-IV)'!W38 -> 0 | R38: ='Jharkhand (Annexure-IV)'!X38 -> 0 | S38: ='Jharkhand (Annexure-IV)'!Y38 -> 0 | T38: ='Jharkhand (Annexure-IV)'!Z38 -> 0 | U38: ='Jharkhand (Annexure-IV)'!AA38 -> 0 | V38: ='Jharkhand (Annexure-IV)'!AB38 -> 0 | W38: ='Jharkhand (Annexure-IV)'!AC38 -> 0 | X38: 0 | Y38: =SUM(Bokaro:Simdega!M38) -> 0
A39: 2.14 | B39: Preparatory camps @ Rs. 300/- per child per annum | C39: ='Jharkhand (Annexure-IV)'!C39 -> 0 | D39: ='Jharkhand (Annexure-IV)'!D39 -> 0 | E39: ='Jharkhand (Annexure-IV)'!E39 -> 0 | F39: ='Jharkhand (Annexure-IV)'!F39 -> 0 | G39: ='Jharkhand (Annexure-IV)'!G39 ->  | H39: ='Jharkhand (Annexure-IV)'!H39 ->  | I39: ='Jharkhand (Annexure-IV)'!L39 -> 0 | J39: ='Jharkhand (Annexure-IV)'!N39 -> 0 | K39: ='Jharkhand (Annexure-IV)'!O39 -> 0.15 | L39: ='Jharkhand (Annexure-IV)'!P39 -> 0 | M39: ='Jharkhand (Annexure-IV)'!Q39 -> 0 | N39: ='Jharkhand (Annexure-IV)'!R39 -> 0 | O39: ='Jharkhand (Annexure-IV)'!S39 -> 0 | P39: ='Jharkhand (Annexure-IV)'!U39 -> 0 | Q39: ='Jharkhand (Annexure-IV)'!W39 -> 0 | R39: ='Jharkhand (Annexure-IV)'!X39 -> 0 | S39: ='Jharkhand (Annexure-IV)'!Y39 -> 0 | T39: ='Jharkhand (Annexure-IV)'!Z39 -> 0 | U39: ='Jharkhand (Annexure-IV)'!AA39 -> 0 | V39: ='Jharkhand (Annexure-IV)'!AB39 -> 0 | W39: ='Jharkhand (Annexure-IV)'!AC39 -> 0 | X39: 0 | Y39: =SUM(Bokaro:Simdega!M39) -> 0
A40: 2.15 | B40: P.T.A / school functions @ Rs. 300/- per child per annum | C40: ='Jharkhand (Annexure-IV)'!C40 -> 0 | D40: ='Jharkhand (Annexure-IV)'!D40 -> 0 | E40: ='Jharkhand (Annexure-IV)'!E40 -> 0 | F40: ='Jharkhand (Annexure-IV)'!F40 -> 0 | G40: ='Jharkhand (Annexure-IV)'!G40 ->  | H40: ='Jharkhand (Annexure-IV)'!H40 ->  | I40: ='Jharkhand (Annexure-IV)'!L40 -> 0 | J40: ='Jharkhand (Annexure-IV)'!N40 -> 0 | K40: ='Jharkhand (Annexure-IV)'!O40 -> 0.15 | L40: ='Jharkhand (Annexure-IV)'!P40 -> 0 | M40: ='Jharkhand (Annexure-IV)'!Q40 -> 0 | N40: ='Jharkhand (Annexure-IV)'!R40 -> 0 | O40: ='Jharkhand (Annexure-IV)'!S40 -> 0 | P40: ='Jharkhand (Annexure-IV)'!U40 -> 0 | Q40: ='Jharkhand (Annexure-IV)'!W40 -> 0 | R40: ='Jharkhand (Annexure-IV)'!X40 -> 0 | S40: ='Jharkhand (Annexure-IV)'!Y40 -> 0 | T40: ='Jharkhand (Annexure-IV)'!Z40 -> 0 | U40: ='Jharkhand (Annexure-IV)'!AA40 -> 0 | V40: ='Jharkhand (Annexure-IV)'!AB40 -> 0 | W40: ='Jharkhand (Annexure-IV)'!AC40 -> 0 | X40: 0 | Y40: =SUM(Bokaro:Simdega!M40) -> 0
A41: 2.16 | B41: Provision of Rent @ Rs. 10,000/- per child per annum | C41: ='Jharkhand (Annexure-IV)'!C41 -> 0 | D41: ='Jharkhand (Annexure-IV)'!D41 -> 0 | E41: ='Jharkhand (Annexure-IV)'!E41 -> 0 | F41: ='Jharkhand (Annexure-IV)'!F41 -> 0 | G41: ='Jharkhand (Annexure-IV)'!G41 ->  | H41: ='Jharkhand (Annexure-IV)'!H41 ->  | I41: ='Jharkhand (Annexure-IV)'!L41 -> 0 | J41: ='Jharkhand (Annexure-IV)'!N41 -> 0 | K41: ='Jharkhand (Annexure-IV)'!O41 -> 0 | L41: ='Jharkhand (Annexure-IV)'!P41 -> 0 | M41: ='Jharkhand (Annexure-IV)'!Q41 -> 0 | N41: ='Jharkhand (Annexure-IV)'!R41 -> 0 | O41: ='Jharkhand (Annexure-IV)'!S41 -> 0 | P41: ='Jharkhand (Annexure-IV)'!U41 -> 0 | Q41: ='Jharkhand (Annexure-IV)'!W41 -> 0 | R41: ='Jharkhand (Annexure-IV)'!X41 -> 0 | S41: ='Jharkhand (Annexure-IV)'!Y41 -> 0 | T41: ='Jharkhand (Annexure-IV)'!Z41 -> 0 | U41: ='Jharkhand (Annexure-IV)'!AA41 -> 0 | V41: ='Jharkhand (Annexure-IV)'!AB41 -> 0 | W41: ='Jharkhand (Annexure-IV)'!AC41 -> 0 | X41: 0 | Y41: =SUM(Bokaro:Simdega!M41) -> 0
A42: 2.17 | B42: Capacity Building @ Rs. 500/- per child per annum | C42: ='Jharkhand (Annexure-IV)'!C42 -> 0 | D42: ='Jharkhand (Annexure-IV)'!D42 -> 0 | E42: ='Jharkhand (Annexure-IV)'!E42 -> 0 | F42: ='Jharkhand (Annexure-IV)'!F42 -> 0 | G42: ='Jharkhand (Annexure-IV)'!G42 ->  | H42: ='Jharkhand (Annexure-IV)'!H42 ->  | I42: ='Jharkhand (Annexure-IV)'!L42 -> 0 | J42: ='Jharkhand (Annexure-IV)'!N42 -> 0 | K42: ='Jharkhand (Annexure-IV)'!O42 -> 0.25 | L42: ='Jharkhand (Annexure-IV)'!P42 -> 0 | M42: ='Jharkhand (Annexure-IV)'!Q42 -> 0 | N42: ='Jharkhand (Annexure-IV)'!R42 -> 0 | O42: ='Jharkhand (Annexure-IV)'!S42 -> 0 | P42: ='Jharkhand (Annexure-IV)'!U42 -> 0 | Q42: ='Jharkhand (Annexure-IV)'!W42 -> 0 | R42: ='Jharkhand (Annexure-IV)'!X42 -> 0 | S42: ='Jharkhand (Annexure-IV)'!Y42 -> 0 | T42: ='Jharkhand (Annexure-IV)'!Z42 -> 0 | U42: ='Jharkhand (Annexure-IV)'!AA42 -> 0 | V42: ='Jharkhand (Annexure-IV)'!AB42 -> 0 | W42: ='Jharkhand (Annexure-IV)'!AC42 -> 0 | X42: 0 | Y42: =SUM(Bokaro:Simdega!M42) -> 0
A43: 2.18 | B43: Physical / Self Defence Training @ Rs.200/- per child per annum | C43: ='Jharkhand (Annexure-IV)'!C43 -> 0 | D43: ='Jharkhand (Annexure-IV)'!D43 -> 0 | E43: ='Jharkhand (Annexure-IV)'!E43 -> 0 | F43: ='Jharkhand (Annexure-IV)'!F43 -> 0 | G43: ='Jharkhand (Annexure-IV)'!G43 ->  | H43: ='Jharkhand (Annexure-IV)'!H43 ->  | I43: ='Jharkhand (Annexure-IV)'!L43 -> 0 | J43: ='Jharkhand (Annexure-IV)'!N43 -> 0 | K43: ='Jharkhand (Annexure-IV)'!O43 -> 0.1 | L43: ='Jharkhand (Annexure-IV)'!P43 -> 0 | M43: ='Jharkhand (Annexure-IV)'!Q43 -> 0 | N43: ='Jharkhand (Annexure-IV)'!R43 -> 0 | O43: ='Jharkhand (Annexure-IV)'!S43 -> 0 | P43: ='Jharkhand (Annexure-IV)'!U43 -> 0 | Q43: ='Jharkhand (Annexure-IV)'!W43 -> 0 | R43: ='Jharkhand (Annexure-IV)'!X43 -> 0 | S43: ='Jharkhand (Annexure-IV)'!Y43 -> 0 | T43: ='Jharkhand (Annexure-IV)'!Z43 -> 0 | U43: ='Jharkhand (Annexure-IV)'!AA43 -> 0 | V43: ='Jharkhand (Annexure-IV)'!AB43 -> 0 | W43: ='Jharkhand (Annexure-IV)'!AC43 -> 0 | X43: 0 | Y43: =SUM(Bokaro:Simdega!M43) -> 0
B44: Sub Total (Recurring) | C44: ='Jharkhand (Annexure-IV)'!C44 -> 0 | D44: ='Jharkhand (Annexure-IV)'!D44 -> 0 | E44: ='Jharkhand (Annexure-IV)'!E44 -> 0 | F44: ='Jharkhand (Annexure-IV)'!F44 -> 0 | G44: ='Jharkhand (Annexure-IV)'!G44 ->  | H44: ='Jharkhand (Annexure-IV)'!H44 ->  | I44: ='Jharkhand (Annexure-IV)'!L44 -> 0 | J44: ='Jharkhand (Annexure-IV)'!N44 -> 0 | K44: ='Jharkhand (Annexure-IV)'!O44 -> 0 | L44: ='Jharkhand (Annexure-IV)'!P44 -> 0 | M44: ='Jharkhand (Annexure-IV)'!Q44 -> 0 | N44: ='Jharkhand (Annexure-IV)'!R44 -> 0 | O44: ='Jharkhand (Annexure-IV)'!S44 -> 0 | P44: ='Jharkhand (Annexure-IV)'!U44 -> 0 | Q44: ='Jharkhand (Annexure-IV)'!W44 -> 0 | R44: ='Jharkhand (Annexure-IV)'!X44 -> 0 | S44: ='Jharkhand (Annexure-IV)'!Y44 -> 0 | T44: ='Jharkhand (Annexure-IV)'!Z44 -> 0 | U44: ='Jharkhand (Annexure-IV)'!AA44 -> 0 | V44: ='Jharkhand (Annexure-IV)'!AB44 -> 0 | W44: ='Jharkhand (Annexure-IV)'!AC44 -> 0 | X44: 0 | Y44: =SUM(Bokaro:Simdega!M44) -> 0
B45: Total (Non Recurring + Recurring) | C45: ='Jharkhand (Annexure-IV)'!C45 -> 0 | D45: ='Jharkhand (Annexure-IV)'!D45 -> 0 | E45: ='Jharkhand (Annexure-IV)'!E45 -> 0 | F45: ='Jharkhand (Annexure-IV)'!F45 -> 0 | G45: ='Jharkhand (Annexure-IV)'!G45 ->  | H45: ='Jharkhand (Annexure-IV)'!H45 ->  | I45: ='Jharkhand (Annexure-IV)'!L45 -> 0 | J45: ='Jharkhand (Annexure-IV)'!N45 -> 0 | K45: ='Jharkhand (Annexure-IV)'!O45 -> 0 | L45: ='Jharkhand (Annexure-IV)'!P45 -> 0 | M45: ='Jharkhand (Annexure-IV)'!Q45 -> 0 | N45: ='Jharkhand (Annexure-IV)'!R45 -> 0 | O45: ='Jharkhand (Annexure-IV)'!S45 -> 0 | P45: ='Jharkhand (Annexure-IV)'!U45 -> 0 | Q45: ='Jharkhand (Annexure-IV)'!W45 -> 0 | R45: ='Jharkhand (Annexure-IV)'!X45 -> 0 | S45: ='Jharkhand (Annexure-IV)'!Y45 -> 0 | T45: ='Jharkhand (Annexure-IV)'!Z45 -> 0 | U45: ='Jharkhand (Annexure-IV)'!AA45 -> 0 | V45: ='Jharkhand (Annexure-IV)'!AB45 -> 0 | W45: ='Jharkhand (Annexure-IV)'!AC45 -> 0 | X45: 0 | Y45: =SUM(Bokaro:Simdega!M45) -> 0
B46: 100 children | C46: ='Jharkhand (Annexure-IV)'!C46 -> 0 | D46: ='Jharkhand (Annexure-IV)'!D46 -> 0 | E46: ='Jharkhand (Annexure-IV)'!E46 -> 0 | F46: ='Jharkhand (Annexure-IV)'!F46 -> 0 | G46: ='Jharkhand (Annexure-IV)'!G46 ->  | H46: ='Jharkhand (Annexure-IV)'!H46 ->  | I46: ='Jharkhand (Annexure-IV)'!L46 -> 0 | J46: ='Jharkhand (Annexure-IV)'!N46 -> 0 | K46: ='Jharkhand (Annexure-IV)'!O46 -> 0 | L46: ='Jharkhand (Annexure-IV)'!P46 -> 0 | M46: ='Jharkhand (Annexure-IV)'!Q46 -> 0 | N46: ='Jharkhand (Annexure-IV)'!R46 -> 0 | O46: ='Jharkhand (Annexure-IV)'!S46 -> 0 | P46: ='Jharkhand (Annexure-IV)'!U46 -> 0 | Q46: ='Jharkhand (Annexure-IV)'!W46 -> 0 | R46: ='Jharkhand (Annexure-IV)'!X46 -> 0 | S46: ='Jharkhand (Annexure-IV)'!Y46 -> 6 | T46: ='Jharkhand (Annexure-IV)'!Z46 -> 0 | U46: ='Jharkhand (Annexure-IV)'!AA46 -> 6 | V46: ='Jharkhand (Annexure-IV)'!AB46 -> 0 | W46: ='Jharkhand (Annexure-IV)'!AC46 -> PAB approved 6 new 100 seating capacity residential schools with recurring expanses | X46: 0 | Y46: =SUM(Bokaro:Simdega!M46) -> 0
B47: Non-recurring (one time grant) | C47: ='Jharkhand (Annexure-IV)'!C47 -> 0 | D47: ='Jharkhand (Annexure-IV)'!D47 -> 0 | E47: ='Jharkhand (Annexure-IV)'!E47 -> 0 | F47: ='Jharkhand (Annexure-IV)'!F47 -> 0 | G47: ='Jharkhand (Annexure-IV)'!G47 ->  | H47: ='Jharkhand (Annexure-IV)'!H47 ->  | I47: ='Jharkhand (Annexure-IV)'!L47 -> 0 | J47: ='Jharkhand (Annexure-IV)'!N47 -> 0 | K47: ='Jharkhand (Annexure-IV)'!O47 -> 0 | L47: ='Jharkhand (Annexure-IV)'!P47 -> 0 | M47: ='Jharkhand (Annexure-IV)'!Q47 -> 0 | N47: ='Jharkhand (Annexure-IV)'!R47 -> 0 | O47: ='Jharkhand (Annexure-IV)'!S47 -> 0 | P47: ='Jharkhand (Annexure-IV)'!U47 -> 0 | Q47: ='Jharkhand (Annexure-IV)'!W47 -> 0 | R47: ='Jharkhand (Annexure-IV)'!X47 -> 0 | S47: ='Jharkhand (Annexure-IV)'!Y47 -> 0 | T47: ='Jharkhand (Annexure-IV)'!Z47 -> 0 | U47: ='Jharkhand (Annexure-IV)'!AA47 -> 0 | V47: ='Jharkhand (Annexure-IV)'!AB47 -> 0 | W47: ='Jharkhand (Annexure-IV)'!AC47 -> 0 | X47: 0 | Y47: =SUM(Bokaro:Simdega!M47) -> 0
A48: 2.19 | B48: Furniture / Equipment (including kitchen equipment) | C48: ='Jharkhand (Annexure-IV)'!C48 -> 0 | D48: ='Jharkhand (Annexure-IV)'!D48 -> 0 | E48: ='Jharkhand (Annexure-IV)'!E48 -> 0 | F48: ='Jharkhand (Annexure-IV)'!F48 -> 0 | G48: ='Jharkhand (Annexure-IV)'!G48 ->  | H48: ='Jharkhand (Annexure-IV)'!H48 ->  | I48: ='Jharkhand (Annexure-IV)'!L48 -> 0 | J48: ='Jharkhand (Annexure-IV)'!N48 -> 0 | K48: ='Jharkhand (Annexure-IV)'!O48 -> 3 | L48: ='Jharkhand (Annexure-IV)'!P48 -> 18 | M48: ='Jharkhand (Annexure-IV)'!Q48 -> 54 | N48: ='Jharkhand (Annexure-IV)'!R48 -> 18 | O48: ='Jharkhand (Annexure-IV)'!S48 -> 54 | P48: ='Jharkhand (Annexure-IV)'!U48 -> 0 | Q48: ='Jharkhand (Annexure-IV)'!W48 -> 0 | R48: ='Jharkhand (Annexure-IV)'!X48 -> 0 | S48: ='Jharkhand (Annexure-IV)'!Y48 -> 0 | T48: ='Jharkhand (Annexure-IV)'!Z48 -> 0 | U48: ='Jharkhand (Annexure-IV)'!AA48 -> 0 | V48: ='Jharkhand (Annexure-IV)'!AB48 -> 0 | W48: ='Jharkhand (Annexure-IV)'!AC48 -> State only requested for recurring expenses in the PAB which was approved. | X48: 54 | Y48: =SUM(Bokaro:Simdega!M48) -> 0 | Z48: =Y48=X48 -> FALSE
A49: =+A48+0.01 -> 2.2 | B49: TLM and equipment including library books (New) | C49: ='Jharkhand (Annexure-IV)'!C49 -> 0 | D49: ='Jharkhand (Annexure-IV)'!D49 -> 0 | E49: ='Jharkhand (Annexure-IV)'!E49 -> 0 | F49: ='Jharkhand (Annexure-IV)'!F49 -> 0 | G49: ='Jharkhand (Annexure-IV)'!G49 ->  | H49: ='Jharkhand (Annexure-IV)'!H49 ->  | I49: ='Jharkhand (Annexure-IV)'!L49 -> 0 | J49: ='Jharkhand (Annexure-IV)'!N49 -> 0 | K49: ='Jharkhand (Annexure-IV)'!O49 -> 3.5 | L49: ='Jharkhand (Annexure-IV)'!P49 -> 18 | M49: ='Jharkhand (Annexure-IV)'!Q49 -> 63 | N49: ='Jharkhand (Annexure-IV)'!R49 -> 18 | O49: ='Jharkhand (Annexure-IV)'!S49 -> 63 | P49: ='Jharkhand (Annexure-IV)'!U49 -> 0 | Q49: ='Jharkhand (Annexure-IV)'!W49 -> 0 | R49: ='Jharkhand (Annexure-IV)'!X49 -> 0 | S49: ='Jharkhand (Annexure-IV)'!Y49 -> 0 | T49: ='Jharkhand (Annexure-IV)'!Z49 -> 0 | U49: ='Jharkhand (Annexure-IV)'!AA49 -> 0 | V49: ='Jharkhand (Annexure-IV)'!AB49 -> 0 | W49: ='Jharkhand (Annexure-IV)'!AC49 -> 0 | X49: =(L49*K49)+P49+Q49 -> 63 | Y49: =SUM(Bokaro:Simdega!M49) -> 0 | Z49: =Y49=X49 -> FALSE
A50: =+A49+0.01 -> 2.21 | B50: Bedding (New) | C50: ='Jharkhand (Annexure-IV)'!C50 -> 7 | D50: ='Jharkhand (Annexure-IV)'!D50 -> 5.25 | E50: ='Jharkhand (Annexure-IV)'!E50 -> 6 | F50: ='Jharkhand (Annexure-IV)'!F50 -> 4.5 | G50: ='Jharkhand (Annexure-IV)'!G50 -> 0.8571428571 | H50: ='Jharkhand (Annexure-IV)'!H50 -> 0.8571428571 | I50: ='Jharkhand (Annexure-IV)'!L50 -> 0.75 | J50: ='Jharkhand (Annexure-IV)'!N50 -> 0 | K50: ='Jharkhand (Annexure-IV)'!O50 -> 0.75 | L50: ='Jharkhand (Annexure-IV)'!P50 -> 6 | M50: ='Jharkhand (Annexure-IV)'!Q50 -> 4.5 | N50: ='Jharkhand (Annexure-IV)'!R50 -> 7 | O50: ='Jharkhand (Annexure-IV)'!S50 -> 5.25 | P50: ='Jharkhand (Annexure-IV)'!U50 -> 0 | Q50: ='Jharkhand (Annexure-IV)'!W50 -> 0 | R50: ='Jharkhand (Annexure-IV)'!X50 -> 0 | S50: ='Jharkhand (Annexure-IV)'!Y50 -> 0 | T50: ='Jharkhand (Annexure-IV)'!Z50 -> 0 | U50: ='Jharkhand (Annexure-IV)'!AA50 -> 0 | V50: ='Jharkhand (Annexure-IV)'!AB50 -> 0 | W50: ='Jharkhand (Annexure-IV)'!AC50 -> 0 | X50: 4.5 | Y50: =SUM(Bokaro:Simdega!M50) -> 0 | Z50: FALSE
A51: =+A50+0.01 -> 2.22 | B51: Replacement of bedding (once in 3 years) | C51: ='Jharkhand (Annexure-IV)'!C51 -> 1 | D51: ='Jharkhand (Annexure-IV)'!D51 -> 0.75 | E51: ='Jharkhand (Annexure-IV)'!E51 -> 1 | F51: ='Jharkhand (Annexure-IV)'!F51 -> 0.75 | G51: ='Jharkhand (Annexure-IV)'!G51 -> 1 | H51: ='Jharkhand (Annexure-IV)'!H51 -> 1 | I51: ='Jharkhand (Annexure-IV)'!L51 -> 0 | J51: ='Jharkhand (Annexure-IV)'!N51 -> 0 | K51: ='Jharkhand (Annexure-IV)'!O51 -> 0.75 | L51: ='Jharkhand (Annexure-IV)'!P51 -> 0 | M51: ='Jharkhand (Annexure-IV)'!Q51 -> 0 | N51: ='Jharkhand (Annexure-IV)'!R51 -> 0 | O51: ='Jharkhand (Annexure-IV)'!S51 -> 0 | P51: ='Jharkhand (Annexure-IV)'!U51 -> 0 | Q51: ='Jharkhand (Annexure-IV)'!W51 -> 0 | R51: ='Jharkhand (Annexure-IV)'!X51 -> 0 | S51: ='Jharkhand (Annexure-IV)'!Y51 -> 0 | T51: ='Jharkhand (Annexure-IV)'!Z51 -> 0 | U51: ='Jharkhand (Annexure-IV)'!AA51 -> 0 | V51: ='Jharkhand (Annexure-IV)'!AB51 -> 0 | W51: ='Jharkhand (Annexure-IV)'!AC51 -> 0 | X51: 0 | Y51: =SUM(Bokaro:Simdega!M51) -> 0 | Z51: TRUE
B52: Sub Total Non-recurring | C52: ='Jharkhand (Annexure-IV)'!C52 -> 0 | D52: ='Jharkhand (Annexure-IV)'!D52 -> 6 | E52: ='Jharkhand (Annexure-IV)'!E52 -> 0 | F52: ='Jharkhand (Annexure-IV)'!F52 -> 5.25 | G52: ='Jharkhand (Annexure-IV)'!G52 ->  | H52: ='Jharkhand (Annexure-IV)'!H52 -> 0.875 | I52: ='Jharkhand (Annexure-IV)'!L52 -> 0.75 | J52: ='Jharkhand (Annexure-IV)'!N52 -> 0 | K52: ='Jharkhand (Annexure-IV)'!O52 -> 0 | L52: ='Jharkhand (Annexure-IV)'!P52 -> 0 | M52: ='Jharkhand (Annexure-IV)'!Q52 -> 121.5 | N52: ='Jharkhand (Annexure-IV)'!R52 -> 0 | O52: ='Jharkhand (Annexure-IV)'!S52 -> 122.25 | P52: ='Jharkhand (Annexure-IV)'!U52 -> 0 | Q52: ='Jharkhand (Annexure-IV)'!W52 -> 0 | R52: ='Jharkhand (Annexure-IV)'!X52 -> 0 | S52: ='Jharkhand (Annexure-IV)'!Y52 -> 0 | T52: ='Jharkhand (Annexure-IV)'!Z52 -> 0 | U52: ='Jharkhand (Annexure-IV)'!AA52 -> 0 | V52: ='Jharkhand (Annexure-IV)'!AB52 -> 0 | W52: ='Jharkhand (Annexure-IV)'!AC52 -> 0 | X52: 0 | Z52: TRUE
B53: Recurring | C53: ='Jharkhand (Annexure-IV)'!C53 -> 0 | D53: ='Jharkhand (Annexure-IV)'!D53 -> 0 | E53: ='Jharkhand (Annexure-IV)'!E53 -> 0 | F53: ='Jharkhand (Annexure-IV)'!F53 -> 0 | G53: ='Jharkhand (Annexure-IV)'!G53 ->  | H53: ='Jharkhand (Annexure-IV)'!H53 ->  | I53: ='Jharkhand (Annexure-IV)'!L53 -> 0 | J53: ='Jharkhand (Annexure-IV)'!N53 -> 0 | K53: ='Jharkhand (Annexure-IV)'!O53 -> 0 | L53: ='Jharkhand (Annexure-IV)'!P53 -> 0 | M53: ='Jharkhand (Annexure-IV)'!Q53 -> 0 | N53: ='Jharkhand (Annexure-IV)'!R53 -> 0 | O53: ='Jharkhand (Annexure-IV)'!S53 -> 0 | P53: ='Jharkhand (Annexure-IV)'!U53 -> 0 | Q53: ='Jharkhand (Annexure-IV)'!W53 -> 0 | R53: ='Jharkhand (Annexure-IV)'!X53 -> 0 | S53: ='Jharkhand (Annexure-IV)'!Y53 -> 0 | T53: ='Jharkhand (Annexure-IV)'!Z53 -> 0 | U53: ='Jharkhand (Annexure-IV)'!AA53 -> 0 | V53: ='Jharkhand (Annexure-IV)'!AB53 -> 0 | W53: ='Jharkhand (Annexure-IV)'!AC53 -> 0 | X53: 0 | Y53: =SUM(Bokaro:Simdega!M53) -> 0 | Z53: TRUE
A54: 2.23 | B54: Maintenance per child per month @ Rs. 1500/- | C54: ='Jharkhand (Annexure-IV)'!C54 -> 1200 | D54: ='Jharkhand (Annexure-IV)'!D54 -> 216 | E54: ='Jharkhand (Annexure-IV)'!E54 -> 1200 | F54: ='Jharkhand (Annexure-IV)'!F54 -> 126.99 | G54: ='Jharkhand (Annexure-IV)'!G54 -> 1 | H54: ='Jharkhand (Annexure-IV)'!H54 -> 0.5879166667 | I54: ='Jharkhand (Annexure-IV)'!L54 -> 0 | J54: ='Jharkhand (Annexure-IV)'!N54 -> 0 | K54: ='Jharkhand (Annexure-IV)'!O54 -> 0.18 | L54: ='Jharkhand (Annexure-IV)'!P54 -> 1800 | M54: ='Jharkhand (Annexure-IV)'!Q54 -> 324 | N54: ='Jharkhand (Annexure-IV)'!R54 -> 1800 | O54: ='Jharkhand (Annexure-IV)'!S54 -> 324 | P54: ='Jharkhand (Annexure-IV)'!U54 -> 0 | Q54: ='Jharkhand (Annexure-IV)'!W54 -> 0 | R54: ='Jharkhand (Annexure-IV)'!X54 -> 0.18 | S54: ='Jharkhand (Annexure-IV)'!Y54 -> 1800 | T54: ='Jharkhand (Annexure-IV)'!Z54 -> 324 | U54: ='Jharkhand (Annexure-IV)'!AA54 -> 1800 | V54: ='Jharkhand (Annexure-IV)'!AB54 -> 324 | W54: ='Jharkhand (Annexure-IV)'!AC54 -> Recommended as per norms | X54: 324 | Y54: =SUM(Bokaro:Simdega!M54) -> 0 | Z54: FALSE
A55: =+A54+0.01 -> 2.24 | B55: Stipend per child per month @ Rs.100/- | C55: ='Jharkhand (Annexure-IV)'!C55 -> 1200 | D55: ='Jharkhand (Annexure-IV)'!D55 -> 14.4 | E55: ='Jharkhand (Annexure-IV)'!E55 -> 1200 | F55: ='Jharkhand (Annexure-IV)'!F55 -> 9.01 | G55: ='Jharkhand (Annexure-IV)'!G55 -> 1 | H55: ='Jharkhand (Annexure-IV)'!H55 -> 0.6256944444 | I55: ='Jharkhand (Annexure-IV)'!L55 -> 0 | J55: ='Jharkhand (Annexure-IV)'!N55 -> 0 | K55: ='Jharkhand (Annexure-IV)'!O55 -> 0.012 | L55: ='Jharkhand (Annexure-IV)'!P55 -> 1800 | M55: ='Jharkhand (Annexure-IV)'!Q55 -> 21.6 | N55: ='Jharkhand (Annexure-IV)'!R55 -> 1800 | O55: ='Jharkhand (Annexure-IV)'!S55 -> 21.6 | P55: ='Jharkhand (Annexure-IV)'!U55 -> 0 | Q55: ='Jharkhand (Annexure-IV)'!W55 -> 0 | R55: ='Jharkhand (Annexure-IV)'!X55 -> 0.012 | S55: ='Jharkhand (Annexure-IV)'!Y55 -> 1800 | T55: ='Jharkhand (Annexure-IV)'!Z55 -> 21.6 | U55: ='Jharkhand (Annexure-IV)'!AA55 -> 1800 | V55: ='Jharkhand (Annexure-IV)'!AB55 -> 21.6 | W55: ='Jharkhand (Annexure-IV)'!AC55 -> Recommended as per norms | X55: 21.6 | Y55: =SUM(Bokaro:Simdega!M55) -> 0 | Z55: FALSE
A56: 2.25 | B56: Supplementary TLM, Stationery and other educational material per child @1000/- per annum | C56: ='Jharkhand (Annexure-IV)'!C56 -> 700 | D56: ='Jharkhand (Annexure-IV)'!D56 -> 7 | E56: ='Jharkhand (Annexure-IV)'!E56 -> 700 | F56: ='Jharkhand (Annexure-IV)'!F56 -> 4.99 | G56: ='Jharkhand (Annexure-IV)'!G56 -> 1 | H56: ='Jharkhand (Annexure-IV)'!H56 -> 0.7128571429 | I56: ='Jharkhand (Annexure-IV)'!L56 -> 0 | J56: ='Jharkhand (Annexure-IV)'!N56 -> 0 | K56: ='Jharkhand (Annexure-IV)'!O56 -> 0.01 | L56: ='Jharkhand (Annexure-IV)'!P56 -> 1800 | M56: ='Jharkhand (Annexure-IV)'!Q56 -> 18 | N56: ='Jharkhand (Annexure-IV)'!R56 -> 1800 | O56: ='Jharkhand (Annexure-IV)'!S56 -> 18 | P56: ='Jharkhand (Annexure-IV)'!U56 -> 0 | Q56: ='Jharkhand (Annexure-IV)'!W56 -> 0 | R56: ='Jharkhand (Annexure-IV)'!X56 -> 0.01 | S56: ='Jharkhand (Annexure-IV)'!Y56 -> 1800 | T56: ='Jharkhand (Annexure-IV)'!Z56 -> 18 | U56: ='Jharkhand (Annexure-IV)'!AA56 -> 1800 | V56: ='Jharkhand (Annexure-IV)'!AB56 -> 18 | W56: ='Jharkhand (Annexure-IV)'!AC56 -> Recommended as per norms | X56: 18 | Y56: =SUM(Bokaro:Simdega!M56) -> 0 | Z56: FALSE
A57: 2.26 | B57: Salaries | C57: ='Jharkhand (Annexure-IV)'!C57 -> 0 | D57: ='Jharkhand (Annexure-IV)'!D57 -> 0 | E57: ='Jharkhand (Annexure-IV)'!E57 -> 0 | F57: ='Jharkhand (Annexure-IV)'!F57 -> 0 | G57: ='Jharkhand (Annexure-IV)'!G57 ->  | H57: ='Jharkhand (Annexure-IV)'!H57 ->  | I57: ='Jharkhand (Annexure-IV)'!L57 -> 0 | J57: ='Jharkhand (Annexure-IV)'!N57 -> 0 | K57: ='Jharkhand (Annexure-IV)'!O57 -> 0 | L57: ='Jharkhand (Annexure-IV)'!P57 -> 0 | M57: ='Jharkhand (Annexure-IV)'!Q57 -> 0 | N57: ='Jharkhand (Annexure-IV)'!R57 -> 0 | O57: ='Jharkhand (Annexure-IV)'!S57 -> 0 | P57: ='Jharkhand (Annexure-IV)'!U57 -> 0 | Q57: ='Jharkhand (Annexure-IV)'!W57 -> 0 | R57: ='Jharkhand (Annexure-IV)'!X57 -> 0 | S57: ='Jharkhand (Annexure-IV)'!Y57 -> 0 | T57: ='Jharkhand (Annexure-IV)'!Z57 -> 0 | U57: ='Jharkhand (Annexure-IV)'!AA57 -> 0 | V57: ='Jharkhand (Annexure-IV)'!AB57 -> 0 | W57: ='Jharkhand (Annexure-IV)'!AC57 -> 0 | X57: 0 | Y57: =SUM(Bokaro:Simdega!M57) -> 0 | Z57: TRUE
A58: (a) | B58: 1 Warden @ Rs. 25,000/- per month | C58: ='Jharkhand (Annexure-IV)'!C58 -> 12 | D58: ='Jharkhand (Annexure-IV)'!D58 -> 28.8 | E58: ='Jharkhand (Annexure-IV)'!E58 -> 12 | F58: ='Jharkhand (Annexure-IV)'!F58 -> 2.27 | G58: ='Jharkhand (Annexure-IV)'!G58 -> 1 | H58: ='Jharkhand (Annexure-IV)'!H58 -> 0.07881944444 | I58: ='Jharkhand (Annexure-IV)'!L58 -> 0 | J58: ='Jharkhand (Annexure-IV)'!N58 -> 0 | K58: ='Jharkhand (Annexure-IV)'!O58 -> 3 | L58: ='Jharkhand (Annexure-IV)'!P58 -> 18 | M58: ='Jharkhand (Annexure-IV)'!Q58 -> 54 | N58: ='Jharkhand (Annexure-IV)'!R58 -> 18 | O58: ='Jharkhand (Annexure-IV)'!S58 -> 54 | P58: ='Jharkhand (Annexure-IV)'!U58 -> 0 | Q58: ='Jharkhand (Annexure-IV)'!W58 -> 0 | R58: ='Jharkhand (Annexure-IV)'!X58 -> 3 | S58: ='Jharkhand (Annexure-IV)'!Y58 -> 18 | T58: ='Jharkhand (Annexure-IV)'!Z58 -> 54 | U58: ='Jharkhand (Annexure-IV)'!AA58 -> 18 | V58: ='Jharkhand (Annexure-IV)'!AB58 -> 54 | W58: ='Jharkhand (Annexure-IV)'!AC58 -> Recommended as per norms | X58: 54 | Y58: =SUM(Bokaro:Simdega!M58) -> 0 | Z58: FALSE
A59: (b) | B59: 1 head teacher @ Rs. 25,000/- per month in case the enrollment exceeds 100 | C59: ='Jharkhand (Annexure-IV)'!C59 -> 0 | D59: ='Jharkhand (Annexure-IV)'!D59 -> 0 | E59: ='Jharkhand (Annexure-IV)'!E59 -> 0 | F59: ='Jharkhand (Annexure-IV)'!F59 -> 0 | G59: ='Jharkhand (Annexure-IV)'!G59 ->  | H59: ='Jharkhand (Annexure-IV)'!H59 ->  | I59: ='Jharkhand (Annexure-IV)'!L59 -> 0 | J59: ='Jharkhand (Annexure-IV)'!N59 -> 0 | K59: ='Jharkhand (Annexure-IV)'!O59 -> 3 | L59: ='Jharkhand (Annexure-IV)'!P59 -> 0 | M59: ='Jharkhand (Annexure-IV)'!Q59 -> 0 | N59: ='Jharkhand (Annexure-IV)'!R59 -> 0 | O59: ='Jharkhand (Annexure-IV)'!S59 -> 0 | P59: ='Jharkhand (Annexure-IV)'!U59 -> 0 | Q59: ='Jharkhand (Annexure-IV)'!W59 -> 0 | R59: ='Jharkhand (Annexure-IV)'!X59 -> 0 | S59: ='Jharkhand (Annexure-IV)'!Y59 -> 0 | T59: ='Jharkhand (Annexure-IV)'!Z59 -> 0 | U59: ='Jharkhand (Annexure-IV)'!AA59 -> 0 | V59: ='Jharkhand (Annexure-IV)'!AB59 -> 0 | W59: ='Jharkhand (Annexure-IV)'!AC59 -> 0 | X59: 0 | Y59: =SUM(Bokaro:Simdega!M59) -> 0 | Z59: TRUE
A60: (c) | B60: 4 - 5 Full time teachers as per RTE norms @ Rs. 20,000/- per month per teacher | C60: ='Jharkhand (Annexure-IV)'!C60 -> 48 | D60: ='Jharkhand (Annexure-IV)'!D60 -> 115.2 | E60: ='Jharkhand (Annexure-IV)'!E60 -> 23 | F60: ='Jharkhand (Annexure-IV)'!F60 -> 15.29 | G60: ='Jharkhand (Annexure-IV)'!G60 -> 0.4791666667 | H60: ='Jharkhand (Annexure-IV)'!H60 -> 0.1327256944 | I60: ='Jharkhand (Annexure-IV)'!L60 -> 0 | J60: ='Jharkhand (Annexure-IV)'!N60 -> 0 | K60: ='Jharkhand (Annexure-IV)'!O60 -> 12 | L60: ='Jharkhand (Annexure-IV)'!P60 -> 18 | M60: ='Jharkhand (Annexure-IV)'!Q60 -> 216 | N60: ='Jharkhand (Annexure-IV)'!R60 -> 18 | O60: ='Jharkhand (Annexure-IV)'!S60 -> 216 | P60: ='Jharkhand (Annexure-IV)'!U60 -> 0 | Q60: ='Jharkhand (Annexure-IV)'!W60 -> 0 | R60: ='Jharkhand (Annexure-IV)'!X60 -> 12 | S60: ='Jharkhand (Annexure-IV)'!Y60 -> 18 | T60: ='Jharkhand (Annexure-IV)'!Z60 -> 216 | U60: ='Jharkhand (Annexure-IV)'!AA60 -> 18 | V60: ='Jharkhand (Annexure-IV)'!AB60 -> 216 | W60: ='Jharkhand (Annexure-IV)'!AC60 -> Recommended as per norms | X60: 216 | Y60: =SUM(Bokaro:Simdega!M60) -> 0 | Z60: FALSE
A61: (d) | B61: 2 Urdu Teachers (only for blocks with muslim population above 20% and select urban areas), if required @ Rs. 12,000/- per month per teacher | C61: ='Jharkhand (Annexure-IV)'!C61 -> 0 | D61: ='Jharkhand (Annexure-IV)'!D61 -> 0 | E61: ='Jharkhand (Annexure-IV)'!E61 -> 0 | F61: ='Jharkhand (Annexure-IV)'!F61 -> 0 | G61: ='Jharkhand (Annexure-IV)'!G61 ->  | H61: ='Jharkhand (Annexure-IV)'!H61 ->  | I61: ='Jharkhand (Annexure-IV)'!L61 -> 0 | J61: ='Jharkhand (Annexure-IV)'!N61 -> 0 | K61: ='Jharkhand (Annexure-IV)'!O61 -> 6.50208 | L61: ='Jharkhand (Annexure-IV)'!P61 -> 0 | M61: ='Jharkhand (Annexure-IV)'!Q61 -> 0 | N61: ='Jharkhand (Annexure-IV)'!R61 -> 0 | O61: ='Jharkhand (Annexure-IV)'!S61 -> 0 | P61: ='Jharkhand (Annexure-IV)'!U61 -> 0 | Q61: ='Jharkhand (Annexure-IV)'!W61 -> 0 | R61: ='Jharkhand (Annexure-IV)'!X61 -> 0 | S61: ='Jharkhand (Annexure-IV)'!Y61 -> 0 | T61: ='Jharkhand (Annexure-IV)'!Z61 -> 0 | U61: ='Jharkhand (Annexure-IV)'!AA61 -> 0 | V61: ='Jharkhand (Annexure-IV)'!AB61 -> 0 | W61: ='Jharkhand (Annexure-IV)'!AC61 -> 0 | X61: 0 | Y61: =SUM(Bokaro:Simdega!M61) -> 0 | Z61: TRUE
A62: (e) | B62: 3 part time teachers @ Rs. 5,000/- per month per teacher | C62: ='Jharkhand (Annexure-IV)'!C62 -> 7 | D62: ='Jharkhand (Annexure-IV)'!D62 -> 10.5 | E62: ='Jharkhand (Annexure-IV)'!E62 -> 6 | F62: ='Jharkhand (Annexure-IV)'!F62 -> 2.97 | G62: ='Jharkhand (Annexure-IV)'!G62 -> 0.8571428571 | H62: ='Jharkhand (Annexure-IV)'!H62 -> 0.2828571429 | I62: ='Jharkhand (Annexure-IV)'!L62 -> 0 | J62: ='Jharkhand (Annexure-IV)'!N62 -> 0 | K62: ='Jharkhand (Annexure-IV)'!O62 -> 1.8 | L62: ='Jharkhand (Annexure-IV)'!P62 -> 18 | M62: ='Jharkhand (Annexure-IV)'!Q62 -> 32.4 | N62: ='Jharkhand (Annexure-IV)'!R62 -> 18 | O62: ='Jharkhand (Annexure-IV)'!S62 -> 32.4 | P62: ='Jharkhand (Annexure-IV)'!U62 -> 0 | Q62: ='Jharkhand (Annexure-IV)'!W62 -> 0 | R62: ='Jharkhand (Annexure-IV)'!X62 -> 1.8 | S62: ='Jharkhand (Annexure-IV)'!Y62 -> 18 | T62: ='Jharkhand (Annexure-IV)'!Z62 -> 32.4 | U62: ='Jharkhand (Annexure-IV)'!AA62 -> 18 | V62: ='Jharkhand (Annexure-IV)'!AB62 -> 32.4 | W62: ='Jharkhand (Annexure-IV)'!AC62 -> Recommended as per norms | X62: 32.4 | Y62: =SUM(Bokaro:Simdega!M62) -> 0 | Z62: FALSE
A63: (f) | B63: 1 Full time Accountant @ Rs. 10,000/- per month | C63: ='Jharkhand (Annexure-IV)'!C63 -> 12 | D63: ='Jharkhand (Annexure-IV)'!D63 -> 14.4 | E63: ='Jharkhand (Annexure-IV)'!E63 -> 5 | F63: ='Jharkhand (Annexure-IV)'!F63 -> 1.36 | G63: ='Jharkhand (Annexure-IV)'!G63 -> 0.4166666667 | H63: ='Jharkhand (Annexure-IV)'!H63 -> 0.09444444444 | I63: ='Jharkhand (Annexure-IV)'!L63 -> 0 | J63: ='Jharkhand (Annexure-IV)'!N63 -> 0 | K63: ='Jharkhand (Annexure-IV)'!O63 -> 1.2 | L63: ='Jharkhand (Annexure-IV)'!P63 -> 18 | M63: ='Jharkhand (Annexure-IV)'!Q63 -> 21.6 | N63: ='Jharkhand (Annexure-IV)'!R63 -> 18 | O63: ='Jharkhand (Annexure-IV)'!S63 -> 21.6 | P63: ='Jharkhand (Annexure-IV)'!U63 -> 0 | Q63: ='Jharkhand (Annexure-IV)'!W63 -> 0 | R63: ='Jharkhand (Annexure-IV)'!X63 -> 1.2 | S63: ='Jharkhand (Annexure-IV)'!Y63 -> 18 | T63: ='Jharkhand (Annexure-IV)'!Z63 -> 21.6 | U63: ='Jharkhand (Annexure-IV)'!AA63 -> 18 | V63: ='Jharkhand (Annexure-IV)'!AB63 -> 21.6 | W63: ='Jharkhand (Annexure-IV)'!AC63 -> Recommended as per norms | X63: 21.6 | Y63: =SUM(Bokaro:Simdega!M63) -> 0 | Z63: FALSE
A64: (g) | B64: 2 Support Staff – (Accountant/ Assistant, Peon, Chowkidar) @ Rs. 5,000/- per month per staff | C64: ='Jharkhand (Annexure-IV)'!C64 -> 12 | D64: ='Jharkhand (Annexure-IV)'!D64 -> 14.4 | E64: ='Jharkhand (Annexure-IV)'!E64 -> 11 | F64: ='Jharkhand (Annexure-IV)'!F64 -> 4.83 | G64: ='Jharkhand (Annexure-IV)'!G64 -> 0.9166666667 | H64: ='Jharkhand (Annexure-IV)'!H64 -> 0.3354166667 | I64: ='Jharkhand (Annexure-IV)'!L64 -> 0 | J64: ='Jharkhand (Annexure-IV)'!N64 -> 0 | K64: ='Jharkhand (Annexure-IV)'!O64 -> 1.2 | L64: ='Jharkhand (Annexure-IV)'!P64 -> 18 | M64: ='Jharkhand (Annexure-IV)'!Q64 -> 21.6 | N64: ='Jharkhand (Annexure-IV)'!R64 -> 18 | O64: ='Jharkhand (Annexure-IV)'!S64 -> 21.6 | P64: ='Jharkhand (Annexure-IV)'!U64 -> 0 | Q64: ='Jharkhand (Annexure-IV)'!W64 -> 0 | R64: ='Jharkhand (Annexure-IV)'!X64 -> 1.2 | S64: ='Jharkhand (Annexure-IV)'!Y64 -> 18 | T64: ='Jharkhand (Annexure-IV)'!Z64 -> 21.6 | U64: ='Jharkhand (Annexure-IV)'!AA64 -> 18 | V64: ='Jharkhand (Annexure-IV)'!AB64 -> 21.6 | W64: ='Jharkhand (Annexure-IV)'!AC64 -> Recommended as per norms | X64: 21.6 | Y64: =SUM(Bokaro:Simdega!M64) -> 0 | Z64: FALSE
A65: (h) | B65: 1 Head cook @ Rs. 6,000/- per month and upto 2 Asstt. Cooks @ Rs. 4,500/- per month per cook | C65: ='Jharkhand (Annexure-IV)'!C65 -> 12 | D65: ='Jharkhand (Annexure-IV)'!D65 -> 21.6 | E65: ='Jharkhand (Annexure-IV)'!E65 -> 10 | F65: ='Jharkhand (Annexure-IV)'!F65 -> 6.24 | G65: ='Jharkhand (Annexure-IV)'!G65 -> 0.8333333333 | H65: ='Jharkhand (Annexure-IV)'!H65 -> 0.2888888889 | I65: ='Jharkhand (Annexure-IV)'!L65 -> 0 | J65: ='Jharkhand (Annexure-IV)'!N65 -> 0 | K65: ='Jharkhand (Annexure-IV)'!O65 -> 1.8 | L65: ='Jharkhand (Annexure-IV)'!P65 -> 18 | M65: ='Jharkhand (Annexure-IV)'!Q65 -> 32.4 | N65: ='Jharkhand (Annexure-IV)'!R65 -> 18 | O65: ='Jharkhand (Annexure-IV)'!S65 -> 32.4 | P65: ='Jharkhand (Annexure-IV)'!U65 -> 0 | Q65: ='Jharkhand (Annexure-IV)'!W65 -> 0 | R65: ='Jharkhand (Annexure-IV)'!X65 -> 1.8 | S65: ='Jharkhand (Annexure-IV)'!Y65 -> 18 | T65: ='Jharkhand (Annexure-IV)'!Z65 -> 32.4 | U65: ='Jharkhand (Annexure-IV)'!AA65 -> 18 | V65: ='Jharkhand (Annexure-IV)'!AB65 -> 32.4 | W65: ='Jharkhand (Annexure-IV)'!AC65 -> Recommended as per norms | X65: 32.4 | Y65: =SUM(Bokaro:Simdega!M65) -> 0 | Z65: FALSE
A66: 2.27 | B66: Specific skill training per child @ Rs.1000/- per annum | C66: ='Jharkhand (Annexure-IV)'!C66 -> 700 | D66: ='Jharkhand (Annexure-IV)'!D66 -> 7 | E66: ='Jharkhand (Annexure-IV)'!E66 -> 700 | F66: ='Jharkhand (Annexure-IV)'!F66 -> 3.55 | G66: ='Jharkhand (Annexure-IV)'!G66 -> 1 | H66: ='Jharkhand (Annexure-IV)'!H66 -> 0.5071428571 | I66: ='Jharkhand (Annexure-IV)'!L66 -> 0 | J66: ='Jharkhand (Annexure-IV)'!N66 -> 0 | K66: ='Jharkhand (Annexure-IV)'!O66 -> 0.01 | L66: ='Jharkhand (Annexure-IV)'!P66 -> 1800 | M66: ='Jharkhand (Annexure-IV)'!Q66 -> 18 | N66: ='Jharkhand (Annexure-IV)'!R66 -> 1800 | O66: ='Jharkhand (Annexure-IV)'!S66 -> 18 | P66: ='Jharkhand (Annexure-IV)'!U66 -> 0 | Q66: ='Jharkhand (Annexure-IV)'!W66 -> 0 | R66: ='Jharkhand (Annexure-IV)'!X66 -> 0.01 | S66: ='Jharkhand (Annexure-IV)'!Y66 -> 1800 | T66: ='Jharkhand (Annexure-IV)'!Z66 -> 18 | U66: ='Jharkhand (Annexure-IV)'!AA66 -> 1800 | V66: ='Jharkhand (Annexure-IV)'!AB66 -> 18 | W66: ='Jharkhand (Annexure-IV)'!AC66 -> Recommended as per norms | X66: 18 | Y66: =SUM(Bokaro:Simdega!M66) -> 0 | Z66: FALSE
A67: 2.28 | B67: Electricity / water charges per child @Rs.1000/- per annum | C67: ='Jharkhand (Annexure-IV)'!C67 -> 1200 | D67: ='Jharkhand (Annexure-IV)'!D67 -> 12 | E67: ='Jharkhand (Annexure-IV)'!E67 -> 1200 | F67: ='Jharkhand (Annexure-IV)'!F67 -> 8.64 | G67: ='Jharkhand (Annexure-IV)'!G67 -> 1 | H67: ='Jharkhand (Annexure-IV)'!H67 -> 0.72 | I67: ='Jharkhand (Annexure-IV)'!L67 -> 0 | J67: ='Jharkhand (Annexure-IV)'!N67 -> 0 | K67: ='Jharkhand (Annexure-IV)'!O67 -> 0.01 | L67: ='Jharkhand (Annexure-IV)'!P67 -> 1800 | M67: ='Jharkhand (Annexure-IV)'!Q67 -> 18 | N67: ='Jharkhand (Annexure-IV)'!R67 -> 1800 | O67: ='Jharkhand (Annexure-IV)'!S67 -> 18 | P67: ='Jharkhand (Annexure-IV)'!U67 -> 0 | Q67: ='Jharkhand (Annexure-IV)'!W67 -> 0 | R67: ='Jharkhand (Annexure-IV)'!X67 -> 0.01 | S67: ='Jharkhand (Annexure-IV)'!Y67 -> 1800 | T67: ='Jharkhand (Annexure-IV)'!Z67 -> 18 | U67: ='Jharkhand (Annexure-IV)'!AA67 -> 1800 | V67: ='Jharkhand (Annexure-IV)'!AB67 -> 18 | W67: ='Jharkhand (Annexure-IV)'!AC67 -> Recommended as per norms | X67: 18 | Y67: =SUM(Bokaro:Simdega!M67) -> 0 | Z67: FALSE
A68: 2.29 | B68: Medical care/contingencies @ Rs.1250/- per child per annum | C68: ='Jharkhand (Annexure-IV)'!C68 -> 1200 | D68: ='Jharkhand (Annexure-IV)'!D68 -> 15 | E68: ='Jharkhand (Annexure-IV)'!E68 -> 1200 | F68: ='Jharkhand (Annexure-IV)'!F68 -> 8.5025 | G68: ='Jharkhand (Annexure-IV)'!G68 -> 1 | H68: ='Jharkhand (Annexure-IV)'!H68 -> 0.5668333333 | I68: ='Jharkhand (Annexure-IV)'!L68 -> 0 | J68: ='Jharkhand (Annexure-IV)'!N68 -> 0 | K68: ='Jharkhand (Annexure-IV)'!O68 -> 0.0125 | L68: ='Jharkhand (Annexure-IV)'!P68 -> 1800 | M68: ='Jharkhand (Annexure-IV)'!Q68 -> 22.5 | N68: ='Jharkhand (Annexure-IV)'!R68 -> 1800 | O68: ='Jharkhand (Annexure-IV)'!S68 -> 22.5 | P68: ='Jharkhand (Annexure-IV)'!U68 -> 0 | Q68: ='Jharkhand (Annexure-IV)'!W68 -> 0 | R68: ='Jharkhand (Annexure-IV)'!X68 -> 0.0125 | S68: ='Jharkhand (Annexure-IV)'!Y68 -> 1800 | T68: ='Jharkhand (Annexure-IV)'!Z68 -> 22.5 | U68: ='Jharkhand (Annexure-IV)'!AA68 -> 1800 | V68: ='Jharkhand (Annexure-IV)'!AB68 -> 22.5 | W68: ='Jharkhand (Annexure-IV)'!AC68 -> Recommended as per norms | X68: 22.5 | Y68: =SUM(Bokaro:Simdega!M68) -> 0 | Z68: FALSE
A69: 2.3 | B69: Maintenance @ Rs.750/- per child per annum | C69: ='Jharkhand (Annexure-IV)'!C69 -> 1200 | D69: ='Jharkhand (Annexure-IV)'!D69 -> 9 | E69: ='Jharkhand (Annexure-IV)'!E69 -> 1200 | F69: ='Jharkhand (Annexure-IV)'!F69 -> 7.1675 | G69: ='Jharkhand (Annexure-IV)'!G69 -> 1 | H69: ='Jharkhand (Annexure-IV)'!H69 -> 0.7963888889 | I69: ='Jharkhand (Annexure-IV)'!L69 -> 0 | J69: ='Jharkhand (Annexure-IV)'!N69 -> 0 | K69: ='Jharkhand (Annexure-IV)'!O69 -> 0.0075 | L69: ='Jharkhand (Annexure-IV)'!P69 -> 1800 | M69: ='Jharkhand (Annexure-IV)'!Q69 -> 13.5 | N69: ='Jharkhand (Annexure-IV)'!R69 -> 1800 | O69: ='Jharkhand (Annexure-IV)'!S69 -> 13.5 | P69: ='Jharkhand (Annexure-IV)'!U69 -> 0 | Q69: ='Jharkhand (Annexure-IV)'!W69 -> 0 | R69: ='Jharkhand (Annexure-IV)'!X69 -> 0.0075 | S69: ='Jharkhand (Annexure-IV)'!Y69 -> 1800 | T69: ='Jharkhand (Annexure-IV)'!Z69 -> 13.5 | U69: ='Jharkhand (Annexure-IV)'!AA69 -> 1800 | V69: ='Jharkhand (Annexure-IV)'!AB69 -> 13.5 | W69: ='Jharkhand (Annexure-IV)'!AC69 -> Recommended as per norms | X69: 13.5 | Y69: =SUM(Bokaro:Simdega!M69) -> 0 | Z69: FALSE
A70: 2.31 | B70: Miscellaneous @ Rs.750/- per child per annum | C70: ='Jharkhand (Annexure-IV)'!C70 -> 1200 | D70: ='Jharkhand (Annexure-IV)'!D70 -> 9 | E70: ='Jharkhand (Annexure-IV)'!E70 -> 1200 | F70: ='Jharkhand (Annexure-IV)'!F70 -> 7.3475 | G70: ='Jharkhand (Annexure-IV)'!G70 -> 1 | H70: ='Jharkhand (Annexure-IV)'!H70 -> 0.8163888889 | I70: ='Jharkhand (Annexure-IV)'!L70 -> 0 | J70: ='Jharkhand (Annexure-IV)'!N70 -> 0 | K70: ='Jharkhand (Annexure-IV)'!O70 -> 0.0075 | L70: ='Jharkhand (Annexure-IV)'!P70 -> 1800 | M70: ='Jharkhand (Annexure-IV)'!Q70 -> 13.5 | N70: ='Jharkhand (Annexure-IV)'!R70 -> 1800 | O70: ='Jharkhand (Annexure-IV)'!S70 -> 13.5 | P70: ='Jharkhand (Annexure-IV)'!U70 -> 0 | Q70: ='Jharkhand (Annexure-IV)'!W70 -> 0 | R70: ='Jharkhand (Annexure-IV)'!X70 -> 0.0075 | S70: ='Jharkhand (Annexure-IV)'!Y70 -> 1800 | T70: ='Jharkhand (Annexure-IV)'!Z70 -> 13.5 | U70: ='Jharkhand (Annexure-IV)'!AA70 -> 1800 | V70: ='Jharkhand (Annexure-IV)'!AB70 -> 13.5 | W70: ='Jharkhand (Annexure-IV)'!AC70 -> Recommended as per norms | X70: 13.5 | Y70: =SUM(Bokaro:Simdega!M70) -> 0 | Z70: FALSE
A71: 2.32 | B71: Preparatory camps @ Rs.200/- per child per annum | C71: ='Jharkhand (Annexure-IV)'!C71 -> 0 | D71: ='Jharkhand (Annexure-IV)'!D71 -> 0 | E71: ='Jharkhand (Annexure-IV)'!E71 -> 0 | F71: ='Jharkhand (Annexure-IV)'!F71 -> 0 | G71: ='Jharkhand (Annexure-IV)'!G71 ->  | H71: ='Jharkhand (Annexure-IV)'!H71 ->  | I71: ='Jharkhand (Annexure-IV)'!L71 -> 0 | J71: ='Jharkhand (Annexure-IV)'!N71 -> 0 | K71: ='Jharkhand (Annexure-IV)'!O71 -> 0.002 | L71: ='Jharkhand (Annexure-IV)'!P71 -> 1800 | M71: ='Jharkhand (Annexure-IV)'!Q71 -> 3.6 | N71: ='Jharkhand (Annexure-IV)'!R71 -> 1800 | O71: ='Jharkhand (Annexure-IV)'!S71 -> 3.6 | P71: ='Jharkhand (Annexure-IV)'!U71 -> 0 | Q71: ='Jharkhand (Annexure-IV)'!W71 -> 0 | R71: ='Jharkhand (Annexure-IV)'!X71 -> 0.002 | S71: ='Jharkhand (Annexure-IV)'!Y71 -> 1800 | T71: ='Jharkhand (Annexure-IV)'!Z71 -> 3.6 | U71: ='Jharkhand (Annexure-IV)'!AA71 -> 1800 | V71: ='Jharkhand (Annexure-IV)'!AB71 -> 3.6 | W71: ='Jharkhand (Annexure-IV)'!AC71 -> Recommended as per norms | X71: 3.6 | Y71: =SUM(Bokaro:Simdega!M71) -> 0 | Z71: FALSE
A72: 2.33 | B72: P.T.A / school functions @ Rs.200/- per child per annum | C72: ='Jharkhand (Annexure-IV)'!C72 -> 0 | D72: ='Jharkhand (Annexure-IV)'!D72 -> 0 | E72: ='Jharkhand (Annexure-IV)'!E72 -> 0 | F72: ='Jharkhand (Annexure-IV)'!F72 -> 0 | G72: ='Jharkhand (Annexure-IV)'!G72 ->  | H72: ='Jharkhand (Annexure-IV)'!H72 ->  | I72: ='Jharkhand (Annexure-IV)'!L72 -> 0 | J72: ='Jharkhand (Annexure-IV)'!N72 -> 0 | K72: ='Jharkhand (Annexure-IV)'!O72 -> 0.002 | L72: ='Jharkhand (Annexure-IV)'!P72 -> 1800 | M72: ='Jharkhand (Annexure-IV)'!Q72 -> 3.6 | N72: ='Jharkhand (Annexure-IV)'!R72 -> 1800 | O72: ='Jharkhand (Annexure-IV)'!S72 -> 3.6 | P72: ='Jharkhand (Annexure-IV)'!U72 -> 0 | Q72: ='Jharkhand (Annexure-IV)'!W72 -> 0 | R72: ='Jharkhand (Annexure-IV)'!X72 -> 0.002 | S72: ='Jharkhand (Annexure-IV)'!Y72 -> 1800 | T72: ='Jharkhand (Annexure-IV)'!Z72 -> 3.6 | U72: ='Jharkhand (Annexure-IV)'!AA72 -> 1800 | V72: ='Jharkhand (Annexure-IV)'!AB72 -> 3.6 | W72: ='Jharkhand (Annexure-IV)'!AC72 -> Recommended as per norms | X72: 3.6 | Y72: =SUM(Bokaro:Simdega!M72) -> 0 | Z72: FALSE
A73: 2.34 | B73: Provision of Rent @ Rs. 6000/- per child per annum | C73: ='Jharkhand (Annexure-IV)'!C73 -> 0 | D73: ='Jharkhand (Annexure-IV)'!D73 -> 0 | E73: ='Jharkhand (Annexure-IV)'!E73 -> 0 | F73: ='Jharkhand (Annexure-IV)'!F73 -> 0 | G73: ='Jharkhand (Annexure-IV)'!G73 ->  | H73: ='Jharkhand (Annexure-IV)'!H73 ->  | I73: ='Jharkhand (Annexure-IV)'!L73 -> 0 | J73: ='Jharkhand (Annexure-IV)'!N73 -> 0 | K73: ='Jharkhand (Annexure-IV)'!O73 -> 0 | L73: ='Jharkhand (Annexure-IV)'!P73 -> 0 | M73: ='Jharkhand (Annexure-IV)'!Q73 -> 0 | N73: ='Jharkhand (Annexure-IV)'!R73 -> 0 | O73: ='Jharkhand (Annexure-IV)'!S73 -> 0 | P73: ='Jharkhand (Annexure-IV)'!U73 -> 0 | Q73: ='Jharkhand (Annexure-IV)'!W73 -> 0 | R73: ='Jharkhand (Annexure-IV)'!X73 -> 0 | S73: ='Jharkhand (Annexure-IV)'!Y73 -> 0 | T73: ='Jharkhand (Annexure-IV)'!Z73 -> 0 | U73: ='Jharkhand (Annexure-IV)'!AA73 -> 0 | V73: ='Jharkhand (Annexure-IV)'!AB73 -> 0 | W73: ='Jharkhand (Annexure-IV)'!AC73 -> 0 | X73: 0 | Y73: =SUM(Bokaro:Simdega!M73) -> 0 | Z73: TRUE
A74: 2.35 | B74: Capacity Building @ Rs.500/- per child per annum | C74: ='Jharkhand (Annexure-IV)'!C74 -> 1200 | D74: ='Jharkhand (Annexure-IV)'!D74 -> 6 | E74: ='Jharkhand (Annexure-IV)'!E74 -> 1200 | F74: ='Jharkhand (Annexure-IV)'!F74 -> 3.47 | G74: ='Jharkhand (Annexure-IV)'!G74 -> 1 | H74: ='Jharkhand (Annexure-IV)'!H74 -> 0.5783333333 | I74: ='Jharkhand (Annexure-IV)'!L74 -> 0 | J74: ='Jharkhand (Annexure-IV)'!N74 -> 0 | K74: ='Jharkhand (Annexure-IV)'!O74 -> 0.005 | L74: ='Jharkhand (Annexure-IV)'!P74 -> 1800 | M74: ='Jharkhand (Annexure-IV)'!Q74 -> 9 | N74: ='Jharkhand (Annexure-IV)'!R74 -> 1800 | O74: ='Jharkhand (Annexure-IV)'!S74 -> 9 | P74: ='Jharkhand (Annexure-IV)'!U74 -> 0 | Q74: ='Jharkhand (Annexure-IV)'!W74 -> 0 | R74: ='Jharkhand (Annexure-IV)'!X74 -> 0.005 | S74: ='Jharkhand (Annexure-IV)'!Y74 -> 1800 | T74: ='Jharkhand (Annexure-IV)'!Z74 -> 9 | U74: ='Jharkhand (Annexure-IV)'!AA74 -> 1800 | V74: ='Jharkhand (Annexure-IV)'!AB74 -> 9 | W74: ='Jharkhand (Annexure-IV)'!AC74 -> Recommended as per norms | X74: 9 | Y74: =SUM(Bokaro:Simdega!M74) -> 0 | Z74: FALSE
A75: 2.36 | B75: Physical / Self Defence training @ Rs. 200/- per child per annum. | C75: ='Jharkhand (Annexure-IV)'!C75 -> 700 | D75: ='Jharkhand (Annexure-IV)'!D75 -> 1.4 | E75: ='Jharkhand (Annexure-IV)'!E75 -> 700 | F75: ='Jharkhand (Annexure-IV)'!F75 -> 0.8 | G75: ='Jharkhand (Annexure-IV)'!G75 -> 1 | H75: ='Jharkhand (Annexure-IV)'!H75 -> 0.5714285714 | I75: ='Jharkhand (Annexure-IV)'!L75 -> 0 | J75: ='Jharkhand (Annexure-IV)'!N75 -> 0 | K75: ='Jharkhand (Annexure-IV)'!O75 -> 0.002 | L75: ='Jharkhand (Annexure-IV)'!P75 ->  | M75: ='Jharkhand (Annexure-IV)'!Q75 ->  | N75: ='Jharkhand (Annexure-IV)'!R75 ->  | O75: ='Jharkhand (Annexure-IV)'!S75 ->  | P75: ='Jharkhand (Annexure-IV)'!U75 -> 0 | Q75: ='Jharkhand (Annexure-IV)'!W75 -> 0 | R75: ='Jharkhand (Annexure-IV)'!X75 -> 0.002 | S75: ='Jharkhand (Annexure-IV)'!Y75 -> 1800 | T75: ='Jharkhand (Annexure-IV)'!Z75 -> 3.6 | U75: ='Jharkhand (Annexure-IV)'!AA75 -> 1800 | V75: ='Jharkhand (Annexure-IV)'!AB75 -> 3.6 | W75: ='Jharkhand (Annexure-IV)'!AC75 -> Recommended as per norms | Y75: =SUM(Bokaro:Simdega!M75) -> 0
B76: Sub Total (Recurring) | C76: ='Jharkhand (Annexure-IV)'!C76 -> 12 | D76: ='Jharkhand (Annexure-IV)'!D76 -> 501.7 | E76: ='Jharkhand (Annexure-IV)'!E76 -> 12 | F76: ='Jharkhand (Annexure-IV)'!F76 -> 213.4275 | G76: ='Jharkhand (Annexure-IV)'!G76 -> 1 | H76: ='Jharkhand (Annexure-IV)'!H76 -> 0.4254086107 | I76: ='Jharkhand (Annexure-IV)'!L76 -> 0 | J76: ='Jharkhand (Annexure-IV)'!N76 -> 0 | K76: ='Jharkhand (Annexure-IV)'!O76 -> 0 | L76: ='Jharkhand (Annexure-IV)'!P76 -> 18 | M76: ='Jharkhand (Annexure-IV)'!Q76 ->  | N76: ='Jharkhand (Annexure-IV)'!R76 -> 18 | O76: ='Jharkhand (Annexure-IV)'!S76 ->  | P76: ='Jharkhand (Annexure-IV)'!U76 -> 0 | Q76: ='Jharkhand (Annexure-IV)'!W76 -> 0 | R76: ='Jharkhand (Annexure-IV)'!X76 -> 0 | S76: ='Jharkhand (Annexure-IV)'!Y76 -> 21708 | T76: ='Jharkhand (Annexure-IV)'!Z76 -> 846.9 | U76: ='Jharkhand (Annexure-IV)'!AA76 -> 21708 | V76: ='Jharkhand (Annexure-IV)'!AB76 -> 846.9 | W76: ='Jharkhand (Annexure-IV)'!AC76 -> 0 | X76: 0 | Z76: TRUE
B77: Total (Recurring + Non Recurring) | C77: ='Jharkhand (Annexure-IV)'!C77 -> 12 | D77: ='Jharkhand (Annexure-IV)'!D77 -> 507.7 | E77: ='Jharkhand (Annexure-IV)'!E77 -> 12 | F77: ='Jharkhand (Annexure-IV)'!F77 -> 218.6775 | G77: ='Jharkhand (Annexure-IV)'!G77 -> 1 | H77: ='Jharkhand (Annexure-IV)'!H77 -> 0.430721883 | I77: ='Jharkhand (Annexure-IV)'!L77 -> 0.75 | J77: ='Jharkhand (Annexure-IV)'!N77 -> 0 | K77: ='Jharkhand (Annexure-IV)'!O77 -> 0 | L77: ='Jharkhand (Annexure-IV)'!P77 -> 18 | M77: ='Jharkhand (Annexure-IV)'!Q77 ->  | N77: ='Jharkhand (Annexure-IV)'!R77 -> 18 | O77: ='Jharkhand (Annexure-IV)'!S77 ->  | P77: ='Jharkhand (Annexure-IV)'!U77 -> 0 | Q77: ='Jharkhand (Annexure-IV)'!W77 -> 0 | R77: ='Jharkhand (Annexure-IV)'!X77 -> 0 | S77: ='Jharkhand (Annexure-IV)'!Y77 -> 21708 | T77: ='Jharkhand (Annexure-IV)'!Z77 -> 846.9 | U77: ='Jharkhand (Annexure-IV)'!AA77 -> 21708 | V77: ='Jharkhand (Annexure-IV)'!AB77 -> 846.9 | W77: ='Jharkhand (Annexure-IV)'!AC77 -> 0 | X77: 0 | Z77: TRUE
B78: Total (50 + 100 children) | C78: ='Jharkhand (Annexure-IV)'!C78 -> 12 | D78: ='Jharkhand (Annexure-IV)'!D78 -> 507.7 | E78: ='Jharkhand (Annexure-IV)'!E78 -> 12 | F78: ='Jharkhand (Annexure-IV)'!F78 -> 218.6775 | G78: ='Jharkhand (Annexure-IV)'!G78 -> 1 | H78: ='Jharkhand (Annexure-IV)'!H78 -> 0.430721883 | I78: ='Jharkhand (Annexure-IV)'!L78 -> 0.75 | J78: ='Jharkhand (Annexure-IV)'!N78 -> 0 | K78: ='Jharkhand (Annexure-IV)'!O78 -> 0 | L78: ='Jharkhand (Annexure-IV)'!P78 -> 18 | M78: ='Jharkhand (Annexure-IV)'!Q78 ->  | N78: ='Jharkhand (Annexure-IV)'!R78 -> 18 | O78: ='Jharkhand (Annexure-IV)'!S78 ->  | P78: ='Jharkhand (Annexure-IV)'!U78 -> 0 | Q78: ='Jharkhand (Annexure-IV)'!W78 -> 0 | R78: ='Jharkhand (Annexure-IV)'!X78 -> 0 | S78: ='Jharkhand (Annexure-IV)'!Y78 -> 21708 | T78: ='Jharkhand (Annexure-IV)'!Z78 -> 846.9 | U78: ='Jharkhand (Annexure-IV)'!AA78 -> 21708 | V78: ='Jharkhand (Annexure-IV)'!AB78 -> 846.9 | W78: ='Jharkhand (Annexure-IV)'!AC78 -> 0 | X78: 0 | Z78: TRUE
A79: 3 | B79: Residential Hostel for specific category of children | C79: ='Jharkhand (Annexure-IV)'!C79 -> 0 | D79: ='Jharkhand (Annexure-IV)'!D79 -> 0 | E79: ='Jharkhand (Annexure-IV)'!E79 -> 0 | F79: ='Jharkhand (Annexure-IV)'!F79 -> 0 | G79: ='Jharkhand (Annexure-IV)'!G79 ->  | H79: ='Jharkhand (Annexure-IV)'!H79 ->  | I79: ='Jharkhand (Annexure-IV)'!L79 -> 0 | J79: ='Jharkhand (Annexure-IV)'!N79 -> 0 | K79: ='Jharkhand (Annexure-IV)'!O79 -> 0 | L79: ='Jharkhand (Annexure-IV)'!P79 -> 0 | M79: ='Jharkhand (Annexure-IV)'!Q79 -> 0 | N79: ='Jharkhand (Annexure-IV)'!R79 -> 0 | O79: ='Jharkhand (Annexure-IV)'!S79 -> 0 | P79: ='Jharkhand (Annexure-IV)'!U79 -> 0 | Q79: ='Jharkhand (Annexure-IV)'!W79 -> 0 | R79: ='Jharkhand (Annexure-IV)'!X79 -> 0 | S79: ='Jharkhand (Annexure-IV)'!Y79 -> 0 | T79: ='Jharkhand (Annexure-IV)'!Z79 -> 0 | U79: ='Jharkhand (Annexure-IV)'!AA79 -> 0 | V79: ='Jharkhand (Annexure-IV)'!AB79 -> 0 | W79: ='Jharkhand (Annexure-IV)'!AC79 -> 0 | X79: 0 | Y79: =SUM(Bokaro:Simdega!M79) -> 0 | Z79: TRUE
A80: (A) | B80: 50 children | C80: ='Jharkhand (Annexure-IV)'!C80 -> 0 | D80: ='Jharkhand (Annexure-IV)'!D80 -> 0 | E80: ='Jharkhand (Annexure-IV)'!E80 -> 0 | F80: ='Jharkhand (Annexure-IV)'!F80 -> 0 | G80: ='Jharkhand (Annexure-IV)'!G80 ->  | H80: ='Jharkhand (Annexure-IV)'!H80 ->  | I80: ='Jharkhand (Annexure-IV)'!L80 -> 0 | J80: ='Jharkhand (Annexure-IV)'!N80 -> 0 | K80: ='Jharkhand (Annexure-IV)'!O80 -> 0 | L80: ='Jharkhand (Annexure-IV)'!P80 -> 0 | M80: ='Jharkhand (Annexure-IV)'!Q80 -> 0 | N80: ='Jharkhand (Annexure-IV)'!R80 -> 0 | O80: ='Jharkhand (Annexure-IV)'!S80 -> 0 | P80: ='Jharkhand (Annexure-IV)'!U80 -> 0 | Q80: ='Jharkhand (Annexure-IV)'!W80 -> 0 | R80: ='Jharkhand (Annexure-IV)'!X80 -> 0 | S80: ='Jharkhand (Annexure-IV)'!Y80 -> 0 | T80: ='Jharkhand (Annexure-IV)'!Z80 -> 0 | U80: ='Jharkhand (Annexure-IV)'!AA80 -> 0 | V80: ='Jharkhand (Annexure-IV)'!AB80 -> 0 | W80: ='Jharkhand (Annexure-IV)'!AC80 -> 0 | X80: 0 | Y80: =SUM(Bokaro:Simdega!M80) -> 0 | Z80: TRUE
B81: Non-recurring (one time grant) | C81: ='Jharkhand (Annexure-IV)'!C81 -> 0 | D81: ='Jharkhand (Annexure-IV)'!D81 -> 0 | E81: ='Jharkhand (Annexure-IV)'!E81 -> 0 | F81: ='Jharkhand (Annexure-IV)'!F81 -> 0 | G81: ='Jharkhand (Annexure-IV)'!G81 ->  | H81: ='Jharkhand (Annexure-IV)'!H81 ->  | I81: ='Jharkhand (Annexure-IV)'!L81 -> 0 | J81: ='Jharkhand (Annexure-IV)'!N81 -> 0 | K81: ='Jharkhand (Annexure-IV)'!O81 -> 0 | L81: ='Jharkhand (Annexure-IV)'!P81 -> 0 | M81: ='Jharkhand (Annexure-IV)'!Q81 -> 0 | N81: ='Jharkhand (Annexure-IV)'!R81 -> 0 | O81: ='Jharkhand (Annexure-IV)'!S81 -> 0 | P81: ='Jharkhand (Annexure-IV)'!U81 -> 0 | Q81: ='Jharkhand (Annexure-IV)'!W81 -> 0 | R81: ='Jharkhand (Annexure-IV)'!X81 -> 0 | S81: ='Jharkhand (Annexure-IV)'!Y81 -> 0 | T81: ='Jharkhand (Annexure-IV)'!Z81 -> 0 | U81: ='Jharkhand (Annexure-IV)'!AA81 -> 0 | V81: ='Jharkhand (Annexure-IV)'!AB81 -> 0 | W81: ='Jharkhand (Annexure-IV)'!AC81 -> 0 | X81: =(L81*K81)+P81+Q81 -> 0 | Y81: =SUM(Bokaro:Simdega!M81) -> 0 | Z81: TRUE
A82: 3.01 | B82: Furniture/ Equipment (including kitchen) | C82: ='Jharkhand (Annexure-IV)'!C82 -> 0 | D82: ='Jharkhand (Annexure-IV)'!D82 -> 0 | E82: ='Jharkhand (Annexure-IV)'!E82 -> 0 | F82: ='Jharkhand (Annexure-IV)'!F82 -> 0 | G82: ='Jharkhand (Annexure-IV)'!G82 ->  | H82: ='Jharkhand (Annexure-IV)'!H82 ->  | I82: ='Jharkhand (Annexure-IV)'!L82 -> 0 | J82: ='Jharkhand (Annexure-IV)'!N82 -> 0 | K82: ='Jharkhand (Annexure-IV)'!O82 -> 2 | L82: ='Jharkhand (Annexure-IV)'!P82 -> 0 | M82: ='Jharkhand (Annexure-IV)'!Q82 -> 0 | N82: ='Jharkhand (Annexure-IV)'!R82 -> 0 | O82: ='Jharkhand (Annexure-IV)'!S82 -> 0 | P82: ='Jharkhand (Annexure-IV)'!U82 -> 0 | Q82: ='Jharkhand (Annexure-IV)'!W82 -> 0 | R82: ='Jharkhand (Annexure-IV)'!X82 -> 0 | S82: ='Jharkhand (Annexure-IV)'!Y82 -> 0 | T82: ='Jharkhand (Annexure-IV)'!Z82 -> 0 | U82: ='Jharkhand (Annexure-IV)'!AA82 -> 0 | V82: ='Jharkhand (Annexure-IV)'!AB82 -> 0 | W82: ='Jharkhand (Annexure-IV)'!AC82 -> 0 | X82: 0 | Y82: =SUM(Bokaro:Simdega!M82) -> 0 | Z82: TRUE
A83: =+A82+0.01 -> 3.02 | B83: TLM and equipment including library books | C83: ='Jharkhand (Annexure-IV)'!C83 -> 0 | D83: ='Jharkhand (Annexure-IV)'!D83 -> 0 | E83: ='Jharkhand (Annexure-IV)'!E83 -> 0 | F83: ='Jharkhand (Annexure-IV)'!F83 -> 0 | G83: ='Jharkhand (Annexure-IV)'!G83 ->  | H83: ='Jharkhand (Annexure-IV)'!H83 ->  | I83: ='Jharkhand (Annexure-IV)'!L83 -> 0 | J83: ='Jharkhand (Annexure-IV)'!N83 -> 0 | K83: ='Jharkhand (Annexure-IV)'!O83 -> 3 | L83: ='Jharkhand (Annexure-IV)'!P83 -> 0 | M83: ='Jharkhand (Annexure-IV)'!Q83 -> 0 | N83: ='Jharkhand (Annexure-IV)'!R83 -> 0 | O83: ='Jharkhand (Annexure-IV)'!S83 -> 0 | P83: ='Jharkhand (Annexure-IV)'!U83 -> 0 | Q83: ='Jharkhand (Annexure-IV)'!W83 -> 0 | R83: ='Jharkhand (Annexure-IV)'!X83 -> 0 | S83: ='Jharkhand (Annexure-IV)'!Y83 -> 0 | T83: ='Jharkhand (Annexure-IV)'!Z83 -> 0 | U83: ='Jharkhand (Annexure-IV)'!AA83 -> 0 | V83: ='Jharkhand (Annexure-IV)'!AB83 -> 0 | W83: ='Jharkhand (Annexure-IV)'!AC83 -> 0 | X83: 0 | Y83: =SUM(Bokaro:Simdega!M83) -> 0 | Z83: TRUE
A84: =+A83+0.01 -> 3.03 | B84: Bedding (new) | C84: ='Jharkhand (Annexure-IV)'!C84 -> 0 | D84: ='Jharkhand (Annexure-IV)'!D84 -> 0 | E84: ='Jharkhand (Annexure-IV)'!E84 -> 0 | F84: ='Jharkhand (Annexure-IV)'!F84 -> 0 | G84: ='Jharkhand (Annexure-IV)'!G84 ->  | H84: ='Jharkhand (Annexure-IV)'!H84 ->  | I84: ='Jharkhand (Annexure-IV)'!L84 -> 0 | J84: ='Jharkhand (Annexure-IV)'!N84 -> 0 | K84: ='Jharkhand (Annexure-IV)'!O84 -> 0.375 | L84: ='Jharkhand (Annexure-IV)'!P84 -> 0 | M84: ='Jharkhand (Annexure-IV)'!Q84 -> 0 | N84: ='Jharkhand (Annexure-IV)'!R84 -> 0 | O84: ='Jharkhand (Annexure-IV)'!S84 -> 0 | P84: ='Jharkhand (Annexure-IV)'!U84 -> 0 | Q84: ='Jharkhand (Annexure-IV)'!W84 -> 0 | R84: ='Jharkhand (Annexure-IV)'!X84 -> 0 | S84: ='Jharkhand (Annexure-IV)'!Y84 -> 0 | T84: ='Jharkhand (Annexure-IV)'!Z84 -> 0 | U84: ='Jharkhand (Annexure-IV)'!AA84 -> 0 | V84: ='Jharkhand (Annexure-IV)'!AB84 -> 0 | W84: ='Jharkhand (Annexure-IV)'!AC84 -> 0 | X84: 0 | Y84: =SUM(Bokaro:Simdega!M84) -> 0 | Z84: TRUE
A85: =+A84+0.01 -> 3.04 | B85: Replacement of bedding (once in 3 years) | C85: ='Jharkhand (Annexure-IV)'!C85 -> 0 | D85: ='Jharkhand (Annexure-IV)'!D85 -> 0 | E85: ='Jharkhand (Annexure-IV)'!E85 -> 0 | F85: ='Jharkhand (Annexure-IV)'!F85 -> 0 | G85: ='Jharkhand (Annexure-IV)'!G85 ->  | H85: ='Jharkhand (Annexure-IV)'!H85 ->  | I85: ='Jharkhand (Annexure-IV)'!L85 -> 0 | J85: ='Jharkhand (Annexure-IV)'!N85 -> 0 | K85: ='Jharkhand (Annexure-IV)'!O85 -> 0 | L85: ='Jharkhand (Annexure-IV)'!P85 -> 0 | M85: ='Jharkhand (Annexure-IV)'!Q85 -> 0 | N85: ='Jharkhand (Annexure-IV)'!R85 -> 0 | O85: ='Jharkhand (Annexure-IV)'!S85 -> 0 | P85: ='Jharkhand (Annexure-IV)'!U85 -> 0 | Q85: ='Jharkhand (Annexure-IV)'!W85 -> 0 | R85: ='Jharkhand (Annexure-IV)'!X85 -> 0 | S85: ='Jharkhand (Annexure-IV)'!Y85 -> 0 | T85: ='Jharkhand (Annexure-IV)'!Z85 -> 0 | U85: ='Jharkhand (Annexure-IV)'!AA85 -> 0 | V85: ='Jharkhand (Annexure-IV)'!AB85 -> 0 | W85: ='Jharkhand (Annexure-IV)'!AC85 -> 0 | X85: 0 | Y85: =SUM(Bokaro:Simdega!M85) -> 0 | Z85: TRUE
B86: Sub Total (Non Recurring) | C86: ='Jharkhand (Annexure-IV)'!C86 -> 0 | D86: ='Jharkhand (Annexure-IV)'!D86 -> 0 | E86: ='Jharkhand (Annexure-IV)'!E86 -> 0 | F86: ='Jharkhand (Annexure-IV)'!F86 -> 0 | G86: ='Jharkhand (Annexure-IV)'!G86 ->  | H86: ='Jharkhand (Annexure-IV)'!H86 ->  | I86: ='Jharkhand (Annexure-IV)'!L86 -> 0 | J86: ='Jharkhand (Annexure-IV)'!N86 -> 0 | K86: ='Jharkhand (Annexure-IV)'!O86 -> 0 | L86: ='Jharkhand (Annexure-IV)'!P86 -> 0 | M86: ='Jharkhand (Annexure-IV)'!Q86 -> 0 | N86: ='Jharkhand (Annexure-IV)'!R86 -> 0 | O86: ='Jharkhand (Annexure-IV)'!S86 -> 0 | P86: ='Jharkhand (Annexure-IV)'!U86 -> 0 | Q86: ='Jharkhand (Annexure-IV)'!W86 -> 0 | R86: ='Jharkhand (Annexure-IV)'!X86 -> 0 | S86: ='Jharkhand (Annexure-IV)'!Y86 -> 0 | T86: ='Jharkhand (Annexure-IV)'!Z86 -> 0 | U86: ='Jharkhand (Annexure-IV)'!AA86 -> 0 | V86: ='Jharkhand (Annexure-IV)'!AB86 -> 0 | W86: ='Jharkhand (Annexure-IV)'!AC86 -> 0 | X86: 0 | Y86: =SUM(Bokaro:Simdega!M86) -> 0 | Z86: TRUE
B87: Recurring (50 children) | C87: ='Jharkhand (Annexure-IV)'!C87 -> 0 | D87: ='Jharkhand (Annexure-IV)'!D87 -> 0 | E87: ='Jharkhand (Annexure-IV)'!E87 -> 0 | F87: ='Jharkhand (Annexure-IV)'!F87 -> 0 | G87: ='Jharkhand (Annexure-IV)'!G87 ->  | H87: ='Jharkhand (Annexure-IV)'!H87 ->  | I87: ='Jharkhand (Annexure-IV)'!L87 -> 0 | J87: ='Jharkhand (Annexure-IV)'!N87 -> 0 | K87: ='Jharkhand (Annexure-IV)'!O87 -> 0 | L87: ='Jharkhand (Annexure-IV)'!P87 -> 0 | M87: ='Jharkhand (Annexure-IV)'!Q87 -> 0 | N87: ='Jharkhand (Annexure-IV)'!R87 -> 0 | O87: ='Jharkhand (Annexure-IV)'!S87 -> 0 | P87: ='Jharkhand (Annexure-IV)'!U87 -> 0 | Q87: ='Jharkhand (Annexure-IV)'!W87 -> 0 | R87: ='Jharkhand (Annexure-IV)'!X87 -> 0 | S87: ='Jharkhand (Annexure-IV)'!Y87 -> 0 | T87: ='Jharkhand (Annexure-IV)'!Z87 -> 0 | U87: ='Jharkhand (Annexure-IV)'!AA87 -> 0 | V87: ='Jharkhand (Annexure-IV)'!AB87 -> 0 | W87: ='Jharkhand (Annexure-IV)'!AC87 -> 0 | X87: 0 | Y87: =SUM(Bokaro:Simdega!M87) -> 0 | Z87: TRUE
A88: 3.05 | B88: Maintenance per child Per month @ Rs.1500/- | C88: ='Jharkhand (Annexure-IV)'!C88 -> 0 | D88: ='Jharkhand (Annexure-IV)'!D88 -> 0 | E88: ='Jharkhand (Annexure-IV)'!E88 -> 0 | F88: ='Jharkhand (Annexure-IV)'!F88 -> 0 | G88: ='Jharkhand (Annexure-IV)'!G88 ->  | H88: ='Jharkhand (Annexure-IV)'!H88 ->  | I88: ='Jharkhand (Annexure-IV)'!L88 -> 0 | J88: ='Jharkhand (Annexure-IV)'!N88 -> 0 | K88: ='Jharkhand (Annexure-IV)'!O88 -> 9 | L88: ='Jharkhand (Annexure-IV)'!P88 -> 0 | M88: ='Jharkhand (Annexure-IV)'!Q88 -> 0 | N88: ='Jharkhand (Annexure-IV)'!R88 -> 0 | O88: ='Jharkhand (Annexure-IV)'!S88 -> 0 | P88: ='Jharkhand (Annexure-IV)'!U88 -> 0 | Q88: ='Jharkhand (Annexure-IV)'!W88 -> 0 | R88: ='Jharkhand (Annexure-IV)'!X88 -> 0 | S88: ='Jharkhand (Annexure-IV)'!Y88 -> 0 | T88: ='Jharkhand (Annexure-IV)'!Z88 -> 0 | U88: ='Jharkhand (Annexure-IV)'!AA88 -> 0 | V88: ='Jharkhand (Annexure-IV)'!AB88 -> 0 | W88: ='Jharkhand (Annexure-IV)'!AC88 -> 0 | X88: 0 | Y88: =SUM(Bokaro:Simdega!M88) -> 0 | Z88: TRUE
A89: =+A88+0.01 -> 3.06 | B89: Stipend per child per month @ Rs.100/- | C89: ='Jharkhand (Annexure-IV)'!C89 -> 0 | D89: ='Jharkhand (Annexure-IV)'!D89 -> 0 | E89: ='Jharkhand (Annexure-IV)'!E89 -> 0 | F89: ='Jharkhand (Annexure-IV)'!F89 -> 0 | G89: ='Jharkhand (Annexure-IV)'!G89 ->  | H89: ='Jharkhand (Annexure-IV)'!H89 ->  | I89: ='Jharkhand (Annexure-IV)'!L89 -> 0 | J89: ='Jharkhand (Annexure-IV)'!N89 -> 0 | K89: ='Jharkhand (Annexure-IV)'!O89 -> 0.6 | L89: ='Jharkhand (Annexure-IV)'!P89 -> 0 | M89: ='Jharkhand (Annexure-IV)'!Q89 -> 0 | N89: ='Jharkhand (Annexure-IV)'!R89 -> 0 | O89: ='Jharkhand (Annexure-IV)'!S89 -> 0 | P89: ='Jharkhand (Annexure-IV)'!U89 -> 0 | Q89: ='Jharkhand (Annexure-IV)'!W89 -> 0 | R89: ='Jharkhand (Annexure-IV)'!X89 -> 0 | S89: ='Jharkhand (Annexure-IV)'!Y89 -> 0 | T89: ='Jharkhand (Annexure-IV)'!Z89 -> 0 | U89: ='Jharkhand (Annexure-IV)'!AA89 -> 0 | V89: ='Jharkhand (Annexure-IV)'!AB89 -> 0 | W89: ='Jharkhand (Annexure-IV)'!AC89 -> 0 | X89: 0 | Y89: =SUM(Bokaro:Simdega!M89) -> 0 | Z89: TRUE
A90: =+A89+0.01 -> 3.07 | B90: Supplementary TLM, Stationery and other educational material @Rs.1000/- per child per annum | C90: ='Jharkhand (Annexure-IV)'!C90 -> 0 | D90: ='Jharkhand (Annexure-IV)'!D90 -> 0 | E90: ='Jharkhand (Annexure-IV)'!E90 -> 0 | F90: ='Jharkhand (Annexure-IV)'!F90 -> 0 | G90: ='Jharkhand (Annexure-IV)'!G90 ->  | H90: ='Jharkhand (Annexure-IV)'!H90 ->  | I90: ='Jharkhand (Annexure-IV)'!L90 -> 0 | J90: ='Jharkhand (Annexure-IV)'!N90 -> 0 | K90: ='Jharkhand (Annexure-IV)'!O90 -> 0.5 | L90: ='Jharkhand (Annexure-IV)'!P90 -> 0 | M90: ='Jharkhand (Annexure-IV)'!Q90 -> 0 | N90: ='Jharkhand (Annexure-IV)'!R90 -> 0 | O90: ='Jharkhand (Annexure-IV)'!S90 -> 0 | P90: ='Jharkhand (Annexure-IV)'!U90 -> 0 | Q90: ='Jharkhand (Annexure-IV)'!W90 -> 0 | R90: ='Jharkhand (Annexure-IV)'!X90 -> 0 | S90: ='Jharkhand (Annexure-IV)'!Y90 -> 0 | T90: ='Jharkhand (Annexure-IV)'!Z90 -> 0 | U90: ='Jharkhand (Annexure-IV)'!AA90 -> 0 | V90: ='Jharkhand (Annexure-IV)'!AB90 -> 0 | W90: ='Jharkhand (Annexure-IV)'!AC90 -> 0 | X90: 0 | Y90: =SUM(Bokaro:Simdega!M90) -> 0 | Z90: TRUE
B91: Salaries | C91: ='Jharkhand (Annexure-IV)'!C91 -> 0 | D91: ='Jharkhand (Annexure-IV)'!D91 -> 0 | E91: ='Jharkhand (Annexure-IV)'!E91 -> 0 | F91: ='Jharkhand (Annexure-IV)'!F91 -> 0 | G91: ='Jharkhand (Annexure-IV)'!G91 ->  | H91: ='Jharkhand (Annexure-IV)'!H91 ->  | I91: ='Jharkhand (Annexure-IV)'!L91 -> 0 | J91: ='Jharkhand (Annexure-IV)'!N91 -> 0 | K91: ='Jharkhand (Annexure-IV)'!O91 -> 0 | L91: ='Jharkhand (Annexure-IV)'!P91 -> 0 | M91: ='Jharkhand (Annexure-IV)'!Q91 -> 0 | N91: ='Jharkhand (Annexure-IV)'!R91 -> 0 | O91: ='Jharkhand (Annexure-IV)'!S91 -> 0 | P91: ='Jharkhand (Annexure-IV)'!U91 -> 0 | Q91: ='Jharkhand (Annexure-IV)'!W91 -> 0 | R91: ='Jharkhand (Annexure-IV)'!X91 -> 0 | S91: ='Jharkhand (Annexure-IV)'!Y91 -> 0 | T91: ='Jharkhand (Annexure-IV)'!Z91 -> 0 | U91: ='Jharkhand (Annexure-IV)'!AA91 -> 0 | V91: ='Jharkhand (Annexure-IV)'!AB91 -> 0 | W91: ='Jharkhand (Annexure-IV)'!AC91 -> 0 | X91: 0 | Y91: =SUM(Bokaro:Simdega!M91) -> 0 | Z91: TRUE
A92: (a) | B92: 1 Warden @ Rs.25000/- per month | C92: ='Jharkhand (Annexure-IV)'!C92 -> 0 | D92: ='Jharkhand (Annexure-IV)'!D92 -> 0 | E92: ='Jharkhand (Annexure-IV)'!E92 -> 0 | F92: ='Jharkhand (Annexure-IV)'!F92 -> 0 | G92: ='Jharkhand (Annexure-IV)'!G92 ->  | H92: ='Jharkhand (Annexure-IV)'!H92 ->  | I92: ='Jharkhand (Annexure-IV)'!L92 -> 0 | J92: ='Jharkhand (Annexure-IV)'!N92 -> 0 | K92: ='Jharkhand (Annexure-IV)'!O92 -> 3 | L92: ='Jharkhand (Annexure-IV)'!P92 -> 0 | M92: ='Jharkhand (Annexure-IV)'!Q92 -> 0 | N92: ='Jharkhand (Annexure-IV)'!R92 -> 0 | O92: ='Jharkhand (Annexure-IV)'!S92 -> 0 | P92: ='Jharkhand (Annexure-IV)'!U92 -> 0 | Q92: ='Jharkhand (Annexure-IV)'!W92 -> 0 | R92: ='Jharkhand (Annexure-IV)'!X92 -> 0 | S92: ='Jharkhand (Annexure-IV)'!Y92 -> 0 | T92: ='Jharkhand (Annexure-IV)'!Z92 -> 0 | U92: ='Jharkhand (Annexure-IV)'!AA92 -> 0 | V92: ='Jharkhand (Annexure-IV)'!AB92 -> 0 | W92: ='Jharkhand (Annexure-IV)'!AC92 -> 0 | X92: 0 | Y92: =SUM(Bokaro:Simdega!M92) -> 0 | Z92: TRUE
A93: (b) | B93: 4 Fulltime teachers as per RTE Norms @ Rs. 20,000/- per month per teacher | C93: ='Jharkhand (Annexure-IV)'!C93 -> 0 | D93: ='Jharkhand (Annexure-IV)'!D93 -> 0 | E93: ='Jharkhand (Annexure-IV)'!E93 -> 0 | F93: ='Jharkhand (Annexure-IV)'!F93 -> 0 | G93: ='Jharkhand (Annexure-IV)'!G93 ->  | H93: ='Jharkhand (Annexure-IV)'!H93 ->  | I93: ='Jharkhand (Annexure-IV)'!L93 -> 0 | J93: ='Jharkhand (Annexure-IV)'!N93 -> 0 | K93: ='Jharkhand (Annexure-IV)'!O93 -> 9.6 | L93: ='Jharkhand (Annexure-IV)'!P93 -> 0 | M93: ='Jharkhand (Annexure-IV)'!Q93 -> 0 | N93: ='Jharkhand (Annexure-IV)'!R93 -> 0 | O93: ='Jharkhand (Annexure-IV)'!S93 -> 0 | P93: ='Jharkhand (Annexure-IV)'!U93 -> 0 | Q93: ='Jharkhand (Annexure-IV)'!W93 -> 0 | R93: ='Jharkhand (Annexure-IV)'!X93 -> 0 | S93: ='Jharkhand (Annexure-IV)'!Y93 -> 0 | T93: ='Jharkhand (Annexure-IV)'!Z93 -> 0 | U93: ='Jharkhand (Annexure-IV)'!AA93 -> 0 | V93: ='Jharkhand (Annexure-IV)'!AB93 -> 0 | W93: ='Jharkhand (Annexure-IV)'!AC93 -> 0 | X93: 0 | Y93: =SUM(Bokaro:Simdega!M93) -> 0 | Z93: TRUE
A94: (c) | B94: 2 Urdu Teachers (only for Blocks with muslim population above 20% and select urban areas) @ Rs.12,000/- per month per teacher. | C94: ='Jharkhand (Annexure-IV)'!C94 -> 0 | D94: ='Jharkhand (Annexure-IV)'!D94 -> 0 | E94: ='Jharkhand (Annexure-IV)'!E94 -> 0 | F94: ='Jharkhand (Annexure-IV)'!F94 -> 0 | G94: ='Jharkhand (Annexure-IV)'!G94 ->  | H94: ='Jharkhand (Annexure-IV)'!H94 ->  | I94: ='Jharkhand (Annexure-IV)'!L94 -> 0 | J94: ='Jharkhand (Annexure-IV)'!N94 -> 0 | K94: ='Jharkhand (Annexure-IV)'!O94 -> 2.88 | L94: ='Jharkhand (Annexure-IV)'!P94 -> 0 | M94: ='Jharkhand (Annexure-IV)'!Q94 -> 0 | N94: ='Jharkhand (Annexure-IV)'!R94 -> 0 | O94: ='Jharkhand (Annexure-IV)'!S94 -> 0 | P94: ='Jharkhand (Annexure-IV)'!U94 -> 0 | Q94: ='Jharkhand (Annexure-IV)'!W94 -> 0 | R94: ='Jharkhand (Annexure-IV)'!X94 -> 0 | S94: ='Jharkhand (Annexure-IV)'!Y94 -> 0 | T94: ='Jharkhand (Annexure-IV)'!Z94 -> 0 | U94: ='Jharkhand (Annexure-IV)'!AA94 -> 0 | V94: ='Jharkhand (Annexure-IV)'!AB94 -> 0 | W94: ='Jharkhand (Annexure-IV)'!AC94 -> 0 | X94: 0 | Y94: =SUM(Bokaro:Simdega!M94) -> 0 | Z94: TRUE
A95: (d) | B95: 3 Part time teachers @ Rs.5,000/- per month per teacher | C95: ='Jharkhand (Annexure-IV)'!C95 -> 0 | D95: ='Jharkhand (Annexure-IV)'!D95 -> 0 | E95: ='Jharkhand (Annexure-IV)'!E95 -> 0 | F95: ='Jharkhand (Annexure-IV)'!F95 -> 0 | G95: ='Jharkhand (Annexure-IV)'!G95 ->  | H95: ='Jharkhand (Annexure-IV)'!H95 ->  | I95: ='Jharkhand (Annexure-IV)'!L95 -> 0 | J95: ='Jharkhand (Annexure-IV)'!N95 -> 0 | K95: ='Jharkhand (Annexure-IV)'!O95 -> 1.5 | L95: ='Jharkhand (Annexure-IV)'!P95 -> 0 | M95: ='Jharkhand (Annexure-IV)'!Q95 -> 0 | N95: ='Jharkhand (Annexure-IV)'!R95 -> 0 | O95: ='Jharkhand (Annexure-IV)'!S95 -> 0 | P95: ='Jharkhand (Annexure-IV)'!U95 -> 0 | Q95: ='Jharkhand (Annexure-IV)'!W95 -> 0 | R95: ='Jharkhand (Annexure-IV)'!X95 -> 0 | S95: ='Jharkhand (Annexure-IV)'!Y95 -> 0 | T95: ='Jharkhand (Annexure-IV)'!Z95 -> 0 | U95: ='Jharkhand (Annexure-IV)'!AA95 -> 0 | V95: ='Jharkhand (Annexure-IV)'!AB95 -> 0 | W95: ='Jharkhand (Annexure-IV)'!AC95 -> 0 | X95: 0 | Y95: =SUM(Bokaro:Simdega!M95) -> 0 | Z95: TRUE
A96: (e) | B96: 1 Full time Accountant @ Rs. 10,000/- per month | C96: ='Jharkhand (Annexure-IV)'!C96 -> 0 | D96: ='Jharkhand (Annexure-IV)'!D96 -> 0 | E96: ='Jharkhand (Annexure-IV)'!E96 -> 0 | F96: ='Jharkhand (Annexure-IV)'!F96 -> 0 | G96: ='Jharkhand (Annexure-IV)'!G96 ->  | H96: ='Jharkhand (Annexure-IV)'!H96 ->  | I96: ='Jharkhand (Annexure-IV)'!L96 -> 0 | J96: ='Jharkhand (Annexure-IV)'!N96 -> 0 | K96: ='Jharkhand (Annexure-IV)'!O96 -> 1.2 | L96: ='Jharkhand (Annexure-IV)'!P96 -> 0 | M96: ='Jharkhand (Annexure-IV)'!Q96 -> 0 | N96: ='Jharkhand (Annexure-IV)'!R96 -> 0 | O96: ='Jharkhand (Annexure-IV)'!S96 -> 0 | P96: ='Jharkhand (Annexure-IV)'!U96 -> 0 | Q96: ='Jharkhand (Annexure-IV)'!W96 -> 0 | R96: ='Jharkhand (Annexure-IV)'!X96 -> 0 | S96: ='Jharkhand (Annexure-IV)'!Y96 -> 0 | T96: ='Jharkhand (Annexure-IV)'!Z96 -> 0 | U96: ='Jharkhand (Annexure-IV)'!AA96 -> 0 | V96: ='Jharkhand (Annexure-IV)'!AB96 -> 0 | W96: ='Jharkhand (Annexure-IV)'!AC96 -> 0 | X96: 0 | Y96: =SUM(Bokaro:Simdega!M96) -> 0 | Z96: TRUE
A97: (f) | B97: 2 Support staff - (Accountant/Assistant, Peon, Chowkidar) @ Rs. 5,000/- per month per staff | C97: ='Jharkhand (Annexure-IV)'!C97 -> 0 | D97: ='Jharkhand (Annexure-IV)'!D97 -> 0 | E97: ='Jharkhand (Annexure-IV)'!E97 -> 0 | F97: ='Jharkhand (Annexure-IV)'!F97 -> 0 | G97: ='Jharkhand (Annexure-IV)'!G97 ->  | H97: ='Jharkhand (Annexure-IV)'!H97 ->  | I97: ='Jharkhand (Annexure-IV)'!L97 -> 0 | J97: ='Jharkhand (Annexure-IV)'!N97 -> 0 | K97: ='Jharkhand (Annexure-IV)'!O97 -> 1.2 | L97: ='Jharkhand (Annexure-IV)'!P97 -> 0 | M97: ='Jharkhand (Annexure-IV)'!Q97 -> 0 | N97: ='Jharkhand (Annexure-IV)'!R97 -> 0 | O97: ='Jharkhand (Annexure-IV)'!S97 -> 0 | P97: ='Jharkhand (Annexure-IV)'!U97 -> 0 | Q97: ='Jharkhand (Annexure-IV)'!W97 -> 0 | R97: ='Jharkhand (Annexure-IV)'!X97 -> 0 | S97: ='Jharkhand (Annexure-IV)'!Y97 -> 0 | T97: ='Jharkhand (Annexure-IV)'!Z97 -> 0 | U97: ='Jharkhand (Annexure-IV)'!AA97 -> 0 | V97: ='Jharkhand (Annexure-IV)'!AB97 -> 0 | W97: ='Jharkhand (Annexure-IV)'!AC97 -> 0 | X97: 0 | Y97: =SUM(Bokaro:Simdega!M97) -> 0 | Z97: TRUE
A98: (g) | B98: 1 Head Cook @ Rs. 6,000/- per month and upto 2 Asstt. Cooks @ Rs. 4,500/- per month per cook | C98: ='Jharkhand (Annexure-IV)'!C98 -> 0 | D98: ='Jharkhand (Annexure-IV)'!D98 -> 0 | E98: ='Jharkhand (Annexure-IV)'!E98 -> 0 | F98: ='Jharkhand (Annexure-IV)'!F98 -> 0 | G98: ='Jharkhand (Annexure-IV)'!G98 ->  | H98: ='Jharkhand (Annexure-IV)'!H98 ->  | I98: ='Jharkhand (Annexure-IV)'!L98 -> 0 | J98: ='Jharkhand (Annexure-IV)'!N98 -> 0 | K98: ='Jharkhand (Annexure-IV)'!O98 -> 1.8 | L98: ='Jharkhand (Annexure-IV)'!P98 -> 0 | M98: ='Jharkhand (Annexure-IV)'!Q98 -> 0 | N98: ='Jharkhand (Annexure-IV)'!R98 -> 0 | O98: ='Jharkhand (Annexure-IV)'!S98 -> 0 | P98: ='Jharkhand (Annexure-IV)'!U98 -> 0 | Q98: ='Jharkhand (Annexure-IV)'!W98 -> 0 | R98: ='Jharkhand (Annexure-IV)'!X98 -> 0 | S98: ='Jharkhand (Annexure-IV)'!Y98 -> 0 | T98: ='Jharkhand (Annexure-IV)'!Z98 -> 0 | U98: ='Jharkhand (Annexure-IV)'!AA98 -> 0 | V98: ='Jharkhand (Annexure-IV)'!AB98 -> 0 | W98: ='Jharkhand (Annexure-IV)'!AC98 -> 0 | X98: 0 | Y98: =SUM(Bokaro:Simdega!M98) -> 0 | Z98: TRUE
A99: 3.08 | B99: Specific Skill training @ Rs.1000/- per annum per child | C99: ='Jharkhand (Annexure-IV)'!C99 -> 0 | D99: ='Jharkhand (Annexure-IV)'!D99 -> 0 | E99: ='Jharkhand (Annexure-IV)'!E99 -> 0 | F99: ='Jharkhand (Annexure-IV)'!F99 -> 0 | G99: ='Jharkhand (Annexure-IV)'!G99 ->  | H99: ='Jharkhand (Annexure-IV)'!H99 ->  | I99: ='Jharkhand (Annexure-IV)'!L99 -> 0 | J99: ='Jharkhand (Annexure-IV)'!N99 -> 0 | K99: ='Jharkhand (Annexure-IV)'!O99 -> 0.5 | L99: ='Jharkhand (Annexure-IV)'!P99 -> 0 | M99: ='Jharkhand (Annexure-IV)'!Q99 -> 0 | N99: ='Jharkhand (Annexure-IV)'!R99 -> 0 | O99: ='Jharkhand (Annexure-IV)'!S99 -> 0 | P99: ='Jharkhand (Annexure-IV)'!U99 -> 0 | Q99: ='Jharkhand (Annexure-IV)'!W99 -> 0 | R99: ='Jharkhand (Annexure-IV)'!X99 -> 0 | S99: ='Jharkhand (Annexure-IV)'!Y99 -> 0 | T99: ='Jharkhand (Annexure-IV)'!Z99 -> 0 | U99: ='Jharkhand (Annexure-IV)'!AA99 -> 0 | V99: ='Jharkhand (Annexure-IV)'!AB99 -> 0 | W99: ='Jharkhand (Annexure-IV)'!AC99 -> 0 | X99: 0 | Y99: =SUM(Bokaro:Simdega!M99) -> 0 | Z99: TRUE
A100: =+A99+0.01 -> 3.09 | B100: Electricity / water charges @ Rs. 1000/- per annum per child | C100: ='Jharkhand (Annexure-IV)'!C100 -> 0 | D100: ='Jharkhand (Annexure-IV)'!D100 -> 0 | E100: ='Jharkhand (Annexure-IV)'!E100 -> 0 | F100: ='Jharkhand (Annexure-IV)'!F100 -> 0 | G100: ='Jharkhand (Annexure-IV)'!G100 ->  | H100: ='Jharkhand (Annexure-IV)'!H100 ->  | I100: ='Jharkhand (Annexure-IV)'!L100 -> 0 | J100: ='Jharkhand (Annexure-IV)'!N100 -> 0 | K100: ='Jharkhand (Annexure-IV)'!O100 -> 0.5 | L100: ='Jharkhand (Annexure-IV)'!P100 -> 0 | M100: ='Jharkhand (Annexure-IV)'!Q100 -> 0 | N100: ='Jharkhand (Annexure-IV)'!R100 -> 0 | O100: ='Jharkhand (Annexure-IV)'!S100 -> 0 | P100: ='Jharkhand (Annexure-IV)'!U100 -> 0 | Q100: ='Jharkhand (Annexure-IV)'!W100 -> 0 | R100: ='Jharkhand (Annexure-IV)'!X100 -> 0 | S100: ='Jharkhand (Annexure-IV)'!Y100 -> 0 | T100: ='Jharkhand (Annexure-IV)'!Z100 -> 0 | U100: ='Jharkhand (Annexure-IV)'!AA100 -> 0 | V100: ='Jharkhand (Annexure-IV)'!AB100 -> 0 | W100: ='Jharkhand (Annexure-IV)'!AC100 -> 0 | X100: 0 | Y100: =SUM(Bokaro:Simdega!M100) -> 0 | Z100: TRUE
A101: 3.1 | B101: Medical care/contingencies @ Rs.1250/- per annum per child | C101: ='Jharkhand (Annexure-IV)'!C101 -> 0 | D101: ='Jharkhand (Annexure-IV)'!D101 -> 0 | E101: ='Jharkhand (Annexure-IV)'!E101 -> 0 | F101: ='Jharkhand (Annexure-IV)'!F101 -> 0 | G101: ='Jharkhand (Annexure-IV)'!G101 ->  | H101: ='Jharkhand (Annexure-IV)'!H101 ->  | I101: ='Jharkhand (Annexure-IV)'!L101 -> 0 | J101: ='Jharkhand (Annexure-IV)'!N101 -> 0 | K101: ='Jharkhand (Annexure-IV)'!O101 -> 0.625 | L101: ='Jharkhand (Annexure-IV)'!P101 -> 0 | M101: ='Jharkhand (Annexure-IV)'!Q101 -> 0 | N101: ='Jharkhand (Annexure-IV)'!R101 -> 0 | O101: ='Jharkhand (Annexure-IV)'!S101 -> 0 | P101: ='Jharkhand (Annexure-IV)'!U101 -> 0 | Q101: ='Jharkhand (Annexure-IV)'!W101 -> 0 | R101: ='Jharkhand (Annexure-IV)'!X101 -> 0 | S101: ='Jharkhand (Annexure-IV)'!Y101 -> 0 | T101: ='Jharkhand (Annexure-IV)'!Z101 -> 0 | U101: ='Jharkhand (Annexure-IV)'!AA101 -> 0 | V101: ='Jharkhand (Annexure-IV)'!AB101 -> 0 | W101: ='Jharkhand (Annexure-IV)'!AC101 -> 0 | X101: 0 | Y101: =SUM(Bokaro:Simdega!M101) -> 0 | Z101: TRUE
A102: 3.11 | B102: Maintenance @ Rs. 750/- per child per annum | C102: ='Jharkhand (Annexure-IV)'!C102 -> 0 | D102: ='Jharkhand (Annexure-IV)'!D102 -> 0 | E102: ='Jharkhand (Annexure-IV)'!E102 -> 0 | F102: ='Jharkhand (Annexure-IV)'!F102 -> 0 | G102: ='Jharkhand (Annexure-IV)'!G102 ->  | H102: ='Jharkhand (Annexure-IV)'!H102 ->  | I102: ='Jharkhand (Annexure-IV)'!L102 -> 0 | J102: ='Jharkhand (Annexure-IV)'!N102 -> 0 | K102: ='Jharkhand (Annexure-IV)'!O102 -> 0.375 | L102: ='Jharkhand (Annexure-IV)'!P102 -> 0 | M102: ='Jharkhand (Annexure-IV)'!Q102 -> 0 | N102: ='Jharkhand (Annexure-IV)'!R102 -> 0 | O102: ='Jharkhand (Annexure-IV)'!S102 -> 0 | P102: ='Jharkhand (Annexure-IV)'!U102 -> 0 | Q102: ='Jharkhand (Annexure-IV)'!W102 -> 0 | R102: ='Jharkhand (Annexure-IV)'!X102 -> 0 | S102: ='Jharkhand (Annexure-IV)'!Y102 -> 0 | T102: ='Jharkhand (Annexure-IV)'!Z102 -> 0 | U102: ='Jharkhand (Annexure-IV)'!AA102 -> 0 | V102: ='Jharkhand (Annexure-IV)'!AB102 -> 0 | W102: ='Jharkhand (Annexure-IV)'!AC102 -> 0 | X102: 0 | Y102: =SUM(Bokaro:Simdega!M102) -> 0 | Z102: TRUE
A103: 3.12 | B103: Miscellaneous @ Rs. 750/- per child per annum | C103: ='Jharkhand (Annexure-IV)'!C103 -> 0 | D103: ='Jharkhand (Annexure-IV)'!D103 -> 0 | E103: ='Jharkhand (Annexure-IV)'!E103 -> 0 | F103: ='Jharkhand (Annexure-IV)'!F103 -> 0 | G103: ='Jharkhand (Annexure-IV)'!G103 ->  | H103: ='Jharkhand (Annexure-IV)'!H103 ->  | I103: ='Jharkhand (Annexure-IV)'!L103 -> 0 | J103: ='Jharkhand (Annexure-IV)'!N103 -> 0 | K103: ='Jharkhand (Annexure-IV)'!O103 -> 0.375 | L103: ='Jharkhand (Annexure-IV)'!P103 -> 0 | M103: ='Jharkhand (Annexure-IV)'!Q103 -> 0 | N103: ='Jharkhand (Annexure-IV)'!R103 -> 0 | O103: ='Jharkhand (Annexure-IV)'!S103 -> 0 | P103: ='Jharkhand (Annexure-IV)'!U103 -> 0 | Q103: ='Jharkhand (Annexure-IV)'!W103 -> 0 | R103: ='Jharkhand (Annexure-IV)'!X103 -> 0 | S103: ='Jharkhand (Annexure-IV)'!Y103 -> 0 | T103: ='Jharkhand (Annexure-IV)'!Z103 -> 0 | U103: ='Jharkhand (Annexure-IV)'!AA103 -> 0 | V103: ='Jharkhand (Annexure-IV)'!AB103 -> 0 | W103: ='Jharkhand (Annexure-IV)'!AC103 -> 0 | X103: 0 | Y103: =SUM(Bokaro:Simdega!M103) -> 0 | Z103: TRUE
A104: 3.13 | B104: Preparatory camps @ Rs. 300/- per child per annum | C104: ='Jharkhand (Annexure-IV)'!C104 -> 0 | D104: ='Jharkhand (Annexure-IV)'!D104 -> 0 | E104: ='Jharkhand (Annexure-IV)'!E104 -> 0 | F104: ='Jharkhand (Annexure-IV)'!F104 -> 0 | G104: ='Jharkhand (Annexure-IV)'!G104 ->  | H104: ='Jharkhand (Annexure-IV)'!H104 ->  | I104: ='Jharkhand (Annexure-IV)'!L104 -> 0 | J104: ='Jharkhand (Annexure-IV)'!N104 -> 0 | K104: ='Jharkhand (Annexure-IV)'!O104 -> 0.15 | L104: ='Jharkhand (Annexure-IV)'!P104 -> 0 | M104: ='Jharkhand (Annexure-IV)'!Q104 -> 0 | N104: ='Jharkhand (Annexure-IV)'!R104 -> 0 | O104: ='Jharkhand (Annexure-IV)'!S104 -> 0 | P104: ='Jharkhand (Annexure-IV)'!U104 -> 0 | Q104: ='Jharkhand (Annexure-IV)'!W104 -> 0 | R104: ='Jharkhand (Annexure-IV)'!X104 -> 0 | S104: ='Jharkhand (Annexure-IV)'!Y104 -> 0 | T104: ='Jharkhand (Annexure-IV)'!Z104 -> 0 | U104: ='Jharkhand (Annexure-IV)'!AA104 -> 0 | V104: ='Jharkhand (Annexure-IV)'!AB104 -> 0 | W104: ='Jharkhand (Annexure-IV)'!AC104 -> 0 | X104: 0 | Y104: =SUM(Bokaro:Simdega!M104) -> 0 | Z104: TRUE
A105: 3.14 | B105: P.T.A / school functions @ Rs. 300/- per child per annum | C105: ='Jharkhand (Annexure-IV)'!C105 -> 0 | D105: ='Jharkhand (Annexure-IV)'!D105 -> 0 | E105: ='Jharkhand (Annexure-IV)'!E105 -> 0 | F105: ='Jharkhand (Annexure-IV)'!F105 -> 0 | G105: ='Jharkhand (Annexure-IV)'!G105 ->  | H105: ='Jharkhand (Annexure-IV)'!H105 ->  | I105: ='Jharkhand (Annexure-IV)'!L105 -> 0 | J105: ='Jharkhand (Annexure-IV)'!N105 -> 0 | K105: ='Jharkhand (Annexure-IV)'!O105 -> 0.15 | L105: ='Jharkhand (Annexure-IV)'!P105 -> 0 | M105: ='Jharkhand (Annexure-IV)'!Q105 -> 0 | N105: ='Jharkhand (Annexure-IV)'!R105 -> 0 | O105: ='Jharkhand (Annexure-IV)'!S105 -> 0 | P105: ='Jharkhand (Annexure-IV)'!U105 -> 0 | Q105: ='Jharkhand (Annexure-IV)'!W105 -> 0 | R105: ='Jharkhand (Annexure-IV)'!X105 -> 0 | S105: ='Jharkhand (Annexure-IV)'!Y105 -> 0 | T105: ='Jharkhand (Annexure-IV)'!Z105 -> 0 | U105: ='Jharkhand (Annexure-IV)'!AA105 -> 0 | V105: ='Jharkhand (Annexure-IV)'!AB105 -> 0 | W105: ='Jharkhand (Annexure-IV)'!AC105 -> 0 | X105: 0 | Y105: =SUM(Bokaro:Simdega!M105) -> 0 | Z105: TRUE
A106: 3.15 | B106: Provision of Rent @ Rs. 10,000/- per child per annum | C106: ='Jharkhand (Annexure-IV)'!C106 -> 0 | D106: ='Jharkhand (Annexure-IV)'!D106 -> 0 | E106: ='Jharkhand (Annexure-IV)'!E106 -> 0 | F106: ='Jharkhand (Annexure-IV)'!F106 -> 0 | G106: ='Jharkhand (Annexure-IV)'!G106 ->  | H106: ='Jharkhand (Annexure-IV)'!H106 ->  | I106: ='Jharkhand (Annexure-IV)'!L106 -> 0 | J106: ='Jharkhand (Annexure-IV)'!N106 -> 0 | K106: ='Jharkhand (Annexure-IV)'!O106 -> 0 | L106: ='Jharkhand (Annexure-IV)'!P106 -> 0 | M106: ='Jharkhand (Annexure-IV)'!Q106 -> 0 | N106: ='Jharkhand (Annexure-IV)'!R106 -> 0 | O106: ='Jharkhand (Annexure-IV)'!S106 -> 0 | P106: ='Jharkhand (Annexure-IV)'!U106 -> 0 | Q106: ='Jharkhand (Annexure-IV)'!W106 -> 0 | R106: ='Jharkhand (Annexure-IV)'!X106 -> 0 | S106: ='Jharkhand (Annexure-IV)'!Y106 -> 0 | T106: ='Jharkhand (Annexure-IV)'!Z106 -> 0 | U106: ='Jharkhand (Annexure-IV)'!AA106 -> 0 | V106: ='Jharkhand (Annexure-IV)'!AB106 -> 0 | W106: ='Jharkhand (Annexure-IV)'!AC106 -> 0 | X106: 0 | Y106: =SUM(Bokaro:Simdega!M106) -> 0 | Z106: TRUE
A107: 3.16 | B107: Capacity Building @ Rs. 500/- per child per annum | C107: ='Jharkhand (Annexure-IV)'!C107 -> 0 | D107: ='Jharkhand (Annexure-IV)'!D107 -> 0 | E107: ='Jharkhand (Annexure-IV)'!E107 -> 0 | F107: ='Jharkhand (Annexure-IV)'!F107 -> 0 | G107: ='Jharkhand (Annexure-IV)'!G107 ->  | H107: ='Jharkhand (Annexure-IV)'!H107 ->  | I107: ='Jharkhand (Annexure-IV)'!L107 -> 0 | J107: ='Jharkhand (Annexure-IV)'!N107 -> 0 | K107: ='Jharkhand (Annexure-IV)'!O107 -> 0.25 | L107: ='Jharkhand (Annexure-IV)'!P107 -> 0 | M107: ='Jharkhand (Annexure-IV)'!Q107 -> 0 | N107: ='Jharkhand (Annexure-IV)'!R107 -> 0 | O107: ='Jharkhand (Annexure-IV)'!S107 -> 0 | P107: ='Jharkhand (Annexure-IV)'!U107 -> 0 | Q107: ='Jharkhand (Annexure-IV)'!W107 -> 0 | R107: ='Jharkhand (Annexure-IV)'!X107 -> 0 | S107: ='Jharkhand (Annexure-IV)'!Y107 -> 0 | T107: ='Jharkhand (Annexure-IV)'!Z107 -> 0 | U107: ='Jharkhand (Annexure-IV)'!AA107 -> 0 | V107: ='Jharkhand (Annexure-IV)'!AB107 -> 0 | W107: ='Jharkhand (Annexure-IV)'!AC107 -> 0 | X107: 0 | Y107: =SUM(Bokaro:Simdega!M107) -> 0 | Z107: TRUE
A108: 3.17 | B108: Physical / Self Defence Training @ Rs.200/- per child per annum | C108: ='Jharkhand (Annexure-IV)'!C108 -> 0 | D108: ='Jharkhand (Annexure-IV)'!D108 -> 0 | E108: ='Jharkhand (Annexure-IV)'!E108 -> 0 | F108: ='Jharkhand (Annexure-IV)'!F108 -> 0 | G108: ='Jharkhand (Annexure-IV)'!G108 ->  | H108: ='Jharkhand (Annexure-IV)'!H108 ->  | I108: ='Jharkhand (Annexure-IV)'!L108 -> 0 | J108: ='Jharkhand (Annexure-IV)'!N108 -> 0 | K108: ='Jharkhand (Annexure-IV)'!O108 -> 0.1 | L108: ='Jharkhand (Annexure-IV)'!P108 -> 0 | M108: ='Jharkhand (Annexure-IV)'!Q108 -> 0 | N108: ='Jharkhand (Annexure-IV)'!R108 -> 0 | O108: ='Jharkhand (Annexure-IV)'!S108 -> 0 | P108: ='Jharkhand (Annexure-IV)'!U108 -> 0 | Q108: ='Jharkhand (Annexure-IV)'!W108 -> 0 | R108: ='Jharkhand (Annexure-IV)'!X108 -> 0 | S108: ='Jharkhand (Annexure-IV)'!Y108 -> 0 | T108: ='Jharkhand (Annexure-IV)'!Z108 -> 0 | U108: ='Jharkhand (Annexure-IV)'!AA108 -> 0 | V108: ='Jharkhand (Annexure-IV)'!AB108 -> 0 | W108: ='Jharkhand (Annexure-IV)'!AC108 -> 0 | X108: 0 | Y108: =SUM(Bokaro:Simdega!M108) -> 0 | Z108: TRUE
B109: Sub Total (Recurring) | C109: ='Jharkhand (Annexure-IV)'!C109 -> 0 | D109: ='Jharkhand (Annexure-IV)'!D109 -> 0 | E109: ='Jharkhand (Annexure-IV)'!E109 -> 0 | F109: ='Jharkhand (Annexure-IV)'!F109 -> 0 | G109: ='Jharkhand (Annexure-IV)'!G109 ->  | H109: ='Jharkhand (Annexure-IV)'!H109 ->  | I109: ='Jharkhand (Annexure-IV)'!L109 -> 0 | J109: ='Jharkhand (Annexure-IV)'!N109 -> 0 | K109: ='Jharkhand (Annexure-IV)'!O109 -> 0 | L109: ='Jharkhand (Annexure-IV)'!P109 -> 0 | M109: ='Jharkhand (Annexure-IV)'!Q109 -> 0 | N109: ='Jharkhand (Annexure-IV)'!R109 -> 0 | O109: ='Jharkhand (Annexure-IV)'!S109 -> 0 | P109: ='Jharkhand (Annexure-IV)'!U109 -> 0 | Q109: ='Jharkhand (Annexure-IV)'!W109 -> 0 | R109: ='Jharkhand (Annexure-IV)'!X109 -> 0 | S109: ='Jharkhand (Annexure-IV)'!Y109 -> 0 | T109: ='Jharkhand (Annexure-IV)'!Z109 -> 0 | U109: ='Jharkhand (Annexure-IV)'!AA109 -> 0 | V109: ='Jharkhand (Annexure-IV)'!AB109 -> 0 | W109: ='Jharkhand (Annexure-IV)'!AC109 -> 0 | X109: 0 | Y109: =SUM(Bokaro:Simdega!M109) -> 0 | Z109: TRUE
B110: Total (Non Recurring + Recurring) | C110: ='Jharkhand (Annexure-IV)'!C110 -> 0 | D110: ='Jharkhand (Annexure-IV)'!D110 -> 0 | E110: ='Jharkhand (Annexure-IV)'!E110 -> 0 | F110: ='Jharkhand (Annexure-IV)'!F110 -> 0 | G110: ='Jharkhand (Annexure-IV)'!G110 ->  | H110: ='Jharkhand (Annexure-IV)'!H110 ->  | I110: ='Jharkhand (Annexure-IV)'!L110 -> 0 | J110: ='Jharkhand (Annexure-IV)'!N110 -> 0 | K110: ='Jharkhand (Annexure-IV)'!O110 -> 0 | L110: ='Jharkhand (Annexure-IV)'!P110 -> 0 | M110: ='Jharkhand (Annexure-IV)'!Q110 -> 0 | N110: ='Jharkhand (Annexure-IV)'!R110 -> 0 | O110: ='Jharkhand (Annexure-IV)'!S110 -> 0 | P110: ='Jharkhand (Annexure-IV)'!U110 -> 0 | Q110: ='Jharkhand (Annexure-IV)'!W110 -> 0 | R110: ='Jharkhand (Annexure-IV)'!X110 -> 0 | S110: ='Jharkhand (Annexure-IV)'!Y110 -> 0 | T110: ='Jharkhand (Annexure-IV)'!Z110 -> 0 | U110: ='Jharkhand (Annexure-IV)'!AA110 -> 0 | V110: ='Jharkhand (Annexure-IV)'!AB110 -> 0 | W110: ='Jharkhand (Annexure-IV)'!AC110 -> 0 | X110: 0 | Y110: =SUM(Bokaro:Simdega!M110) -> 0 | Z110: TRUE
A111: (B) | B111: 100 Children | C111: ='Jharkhand (Annexure-IV)'!C111 -> 0 | D111: ='Jharkhand (Annexure-IV)'!D111 -> 0 | E111: ='Jharkhand (Annexure-IV)'!E111 -> 0 | F111: ='Jharkhand (Annexure-IV)'!F111 -> 0 | G111: ='Jharkhand (Annexure-IV)'!G111 ->  | H111: ='Jharkhand (Annexure-IV)'!H111 ->  | I111: ='Jharkhand (Annexure-IV)'!L111 -> 0 | J111: ='Jharkhand (Annexure-IV)'!N111 -> 0 | K111: ='Jharkhand (Annexure-IV)'!O111 -> 0 | L111: ='Jharkhand (Annexure-IV)'!P111 -> 0 | M111: ='Jharkhand (Annexure-IV)'!Q111 -> 0 | N111: ='Jharkhand (Annexure-IV)'!R111 -> 0 | O111: ='Jharkhand (Annexure-IV)'!S111 -> 0 | P111: ='Jharkhand (Annexure-IV)'!U111 -> 0 | Q111: ='Jharkhand (Annexure-IV)'!W111 -> 0 | R111: ='Jharkhand (Annexure-IV)'!X111 -> 0 | S111: ='Jharkhand (Annexure-IV)'!Y111 -> 0 | T111: ='Jharkhand (Annexure-IV)'!Z111 -> 0 | U111: ='Jharkhand (Annexure-IV)'!AA111 -> 0 | V111: ='Jharkhand (Annexure-IV)'!AB111 -> 0 | W111: ='Jharkhand (Annexure-IV)'!AC111 -> 0 | X111: 0 | Y111: =SUM(Bokaro:Simdega!M111) -> 0 | Z111: TRUE
B112: Non-recurring (one time grant) | C112: ='Jharkhand (Annexure-IV)'!C112 -> 0 | D112: ='Jharkhand (Annexure-IV)'!D112 -> 0 | E112: ='Jharkhand (Annexure-IV)'!E112 -> 0 | F112: ='Jharkhand (Annexure-IV)'!F112 -> 0 | G112: ='Jharkhand (Annexure-IV)'!G112 ->  | H112: ='Jharkhand (Annexure-IV)'!H112 ->  | I112: ='Jharkhand (Annexure-IV)'!L112 -> 0 | J112: ='Jharkhand (Annexure-IV)'!N112 -> 0 | K112: ='Jharkhand (Annexure-IV)'!O112 -> 0 | L112: ='Jharkhand (Annexure-IV)'!P112 -> 0 | M112: ='Jharkhand (Annexure-IV)'!Q112 -> 0 | N112: ='Jharkhand (Annexure-IV)'!R112 -> 0 | O112: ='Jharkhand (Annexure-IV)'!S112 -> 0 | P112: ='Jharkhand (Annexure-IV)'!U112 -> 0 | Q112: ='Jharkhand (Annexure-IV)'!W112 -> 0 | R112: ='Jharkhand (Annexure-IV)'!X112 -> 0 | S112: ='Jharkhand (Annexure-IV)'!Y112 -> 0 | T112: ='Jharkhand (Annexure-IV)'!Z112 -> 0 | U112: ='Jharkhand (Annexure-IV)'!AA112 -> 0 | V112: ='Jharkhand (Annexure-IV)'!AB112 -> 0 | W112: ='Jharkhand (Annexure-IV)'!AC112 -> 0 | X112: 0 | Y112: =SUM(Bokaro:Simdega!M112) -> 0 | Z112: TRUE
A113: 3.18 | B113: Furniture / Equipment (including kitchen equipment) | C113: ='Jharkhand (Annexure-IV)'!C113 -> 0 | D113: ='Jharkhand (Annexure-IV)'!D113 -> 0 | E113: ='Jharkhand (Annexure-IV)'!E113 -> 0 | F113: ='Jharkhand (Annexure-IV)'!F113 -> 0 | G113: ='Jharkhand (Annexure-IV)'!G113 ->  | H113: ='Jharkhand (Annexure-IV)'!H113 ->  | I113: ='Jharkhand (Annexure-IV)'!L113 -> 0 | J113: ='Jharkhand (Annexure-IV)'!N113 -> 0 | K113: ='Jharkhand (Annexure-IV)'!O113 -> 0 | L113: ='Jharkhand (Annexure-IV)'!P113 -> 0 | M113: ='Jharkhand (Annexure-IV)'!Q113 -> 0 | N113: ='Jharkhand (Annexure-IV)'!R113 -> 0 | O113: ='Jharkhand (Annexure-IV)'!S113 -> 0 | P113: ='Jharkhand (Annexure-IV)'!U113 -> 0 | Q113: ='Jharkhand (Annexure-IV)'!W113 -> 0 | R113: ='Jharkhand (Annexure-IV)'!X113 -> 0 | S113: ='Jharkhand (Annexure-IV)'!Y113 -> 0 | T113: ='Jharkhand (Annexure-IV)'!Z113 -> 0 | U113: ='Jharkhand (Annexure-IV)'!AA113 -> 0 | V113: ='Jharkhand (Annexure-IV)'!AB113 -> 0 | W113: ='Jharkhand (Annexure-IV)'!AC113 -> 0 | X113: =(L113*K113)+P113+Q113 -> 0 | Y113: =SUM(Bokaro:Simdega!M113) -> 0 | Z113: =Y113=X113 -> TRUE
A114: =+A113+0.01 -> 3.19 | B114: TLM and equipment including library books (New) | C114: ='Jharkhand (Annexure-IV)'!C114 -> 0 | D114: ='Jharkhand (Annexure-IV)'!D114 -> 0 | E114: ='Jharkhand (Annexure-IV)'!E114 -> 0 | F114: ='Jharkhand (Annexure-IV)'!F114 -> 0 | G114: ='Jharkhand (Annexure-IV)'!G114 ->  | H114: ='Jharkhand (Annexure-IV)'!H114 ->  | I114: ='Jharkhand (Annexure-IV)'!L114 -> 0 | J114: ='Jharkhand (Annexure-IV)'!N114 -> 0 | K114: ='Jharkhand (Annexure-IV)'!O114 -> 0 | L114: ='Jharkhand (Annexure-IV)'!P114 -> 0 | M114: ='Jharkhand (Annexure-IV)'!Q114 -> 0 | N114: ='Jharkhand (Annexure-IV)'!R114 -> 0 | O114: ='Jharkhand (Annexure-IV)'!S114 -> 0 | P114: ='Jharkhand (Annexure-IV)'!U114 -> 0 | Q114: ='Jharkhand (Annexure-IV)'!W114 -> 0 | R114: ='Jharkhand (Annexure-IV)'!X114 -> 0 | S114: ='Jharkhand (Annexure-IV)'!Y114 -> 0 | T114: ='Jharkhand (Annexure-IV)'!Z114 -> 0 | U114: ='Jharkhand (Annexure-IV)'!AA114 -> 0 | V114: ='Jharkhand (Annexure-IV)'!AB114 -> 0 | W114: ='Jharkhand (Annexure-IV)'!AC114 -> 0 | X114: 0 | Y114: =SUM(Bokaro:Simdega!M114) -> 0 | Z114: TRUE
A115: =+A114+0.01 -> 3.2 | B115: Bedding (New) | C115: ='Jharkhand (Annexure-IV)'!C115 -> 0 | D115: ='Jharkhand (Annexure-IV)'!D115 -> 0 | E115: ='Jharkhand (Annexure-IV)'!E115 -> 0 | F115: ='Jharkhand (Annexure-IV)'!F115 -> 0 | G115: ='Jharkhand (Annexure-IV)'!G115 ->  | H115: ='Jharkhand (Annexure-IV)'!H115 ->  | I115: ='Jharkhand (Annexure-IV)'!L115 -> 0 | J115: ='Jharkhand (Annexure-IV)'!N115 -> 0 | K115: ='Jharkhand (Annexure-IV)'!O115 -> 0 | L115: ='Jharkhand (Annexure-IV)'!P115 -> 0 | M115: ='Jharkhand (Annexure-IV)'!Q115 -> 0 | N115: ='Jharkhand (Annexure-IV)'!R115 -> 0 | O115: ='Jharkhand (Annexure-IV)'!S115 -> 0 | P115: ='Jharkhand (Annexure-IV)'!U115 -> 0 | Q115: ='Jharkhand (Annexure-IV)'!W115 -> 0 | R115: ='Jharkhand (Annexure-IV)'!X115 -> 0 | S115: ='Jharkhand (Annexure-IV)'!Y115 -> 0 | T115: ='Jharkhand (Annexure-IV)'!Z115 -> 0 | U115: ='Jharkhand (Annexure-IV)'!AA115 -> 0 | V115: ='Jharkhand (Annexure-IV)'!AB115 -> 0 | W115: ='Jharkhand (Annexure-IV)'!AC115 -> 0 | X115: 0 | Y115: =SUM(Bokaro:Simdega!M115) -> 0 | Z115: TRUE
A116: =+A115+0.01 -> 3.21 | B116: Replacement of bedding (once in 3 years) | C116: ='Jharkhand (Annexure-IV)'!C116 -> 0 | D116: ='Jharkhand (Annexure-IV)'!D116 -> 0 | E116: ='Jharkhand (Annexure-IV)'!E116 -> 0 | F116: ='Jharkhand (Annexure-IV)'!F116 -> 0 | G116: ='Jharkhand (Annexure-IV)'!G116 ->  | H116: ='Jharkhand (Annexure-IV)'!H116 ->  | I116: ='Jharkhand (Annexure-IV)'!L116 -> 0 | J116: ='Jharkhand (Annexure-IV)'!N116 -> 0 | K116: ='Jharkhand (Annexure-IV)'!O116 -> 0 | L116: ='Jharkhand (Annexure-IV)'!P116 -> 0 | M116: ='Jharkhand (Annexure-IV)'!Q116 -> 0 | N116: ='Jharkhand (Annexure-IV)'!R116 -> 0 | O116: ='Jharkhand (Annexure-IV)'!S116 -> 0 | P116: ='Jharkhand (Annexure-IV)'!U116 -> 0 | Q116: ='Jharkhand (Annexure-IV)'!W116 -> 0 | R116: ='Jharkhand (Annexure-IV)'!X116 -> 0 | S116: ='Jharkhand (Annexure-IV)'!Y116 -> 0 | T116: ='Jharkhand (Annexure-IV)'!Z116 -> 0 | U116: ='Jharkhand (Annexure-IV)'!AA116 -> 0 | V116: ='Jharkhand (Annexure-IV)'!AB116 -> 0 | W116: ='Jharkhand (Annexure-IV)'!AC116 -> 0 | X116: 0 | Y116: =SUM(Bokaro:Simdega!M116) -> 0 | Z116: TRUE
B117: Sub Total Non-recurring | C117: ='Jharkhand (Annexure-IV)'!C117 -> 0 | D117: ='Jharkhand (Annexure-IV)'!D117 -> 0 | E117: ='Jharkhand (Annexure-IV)'!E117 -> 0 | F117: ='Jharkhand (Annexure-IV)'!F117 -> 0 | G117: ='Jharkhand (Annexure-IV)'!G117 ->  | H117: ='Jharkhand (Annexure-IV)'!H117 ->  | I117: ='Jharkhand (Annexure-IV)'!L117 -> 0 | J117: ='Jharkhand (Annexure-IV)'!N117 -> 0 | K117: ='Jharkhand (Annexure-IV)'!O117 -> 0 | L117: ='Jharkhand (Annexure-IV)'!P117 -> 0 | M117: ='Jharkhand (Annexure-IV)'!Q117 -> 0 | N117: ='Jharkhand (Annexure-IV)'!R117 -> 0 | O117: ='Jharkhand (Annexure-IV)'!S117 -> 0 | P117: ='Jharkhand (Annexure-IV)'!U117 -> 0 | Q117: ='Jharkhand (Annexure-IV)'!W117 -> 0 | R117: ='Jharkhand (Annexure-IV)'!X117 -> 0 | S117: ='Jharkhand (Annexure-IV)'!Y117 -> 0 | T117: ='Jharkhand (Annexure-IV)'!Z117 -> 0 | U117: ='Jharkhand (Annexure-IV)'!AA117 -> 0 | V117: ='Jharkhand (Annexure-IV)'!AB117 -> 0 | W117: ='Jharkhand (Annexure-IV)'!AC117 -> 0 | X117: 0 | Z117: TRUE
B118: Recurring | C118: ='Jharkhand (Annexure-IV)'!C118 -> 0 | D118: ='Jharkhand (Annexure-IV)'!D118 -> 0 | E118: ='Jharkhand (Annexure-IV)'!E118 -> 0 | F118: ='Jharkhand (Annexure-IV)'!F118 -> 0 | G118: ='Jharkhand (Annexure-IV)'!G118 ->  | H118: ='Jharkhand (Annexure-IV)'!H118 ->  | I118: ='Jharkhand (Annexure-IV)'!L118 -> 0 | J118: ='Jharkhand (Annexure-IV)'!N118 -> 0 | K118: ='Jharkhand (Annexure-IV)'!O118 -> 0 | L118: ='Jharkhand (Annexure-IV)'!P118 -> 0 | M118: ='Jharkhand (Annexure-IV)'!Q118 -> 0 | N118: ='Jharkhand (Annexure-IV)'!R118 -> 0 | O118: ='Jharkhand (Annexure-IV)'!S118 -> 0 | P118: ='Jharkhand (Annexure-IV)'!U118 -> 0 | Q118: ='Jharkhand (Annexure-IV)'!W118 -> 0 | R118: ='Jharkhand (Annexure-IV)'!X118 -> 0 | S118: ='Jharkhand (Annexure-IV)'!Y118 -> 0 | T118: ='Jharkhand (Annexure-IV)'!Z118 -> 0 | U118: ='Jharkhand (Annexure-IV)'!AA118 -> 0 | V118: ='Jharkhand (Annexure-IV)'!AB118 -> 0 | W118: ='Jharkhand (Annexure-IV)'!AC118 -> 0 | X118: 0 | Y118: =SUM(Bokaro:Simdega!M118) -> 0 | Z118: TRUE
A119: 3.22 | B119: Maintenance per child per month @ Rs. 1500/- | C119: ='Jharkhand (Annexure-IV)'!C119 -> 0 | D119: ='Jharkhand (Annexure-IV)'!D119 -> 0 | E119: ='Jharkhand (Annexure-IV)'!E119 -> 0 | F119: ='Jharkhand (Annexure-IV)'!F119 -> 0 | G119: ='Jharkhand (Annexure-IV)'!G119 ->  | H119: ='Jharkhand (Annexure-IV)'!H119 ->  | I119: ='Jharkhand (Annexure-IV)'!L119 -> 0 | J119: ='Jharkhand (Annexure-IV)'!N119 -> 0 | K119: ='Jharkhand (Annexure-IV)'!O119 -> 0 | L119: ='Jharkhand (Annexure-IV)'!P119 -> 0 | M119: ='Jharkhand (Annexure-IV)'!Q119 -> 0 | N119: ='Jharkhand (Annexure-IV)'!R119 -> 0 | O119: ='Jharkhand (Annexure-IV)'!S119 -> 0 | P119: ='Jharkhand (Annexure-IV)'!U119 -> 0 | Q119: ='Jharkhand (Annexure-IV)'!W119 -> 0 | R119: ='Jharkhand (Annexure-IV)'!X119 -> 0 | S119: ='Jharkhand (Annexure-IV)'!Y119 -> 0 | T119: ='Jharkhand (Annexure-IV)'!Z119 -> 0 | U119: ='Jharkhand (Annexure-IV)'!AA119 -> 0 | V119: ='Jharkhand (Annexure-IV)'!AB119 -> 0 | W119: ='Jharkhand (Annexure-IV)'!AC119 -> 0 | X119: 0 | Y119: =SUM(Bokaro:Simdega!M119) -> 0 | Z119: TRUE
A120: =+A119+0.01 -> 3.23 | B120: Stipend per child per month @ Rs.100/- | C120: ='Jharkhand (Annexure-IV)'!C120 -> 0 | D120: ='Jharkhand (Annexure-IV)'!D120 -> 0 | E120: ='Jharkhand (Annexure-IV)'!E120 -> 0 | F120: ='Jharkhand (Annexure-IV)'!F120 -> 0 | G120: ='Jharkhand (Annexure-IV)'!G120 ->  | H120: ='Jharkhand (Annexure-IV)'!H120 ->  | I120: ='Jharkhand (Annexure-IV)'!L120 -> 0 | J120: ='Jharkhand (Annexure-IV)'!N120 -> 0 | K120: ='Jharkhand (Annexure-IV)'!O120 -> 0 | L120: ='Jharkhand (Annexure-IV)'!P120 -> 0 | M120: ='Jharkhand (Annexure-IV)'!Q120 -> 0 | N120: ='Jharkhand (Annexure-IV)'!R120 -> 0 | O120: ='Jharkhand (Annexure-IV)'!S120 -> 0 | P120: ='Jharkhand (Annexure-IV)'!U120 -> 0 | Q120: ='Jharkhand (Annexure-IV)'!W120 -> 0 | R120: ='Jharkhand (Annexure-IV)'!X120 -> 0 | S120: ='Jharkhand (Annexure-IV)'!Y120 -> 0 | T120: ='Jharkhand (Annexure-IV)'!Z120 -> 0 | U120: ='Jharkhand (Annexure-IV)'!AA120 -> 0 | V120: ='Jharkhand (Annexure-IV)'!AB120 -> 0 | W120: ='Jharkhand (Annexure-IV)'!AC120 -> 0 | X120: 0 | Y120: =SUM(Bokaro:Simdega!M120) -> 0 | Z120: TRUE
A121: =+A120+0.01 -> 3.24 | B121: Supplementary TLM, Stationery and other educational material per child @1000/- per annum | C121: ='Jharkhand (Annexure-IV)'!C121 -> 0 | D121: ='Jharkhand (Annexure-IV)'!D121 -> 0 | E121: ='Jharkhand (Annexure-IV)'!E121 -> 0 | F121: ='Jharkhand (Annexure-IV)'!F121 -> 0 | G121: ='Jharkhand (Annexure-IV)'!G121 ->  | H121: ='Jharkhand (Annexure-IV)'!H121 ->  | I121: ='Jharkhand (Annexure-IV)'!L121 -> 0 | J121: ='Jharkhand (Annexure-IV)'!N121 -> 0 | K121: ='Jharkhand (Annexure-IV)'!O121 -> 0 | L121: ='Jharkhand (Annexure-IV)'!P121 -> 0 | M121: ='Jharkhand (Annexure-IV)'!Q121 -> 0 | N121: ='Jharkhand (Annexure-IV)'!R121 -> 0 | O121: ='Jharkhand (Annexure-IV)'!S121 -> 0 | P121: ='Jharkhand (Annexure-IV)'!U121 -> 0 | Q121: ='Jharkhand (Annexure-IV)'!W121 -> 0 | R121: ='Jharkhand (Annexure-IV)'!X121 -> 0 | S121: ='Jharkhand (Annexure-IV)'!Y121 -> 0 | T121: ='Jharkhand (Annexure-IV)'!Z121 -> 0 | U121: ='Jharkhand (Annexure-IV)'!AA121 -> 0 | V121: ='Jharkhand (Annexure-IV)'!AB121 -> 0 | W121: ='Jharkhand (Annexure-IV)'!AC121 -> 0 | X121: 0 | Y121: =SUM(Bokaro:Simdega!M121) -> 0 | Z121: TRUE
B122: Salaries | C122: ='Jharkhand (Annexure-IV)'!C122 -> 0 | D122: ='Jharkhand (Annexure-IV)'!D122 -> 0 | E122: ='Jharkhand (Annexure-IV)'!E122 -> 0 | F122: ='Jharkhand (Annexure-IV)'!F122 -> 0 | G122: ='Jharkhand (Annexure-IV)'!G122 ->  | H122: ='Jharkhand (Annexure-IV)'!H122 ->  | I122: ='Jharkhand (Annexure-IV)'!L122 -> 0 | J122: ='Jharkhand (Annexure-IV)'!N122 -> 0 | K122: ='Jharkhand (Annexure-IV)'!O122 -> 0 | L122: ='Jharkhand (Annexure-IV)'!P122 -> 0 | M122: ='Jharkhand (Annexure-IV)'!Q122 -> 0 | N122: ='Jharkhand (Annexure-IV)'!R122 -> 0 | O122: ='Jharkhand (Annexure-IV)'!S122 -> 0 | P122: ='Jharkhand (Annexure-IV)'!U122 -> 0 | Q122: ='Jharkhand (Annexure-IV)'!W122 -> 0 | R122: ='Jharkhand (Annexure-IV)'!X122 -> 0 | S122: ='Jharkhand (Annexure-IV)'!Y122 -> 0 | T122: ='Jharkhand (Annexure-IV)'!Z122 -> 0 | U122: ='Jharkhand (Annexure-IV)'!AA122 -> 0 | V122: ='Jharkhand (Annexure-IV)'!AB122 -> 0 | W122: ='Jharkhand (Annexure-IV)'!AC122 -> 0 | X122: 0 | Y122: =SUM(Bokaro:Simdega!M122) -> 0 | Z122: TRUE
A123: (a) | B123: 1 Warden @ Rs. 25,000/- per month | C123: ='Jharkhand (Annexure-IV)'!C123 -> 0 | D123: ='Jharkhand (Annexure-IV)'!D123 -> 0 | E123: ='Jharkhand (Annexure-IV)'!E123 -> 0 | F123: ='Jharkhand (Annexure-IV)'!F123 -> 0 | G123: ='Jharkhand (Annexure-IV)'!G123 ->  | H123: ='Jharkhand (Annexure-IV)'!H123 ->  | I123: ='Jharkhand (Annexure-IV)'!L123 -> 0 | J123: ='Jharkhand (Annexure-IV)'!N123 -> 0 | K123: ='Jharkhand (Annexure-IV)'!O123 -> 0 | L123: ='Jharkhand (Annexure-IV)'!P123 -> 0 | M123: ='Jharkhand (Annexure-IV)'!Q123 -> 0 | N123: ='Jharkhand (Annexure-IV)'!R123 -> 0 | O123: ='Jharkhand (Annexure-IV)'!S123 -> 0 | P123: ='Jharkhand (Annexure-IV)'!U123 -> 0 | Q123: ='Jharkhand (Annexure-IV)'!W123 -> 0 | R123: ='Jharkhand (Annexure-IV)'!X123 -> 0 | S123: ='Jharkhand (Annexure-IV)'!Y123 -> 0 | T123: ='Jharkhand (Annexure-IV)'!Z123 -> 0 | U123: ='Jharkhand (Annexure-IV)'!AA123 -> 0 | V123: ='Jharkhand (Annexure-IV)'!AB123 -> 0 | W123: ='Jharkhand (Annexure-IV)'!AC123 -> 0 | X123: 0 | Y123: =SUM(Bokaro:Simdega!M123) -> 0 | Z123: TRUE
A124: (b) | B124: 1 head teacher @ Rs. 25,000/- per month in case the enrollment exceeds 100 | C124: ='Jharkhand (Annexure-IV)'!C124 -> 0 | D124: ='Jharkhand (Annexure-IV)'!D124 -> 0 | E124: ='Jharkhand (Annexure-IV)'!E124 -> 0 | F124: ='Jharkhand (Annexure-IV)'!F124 -> 0 | G124: ='Jharkhand (Annexure-IV)'!G124 ->  | H124: ='Jharkhand (Annexure-IV)'!H124 ->  | I124: ='Jharkhand (Annexure-IV)'!L124 -> 0 | J124: ='Jharkhand (Annexure-IV)'!N124 -> 0 | K124: ='Jharkhand (Annexure-IV)'!O124 -> 0 | L124: ='Jharkhand (Annexure-IV)'!P124 -> 0 | M124: ='Jharkhand (Annexure-IV)'!Q124 -> 0 | N124: ='Jharkhand (Annexure-IV)'!R124 -> 0 | O124: ='Jharkhand (Annexure-IV)'!S124 -> 0 | P124: ='Jharkhand (Annexure-IV)'!U124 -> 0 | Q124: ='Jharkhand (Annexure-IV)'!W124 -> 0 | R124: ='Jharkhand (Annexure-IV)'!X124 -> 0 | S124: ='Jharkhand (Annexure-IV)'!Y124 -> 0 | T124: ='Jharkhand (Annexure-IV)'!Z124 -> 0 | U124: ='Jharkhand (Annexure-IV)'!AA124 -> 0 | V124: ='Jharkhand (Annexure-IV)'!AB124 -> 0 | W124: ='Jharkhand (Annexure-IV)'!AC124 -> 0 | X124: 0 | Y124: =SUM(Bokaro:Simdega!M124) -> 0 | Z124: TRUE
A125: (c) | B125: 4 - 5 Full time teachers as per RTE norms @ Rs. 20,000/- per month per teacher | C125: ='Jharkhand (Annexure-IV)'!C125 -> 0 | D125: ='Jharkhand (Annexure-IV)'!D125 -> 0 | E125: ='Jharkhand (Annexure-IV)'!E125 -> 0 | F125: ='Jharkhand (Annexure-IV)'!F125 -> 0 | G125: ='Jharkhand (Annexure-IV)'!G125 ->  | H125: ='Jharkhand (Annexure-IV)'!H125 ->  | I125: ='Jharkhand (Annexure-IV)'!L125 -> 0 | J125: ='Jharkhand (Annexure-IV)'!N125 -> 0 | K125: ='Jharkhand (Annexure-IV)'!O125 -> 0 | L125: ='Jharkhand (Annexure-IV)'!P125 -> 0 | M125: ='Jharkhand (Annexure-IV)'!Q125 -> 0 | N125: ='Jharkhand (Annexure-IV)'!R125 -> 0 | O125: ='Jharkhand (Annexure-IV)'!S125 -> 0 | P125: ='Jharkhand (Annexure-IV)'!U125 -> 0 | Q125: ='Jharkhand (Annexure-IV)'!W125 -> 0 | R125: ='Jharkhand (Annexure-IV)'!X125 -> 0 | S125: ='Jharkhand (Annexure-IV)'!Y125 -> 0 | T125: ='Jharkhand (Annexure-IV)'!Z125 -> 0 | U125: ='Jharkhand (Annexure-IV)'!AA125 -> 0 | V125: ='Jharkhand (Annexure-IV)'!AB125 -> 0 | W125: ='Jharkhand (Annexure-IV)'!AC125 -> 0 | X125: 0 | Y125: =SUM(Bokaro:Simdega!M125) -> 0 | Z125: TRUE
A126: (d) | B126: 2 Urdu Teachers (only for blocks with muslim population above 20% and select urban areas), if required @ Rs. 12,000/- per month per teacher | C126: ='Jharkhand (Annexure-IV)'!C126 -> 0 | D126: ='Jharkhand (Annexure-IV)'!D126 -> 0 | E126: ='Jharkhand (Annexure-IV)'!E126 -> 0 | F126: ='Jharkhand (Annexure-IV)'!F126 -> 0 | G126: ='Jharkhand (Annexure-IV)'!G126 ->  | H126: ='Jharkhand (Annexure-IV)'!H126 ->  | I126: ='Jharkhand (Annexure-IV)'!L126 -> 0 | J126: ='Jharkhand (Annexure-IV)'!N126 -> 0 | K126: ='Jharkhand (Annexure-IV)'!O126 -> 0 | L126: ='Jharkhand (Annexure-IV)'!P126 -> 0 | M126: ='Jharkhand (Annexure-IV)'!Q126 -> 0 | N126: ='Jharkhand (Annexure-IV)'!R126 -> 0 | O126: ='Jharkhand (Annexure-IV)'!S126 -> 0 | P126: ='Jharkhand (Annexure-IV)'!U126 -> 0 | Q126: ='Jharkhand (Annexure-IV)'!W126 -> 0 | R126: ='Jharkhand (Annexure-IV)'!X126 -> 0 | S126: ='Jharkhand (Annexure-IV)'!Y126 -> 0 | T126: ='Jharkhand (Annexure-IV)'!Z126 -> 0 | U126: ='Jharkhand (Annexure-IV)'!AA126 -> 0 | V126: ='Jharkhand (Annexure-IV)'!AB126 -> 0 | W126: ='Jharkhand (Annexure-IV)'!AC126 -> 0 | X126: 0 | Y126: =SUM(Bokaro:Simdega!M126) -> 0 | Z126: TRUE
A127: (e) | B127: 3 part time teachers @ Rs. 5,000/- per month per teacher | C127: ='Jharkhand (Annexure-IV)'!C127 -> 0 | D127: ='Jharkhand (Annexure-IV)'!D127 -> 0 | E127: ='Jharkhand (Annexure-IV)'!E127 -> 0 | F127: ='Jharkhand (Annexure-IV)'!F127 -> 0 | G127: ='Jharkhand (Annexure-IV)'!G127 ->  | H127: ='Jharkhand (Annexure-IV)'!H127 ->  | I127: ='Jharkhand (Annexure-IV)'!L127 -> 0 | J127: ='Jharkhand (Annexure-IV)'!N127 -> 0 | K127: ='Jharkhand (Annexure-IV)'!O127 -> 0 | L127: ='Jharkhand (Annexure-IV)'!P127 -> 0 | M127: ='Jharkhand (Annexure-IV)'!Q127 -> 0 | N127: ='Jharkhand (Annexure-IV)'!R127 -> 0 | O127: ='Jharkhand (Annexure-IV)'!S127 -> 0 | P127: ='Jharkhand (Annexure-IV)'!U127 -> 0 | Q127: ='Jharkhand (Annexure-IV)'!W127 -> 0 | R127: ='Jharkhand (Annexure-IV)'!X127 -> 0 | S127: ='Jharkhand (Annexure-IV)'!Y127 -> 0 | T127: ='Jharkhand (Annexure-IV)'!Z127 -> 0 | U127: ='Jharkhand (Annexure-IV)'!AA127 -> 0 | V127: ='Jharkhand (Annexure-IV)'!AB127 -> 0 | W127: ='Jharkhand (Annexure-IV)'!AC127 -> 0 | X127: 0 | Y127: =SUM(Bokaro:Simdega!M127) -> 0 | Z127: TRUE
A128: (f) | B128: 1 Full time Accountant @ Rs. 10,000/- per month | C128: ='Jharkhand (Annexure-IV)'!C128 -> 0 | D128: ='Jharkhand (Annexure-IV)'!D128 -> 0 | E128: ='Jharkhand (Annexure-IV)'!E128 -> 0 | F128: ='Jharkhand (Annexure-IV)'!F128 -> 0 | G128: ='Jharkhand (Annexure-IV)'!G128 ->  | H128: ='Jharkhand (Annexure-IV)'!H128 ->  | I128: ='Jharkhand (Annexure-IV)'!L128 -> 0 | J128: ='Jharkhand (Annexure-IV)'!N128 -> 0 | K128: ='Jharkhand (Annexure-IV)'!O128 -> 0 | L128: ='Jharkhand (Annexure-IV)'!P128 -> 0 | M128: ='Jharkhand (Annexure-IV)'!Q128 -> 0 | N128: ='Jharkhand (Annexure-IV)'!R128 -> 0 | O128: ='Jharkhand (Annexure-IV)'!S128 -> 0 | P128: ='Jharkhand (Annexure-IV)'!U128 -> 0 | Q128: ='Jharkhand (Annexure-IV)'!W128 -> 0 | R128: ='Jharkhand (Annexure-IV)'!X128 -> 0 | S128: ='Jharkhand (Annexure-IV)'!Y128 -> 0 | T128: ='Jharkhand (Annexure-IV)'!Z128 -> 0 | U128: ='Jharkhand (Annexure-IV)'!AA128 -> 0 | V128: ='Jharkhand (Annexure-IV)'!AB128 -> 0 | W128: ='Jharkhand (Annexure-IV)'!AC128 -> 0 | X128: 0 | Y128: =SUM(Bokaro:Simdega!M128) -> 0 | Z128: TRUE
A129: 3.25 | B129: 2 Support Staff – (Accountant/ Assistant, Peon, Chowkidar) @ Rs. 5,000/- per month per staff | C129: ='Jharkhand (Annexure-IV)'!C129 -> 0 | D129: ='Jharkhand (Annexure-IV)'!D129 -> 0 | E129: ='Jharkhand (Annexure-IV)'!E129 -> 0 | F129: ='Jharkhand (Annexure-IV)'!F129 -> 0 | G129: ='Jharkhand (Annexure-IV)'!G129 ->  | H129: ='Jharkhand (Annexure-IV)'!H129 ->  | I129: ='Jharkhand (Annexure-IV)'!L129 -> 0 | J129: ='Jharkhand (Annexure-IV)'!N129 -> 0 | K129: ='Jharkhand (Annexure-IV)'!O129 -> 0 | L129: ='Jharkhand (Annexure-IV)'!P129 -> 0 | M129: ='Jharkhand (Annexure-IV)'!Q129 -> 0 | N129: ='Jharkhand (Annexure-IV)'!R129 -> 0 | O129: ='Jharkhand (Annexure-IV)'!S129 -> 0 | P129: ='Jharkhand (Annexure-IV)'!U129 -> 0 | Q129: ='Jharkhand (Annexure-IV)'!W129 -> 0 | R129: ='Jharkhand (Annexure-IV)'!X129 -> 0 | S129: ='Jharkhand (Annexure-IV)'!Y129 -> 0 | T129: ='Jharkhand (Annexure-IV)'!Z129 -> 0 | U129: ='Jharkhand (Annexure-IV)'!AA129 -> 0 | V129: ='Jharkhand (Annexure-IV)'!AB129 -> 0 | W129: ='Jharkhand (Annexure-IV)'!AC129 -> 0 | X129: 0 | Y129: =SUM(Bokaro:Simdega!M129) -> 0 | Z129: TRUE
A130: =+A129+0.01 -> 3.26 | B130: 1 Head cook @ Rs. 6,000/- per month and upto 2 Asstt. Cooks @ Rs. 4,500/- per month per cook | C130: ='Jharkhand (Annexure-IV)'!C130 -> 0 | D130: ='Jharkhand (Annexure-IV)'!D130 -> 0 | E130: ='Jharkhand (Annexure-IV)'!E130 -> 0 | F130: ='Jharkhand (Annexure-IV)'!F130 -> 0 | G130: ='Jharkhand (Annexure-IV)'!G130 ->  | H130: ='Jharkhand (Annexure-IV)'!H130 ->  | I130: ='Jharkhand (Annexure-IV)'!L130 -> 0 | J130: ='Jharkhand (Annexure-IV)'!N130 -> 0 | K130: ='Jharkhand (Annexure-IV)'!O130 -> 0 | L130: ='Jharkhand (Annexure-IV)'!P130 -> 0 | M130: ='Jharkhand (Annexure-IV)'!Q130 -> 0 | N130: ='Jharkhand (Annexure-IV)'!R130 -> 0 | O130: ='Jharkhand (Annexure-IV)'!S130 -> 0 | P130: ='Jharkhand (Annexure-IV)'!U130 -> 0 | Q130: ='Jharkhand (Annexure-IV)'!W130 -> 0 | R130: ='Jharkhand (Annexure-IV)'!X130 -> 0 | S130: ='Jharkhand (Annexure-IV)'!Y130 -> 0 | T130: ='Jharkhand (Annexure-IV)'!Z130 -> 0 | U130: ='Jharkhand (Annexure-IV)'!AA130 -> 0 | V130: ='Jharkhand (Annexure-IV)'!AB130 -> 0 | W130: ='Jharkhand (Annexure-IV)'!AC130 -> 0 | X130: 0 | Y130: =SUM(Bokaro:Simdega!M130) -> 0 | Z130: TRUE
A131: 3.27 | B131: Specific skill training per child @ Rs.1000/- per annum | C131: ='Jharkhand (Annexure-IV)'!C131 -> 0 | D131: ='Jharkhand (Annexure-IV)'!D131 -> 0 | E131: ='Jharkhand (Annexure-IV)'!E131 -> 0 | F131: ='Jharkhand (Annexure-IV)'!F131 -> 0 | G131: ='Jharkhand (Annexure-IV)'!G131 ->  | H131: ='Jharkhand (Annexure-IV)'!H131 ->  | I131: ='Jharkhand (Annexure-IV)'!L131 -> 0 | J131: ='Jharkhand (Annexure-IV)'!N131 -> 0 | K131: ='Jharkhand (Annexure-IV)'!O131 -> 0 | L131: ='Jharkhand (Annexure-IV)'!P131 -> 0 | M131: ='Jharkhand (Annexure-IV)'!Q131 -> 0 | N131: ='Jharkhand (Annexure-IV)'!R131 -> 0 | O131: ='Jharkhand (Annexure-IV)'!S131 -> 0 | P131: ='Jharkhand (Annexure-IV)'!U131 -> 0 | Q131: ='Jharkhand (Annexure-IV)'!W131 -> 0 | R131: ='Jharkhand (Annexure-IV)'!X131 -> 0 | S131: ='Jharkhand (Annexure-IV)'!Y131 -> 0 | T131: ='Jharkhand (Annexure-IV)'!Z131 -> 0 | U131: ='Jharkhand (Annexure-IV)'!AA131 -> 0 | V131: ='Jharkhand (Annexure-IV)'!AB131 -> 0 | W131: ='Jharkhand (Annexure-IV)'!AC131 -> 0 | X131: 0 | Y131: =SUM(Bokaro:Simdega!M131) -> 0 | Z131: TRUE
A132: 3.28 | B132: Electricity / water charges per child @Rs.1000/- per annum | C132: ='Jharkhand (Annexure-IV)'!C132 -> 0 | D132: ='Jharkhand (Annexure-IV)'!D132 -> 0 | E132: ='Jharkhand (Annexure-IV)'!E132 -> 0 | F132: ='Jharkhand (Annexure-IV)'!F132 -> 0 | G132: ='Jharkhand (Annexure-IV)'!G132 ->  | H132: ='Jharkhand (Annexure-IV)'!H132 ->  | I132: ='Jharkhand (Annexure-IV)'!L132 -> 0 | J132: ='Jharkhand (Annexure-IV)'!N132 -> 0 | K132: ='Jharkhand (Annexure-IV)'!O132 -> 0 | L132: ='Jharkhand (Annexure-IV)'!P132 -> 0 | M132: ='Jharkhand (Annexure-IV)'!Q132 -> 0 | N132: ='Jharkhand (Annexure-IV)'!R132 -> 0 | O132: ='Jharkhand (Annexure-IV)'!S132 -> 0 | P132: ='Jharkhand (Annexure-IV)'!U132 -> 0 | Q132: ='Jharkhand (Annexure-IV)'!W132 -> 0 | R132: ='Jharkhand (Annexure-IV)'!X132 -> 0 | S132: ='Jharkhand (Annexure-IV)'!Y132 -> 0 | T132: ='Jharkhand (Annexure-IV)'!Z132 -> 0 | U132: ='Jharkhand (Annexure-IV)'!AA132 -> 0 | V132: ='Jharkhand (Annexure-IV)'!AB132 -> 0 | W132: ='Jharkhand (Annexure-IV)'!AC132 -> 0 | X132: 0 | Y132: =SUM(Bokaro:Simdega!M132) -> 0 | Z132: TRUE
A133: 3.29 | B133: Medical care/contingencies @ Rs.1250/- per child per annum | C133: ='Jharkhand (Annexure-IV)'!C133 -> 0 | D133: ='Jharkhand (Annexure-IV)'!D133 -> 0 | E133: ='Jharkhand (Annexure-IV)'!E133 -> 0 | F133: ='Jharkhand (Annexure-IV)'!F133 -> 0 | G133: ='Jharkhand (Annexure-IV)'!G133 ->  | H133: ='Jharkhand (Annexure-IV)'!H133 ->  | I133: ='Jharkhand (Annexure-IV)'!L133 -> 0 | J133: ='Jharkhand (Annexure-IV)'!N133 -> 0 | K133: ='Jharkhand (Annexure-IV)'!O133 -> 0 | L133: ='Jharkhand (Annexure-IV)'!P133 -> 0 | M133: ='Jharkhand (Annexure-IV)'!Q133 -> 0 | N133: ='Jharkhand (Annexure-IV)'!R133 -> 0 | O133: ='Jharkhand (Annexure-IV)'!S133 -> 0 | P133: ='Jharkhand (Annexure-IV)'!U133 -> 0 | Q133: ='Jharkhand (Annexure-IV)'!W133 -> 0 | R133: ='Jharkhand (Annexure-IV)'!X133 -> 0 | S133: ='Jharkhand (Annexure-IV)'!Y133 -> 0 | T133: ='Jharkhand (Annexure-IV)'!Z133 -> 0 | U133: ='Jharkhand (Annexure-IV)'!AA133 -> 0 | V133: ='Jharkhand (Annexure-IV)'!AB133 -> 0 | W133: ='Jharkhand (Annexure-IV)'!AC133 -> 0 | X133: 0 | Y133: =SUM(Bokaro:Simdega!M133) -> 0 | Z133: TRUE
A134: 3.3 | B134: Maintenance @ Rs.750/- per child per annum | C134: ='Jharkhand (Annexure-IV)'!C134 -> 0 | D134: ='Jharkhand (Annexure-IV)'!D134 -> 0 | E134: ='Jharkhand (Annexure-IV)'!E134 -> 0 | F134: ='Jharkhand (Annexure-IV)'!F134 -> 0 | G134: ='Jharkhand (Annexure-IV)'!G134 ->  | H134: ='Jharkhand (Annexure-IV)'!H134 ->  | I134: ='Jharkhand (Annexure-IV)'!L134 -> 0 | J134: ='Jharkhand (Annexure-IV)'!N134 -> 0 | K134: ='Jharkhand (Annexure-IV)'!O134 -> 0 | L134: ='Jharkhand (Annexure-IV)'!P134 -> 0 | M134: ='Jharkhand (Annexure-IV)'!Q134 -> 0 | N134: ='Jharkhand (Annexure-IV)'!R134 -> 0 | O134: ='Jharkhand (Annexure-IV)'!S134 -> 0 | P134: ='Jharkhand (Annexure-IV)'!U134 -> 0 | Q134: ='Jharkhand (Annexure-IV)'!W134 -> 0 | R134: ='Jharkhand (Annexure-IV)'!X134 -> 0 | S134: ='Jharkhand (Annexure-IV)'!Y134 -> 0 | T134: ='Jharkhand (Annexure-IV)'!Z134 -> 0 | U134: ='Jharkhand (Annexure-IV)'!AA134 -> 0 | V134: ='Jharkhand (Annexure-IV)'!AB134 -> 0 | W134: ='Jharkhand (Annexure-IV)'!AC134 -> 0 | X134: 0 | Y134: =SUM(Bokaro:Simdega!M134) -> 0 | Z134: TRUE
A135: 3.31 | B135: Miscellaneous @ Rs.750/- per child per annum | C135: ='Jharkhand (Annexure-IV)'!C135 -> 0 | D135: ='Jharkhand (Annexure-IV)'!D135 -> 0 | E135: ='Jharkhand (Annexure-IV)'!E135 -> 0 | F135: ='Jharkhand (Annexure-IV)'!F135 -> 0 | G135: ='Jharkhand (Annexure-IV)'!G135 ->  | H135: ='Jharkhand (Annexure-IV)'!H135 ->  | I135: ='Jharkhand (Annexure-IV)'!L135 -> 0 | J135: ='Jharkhand (Annexure-IV)'!N135 -> 0 | K135: ='Jharkhand (Annexure-IV)'!O135 -> 0 | L135: ='Jharkhand (Annexure-IV)'!P135 -> 0 | M135: ='Jharkhand (Annexure-IV)'!Q135 -> 0 | N135: ='Jharkhand (Annexure-IV)'!R135 -> 0 | O135: ='Jharkhand (Annexure-IV)'!S135 -> 0 | P135: ='Jharkhand (Annexure-IV)'!U135 -> 0 | Q135: ='Jharkhand (Annexure-IV)'!W135 -> 0 | R135: ='Jharkhand (Annexure-IV)'!X135 -> 0 | S135: ='Jharkhand (Annexure-IV)'!Y135 -> 0 | T135: ='Jharkhand (Annexure-IV)'!Z135 -> 0 | U135: ='Jharkhand (Annexure-IV)'!AA135 -> 0 | V135: ='Jharkhand (Annexure-IV)'!AB135 -> 0 | W135: ='Jharkhand (Annexure-IV)'!AC135 -> 0 | X135: 0 | Y135: =SUM(Bokaro:Simdega!M135) -> 0 | Z135: TRUE
A136: 3.32 | B136: Preparatory camps @ Rs.200/- per child per annum | C136: ='Jharkhand (Annexure-IV)'!C136 -> 0 | D136: ='Jharkhand (Annexure-IV)'!D136 -> 0 | E136: ='Jharkhand (Annexure-IV)'!E136 -> 0 | F136: ='Jharkhand (Annexure-IV)'!F136 -> 0 | G136: ='Jharkhand (Annexure-IV)'!G136 ->  | H136: ='Jharkhand (Annexure-IV)'!H136 ->  | I136: ='Jharkhand (Annexure-IV)'!L136 -> 0 | J136: ='Jharkhand (Annexure-IV)'!N136 -> 0 | K136: ='Jharkhand (Annexure-IV)'!O136 -> 0 | L136: ='Jharkhand (Annexure-IV)'!P136 -> 0 | M136: ='Jharkhand (Annexure-IV)'!Q136 -> 0 | N136: ='Jharkhand (Annexure-IV)'!R136 -> 0 | O136: ='Jharkhand (Annexure-IV)'!S136 -> 0 | P136: ='Jharkhand (Annexure-IV)'!U136 -> 0 | Q136: ='Jharkhand (Annexure-IV)'!W136 -> 0 | R136: ='Jharkhand (Annexure-IV)'!X136 -> 0 | S136: ='Jharkhand (Annexure-IV)'!Y136 -> 0 | T136: ='Jharkhand (Annexure-IV)'!Z136 -> 0 | U136: ='Jharkhand (Annexure-IV)'!AA136 -> 0 | V136: ='Jharkhand (Annexure-IV)'!AB136 -> 0 | W136: ='Jharkhand (Annexure-IV)'!AC136 -> 0 | X136: 0 | Y136: =SUM(Bokaro:Simdega!M136) -> 0 | Z136: TRUE
A137: 3.33 | B137: P.T.A / school functions @ Rs.200/- per child per annum | C137: ='Jharkhand (Annexure-IV)'!C137 -> 0 | D137: ='Jharkhand (Annexure-IV)'!D137 -> 0 | E137: ='Jharkhand (Annexure-IV)'!E137 -> 0 | F137: ='Jharkhand (Annexure-IV)'!F137 -> 0 | G137: ='Jharkhand (Annexure-IV)'!G137 ->  | H137: ='Jharkhand (Annexure-IV)'!H137 ->  | I137: ='Jharkhand (Annexure-IV)'!L137 -> 0 | J137: ='Jharkhand (Annexure-IV)'!N137 -> 0 | K137: ='Jharkhand (Annexure-IV)'!O137 -> 0 | L137: ='Jharkhand (Annexure-IV)'!P137 -> 0 | M137: ='Jharkhand (Annexure-IV)'!Q137 -> 0 | N137: ='Jharkhand (Annexure-IV)'!R137 -> 0 | O137: ='Jharkhand (Annexure-IV)'!S137 -> 0 | P137: ='Jharkhand (Annexure-IV)'!U137 -> 0 | Q137: ='Jharkhand (Annexure-IV)'!W137 -> 0 | R137: ='Jharkhand (Annexure-IV)'!X137 -> 0 | S137: ='Jharkhand (Annexure-IV)'!Y137 -> 0 | T137: ='Jharkhand (Annexure-IV)'!Z137 -> 0 | U137: ='Jharkhand (Annexure-IV)'!AA137 -> 0 | V137: ='Jharkhand (Annexure-IV)'!AB137 -> 0 | W137: ='Jharkhand (Annexure-IV)'!AC137 -> 0 | X137: 0 | Y137: =SUM(Bokaro:Simdega!M137) -> 0 | Z137: TRUE
A138: 3.34 | B138: Provision of Rent @ Rs. 6000/- per child per annum | C138: ='Jharkhand (Annexure-IV)'!C138 -> 0 | D138: ='Jharkhand (Annexure-IV)'!D138 -> 0 | E138: ='Jharkhand (Annexure-IV)'!E138 -> 0 | F138: ='Jharkhand (Annexure-IV)'!F138 -> 0 | G138: ='Jharkhand (Annexure-IV)'!G138 ->  | H138: ='Jharkhand (Annexure-IV)'!H138 ->  | I138: ='Jharkhand (Annexure-IV)'!L138 -> 0 | J138: ='Jharkhand (Annexure-IV)'!N138 -> 0 | K138: ='Jharkhand (Annexure-IV)'!O138 -> 0 | L138: ='Jharkhand (Annexure-IV)'!P138 -> 0 | M138: ='Jharkhand (Annexure-IV)'!Q138 -> 0 | N138: ='Jharkhand (Annexure-IV)'!R138 -> 0 | O138: ='Jharkhand (Annexure-IV)'!S138 -> 0 | P138: ='Jharkhand (Annexure-IV)'!U138 -> 0 | Q138: ='Jharkhand (Annexure-IV)'!W138 -> 0 | R138: ='Jharkhand (Annexure-IV)'!X138 -> 0 | S138: ='Jharkhand (Annexure-IV)'!Y138 -> 0 | T138: ='Jharkhand (Annexure-IV)'!Z138 -> 0 | U138: ='Jharkhand (Annexure-IV)'!AA138 -> 0 | V138: ='Jharkhand (Annexure-IV)'!AB138 -> 0 | W138: ='Jharkhand (Annexure-IV)'!AC138 -> 0 | X138: 0 | Y138: =SUM(Bokaro:Simdega!M138) -> 0 | Z138: TRUE
A139: 3.35 | B139: Capacity Building @ Rs.500/- per child per annum | C139: ='Jharkhand (Annexure-IV)'!C139 -> 0 | D139: ='Jharkhand (Annexure-IV)'!D139 -> 0 | E139: ='Jharkhand (Annexure-IV)'!E139 -> 0 | F139: ='Jharkhand (Annexure-IV)'!F139 -> 0 | G139: ='Jharkhand (Annexure-IV)'!G139 ->  | H139: ='Jharkhand (Annexure-IV)'!H139 ->  | I139: ='Jharkhand (Annexure-IV)'!L139 -> 0 | J139: ='Jharkhand (Annexure-IV)'!N139 -> 0 | K139: ='Jharkhand (Annexure-IV)'!O139 -> 0 | L139: ='Jharkhand (Annexure-IV)'!P139 -> 0 | M139: ='Jharkhand (Annexure-IV)'!Q139 -> 0 | N139: ='Jharkhand (Annexure-IV)'!R139 -> 0 | O139: ='Jharkhand (Annexure-IV)'!S139 -> 0 | P139: ='Jharkhand (Annexure-IV)'!U139 -> 0 | Q139: ='Jharkhand (Annexure-IV)'!W139 -> 0 | R139: ='Jharkhand (Annexure-IV)'!X139 -> 0 | S139: ='Jharkhand (Annexure-IV)'!Y139 -> 0 | T139: ='Jharkhand (Annexure-IV)'!Z139 -> 0 | U139: ='Jharkhand (Annexure-IV)'!AA139 -> 0 | V139: ='Jharkhand (Annexure-IV)'!AB139 -> 0 | W139: ='Jharkhand (Annexure-IV)'!AC139 -> 0 | X139: 0 | Y139: =SUM(Bokaro:Simdega!M139) -> 0 | Z139: TRUE
A140: 3.36 | B140: Physical / Self Defence training @ Rs. 200/- per child per annum. | C140: ='Jharkhand (Annexure-IV)'!C140 -> 0 | D140: ='Jharkhand (Annexure-IV)'!D140 -> 0 | E140: ='Jharkhand (Annexure-IV)'!E140 -> 0 | F140: ='Jharkhand (Annexure-IV)'!F140 -> 0 | G140: ='Jharkhand (Annexure-IV)'!G140 ->  | H140: ='Jharkhand (Annexure-IV)'!H140 ->  | I140: ='Jharkhand (Annexure-IV)'!L140 -> 0 | J140: ='Jharkhand (Annexure-IV)'!N140 -> 0 | K140: ='Jharkhand (Annexure-IV)'!O140 -> 0 | L140: ='Jharkhand (Annexure-IV)'!P140 -> 0 | M140: ='Jharkhand (Annexure-IV)'!Q140 -> 0 | N140: ='Jharkhand (Annexure-IV)'!R140 -> 0 | O140: ='Jharkhand (Annexure-IV)'!S140 -> 0 | P140: ='Jharkhand (Annexure-IV)'!U140 -> 0 | Q140: ='Jharkhand (Annexure-IV)'!W140 -> 0 | R140: ='Jharkhand (Annexure-IV)'!X140 -> 0 | S140: ='Jharkhand (Annexure-IV)'!Y140 -> 0 | T140: ='Jharkhand (Annexure-IV)'!Z140 -> 0 | U140: ='Jharkhand (Annexure-IV)'!AA140 -> 0 | V140: ='Jharkhand (Annexure-IV)'!AB140 -> 0 | W140: ='Jharkhand (Annexure-IV)'!AC140 -> 0 | X140: 0 | Y140: =SUM(Bokaro:Simdega!M140) -> 0 | Z140: TRUE
B141: Sub Total (Recurring) | C141: ='Jharkhand (Annexure-IV)'!C141 -> 0 | D141: ='Jharkhand (Annexure-IV)'!D141 -> 0 | E141: ='Jharkhand (Annexure-IV)'!E141 -> 0 | F141: ='Jharkhand (Annexure-IV)'!F141 -> 0 | G141: ='Jharkhand (Annexure-IV)'!G141 ->  | H141: ='Jharkhand (Annexure-IV)'!H141 ->  | I141: ='Jharkhand (Annexure-IV)'!L141 -> 0 | J141: ='Jharkhand (Annexure-IV)'!N141 -> 0 | K141: ='Jharkhand (Annexure-IV)'!O141 -> 0 | L141: ='Jharkhand (Annexure-IV)'!P141 -> 0 | M141: ='Jharkhand (Annexure-IV)'!Q141 -> 0 | N141: ='Jharkhand (Annexure-IV)'!R141 -> 0 | O141: ='Jharkhand (Annexure-IV)'!S141 -> 0 | P141: ='Jharkhand (Annexure-IV)'!U141 -> 0 | Q141: ='Jharkhand (Annexure-IV)'!W141 -> 0 | R141: ='Jharkhand (Annexure-IV)'!X141 -> 0 | S141: ='Jharkhand (Annexure-IV)'!Y141 -> 0 | T141: ='Jharkhand (Annexure-IV)'!Z141 -> 0 | U141: ='Jharkhand (Annexure-IV)'!AA141 -> 0 | V141: ='Jharkhand (Annexure-IV)'!AB141 -> 0 | W141: ='Jharkhand (Annexure-IV)'!AC141 -> 0 | X141: 0 | Z141: TRUE
B142: Total (Recurring + Non Recurring) | C142: ='Jharkhand (Annexure-IV)'!C142 -> 0 | D142: ='Jharkhand (Annexure-IV)'!D142 -> 0 | E142: ='Jharkhand (Annexure-IV)'!E142 -> 0 | F142: ='Jharkhand (Annexure-IV)'!F142 -> 0 | G142: ='Jharkhand (Annexure-IV)'!G142 ->  | H142: ='Jharkhand (Annexure-IV)'!H142 ->  | I142: ='Jharkhand (Annexure-IV)'!L142 -> 0 | J142: ='Jharkhand (Annexure-IV)'!N142 -> 0 | K142: ='Jharkhand (Annexure-IV)'!O142 -> 0 | L142: ='Jharkhand (Annexure-IV)'!P142 -> 0 | M142: ='Jharkhand (Annexure-IV)'!Q142 -> 0 | N142: ='Jharkhand (Annexure-IV)'!R142 -> 0 | O142: ='Jharkhand (Annexure-IV)'!S142 -> 0 | P142: ='Jharkhand (Annexure-IV)'!U142 -> 0 | Q142: ='Jharkhand (Annexure-IV)'!W142 -> 0 | R142: ='Jharkhand (Annexure-IV)'!X142 -> 0 | S142: ='Jharkhand (Annexure-IV)'!Y142 -> 0 | T142: ='Jharkhand (Annexure-IV)'!Z142 -> 0 | U142: ='Jharkhand (Annexure-IV)'!AA142 -> 0 | V142: ='Jharkhand (Annexure-IV)'!AB142 -> 0 | W142: ='Jharkhand (Annexure-IV)'!AC142 -> 0 | X142: 0 | Z142: TRUE
B143: Total (A + B) | C143: ='Jharkhand (Annexure-IV)'!C143 -> 0 | D143: ='Jharkhand (Annexure-IV)'!D143 -> 0 | E143: ='Jharkhand (Annexure-IV)'!E143 -> 0 | F143: ='Jharkhand (Annexure-IV)'!F143 -> 0 | G143: ='Jharkhand (Annexure-IV)'!G143 ->  | H143: ='Jharkhand (Annexure-IV)'!H143 ->  | I143: ='Jharkhand (Annexure-IV)'!L143 -> 0 | J143: ='Jharkhand (Annexure-IV)'!N143 -> 0 | K143: ='Jharkhand (Annexure-IV)'!O143 -> 0 | L143: ='Jharkhand (Annexure-IV)'!P143 -> 0 | M143: ='Jharkhand (Annexure-IV)'!Q143 -> 0 | N143: ='Jharkhand (Annexure-IV)'!R143 -> 0 | O143: ='Jharkhand (Annexure-IV)'!S143 -> 0 | P143: ='Jharkhand (Annexure-IV)'!U143 -> 0 | Q143: ='Jharkhand (Annexure-IV)'!W143 -> 0 | R143: ='Jharkhand (Annexure-IV)'!X143 -> 0 | S143: ='Jharkhand (Annexure-IV)'!Y143 -> 0 | T143: ='Jharkhand (Annexure-IV)'!Z143 -> 0 | U143: ='Jharkhand (Annexure-IV)'!AA143 -> 0 | V143: ='Jharkhand (Annexure-IV)'!AB143 -> 0 | W143: ='Jharkhand (Annexure-IV)'!AC143 -> 0 | X143: 0 | Z143: TRUE
A144: 4 | B144: Transport/Escort Facility | C144: ='Jharkhand (Annexure-IV)'!C144 -> 0 | D144: ='Jharkhand (Annexure-IV)'!D144 -> 0 | E144: ='Jharkhand (Annexure-IV)'!E144 -> 0 | F144: ='Jharkhand (Annexure-IV)'!F144 -> 0 | G144: ='Jharkhand (Annexure-IV)'!G144 ->  | H144: ='Jharkhand (Annexure-IV)'!H144 ->  | I144: ='Jharkhand (Annexure-IV)'!L144 -> 0 | J144: ='Jharkhand (Annexure-IV)'!N144 -> 0 | K144: ='Jharkhand (Annexure-IV)'!O144 -> 0 | L144: ='Jharkhand (Annexure-IV)'!P144 -> 0 | M144: ='Jharkhand (Annexure-IV)'!Q144 -> 0 | N144: ='Jharkhand (Annexure-IV)'!R144 -> 0 | O144: ='Jharkhand (Annexure-IV)'!S144 -> 0 | P144: ='Jharkhand (Annexure-IV)'!U144 -> 0 | Q144: ='Jharkhand (Annexure-IV)'!W144 -> 0 | R144: ='Jharkhand (Annexure-IV)'!X144 -> 0 | S144: ='Jharkhand (Annexure-IV)'!Y144 -> 0 | T144: ='Jharkhand (Annexure-IV)'!Z144 -> 0 | U144: ='Jharkhand (Annexure-IV)'!AA144 -> 0 | V144: ='Jharkhand (Annexure-IV)'!AB144 -> 0 | W144: ='Jharkhand (Annexure-IV)'!AC144 -> 0 | X144: 0 | Y144: =SUM(Bokaro:Simdega!M144) -> 0 | Z144: TRUE
A145: 4.01 | B145: Children in remote habitation | C145: ='Jharkhand (Annexure-IV)'!C145 -> 0 | D145: ='Jharkhand (Annexure-IV)'!D145 -> 0 | E145: ='Jharkhand (Annexure-IV)'!E145 -> 0 | F145: ='Jharkhand (Annexure-IV)'!F145 -> 0 | G145: ='Jharkhand (Annexure-IV)'!G145 ->  | H145: ='Jharkhand (Annexure-IV)'!H145 ->  | I145: ='Jharkhand (Annexure-IV)'!L145 -> 0 | J145: ='Jharkhand (Annexure-IV)'!N145 -> 0 | K145: ='Jharkhand (Annexure-IV)'!O145 -> 0.03 | L145: ='Jharkhand (Annexure-IV)'!P145 -> 329 | M145: ='Jharkhand (Annexure-IV)'!Q145 -> 9.87 | N145: ='Jharkhand (Annexure-IV)'!R145 -> 329 | O145: ='Jharkhand (Annexure-IV)'!S145 -> 9.87 | P145: ='Jharkhand (Annexure-IV)'!U145 -> 0 | Q145: ='Jharkhand (Annexure-IV)'!W145 -> 0 | R145: ='Jharkhand (Annexure-IV)'!X145 -> 0 | S145: ='Jharkhand (Annexure-IV)'!Y145 -> 0 | T145: ='Jharkhand (Annexure-IV)'!Z145 -> 0 | U145: ='Jharkhand (Annexure-IV)'!AA145 -> 0 | V145: ='Jharkhand (Annexure-IV)'!AB145 -> 0 | W145: ='Jharkhand (Annexure-IV)'!AC145 -> Not recommended | X145: =(L145*K145)+P145+Q145 -> 9.87 | Y145: =SUM(Bokaro:Simdega!M145) -> 0 | Z145: FALSE
A146: 4.02 | B146: Urban deprived children/children without adult protection | C146: ='Jharkhand (Annexure-IV)'!C146 -> 0 | D146: ='Jharkhand (Annexure-IV)'!D146 -> 0 | E146: ='Jharkhand (Annexure-IV)'!E146 -> 0 | F146: ='Jharkhand (Annexure-IV)'!F146 -> 0 | G146: ='Jharkhand (Annexure-IV)'!G146 ->  | H146: ='Jharkhand (Annexure-IV)'!H146 ->  | I146: ='Jharkhand (Annexure-IV)'!L146 -> 0 | J146: ='Jharkhand (Annexure-IV)'!N146 -> 0 | K146: ='Jharkhand (Annexure-IV)'!O146 -> 0.03 | L146: ='Jharkhand (Annexure-IV)'!P146 -> 0 | M146: ='Jharkhand (Annexure-IV)'!Q146 -> 0 | N146: ='Jharkhand (Annexure-IV)'!R146 -> 0 | O146: ='Jharkhand (Annexure-IV)'!S146 -> 0 | P146: ='Jharkhand (Annexure-IV)'!U146 -> 0 | Q146: ='Jharkhand (Annexure-IV)'!W146 -> 0 | R146: ='Jharkhand (Annexure-IV)'!X146 -> 0 | S146: ='Jharkhand (Annexure-IV)'!Y146 -> 0 | T146: ='Jharkhand (Annexure-IV)'!Z146 -> 0 | U146: ='Jharkhand (Annexure-IV)'!AA146 -> 0 | V146: ='Jharkhand (Annexure-IV)'!AB146 -> 0 | W146: ='Jharkhand (Annexure-IV)'!AC146 -> 0 | X146: 0 | Y146: =SUM(Bokaro:Simdega!M146) -> 0 | Z146: TRUE
B147: Sub Total | C147: ='Jharkhand (Annexure-IV)'!C147 -> 0 | D147: ='Jharkhand (Annexure-IV)'!D147 -> 0 | E147: ='Jharkhand (Annexure-IV)'!E147 -> 0 | F147: ='Jharkhand (Annexure-IV)'!F147 -> 0 | G147: ='Jharkhand (Annexure-IV)'!G147 ->  | H147: ='Jharkhand (Annexure-IV)'!H147 ->  | I147: ='Jharkhand (Annexure-IV)'!L147 -> 0 | J147: ='Jharkhand (Annexure-IV)'!N147 -> 0 | K147: ='Jharkhand (Annexure-IV)'!O147 -> 0 | L147: ='Jharkhand (Annexure-IV)'!P147 -> 0 | M147: ='Jharkhand (Annexure-IV)'!Q147 -> 9.87 | N147: ='Jharkhand (Annexure-IV)'!R147 -> 0 | O147: ='Jharkhand (Annexure-IV)'!S147 -> 9.87 | P147: ='Jharkhand (Annexure-IV)'!U147 -> 0 | Q147: ='Jharkhand (Annexure-IV)'!W147 -> 0 | R147: ='Jharkhand (Annexure-IV)'!X147 -> 0 | S147: ='Jharkhand (Annexure-IV)'!Y147 -> 0 | T147: ='Jharkhand (Annexure-IV)'!Z147 -> 0 | U147: ='Jharkhand (Annexure-IV)'!AA147 -> 0 | V147: ='Jharkhand (Annexure-IV)'!AB147 -> 0 | W147: ='Jharkhand (Annexure-IV)'!AC147 -> 0 | X147: 0 | Z147: TRUE
A148: 5 | B148: Reimbursement of Fee against 25% admission under Section 12(1)(c) of RTE Act 2009 (Entry Level) subject to upper limit of 20% of AWP&B subject to guidelines issued by MHRD | C148: ='Jharkhand (Annexure-IV)'!C148 -> 0 | D148: ='Jharkhand (Annexure-IV)'!D148 -> 0 | E148: ='Jharkhand (Annexure-IV)'!E148 -> 0 | F148: ='Jharkhand (Annexure-IV)'!F148 -> 0 | G148: ='Jharkhand (Annexure-IV)'!G148 ->  | H148: ='Jharkhand (Annexure-IV)'!H148 ->  | I148: ='Jharkhand (Annexure-IV)'!L148 -> 0 | J148: ='Jharkhand (Annexure-IV)'!N148 -> 0 | K148: ='Jharkhand (Annexure-IV)'!O148 -> 0 | L148: ='Jharkhand (Annexure-IV)'!P148 -> 13263 | M148: ='Jharkhand (Annexure-IV)'!Q148 -> 1000 | N148: ='Jharkhand (Annexure-IV)'!R148 -> 13263 | O148: ='Jharkhand (Annexure-IV)'!S148 -> 1000 | P148: ='Jharkhand (Annexure-IV)'!U148 -> 0 | Q148: ='Jharkhand (Annexure-IV)'!W148 -> 0 | R148: ='Jharkhand (Annexure-IV)'!X148 -> 0 | S148: ='Jharkhand (Annexure-IV)'!Y148 -> 13263 | T148: ='Jharkhand (Annexure-IV)'!Z148 -> 0 | U148: ='Jharkhand (Annexure-IV)'!AA148 -> 13263 | V148: ='Jharkhand (Annexure-IV)'!AB148 -> 0 | W148: ='Jharkhand (Annexure-IV)'!AC148 -> Rs. 1000.00 lakh proposed is recommended in principle only. The amount will be budgeted after completion of reimbursement process and submission of requisite documents. | X148: 0 | Y148: =SUM(Bokaro:Simdega!M148) -> 0 | Z148: TRUE
B149: a ) 2011-12 | C149: ='Jharkhand (Annexure-IV)'!C149 -> 0 | D149: ='Jharkhand (Annexure-IV)'!D149 -> 0 | E149: ='Jharkhand (Annexure-IV)'!E149 -> 0 | F149: ='Jharkhand (Annexure-IV)'!F149 -> 0 | G149: ='Jharkhand (Annexure-IV)'!G149 ->  | H149: ='Jharkhand (Annexure-IV)'!H149 ->  | I149: ='Jharkhand (Annexure-IV)'!L149 -> 0 | J149: ='Jharkhand (Annexure-IV)'!N149 -> 0 | K149: ='Jharkhand (Annexure-IV)'!O149 -> 0 | L149: ='Jharkhand (Annexure-IV)'!P149 -> 0 | M149: ='Jharkhand (Annexure-IV)'!Q149 -> 0 | N149: ='Jharkhand (Annexure-IV)'!R149 -> 0 | O149: ='Jharkhand (Annexure-IV)'!S149 -> 0 | P149: ='Jharkhand (Annexure-IV)'!U149 -> 0 | Q149: ='Jharkhand (Annexure-IV)'!W149 -> 0 | R149: ='Jharkhand (Annexure-IV)'!X149 -> 0 | S149: ='Jharkhand (Annexure-IV)'!Y149 -> 0 | T149: ='Jharkhand (Annexure-IV)'!Z149 -> 0 | U149: ='Jharkhand (Annexure-IV)'!AA149 -> 0 | V149: ='Jharkhand (Annexure-IV)'!AB149 -> 0 | W149: ='Jharkhand (Annexure-IV)'!AC149 -> 0 | X149: 0 | Y149: =SUM(Bokaro:Simdega!M149) -> 0 | Z149: TRUE
B150: b) 2012-13 | C150: ='Jharkhand (Annexure-IV)'!C150 -> 0 | D150: ='Jharkhand (Annexure-IV)'!D150 -> 0 | E150: ='Jharkhand (Annexure-IV)'!E150 -> 0 | F150: ='Jharkhand (Annexure-IV)'!F150 -> 0 | G150: ='Jharkhand (Annexure-IV)'!G150 ->  | H150: ='Jharkhand (Annexure-IV)'!H150 ->  | I150: ='Jharkhand (Annexure-IV)'!L150 -> 0 | J150: ='Jharkhand (Annexure-IV)'!N150 -> 0 | K150: ='Jharkhand (Annexure-IV)'!O150 -> 0 | L150: ='Jharkhand (Annexure-IV)'!P150 -> 0 | M150: ='Jharkhand (Annexure-IV)'!Q150 -> 0 | N150: ='Jharkhand (Annexure-IV)'!R150 -> 0 | O150: ='Jharkhand (Annexure-IV)'!S150 -> 0 | P150: ='Jharkhand (Annexure-IV)'!U150 -> 0 | Q150: ='Jharkhand (Annexure-IV)'!W150 -> 0 | R150: ='Jharkhand (Annexure-IV)'!X150 -> 0 | S150: ='Jharkhand (Annexure-IV)'!Y150 -> 0 | T150: ='Jharkhand (Annexure-IV)'!Z150 -> 0 | U150: ='Jharkhand (Annexure-IV)'!AA150 -> 0 | V150: ='Jharkhand (Annexure-IV)'!AB150 -> 0 | W150: ='Jharkhand (Annexure-IV)'!AC150 -> 0 | X150: 0 | Y150: =SUM(Bokaro:Simdega!M150) -> 0 | Z150: TRUE
B151: c) 2013-14 | C151: ='Jharkhand (Annexure-IV)'!C151 -> 0 | D151: ='Jharkhand (Annexure-IV)'!D151 -> 0 | E151: ='Jharkhand (Annexure-IV)'!E151 -> 0 | F151: ='Jharkhand (Annexure-IV)'!F151 -> 0 | G151: ='Jharkhand (Annexure-IV)'!G151 ->  | H151: ='Jharkhand (Annexure-IV)'!H151 ->  | I151: ='Jharkhand (Annexure-IV)'!L151 -> 0 | J151: ='Jharkhand (Annexure-IV)'!N151 -> 0 | K151: ='Jharkhand (Annexure-IV)'!O151 -> 0 | L151: ='Jharkhand (Annexure-IV)'!P151 -> 0 | M151: ='Jharkhand (Annexure-IV)'!Q151 -> 0 | N151: ='Jharkhand (Annexure-IV)'!R151 -> 0 | O151: ='Jharkhand (Annexure-IV)'!S151 -> 0 | P151: ='Jharkhand (Annexure-IV)'!U151 -> 0 | Q151: ='Jharkhand (Annexure-IV)'!W151 -> 0 | R151: ='Jharkhand (Annexure-IV)'!X151 -> 0 | S151: ='Jharkhand (Annexure-IV)'!Y151 -> 0 | T151: ='Jharkhand (Annexure-IV)'!Z151 -> 0 | U151: ='Jharkhand (Annexure-IV)'!AA151 -> 0 | V151: ='Jharkhand (Annexure-IV)'!AB151 -> 0 | W151: ='Jharkhand (Annexure-IV)'!AC151 -> 0 | X151: 0 | Y151: =SUM(Bokaro:Simdega!M151) -> 0 | Z151: TRUE
B152: d) 2014-15 | C152: ='Jharkhand (Annexure-IV)'!C152 -> 0 | D152: ='Jharkhand (Annexure-IV)'!D152 -> 0 | E152: ='Jharkhand (Annexure-IV)'!E152 -> 0 | F152: ='Jharkhand (Annexure-IV)'!F152 -> 0 | G152: ='Jharkhand (Annexure-IV)'!G152 ->  | H152: ='Jharkhand (Annexure-IV)'!H152 ->  | I152: ='Jharkhand (Annexure-IV)'!L152 -> 0 | J152: ='Jharkhand (Annexure-IV)'!N152 -> 0 | K152: ='Jharkhand (Annexure-IV)'!O152 -> 0 | L152: ='Jharkhand (Annexure-IV)'!P152 -> 0 | M152: ='Jharkhand (Annexure-IV)'!Q152 -> 0 | N152: ='Jharkhand (Annexure-IV)'!R152 -> 0 | O152: ='Jharkhand (Annexure-IV)'!S152 -> 0 | P152: ='Jharkhand (Annexure-IV)'!U152 -> 0 | Q152: ='Jharkhand (Annexure-IV)'!W152 -> 0 | R152: ='Jharkhand (Annexure-IV)'!X152 -> 0 | S152: ='Jharkhand (Annexure-IV)'!Y152 -> 0 | T152: ='Jharkhand (Annexure-IV)'!Z152 -> 0 | U152: ='Jharkhand (Annexure-IV)'!AA152 -> 0 | V152: ='Jharkhand (Annexure-IV)'!AB152 -> 0 | W152: ='Jharkhand (Annexure-IV)'!AC152 -> 0 | X152: 0 | Y152: =SUM(Bokaro:Simdega!M152) -> 0 | Z152: TRUE
B153: e) 2015-16 | C153: ='Jharkhand (Annexure-IV)'!C154 -> 0 | D153: ='Jharkhand (Annexure-IV)'!D154 -> 0 | E153: ='Jharkhand (Annexure-IV)'!E154 -> 0 | F153: ='Jharkhand (Annexure-IV)'!F154 -> 0 | G153: ='Jharkhand (Annexure-IV)'!G154 ->  | H153: ='Jharkhand (Annexure-IV)'!H154 ->  | I153: ='Jharkhand (Annexure-IV)'!L154 -> 0 | J153: ='Jharkhand (Annexure-IV)'!N154 -> 0 | K153: ='Jharkhand (Annexure-IV)'!O154 -> 0 | L153: ='Jharkhand (Annexure-IV)'!P154 -> 0 | M153: ='Jharkhand (Annexure-IV)'!Q154 -> 0 | N153: ='Jharkhand (Annexure-IV)'!R154 -> 0 | O153: ='Jharkhand (Annexure-IV)'!S154 -> 0 | P153: ='Jharkhand (Annexure-IV)'!U154 -> 0 | Q153: ='Jharkhand (Annexure-IV)'!W154 -> 0 | R153: ='Jharkhand (Annexure-IV)'!X154 -> 0 | S153: ='Jharkhand (Annexure-IV)'!Y154 -> 0 | T153: ='Jharkhand (Annexure-IV)'!Z154 -> 0 | U153: ='Jharkhand (Annexure-IV)'!AA154 -> 0 | V153: ='Jharkhand (Annexure-IV)'!AB154 -> 0 | W153: ='Jharkhand (Annexure-IV)'!AC154 -> 0 | X153: 0 | Y153: =SUM(Bokaro:Simdega!M154) -> 0 | Z153: TRUE
B154: Sub Total | C154: ='Jharkhand (Annexure-IV)'!C155 -> 0 | D154: ='Jharkhand (Annexure-IV)'!D155 -> 0 | E154: ='Jharkhand (Annexure-IV)'!E155 -> 0 | F154: ='Jharkhand (Annexure-IV)'!F155 -> 0 | G154: ='Jharkhand (Annexure-IV)'!G155 ->  | H154: ='Jharkhand (Annexure-IV)'!H155 ->  | I154: ='Jharkhand (Annexure-IV)'!L155 -> 0 | J154: ='Jharkhand (Annexure-IV)'!N155 -> 0 | K154: ='Jharkhand (Annexure-IV)'!O155 -> 0 | L154: ='Jharkhand (Annexure-IV)'!P155 -> 13263 | M154: ='Jharkhand (Annexure-IV)'!Q155 -> 1000 | N154: ='Jharkhand (Annexure-IV)'!R155 -> 13263 | O154: ='Jharkhand (Annexure-IV)'!S155 -> 1000 | P154: ='Jharkhand (Annexure-IV)'!U155 -> 0 | Q154: ='Jharkhand (Annexure-IV)'!W155 -> 0 | R154: ='Jharkhand (Annexure-IV)'!X155 -> 0 | S154: ='Jharkhand (Annexure-IV)'!Y155 -> 13263 | T154: ='Jharkhand (Annexure-IV)'!Z155 -> 0 | U154: ='Jharkhand (Annexure-IV)'!AA155 -> 13263 | V154: ='Jharkhand (Annexure-IV)'!AB155 -> 0 | W154: ='Jharkhand (Annexure-IV)'!AC155 -> 0 | X154: 0 | Z154: TRUE
A155: =+A148+1 -> 6 | B155: Special Training for mainstreaming of out of school children | C155: ='Jharkhand (Annexure-IV)'!C156 -> 0 | D155: ='Jharkhand (Annexure-IV)'!D156 -> 0 | E155: ='Jharkhand (Annexure-IV)'!E156 -> 0 | F155: ='Jharkhand (Annexure-IV)'!F156 -> 0 | G155: ='Jharkhand (Annexure-IV)'!G156 ->  | H155: ='Jharkhand (Annexure-IV)'!H156 ->  | I155: ='Jharkhand (Annexure-IV)'!L156 -> 0 | J155: ='Jharkhand (Annexure-IV)'!N156 -> 0 | K155: ='Jharkhand (Annexure-IV)'!O156 -> 0 | L155: ='Jharkhand (Annexure-IV)'!P156 -> 0 | M155: ='Jharkhand (Annexure-IV)'!Q156 -> 0 | N155: ='Jharkhand (Annexure-IV)'!R156 -> 0 | O155: ='Jharkhand (Annexure-IV)'!S156 -> 0 | P155: ='Jharkhand (Annexure-IV)'!U156 -> 0 | Q155: ='Jharkhand (Annexure-IV)'!W156 -> 0 | R155: ='Jharkhand (Annexure-IV)'!X156 -> 0 | S155: ='Jharkhand (Annexure-IV)'!Y156 -> 0 | T155: ='Jharkhand (Annexure-IV)'!Z156 -> 0 | U155: ='Jharkhand (Annexure-IV)'!AA156 -> 0 | V155: ='Jharkhand (Annexure-IV)'!AB156 -> 0 | W155: ='Jharkhand (Annexure-IV)'!AC156 -> 0 | X155: 0 | Y155: =SUM(Bokaro:Simdega!M156) -> 0 | Z155: TRUE
A156: 6.01 | B156: Residential (Fresh) | C156: ='Jharkhand (Annexure-IV)'!C157 -> 0 | D156: ='Jharkhand (Annexure-IV)'!D157 -> 0 | E156: ='Jharkhand (Annexure-IV)'!E157 -> 0 | F156: ='Jharkhand (Annexure-IV)'!F157 -> 0 | G156: ='Jharkhand (Annexure-IV)'!G157 ->  | H156: ='Jharkhand (Annexure-IV)'!H157 ->  | I156: ='Jharkhand (Annexure-IV)'!L157 -> 0 | J156: ='Jharkhand (Annexure-IV)'!N157 -> 0 | K156: ='Jharkhand (Annexure-IV)'!O157 -> 0 | L156: ='Jharkhand (Annexure-IV)'!P157 -> 0 | M156: ='Jharkhand (Annexure-IV)'!Q157 -> 0 | N156: ='Jharkhand (Annexure-IV)'!R157 -> 0 | O156: ='Jharkhand (Annexure-IV)'!S157 -> 0 | P156: ='Jharkhand (Annexure-IV)'!U157 -> 0 | Q156: ='Jharkhand (Annexure-IV)'!W157 -> 0 | R156: ='Jharkhand (Annexure-IV)'!X157 -> 0 | S156: ='Jharkhand (Annexure-IV)'!Y157 -> 0 | T156: ='Jharkhand (Annexure-IV)'!Z157 -> 0 | U156: ='Jharkhand (Annexure-IV)'!AA157 -> 0 | V156: ='Jharkhand (Annexure-IV)'!AB157 -> 0 | W156: ='Jharkhand (Annexure-IV)'!AC157 -> 0 | X156: 0 | Y156: =SUM(Bokaro:Simdega!M157) -> 0 | Z156: TRUE
B157: (a) 12 months | C157: ='Jharkhand (Annexure-IV)'!C158 -> 0 | D157: ='Jharkhand (Annexure-IV)'!D158 -> 0 | E157: ='Jharkhand (Annexure-IV)'!E158 -> 0 | F157: ='Jharkhand (Annexure-IV)'!F158 -> 0 | G157: ='Jharkhand (Annexure-IV)'!G158 ->  | H157: ='Jharkhand (Annexure-IV)'!H158 ->  | I157: ='Jharkhand (Annexure-IV)'!L158 -> 0 | J157: ='Jharkhand (Annexure-IV)'!N158 -> 0 | K157: ='Jharkhand (Annexure-IV)'!O158 -> 0.2 | L157: ='Jharkhand (Annexure-IV)'!P158 -> 0 | M157: ='Jharkhand (Annexure-IV)'!Q158 -> 0 | N157: ='Jharkhand (Annexure-IV)'!R158 -> 0 | O157: ='Jharkhand (Annexure-IV)'!S158 -> 0 | P157: ='Jharkhand (Annexure-IV)'!U158 -> 0 | Q157: ='Jharkhand (Annexure-IV)'!W158 -> 0 | R157: ='Jharkhand (Annexure-IV)'!X158 -> 0 | S157: ='Jharkhand (Annexure-IV)'!Y158 -> 0 | T157: ='Jharkhand (Annexure-IV)'!Z158 -> 0 | U157: ='Jharkhand (Annexure-IV)'!AA158 -> 0 | V157: ='Jharkhand (Annexure-IV)'!AB158 -> 0 | W157: ='Jharkhand (Annexure-IV)'!AC158 -> 0 | X157: 0 | Y157: =SUM(Bokaro:Simdega!M158) -> 0 | Z157: TRUE
B158: (b) 9 months | C158: ='Jharkhand (Annexure-IV)'!C159 -> 0 | D158: ='Jharkhand (Annexure-IV)'!D159 -> 0 | E158: ='Jharkhand (Annexure-IV)'!E159 -> 0 | F158: ='Jharkhand (Annexure-IV)'!F159 -> 0 | G158: ='Jharkhand (Annexure-IV)'!G159 ->  | H158: ='Jharkhand (Annexure-IV)'!H159 ->  | I158: ='Jharkhand (Annexure-IV)'!L159 -> 0 | J158: ='Jharkhand (Annexure-IV)'!N159 -> 0 | K158: ='Jharkhand (Annexure-IV)'!O159 -> 0.15 | L158: ='Jharkhand (Annexure-IV)'!P159 -> 1039 | M158: ='Jharkhand (Annexure-IV)'!Q159 -> 155.85 | N158: ='Jharkhand (Annexure-IV)'!R159 -> 1039 | O158: ='Jharkhand (Annexure-IV)'!S159 -> 155.85 | P158: ='Jharkhand (Annexure-IV)'!U159 -> 0 | Q158: ='Jharkhand (Annexure-IV)'!W159 -> 0 | R158: ='Jharkhand (Annexure-IV)'!X159 -> 0.15 | S158: ='Jharkhand (Annexure-IV)'!Y159 -> 989 | T158: ='Jharkhand (Annexure-IV)'!Z159 -> 148.35 | U158: ='Jharkhand (Annexure-IV)'!AA159 -> 989 | V158: ='Jharkhand (Annexure-IV)'!AB159 -> 148.35 | W158: ='Jharkhand (Annexure-IV)'!AC159 -> Recommended as appraised | X158: 155.85 | Y158: =SUM(Bokaro:Simdega!M159) -> 0 | Z158: FALSE
B159: (c) 6 months | C159: ='Jharkhand (Annexure-IV)'!C160 -> 5126 | D159: ='Jharkhand (Annexure-IV)'!D160 -> 512.6 | E159: ='Jharkhand (Annexure-IV)'!E160 -> 3107 | F159: ='Jharkhand (Annexure-IV)'!F160 -> 299.41 | G159: ='Jharkhand (Annexure-IV)'!G160 -> 0.606125634 | H159: ='Jharkhand (Annexure-IV)'!H160 -> 0.5841006633 | I159: ='Jharkhand (Annexure-IV)'!L160 -> 0 | J159: ='Jharkhand (Annexure-IV)'!N160 -> 0 | K159: ='Jharkhand (Annexure-IV)'!O160 -> 0.1 | L159: ='Jharkhand (Annexure-IV)'!P160 -> 2760 | M159: ='Jharkhand (Annexure-IV)'!Q160 -> 276 | N159: ='Jharkhand (Annexure-IV)'!R160 -> 2760 | O159: ='Jharkhand (Annexure-IV)'!S160 -> 276 | P159: ='Jharkhand (Annexure-IV)'!U160 -> 0 | Q159: ='Jharkhand (Annexure-IV)'!W160 -> 0 | R159: ='Jharkhand (Annexure-IV)'!X160 -> 0.1 | S159: ='Jharkhand (Annexure-IV)'!Y160 -> 2760 | T159: ='Jharkhand (Annexure-IV)'!Z160 -> 276 | U159: ='Jharkhand (Annexure-IV)'!AA160 -> 2760 | V159: ='Jharkhand (Annexure-IV)'!AB160 -> 276 | W159: ='Jharkhand (Annexure-IV)'!AC160 -> Recommended as proposed | X159: 276 | Y159: =SUM(Bokaro:Simdega!M160) -> 0 | Z159: FALSE
B160: (d) 3 months | C160: ='Jharkhand (Annexure-IV)'!C161 -> 0 | D160: ='Jharkhand (Annexure-IV)'!D161 -> 0 | E160: ='Jharkhand (Annexure-IV)'!E161 -> 0 | F160: ='Jharkhand (Annexure-IV)'!F161 -> 0 | G160: ='Jharkhand (Annexure-IV)'!G161 ->  | H160: ='Jharkhand (Annexure-IV)'!H161 ->  | I160: ='Jharkhand (Annexure-IV)'!L161 -> 0 | J160: ='Jharkhand (Annexure-IV)'!N161 -> 0 | K160: ='Jharkhand (Annexure-IV)'!O161 -> 0.05 | L160: ='Jharkhand (Annexure-IV)'!P161 -> 0 | M160: ='Jharkhand (Annexure-IV)'!Q161 -> 0 | N160: ='Jharkhand (Annexure-IV)'!R161 -> 0 | O160: ='Jharkhand (Annexure-IV)'!S161 -> 0 | P160: ='Jharkhand (Annexure-IV)'!U161 -> 0 | Q160: ='Jharkhand (Annexure-IV)'!W161 -> 0 | R160: ='Jharkhand (Annexure-IV)'!X161 -> 0 | S160: ='Jharkhand (Annexure-IV)'!Y161 -> 0 | T160: ='Jharkhand (Annexure-IV)'!Z161 -> 0 | U160: ='Jharkhand (Annexure-IV)'!AA161 -> 0 | V160: ='Jharkhand (Annexure-IV)'!AB161 -> 0 | W160: ='Jharkhand (Annexure-IV)'!AC161 -> 0 | X160: 0 | Y160: =SUM(Bokaro:Simdega!M161) -> 0 | Z160: TRUE
B161: Sub Total | C161: ='Jharkhand (Annexure-IV)'!C162 -> 5126 | D161: ='Jharkhand (Annexure-IV)'!D162 -> 512.6 | E161: ='Jharkhand (Annexure-IV)'!E162 -> 3107 | F161: ='Jharkhand (Annexure-IV)'!F162 -> 299.41 | G161: ='Jharkhand (Annexure-IV)'!G162 -> 0.606125634 | H161: ='Jharkhand (Annexure-IV)'!H162 -> 0.5841006633 | I161: ='Jharkhand (Annexure-IV)'!L162 -> 0 | J161: ='Jharkhand (Annexure-IV)'!N162 -> 0 | K161: ='Jharkhand (Annexure-IV)'!O162 -> 0 | L161: ='Jharkhand (Annexure-IV)'!P162 -> 3799 | M161: ='Jharkhand (Annexure-IV)'!Q162 -> 431.85 | N161: ='Jharkhand (Annexure-IV)'!R162 -> 3799 | O161: ='Jharkhand (Annexure-IV)'!S162 -> 431.85 | P161: ='Jharkhand (Annexure-IV)'!U162 -> 0 | Q161: ='Jharkhand (Annexure-IV)'!W162 -> 0 | R161: ='Jharkhand (Annexure-IV)'!X162 -> 0 | S161: ='Jharkhand (Annexure-IV)'!Y162 -> 3749 | T161: ='Jharkhand (Annexure-IV)'!Z162 -> 424.35 | U161: ='Jharkhand (Annexure-IV)'!AA162 -> 3749 | V161: ='Jharkhand (Annexure-IV)'!AB162 -> 424.35 | W161: ='Jharkhand (Annexure-IV)'!AC162 -> 0 | X161: 0 | Z161: TRUE
A162: =+A156+0.01 -> 6.02 | B162: Residential (Continuing from previous year) | C162: ='Jharkhand (Annexure-IV)'!C163 -> 0 | D162: ='Jharkhand (Annexure-IV)'!D163 -> 0 | E162: ='Jharkhand (Annexure-IV)'!E163 -> 0 | F162: ='Jharkhand (Annexure-IV)'!F163 -> 0 | G162: ='Jharkhand (Annexure-IV)'!G163 ->  | H162: ='Jharkhand (Annexure-IV)'!H163 ->  | I162: ='Jharkhand (Annexure-IV)'!L163 -> 0 | J162: ='Jharkhand (Annexure-IV)'!N163 -> 0 | K162: ='Jharkhand (Annexure-IV)'!O163 -> 0 | L162: ='Jharkhand (Annexure-IV)'!P163 -> 0 | M162: ='Jharkhand (Annexure-IV)'!Q163 -> 0 | N162: ='Jharkhand (Annexure-IV)'!R163 -> 0 | O162: ='Jharkhand (Annexure-IV)'!S163 -> 0 | P162: ='Jharkhand (Annexure-IV)'!U163 -> 0 | Q162: ='Jharkhand (Annexure-IV)'!W163 -> 0 | R162: ='Jharkhand (Annexure-IV)'!X163 -> 0 | S162: ='Jharkhand (Annexure-IV)'!Y163 -> 0 | T162: ='Jharkhand (Annexure-IV)'!Z163 -> 0 | U162: ='Jharkhand (Annexure-IV)'!AA163 -> 0 | V162: ='Jharkhand (Annexure-IV)'!AB163 -> 0 | W162: ='Jharkhand (Annexure-IV)'!AC163 -> 0 | X162: 0 | Y162: =SUM(Bokaro:Simdega!M163) -> 0 | Z162: TRUE
B163: (a) 12 months | C163: ='Jharkhand (Annexure-IV)'!C164 -> 0 | D163: ='Jharkhand (Annexure-IV)'!D164 -> 0 | E163: ='Jharkhand (Annexure-IV)'!E164 -> 0 | F163: ='Jharkhand (Annexure-IV)'!F164 -> 0 | G163: ='Jharkhand (Annexure-IV)'!G164 ->  | H163: ='Jharkhand (Annexure-IV)'!H164 ->  | I163: ='Jharkhand (Annexure-IV)'!L164 -> 0 | J163: ='Jharkhand (Annexure-IV)'!N164 -> 0 | K163: ='Jharkhand (Annexure-IV)'!O164 -> 0.2 | L163: ='Jharkhand (Annexure-IV)'!P164 -> 0 | M163: ='Jharkhand (Annexure-IV)'!Q164 -> 0 | N163: ='Jharkhand (Annexure-IV)'!R164 -> 0 | O163: ='Jharkhand (Annexure-IV)'!S164 -> 0 | P163: ='Jharkhand (Annexure-IV)'!U164 -> 0 | Q163: ='Jharkhand (Annexure-IV)'!W164 -> 0 | R163: ='Jharkhand (Annexure-IV)'!X164 -> 0 | S163: ='Jharkhand (Annexure-IV)'!Y164 -> 0 | T163: ='Jharkhand (Annexure-IV)'!Z164 -> 0 | U163: ='Jharkhand (Annexure-IV)'!AA164 -> 0 | V163: ='Jharkhand (Annexure-IV)'!AB164 -> 0 | W163: ='Jharkhand (Annexure-IV)'!AC164 -> 0 | X163: 0 | Y163: =SUM(Bokaro:Simdega!M164) -> 0 | Z163: TRUE
B164: (b) 9 months | C164: ='Jharkhand (Annexure-IV)'!C165 -> 0 | D164: ='Jharkhand (Annexure-IV)'!D165 -> 0 | E164: ='Jharkhand (Annexure-IV)'!E165 -> 0 | F164: ='Jharkhand (Annexure-IV)'!F165 -> 0 | G164: ='Jharkhand (Annexure-IV)'!G165 ->  | H164: ='Jharkhand (Annexure-IV)'!H165 ->  | I164: ='Jharkhand (Annexure-IV)'!L165 -> 0 | J164: ='Jharkhand (Annexure-IV)'!N165 -> 0 | K164: ='Jharkhand (Annexure-IV)'!O165 -> 0.15 | L164: ='Jharkhand (Annexure-IV)'!P165 -> 0 | M164: ='Jharkhand (Annexure-IV)'!Q165 -> 0 | N164: ='Jharkhand (Annexure-IV)'!R165 -> 0 | O164: ='Jharkhand (Annexure-IV)'!S165 -> 0 | P164: ='Jharkhand (Annexure-IV)'!U165 -> 0 | Q164: ='Jharkhand (Annexure-IV)'!W165 -> 0 | R164: ='Jharkhand (Annexure-IV)'!X165 -> 0 | S164: ='Jharkhand (Annexure-IV)'!Y165 -> 0 | T164: ='Jharkhand (Annexure-IV)'!Z165 -> 0 | U164: ='Jharkhand (Annexure-IV)'!AA165 -> 0 | V164: ='Jharkhand (Annexure-IV)'!AB165 -> 0 | W164: ='Jharkhand (Annexure-IV)'!AC165 -> 0 | X164: 0 | Y164: =SUM(Bokaro:Simdega!M165) -> 0 | Z164: TRUE
B165: (c) 6 months | C165: ='Jharkhand (Annexure-IV)'!C166 -> 0 | D165: ='Jharkhand (Annexure-IV)'!D166 -> 0 | E165: ='Jharkhand (Annexure-IV)'!E166 -> 0 | F165: ='Jharkhand (Annexure-IV)'!F166 -> 0 | G165: ='Jharkhand (Annexure-IV)'!G166 ->  | H165: ='Jharkhand (Annexure-IV)'!H166 ->  | I165: ='Jharkhand (Annexure-IV)'!L166 -> 0 | J165: ='Jharkhand (Annexure-IV)'!N166 -> 0 | K165: ='Jharkhand (Annexure-IV)'!O166 -> 0.1 | L165: ='Jharkhand (Annexure-IV)'!P166 -> 0 | M165: ='Jharkhand (Annexure-IV)'!Q166 -> 0 | N165: ='Jharkhand (Annexure-IV)'!R166 -> 0 | O165: ='Jharkhand (Annexure-IV)'!S166 -> 0 | P165: ='Jharkhand (Annexure-IV)'!U166 -> 0 | Q165: ='Jharkhand (Annexure-IV)'!W166 -> 0 | R165: ='Jharkhand (Annexure-IV)'!X166 -> 0 | S165: ='Jharkhand (Annexure-IV)'!Y166 -> 0 | T165: ='Jharkhand (Annexure-IV)'!Z166 -> 0 | U165: ='Jharkhand (Annexure-IV)'!AA166 -> 0 | V165: ='Jharkhand (Annexure-IV)'!AB166 -> 0 | W165: ='Jharkhand (Annexure-IV)'!AC166 -> 0 | X165: 0 | Y165: =SUM(Bokaro:Simdega!M166) -> 0 | Z165: TRUE
B166: (d) 3 months | C166: ='Jharkhand (Annexure-IV)'!C167 -> 1533 | D166: ='Jharkhand (Annexure-IV)'!D167 -> 39.22 | E166: ='Jharkhand (Annexure-IV)'!E167 -> 1533 | F166: ='Jharkhand (Annexure-IV)'!F167 -> 37.63 | G166: ='Jharkhand (Annexure-IV)'!G167 -> 1 | H166: ='Jharkhand (Annexure-IV)'!H167 -> 0.9594594595 | I166: ='Jharkhand (Annexure-IV)'!L167 -> 0 | J166: ='Jharkhand (Annexure-IV)'!N167 -> 0 | K166: ='Jharkhand (Annexure-IV)'!O167 -> 0 | L166: ='Jharkhand (Annexure-IV)'!P167 -> 0 | M166: ='Jharkhand (Annexure-IV)'!Q167 -> 0 | N166: ='Jharkhand (Annexure-IV)'!R167 -> 0 | O166: ='Jharkhand (Annexure-IV)'!S167 -> 0 | P166: ='Jharkhand (Annexure-IV)'!U167 -> 0 | Q166: ='Jharkhand (Annexure-IV)'!W167 -> 0 | R166: ='Jharkhand (Annexure-IV)'!X167 -> 0 | S166: ='Jharkhand (Annexure-IV)'!Y167 -> 0 | T166: ='Jharkhand (Annexure-IV)'!Z167 -> 0 | U166: ='Jharkhand (Annexure-IV)'!AA167 -> 0 | V166: ='Jharkhand (Annexure-IV)'!AB167 -> 0 | W166: ='Jharkhand (Annexure-IV)'!AC167 -> 0 | X166: 0 | Y166: =SUM(Bokaro:Simdega!M167) -> 0 | Z166: TRUE
B167: Sub Total | C167: ='Jharkhand (Annexure-IV)'!C168 -> 1533 | D167: ='Jharkhand (Annexure-IV)'!D168 -> 39.22 | E167: ='Jharkhand (Annexure-IV)'!E168 -> 1533 | F167: ='Jharkhand (Annexure-IV)'!F168 -> 37.63 | G167: ='Jharkhand (Annexure-IV)'!G168 -> 1 | H167: ='Jharkhand (Annexure-IV)'!H168 -> 0.9594594595 | I167: ='Jharkhand (Annexure-IV)'!L168 -> 0 | J167: ='Jharkhand (Annexure-IV)'!N168 -> 0 | K167: ='Jharkhand (Annexure-IV)'!O168 -> 0 | L167: ='Jharkhand (Annexure-IV)'!P168 -> 0 | M167: ='Jharkhand (Annexure-IV)'!Q168 -> 0 | N167: ='Jharkhand (Annexure-IV)'!R168 -> 0 | O167: ='Jharkhand (Annexure-IV)'!S168 -> 0 | P167: ='Jharkhand (Annexure-IV)'!U168 -> 0 | Q167: ='Jharkhand (Annexure-IV)'!W168 -> 0 | R167: ='Jharkhand (Annexure-IV)'!X168 -> 0 | S167: ='Jharkhand (Annexure-IV)'!Y168 -> 0 | T167: ='Jharkhand (Annexure-IV)'!Z168 -> 0 | U167: ='Jharkhand (Annexure-IV)'!AA168 -> 0 | V167: ='Jharkhand (Annexure-IV)'!AB168 -> 0 | W167: ='Jharkhand (Annexure-IV)'!AC168 -> 0 | X167: 0 | Z167: TRUE
A168: 6.03 | B168: Non-Residential (Fresh) | C168: ='Jharkhand (Annexure-IV)'!C169 -> 0 | D168: ='Jharkhand (Annexure-IV)'!D169 -> 0 | E168: ='Jharkhand (Annexure-IV)'!E169 -> 0 | F168: ='Jharkhand (Annexure-IV)'!F169 -> 0 | G168: ='Jharkhand (Annexure-IV)'!G169 ->  | H168: ='Jharkhand (Annexure-IV)'!H169 ->  | I168: ='Jharkhand (Annexure-IV)'!L169 -> 0 | J168: ='Jharkhand (Annexure-IV)'!N169 -> 0 | K168: ='Jharkhand (Annexure-IV)'!O169 -> 0 | L168: ='Jharkhand (Annexure-IV)'!P169 -> 0 | M168: ='Jharkhand (Annexure-IV)'!Q169 -> 0 | N168: ='Jharkhand (Annexure-IV)'!R169 -> 0 | O168: ='Jharkhand (Annexure-IV)'!S169 -> 0 | P168: ='Jharkhand (Annexure-IV)'!U169 -> 0 | Q168: ='Jharkhand (Annexure-IV)'!W169 -> 0 | R168: ='Jharkhand (Annexure-IV)'!X169 -> 0 | S168: ='Jharkhand (Annexure-IV)'!Y169 -> 0 | T168: ='Jharkhand (Annexure-IV)'!Z169 -> 0 | U168: ='Jharkhand (Annexure-IV)'!AA169 -> 0 | V168: ='Jharkhand (Annexure-IV)'!AB169 -> 0 | W168: ='Jharkhand (Annexure-IV)'!AC169 -> 0 | X168: 0 | Y168: =SUM(Bokaro:Simdega!M169) -> 0 | Z168: TRUE
B169: (a) 12 months | C169: ='Jharkhand (Annexure-IV)'!C170 -> 0 | D169: ='Jharkhand (Annexure-IV)'!D170 -> 0 | E169: ='Jharkhand (Annexure-IV)'!E170 -> 0 | F169: ='Jharkhand (Annexure-IV)'!F170 -> 0 | G169: ='Jharkhand (Annexure-IV)'!G170 ->  | H169: ='Jharkhand (Annexure-IV)'!H170 ->  | I169: ='Jharkhand (Annexure-IV)'!L170 -> 0 | J169: ='Jharkhand (Annexure-IV)'!N170 -> 0 | K169: ='Jharkhand (Annexure-IV)'!O170 -> 0.072 | L169: ='Jharkhand (Annexure-IV)'!P170 -> 0 | M169: ='Jharkhand (Annexure-IV)'!Q170 -> 0 | N169: ='Jharkhand (Annexure-IV)'!R170 -> 0 | O169: ='Jharkhand (Annexure-IV)'!S170 -> 0 | P169: ='Jharkhand (Annexure-IV)'!U170 -> 0 | Q169: ='Jharkhand (Annexure-IV)'!W170 -> 0 | R169: ='Jharkhand (Annexure-IV)'!X170 -> 0 | S169: ='Jharkhand (Annexure-IV)'!Y170 -> 0 | T169: ='Jharkhand (Annexure-IV)'!Z170 -> 0 | U169: ='Jharkhand (Annexure-IV)'!AA170 -> 0 | V169: ='Jharkhand (Annexure-IV)'!AB170 -> 0 | W169: ='Jharkhand (Annexure-IV)'!AC170 -> 0 | X169: 0 | Y169: =SUM(Bokaro:Simdega!M170) -> 0 | Z169: TRUE
B170: (b) 9 months | C170: ='Jharkhand (Annexure-IV)'!C171 -> 0 | D170: ='Jharkhand (Annexure-IV)'!D171 -> 0 | E170: ='Jharkhand (Annexure-IV)'!E171 -> 0 | F170: ='Jharkhand (Annexure-IV)'!F171 -> 0 | G170: ='Jharkhand (Annexure-IV)'!G171 ->  | H170: ='Jharkhand (Annexure-IV)'!H171 ->  | I170: ='Jharkhand (Annexure-IV)'!L171 -> 0 | J170: ='Jharkhand (Annexure-IV)'!N171 -> 0 | K170: ='Jharkhand (Annexure-IV)'!O171 -> 0.054 | L170: ='Jharkhand (Annexure-IV)'!P171 -> 7218 | M170: ='Jharkhand (Annexure-IV)'!Q171 -> 389.772 | N170: ='Jharkhand (Annexure-IV)'!R171 -> 7218 | O170: ='Jharkhand (Annexure-IV)'!S171 -> 389.772 | P170: ='Jharkhand (Annexure-IV)'!U171 -> 0 | Q170: ='Jharkhand (Annexure-IV)'!W171 -> 0 | R170: ='Jharkhand (Annexure-IV)'!X171 -> 0.045 | S170: ='Jharkhand (Annexure-IV)'!Y171 -> 3595 | T170: ='Jharkhand (Annexure-IV)'!Z171 -> 161.775 | U170: ='Jharkhand (Annexure-IV)'!AA171 -> 3595 | V170: ='Jharkhand (Annexure-IV)'!AB171 -> 161.775 | W170: ='Jharkhand (Annexure-IV)'!AC171 -> Recommended as appraised | X170: 389.772 | Y170: =SUM(Bokaro:Simdega!M171) -> 0 | Z170: FALSE
B171: (c) 6 months | C171: ='Jharkhand (Annexure-IV)'!C172 -> 97996 | D171: ='Jharkhand (Annexure-IV)'!D172 -> 2939.88 | E171: ='Jharkhand (Annexure-IV)'!E172 -> 68254 | F171: ='Jharkhand (Annexure-IV)'!F172 -> 1771.31313 | G171: ='Jharkhand (Annexure-IV)'!G172 -> 0.6964978162 | H171: ='Jharkhand (Annexure-IV)'!H172 -> 0.6025120515 | I171: ='Jharkhand (Annexure-IV)'!L172 -> 0 | J171: ='Jharkhand (Annexure-IV)'!N172 -> 0 | K171: ='Jharkhand (Annexure-IV)'!O172 -> 0.036 | L171: ='Jharkhand (Annexure-IV)'!P172 -> 44728 | M171: ='Jharkhand (Annexure-IV)'!Q172 -> 1610.208 | N171: ='Jharkhand (Annexure-IV)'!R172 -> 44728 | O171: ='Jharkhand (Annexure-IV)'!S172 -> 1610.208 | P171: ='Jharkhand (Annexure-IV)'!U172 -> 0 | Q171: ='Jharkhand (Annexure-IV)'!W172 -> 0 | R171: ='Jharkhand (Annexure-IV)'!X172 -> 0.03 | S171: ='Jharkhand (Annexure-IV)'!Y172 -> 44728 | T171: ='Jharkhand (Annexure-IV)'!Z172 -> 1341.84 | U171: ='Jharkhand (Annexure-IV)'!AA172 -> 44728 | V171: ='Jharkhand (Annexure-IV)'!AB172 -> 1341.84 | W171: ='Jharkhand (Annexure-IV)'!AC172 -> Recommended as appraised | X171: 1610.208 | Y171: =SUM(Bokaro:Simdega!M172) -> 0 | Z171: FALSE
B172: (d) 3 months | C172: ='Jharkhand (Annexure-IV)'!C173 -> 0 | D172: ='Jharkhand (Annexure-IV)'!D173 -> 0 | E172: ='Jharkhand (Annexure-IV)'!E173 -> 0 | F172: ='Jharkhand (Annexure-IV)'!F173 -> 0 | G172: ='Jharkhand (Annexure-IV)'!G173 ->  | H172: ='Jharkhand (Annexure-IV)'!H173 ->  | I172: ='Jharkhand (Annexure-IV)'!L173 -> 0 | J172: ='Jharkhand (Annexure-IV)'!N173 -> 0 | K172: ='Jharkhand (Annexure-IV)'!O173 -> 0.018 | L172: ='Jharkhand (Annexure-IV)'!P173 -> 0 | M172: ='Jharkhand (Annexure-IV)'!Q173 -> 0 | N172: ='Jharkhand (Annexure-IV)'!R173 -> 0 | O172: ='Jharkhand (Annexure-IV)'!S173 -> 0 | P172: ='Jharkhand (Annexure-IV)'!U173 -> 0 | Q172: ='Jharkhand (Annexure-IV)'!W173 -> 0 | R172: ='Jharkhand (Annexure-IV)'!X173 -> 0 | S172: ='Jharkhand (Annexure-IV)'!Y173 -> 0 | T172: ='Jharkhand (Annexure-IV)'!Z173 -> 0 | U172: ='Jharkhand (Annexure-IV)'!AA173 -> 0 | V172: ='Jharkhand (Annexure-IV)'!AB173 -> 0 | W172: ='Jharkhand (Annexure-IV)'!AC173 -> 0 | X172: 0 | Y172: =SUM(Bokaro:Simdega!M173) -> 0 | Z172: TRUE
B173: Sub Total | C173: ='Jharkhand (Annexure-IV)'!C174 -> 97996 | D173: ='Jharkhand (Annexure-IV)'!D174 -> 2939.88 | E173: ='Jharkhand (Annexure-IV)'!E174 -> 68254 | F173: ='Jharkhand (Annexure-IV)'!F174 -> 1771.31313 | G173: ='Jharkhand (Annexure-IV)'!G174 -> 0.6964978162 | H173: ='Jharkhand (Annexure-IV)'!H174 -> 0.6025120515 | I173: ='Jharkhand (Annexure-IV)'!L174 -> 0 | J173: ='Jharkhand (Annexure-IV)'!N174 -> 0 | K173: ='Jharkhand (Annexure-IV)'!O174 -> 0 | L173: ='Jharkhand (Annexure-IV)'!P174 -> 51946 | M173: ='Jharkhand (Annexure-IV)'!Q174 -> 1999.98 | N173: ='Jharkhand (Annexure-IV)'!R174 -> 51946 | O173: ='Jharkhand (Annexure-IV)'!S174 -> 1999.98 | P173: ='Jharkhand (Annexure-IV)'!U174 -> 0 | Q173: ='Jharkhand (Annexure-IV)'!W174 -> 0 | R173: ='Jharkhand (Annexure-IV)'!X174 -> 0 | S173: ='Jharkhand (Annexure-IV)'!Y174 -> 48323 | T173: ='Jharkhand (Annexure-IV)'!Z174 -> 1503.615 | U173: ='Jharkhand (Annexure-IV)'!AA174 -> 48323 | V173: ='Jharkhand (Annexure-IV)'!AB174 -> 1503.615 | W173: ='Jharkhand (Annexure-IV)'!AC174 -> 0 | X173: 0 | Z173: TRUE
A174: 6.04 | B174: Non-Residential (Continuing from previous year) | C174: ='Jharkhand (Annexure-IV)'!C175 -> 0 | D174: ='Jharkhand (Annexure-IV)'!D175 -> 0 | E174: ='Jharkhand (Annexure-IV)'!E175 -> 0 | F174: ='Jharkhand (Annexure-IV)'!F175 -> 0 | G174: ='Jharkhand (Annexure-IV)'!G175 ->  | H174: ='Jharkhand (Annexure-IV)'!H175 ->  | I174: ='Jharkhand (Annexure-IV)'!L175 -> 0 | J174: ='Jharkhand (Annexure-IV)'!N175 -> 0 | K174: ='Jharkhand (Annexure-IV)'!O175 -> 0 | L174: ='Jharkhand (Annexure-IV)'!P175 -> 0 | M174: ='Jharkhand (Annexure-IV)'!Q175 -> 0 | N174: ='Jharkhand (Annexure-IV)'!R175 -> 0 | O174: ='Jharkhand (Annexure-IV)'!S175 -> 0 | P174: ='Jharkhand (Annexure-IV)'!U175 -> 0 | Q174: ='Jharkhand (Annexure-IV)'!W175 -> 0 | R174: ='Jharkhand (Annexure-IV)'!X175 -> 0 | S174: ='Jharkhand (Annexure-IV)'!Y175 -> 0 | T174: ='Jharkhand (Annexure-IV)'!Z175 -> 0 | U174: ='Jharkhand (Annexure-IV)'!AA175 -> 0 | V174: ='Jharkhand (Annexure-IV)'!AB175 -> 0 | W174: ='Jharkhand (Annexure-IV)'!AC175 -> 0 | X174: 0 | Y174: =SUM(Bokaro:Simdega!M175) -> 0 | Z174: TRUE
B175: (a) 12 months | C175: ='Jharkhand (Annexure-IV)'!C176 -> 0 | D175: ='Jharkhand (Annexure-IV)'!D176 -> 0 | E175: ='Jharkhand (Annexure-IV)'!E176 -> 0 | F175: ='Jharkhand (Annexure-IV)'!F176 -> 0 | G175: ='Jharkhand (Annexure-IV)'!G176 ->  | H175: ='Jharkhand (Annexure-IV)'!H176 ->  | I175: ='Jharkhand (Annexure-IV)'!L176 -> 0 | J175: ='Jharkhand (Annexure-IV)'!N176 -> 0 | K175: ='Jharkhand (Annexure-IV)'!O176 -> 0.06 | L175: ='Jharkhand (Annexure-IV)'!P176 -> 0 | M175: ='Jharkhand (Annexure-IV)'!Q176 -> 0 | N175: ='Jharkhand (Annexure-IV)'!R176 -> 0 | O175: ='Jharkhand (Annexure-IV)'!S176 -> 0 | P175: ='Jharkhand (Annexure-IV)'!U176 -> 0 | Q175: ='Jharkhand (Annexure-IV)'!W176 -> 0 | R175: ='Jharkhand (Annexure-IV)'!X176 -> 0 | S175: ='Jharkhand (Annexure-IV)'!Y176 -> 0 | T175: ='Jharkhand (Annexure-IV)'!Z176 -> 0 | U175: ='Jharkhand (Annexure-IV)'!AA176 -> 0 | V175: ='Jharkhand (Annexure-IV)'!AB176 -> 0 | W175: ='Jharkhand (Annexure-IV)'!AC176 -> 0 | X175: 0 | Y175: =SUM(Bokaro:Simdega!M176) -> 0 | Z175: TRUE
B176: (b) 9 months | C176: ='Jharkhand (Annexure-IV)'!C177 -> 0 | D176: ='Jharkhand (Annexure-IV)'!D177 -> 0 | E176: ='Jharkhand (Annexure-IV)'!E177 -> 0 | F176: ='Jharkhand (Annexure-IV)'!F177 -> 0 | G176: ='Jharkhand (Annexure-IV)'!G177 ->  | H176: ='Jharkhand (Annexure-IV)'!H177 ->  | I176: ='Jharkhand (Annexure-IV)'!L177 -> 0 | J176: ='Jharkhand (Annexure-IV)'!N177 -> 0 | K176: ='Jharkhand (Annexure-IV)'!O177 -> 0.045 | L176: ='Jharkhand (Annexure-IV)'!P177 -> 0 | M176: ='Jharkhand (Annexure-IV)'!Q177 -> 0 | N176: ='Jharkhand (Annexure-IV)'!R177 -> 0 | O176: ='Jharkhand (Annexure-IV)'!S177 -> 0 | P176: ='Jharkhand (Annexure-IV)'!U177 -> 0 | Q176: ='Jharkhand (Annexure-IV)'!W177 -> 0 | R176: ='Jharkhand (Annexure-IV)'!X177 -> 0 | S176: ='Jharkhand (Annexure-IV)'!Y177 -> 0 | T176: ='Jharkhand (Annexure-IV)'!Z177 -> 0 | U176: ='Jharkhand (Annexure-IV)'!AA177 -> 0 | V176: ='Jharkhand (Annexure-IV)'!AB177 -> 0 | W176: ='Jharkhand (Annexure-IV)'!AC177 -> 0 | X176: 0 | Y176: =SUM(Bokaro:Simdega!M177) -> 0 | Z176: TRUE
B177: (c) 6 months | C177: ='Jharkhand (Annexure-IV)'!C178 -> 803 | D177: ='Jharkhand (Annexure-IV)'!D178 -> 2.61 | E177: ='Jharkhand (Annexure-IV)'!E178 -> 0 | F177: ='Jharkhand (Annexure-IV)'!F178 -> 0 | G177: ='Jharkhand (Annexure-IV)'!G178 -> 0 | H177: ='Jharkhand (Annexure-IV)'!H178 -> 0 | I177: ='Jharkhand (Annexure-IV)'!L178 -> 0 | J177: ='Jharkhand (Annexure-IV)'!N178 -> 0 | K177: ='Jharkhand (Annexure-IV)'!O178 -> 0 | L177: ='Jharkhand (Annexure-IV)'!P178 -> 0 | M177: ='Jharkhand (Annexure-IV)'!Q178 -> 0 | N177: ='Jharkhand (Annexure-IV)'!R178 -> 0 | O177: ='Jharkhand (Annexure-IV)'!S178 -> 0 | P177: ='Jharkhand (Annexure-IV)'!U178 -> 0 | Q177: ='Jharkhand (Annexure-IV)'!W178 -> 0 | R177: ='Jharkhand (Annexure-IV)'!X178 -> 0 | S177: ='Jharkhand (Annexure-IV)'!Y178 -> 0 | T177: ='Jharkhand (Annexure-IV)'!Z178 -> 0 | U177: ='Jharkhand (Annexure-IV)'!AA178 -> 0 | V177: ='Jharkhand (Annexure-IV)'!AB178 -> 0 | W177: ='Jharkhand (Annexure-IV)'!AC178 -> 0 | X177: =(L177*K177)+P177+Q177 -> 0 | Y177: =SUM(Bokaro:Simdega!M178) -> 0 | Z177: =Y177=X177 -> TRUE
B178: (d) 3 months | C178: ='Jharkhand (Annexure-IV)'!C179 -> 7735 | D178: ='Jharkhand (Annexure-IV)'!D179 -> 78.07 | E178: ='Jharkhand (Annexure-IV)'!E179 -> 5759 | F178: ='Jharkhand (Annexure-IV)'!F179 -> 15.56 | G178: ='Jharkhand (Annexure-IV)'!G179 -> 0.7445378151 | H178: ='Jharkhand (Annexure-IV)'!H179 -> 0.1993083131 | I178: ='Jharkhand (Annexure-IV)'!L179 -> 0 | J178: ='Jharkhand (Annexure-IV)'!N179 -> 0 | K178: ='Jharkhand (Annexure-IV)'!O179 -> 0 | L178: ='Jharkhand (Annexure-IV)'!P179 -> 0 | M178: ='Jharkhand (Annexure-IV)'!Q179 -> 0 | N178: ='Jharkhand (Annexure-IV)'!R179 -> 0 | O178: ='Jharkhand (Annexure-IV)'!S179 -> 0 | P178: ='Jharkhand (Annexure-IV)'!U179 -> 0 | Q178: ='Jharkhand (Annexure-IV)'!W179 -> 0 | R178: ='Jharkhand (Annexure-IV)'!X179 -> 0 | S178: ='Jharkhand (Annexure-IV)'!Y179 -> 0 | T178: ='Jharkhand (Annexure-IV)'!Z179 -> 0 | U178: ='Jharkhand (Annexure-IV)'!AA179 -> 0 | V178: ='Jharkhand (Annexure-IV)'!AB179 -> 0 | W178: ='Jharkhand (Annexure-IV)'!AC179 -> 0 | X178: 0 | Y178: =SUM(Bokaro:Simdega!M179) -> 0 | Z178: TRUE
B179: Sub Total | C179: ='Jharkhand (Annexure-IV)'!C180 -> 8538 | D179: ='Jharkhand (Annexure-IV)'!D180 -> 80.68 | E179: ='Jharkhand (Annexure-IV)'!E180 -> 5759 | F179: ='Jharkhand (Annexure-IV)'!F180 -> 15.56 | G179: ='Jharkhand (Annexure-IV)'!G180 -> 0.6745139377 | H179: ='Jharkhand (Annexure-IV)'!H180 -> 0.1928606842 | I179: ='Jharkhand (Annexure-IV)'!L180 -> 0 | J179: ='Jharkhand (Annexure-IV)'!N180 -> 0 | K179: ='Jharkhand (Annexure-IV)'!O180 -> 0 | L179: ='Jharkhand (Annexure-IV)'!P180 -> 0 | M179: ='Jharkhand (Annexure-IV)'!Q180 -> 0 | N179: ='Jharkhand (Annexure-IV)'!R180 -> 0 | O179: ='Jharkhand (Annexure-IV)'!S180 -> 0 | P179: ='Jharkhand (Annexure-IV)'!U180 -> 0 | Q179: ='Jharkhand (Annexure-IV)'!W180 -> 0 | R179: ='Jharkhand (Annexure-IV)'!X180 -> 0 | S179: ='Jharkhand (Annexure-IV)'!Y180 -> 0 | T179: ='Jharkhand (Annexure-IV)'!Z180 -> 0 | U179: ='Jharkhand (Annexure-IV)'!AA180 -> 0 | V179: ='Jharkhand (Annexure-IV)'!AB180 -> 0 | W179: ='Jharkhand (Annexure-IV)'!AC180 -> 0 | X179: 0 | Z179: TRUE
A180: 6.05 | B180: Madarasa/Maktab | C180: ='Jharkhand (Annexure-IV)'!C181 -> 0 | D180: ='Jharkhand (Annexure-IV)'!D181 -> 0 | E180: ='Jharkhand (Annexure-IV)'!E181 -> 0 | F180: ='Jharkhand (Annexure-IV)'!F181 -> 0 | G180: ='Jharkhand (Annexure-IV)'!G181 ->  | H180: ='Jharkhand (Annexure-IV)'!H181 ->  | I180: ='Jharkhand (Annexure-IV)'!L181 -> 0 | J180: ='Jharkhand (Annexure-IV)'!N181 -> 0 | K180: ='Jharkhand (Annexure-IV)'!O181 -> 0 | L180: ='Jharkhand (Annexure-IV)'!P181 -> 0 | M180: ='Jharkhand (Annexure-IV)'!Q181 -> 0 | N180: ='Jharkhand (Annexure-IV)'!R181 -> 0 | O180: ='Jharkhand (Annexure-IV)'!S181 -> 0 | P180: ='Jharkhand (Annexure-IV)'!U181 -> 0 | Q180: ='Jharkhand (Annexure-IV)'!W181 -> 0 | R180: ='Jharkhand (Annexure-IV)'!X181 -> 0 | S180: ='Jharkhand (Annexure-IV)'!Y181 -> 0 | T180: ='Jharkhand (Annexure-IV)'!Z181 -> 0 | U180: ='Jharkhand (Annexure-IV)'!AA181 -> 0 | V180: ='Jharkhand (Annexure-IV)'!AB181 -> 0 | W180: ='Jharkhand (Annexure-IV)'!AC181 -> 0 | X180: 0 | Y180: =SUM(Bokaro:Simdega!M181) -> 0 | Z180: TRUE
B181: (a) 12 months | C181: ='Jharkhand (Annexure-IV)'!C182 -> 0 | D181: ='Jharkhand (Annexure-IV)'!D182 -> 0 | E181: ='Jharkhand (Annexure-IV)'!E182 -> 0 | F181: ='Jharkhand (Annexure-IV)'!F182 -> 0 | G181: ='Jharkhand (Annexure-IV)'!G182 ->  | H181: ='Jharkhand (Annexure-IV)'!H182 ->  | I181: ='Jharkhand (Annexure-IV)'!L182 -> 0 | J181: ='Jharkhand (Annexure-IV)'!N182 -> 0 | K181: ='Jharkhand (Annexure-IV)'!O182 -> 0.06 | L181: ='Jharkhand (Annexure-IV)'!P182 -> 0 | M181: ='Jharkhand (Annexure-IV)'!Q182 -> 0 | N181: ='Jharkhand (Annexure-IV)'!R182 -> 0 | O181: ='Jharkhand (Annexure-IV)'!S182 -> 0 | P181: ='Jharkhand (Annexure-IV)'!U182 -> 0 | Q181: ='Jharkhand (Annexure-IV)'!W182 -> 0 | R181: ='Jharkhand (Annexure-IV)'!X182 -> 0 | S181: ='Jharkhand (Annexure-IV)'!Y182 -> 0 | T181: ='Jharkhand (Annexure-IV)'!Z182 -> 0 | U181: ='Jharkhand (Annexure-IV)'!AA182 -> 0 | V181: ='Jharkhand (Annexure-IV)'!AB182 -> 0 | W181: ='Jharkhand (Annexure-IV)'!AC182 -> 0 | X181: 0 | Y181: =SUM(Bokaro:Simdega!M182) -> 0 | Z181: TRUE
B182: (b) 9 months | C182: ='Jharkhand (Annexure-IV)'!C183 -> 0 | D182: ='Jharkhand (Annexure-IV)'!D183 -> 0 | E182: ='Jharkhand (Annexure-IV)'!E183 -> 0 | F182: ='Jharkhand (Annexure-IV)'!F183 -> 0 | G182: ='Jharkhand (Annexure-IV)'!G183 ->  | H182: ='Jharkhand (Annexure-IV)'!H183 ->  | I182: ='Jharkhand (Annexure-IV)'!L183 -> 0 | J182: ='Jharkhand (Annexure-IV)'!N183 -> 0 | K182: ='Jharkhand (Annexure-IV)'!O183 -> 0.045 | L182: ='Jharkhand (Annexure-IV)'!P183 -> 0 | M182: ='Jharkhand (Annexure-IV)'!Q183 -> 0 | N182: ='Jharkhand (Annexure-IV)'!R183 -> 0 | O182: ='Jharkhand (Annexure-IV)'!S183 -> 0 | P182: ='Jharkhand (Annexure-IV)'!U183 -> 0 | Q182: ='Jharkhand (Annexure-IV)'!W183 -> 0 | R182: ='Jharkhand (Annexure-IV)'!X183 -> 0 | S182: ='Jharkhand (Annexure-IV)'!Y183 -> 0 | T182: ='Jharkhand (Annexure-IV)'!Z183 -> 0 | U182: ='Jharkhand (Annexure-IV)'!AA183 -> 0 | V182: ='Jharkhand (Annexure-IV)'!AB183 -> 0 | W182: ='Jharkhand (Annexure-IV)'!AC183 -> 0 | X182: 0 | Y182: =SUM(Bokaro:Simdega!M183) -> 0 | Z182: TRUE
B183: (c) 6 months | C183: ='Jharkhand (Annexure-IV)'!C184 -> 0 | D183: ='Jharkhand (Annexure-IV)'!D184 -> 0 | E183: ='Jharkhand (Annexure-IV)'!E184 -> 0 | F183: ='Jharkhand (Annexure-IV)'!F184 -> 0 | G183: ='Jharkhand (Annexure-IV)'!G184 ->  | H183: ='Jharkhand (Annexure-IV)'!H184 ->  | I183: ='Jharkhand (Annexure-IV)'!L184 -> 0 | J183: ='Jharkhand (Annexure-IV)'!N184 -> 0 | K183: ='Jharkhand (Annexure-IV)'!O184 -> 0.03 | L183: ='Jharkhand (Annexure-IV)'!P184 -> 0 | M183: ='Jharkhand (Annexure-IV)'!Q184 -> 0 | N183: ='Jharkhand (Annexure-IV)'!R184 -> 0 | O183: ='Jharkhand (Annexure-IV)'!S184 -> 0 | P183: ='Jharkhand (Annexure-IV)'!U184 -> 0 | Q183: ='Jharkhand (Annexure-IV)'!W184 -> 0 | R183: ='Jharkhand (Annexure-IV)'!X184 -> 0 | S183: ='Jharkhand (Annexure-IV)'!Y184 -> 0 | T183: ='Jharkhand (Annexure-IV)'!Z184 -> 0 | U183: ='Jharkhand (Annexure-IV)'!AA184 -> 0 | V183: ='Jharkhand (Annexure-IV)'!AB184 -> 0 | W183: ='Jharkhand (Annexure-IV)'!AC184 -> 0 | X183: 0 | Y183: =SUM(Bokaro:Simdega!M184) -> 0 | Z183: TRUE
B184: (d) 3 months | C184: ='Jharkhand (Annexure-IV)'!C185 -> 0 | D184: ='Jharkhand (Annexure-IV)'!D185 -> 0 | E184: ='Jharkhand (Annexure-IV)'!E185 -> 0 | F184: ='Jharkhand (Annexure-IV)'!F185 -> 0 | G184: ='Jharkhand (Annexure-IV)'!G185 ->  | H184: ='Jharkhand (Annexure-IV)'!H185 ->  | I184: ='Jharkhand (Annexure-IV)'!L185 -> 0 | J184: ='Jharkhand (Annexure-IV)'!N185 -> 0 | K184: ='Jharkhand (Annexure-IV)'!O185 -> 0.015 | L184: ='Jharkhand (Annexure-IV)'!P185 -> 0 | M184: ='Jharkhand (Annexure-IV)'!Q185 -> 0 | N184: ='Jharkhand (Annexure-IV)'!R185 -> 0 | O184: ='Jharkhand (Annexure-IV)'!S185 -> 0 | P184: ='Jharkhand (Annexure-IV)'!U185 -> 0 | Q184: ='Jharkhand (Annexure-IV)'!W185 -> 0 | R184: ='Jharkhand (Annexure-IV)'!X185 -> 0 | S184: ='Jharkhand (Annexure-IV)'!Y185 -> 0 | T184: ='Jharkhand (Annexure-IV)'!Z185 -> 0 | U184: ='Jharkhand (Annexure-IV)'!AA185 -> 0 | V184: ='Jharkhand (Annexure-IV)'!AB185 -> 0 | W184: ='Jharkhand (Annexure-IV)'!AC185 -> 0 | X184: 0 | Y184: =SUM(Bokaro:Simdega!M185) -> 0 | Z184: TRUE
B185: Sub Total | C185: ='Jharkhand (Annexure-IV)'!C186 -> 0 | D185: ='Jharkhand (Annexure-IV)'!D186 -> 0 | E185: ='Jharkhand (Annexure-IV)'!E186 -> 0 | F185: ='Jharkhand (Annexure-IV)'!F186 -> 0 | G185: ='Jharkhand (Annexure-IV)'!G186 ->  | H185: ='Jharkhand (Annexure-IV)'!H186 ->  | I185: ='Jharkhand (Annexure-IV)'!L186 -> 0 | J185: ='Jharkhand (Annexure-IV)'!N186 -> 0 | K185: ='Jharkhand (Annexure-IV)'!O186 -> 0 | L185: ='Jharkhand (Annexure-IV)'!P186 -> 0 | M185: ='Jharkhand (Annexure-IV)'!Q186 -> 0 | N185: ='Jharkhand (Annexure-IV)'!R186 -> 0 | O185: ='Jharkhand (Annexure-IV)'!S186 -> 0 | P185: ='Jharkhand (Annexure-IV)'!U186 -> 0 | Q185: ='Jharkhand (Annexure-IV)'!W186 -> 0 | R185: ='Jharkhand (Annexure-IV)'!X186 -> 0 | S185: ='Jharkhand (Annexure-IV)'!Y186 -> 0 | T185: ='Jharkhand (Annexure-IV)'!Z186 -> 0 | U185: ='Jharkhand (Annexure-IV)'!AA186 -> 0 | V185: ='Jharkhand (Annexure-IV)'!AB186 -> 0 | W185: ='Jharkhand (Annexure-IV)'!AC186 -> 0 | X185: 0 | Y185: =SUM(Bokaro:Simdega!M186) -> 0 | Z185: TRUE
A186: 6.06 | B186: Seasonal Hostel (Residential) | C186: ='Jharkhand (Annexure-IV)'!C187 -> 0 | D186: ='Jharkhand (Annexure-IV)'!D187 -> 0 | E186: ='Jharkhand (Annexure-IV)'!E187 -> 0 | F186: ='Jharkhand (Annexure-IV)'!F187 -> 0 | G186: ='Jharkhand (Annexure-IV)'!G187 ->  | H186: ='Jharkhand (Annexure-IV)'!H187 ->  | I186: ='Jharkhand (Annexure-IV)'!L187 -> 0 | J186: ='Jharkhand (Annexure-IV)'!N187 -> 0 | K186: ='Jharkhand (Annexure-IV)'!O187 -> 0 | L186: ='Jharkhand (Annexure-IV)'!P187 -> 0 | M186: ='Jharkhand (Annexure-IV)'!Q187 -> 0 | N186: ='Jharkhand (Annexure-IV)'!R187 -> 0 | O186: ='Jharkhand (Annexure-IV)'!S187 -> 0 | P186: ='Jharkhand (Annexure-IV)'!U187 -> 0 | Q186: ='Jharkhand (Annexure-IV)'!W187 -> 0 | R186: ='Jharkhand (Annexure-IV)'!X187 -> 0 | S186: ='Jharkhand (Annexure-IV)'!Y187 -> 0 | T186: ='Jharkhand (Annexure-IV)'!Z187 -> 0 | U186: ='Jharkhand (Annexure-IV)'!AA187 -> 0 | V186: ='Jharkhand (Annexure-IV)'!AB187 -> 0 | W186: ='Jharkhand (Annexure-IV)'!AC187 -> 0 | X186: 0 | Y186: =SUM(Bokaro:Simdega!M187) -> 0 | Z186: TRUE
B187: (a) 12 months | C187: ='Jharkhand (Annexure-IV)'!C188 -> 0 | D187: ='Jharkhand (Annexure-IV)'!D188 -> 0 | E187: ='Jharkhand (Annexure-IV)'!E188 -> 0 | F187: ='Jharkhand (Annexure-IV)'!F188 -> 0 | G187: ='Jharkhand (Annexure-IV)'!G188 ->  | H187: ='Jharkhand (Annexure-IV)'!H188 ->  | I187: ='Jharkhand (Annexure-IV)'!L188 -> 0 | J187: ='Jharkhand (Annexure-IV)'!N188 -> 0 | K187: ='Jharkhand (Annexure-IV)'!O188 -> 0.2 | L187: ='Jharkhand (Annexure-IV)'!P188 -> 0 | M187: ='Jharkhand (Annexure-IV)'!Q188 -> 0 | N187: ='Jharkhand (Annexure-IV)'!R188 -> 0 | O187: ='Jharkhand (Annexure-IV)'!S188 -> 0 | P187: ='Jharkhand (Annexure-IV)'!U188 -> 0 | Q187: ='Jharkhand (Annexure-IV)'!W188 -> 0 | R187: ='Jharkhand (Annexure-IV)'!X188 -> 0 | S187: ='Jharkhand (Annexure-IV)'!Y188 -> 0 | T187: ='Jharkhand (Annexure-IV)'!Z188 -> 0 | U187: ='Jharkhand (Annexure-IV)'!AA188 -> 0 | V187: ='Jharkhand (Annexure-IV)'!AB188 -> 0 | W187: ='Jharkhand (Annexure-IV)'!AC188 -> 0 | X187: 0 | Y187: =SUM(Bokaro:Simdega!M188) -> 0 | Z187: TRUE
B188: (b) 9 months | C188: ='Jharkhand (Annexure-IV)'!C189 -> 0 | D188: ='Jharkhand (Annexure-IV)'!D189 -> 0 | E188: ='Jharkhand (Annexure-IV)'!E189 -> 0 | F188: ='Jharkhand (Annexure-IV)'!F189 -> 0 | G188: ='Jharkhand (Annexure-IV)'!G189 ->  | H188: ='Jharkhand (Annexure-IV)'!H189 ->  | I188: ='Jharkhand (Annexure-IV)'!L189 -> 0 | J188: ='Jharkhand (Annexure-IV)'!N189 -> 0 | K188: ='Jharkhand (Annexure-IV)'!O189 -> 0.15 | L188: ='Jharkhand (Annexure-IV)'!P189 -> 100 | M188: ='Jharkhand (Annexure-IV)'!Q189 -> 15 | N188: ='Jharkhand (Annexure-IV)'!R189 -> 100 | O188: ='Jharkhand (Annexure-IV)'!S189 -> 15 | P188: ='Jharkhand (Annexure-IV)'!U189 -> 0 | Q188: ='Jharkhand (Annexure-IV)'!W189 -> 0 | R188: ='Jharkhand (Annexure-IV)'!X189 -> 0 | S188: ='Jharkhand (Annexure-IV)'!Y189 -> 0 | T188: ='Jharkhand (Annexure-IV)'!Z189 -> 0 | U188: ='Jharkhand (Annexure-IV)'!AA189 -> 0 | V188: ='Jharkhand (Annexure-IV)'!AB189 -> 0 | W188: ='Jharkhand (Annexure-IV)'!AC189 -> Covered in six months training | X188: 15 | Y188: =SUM(Bokaro:Simdega!M189) -> 0 | Z188: FALSE
B189: (c) 6 months | C189: ='Jharkhand (Annexure-IV)'!C190 -> 1026 | D189: ='Jharkhand (Annexure-IV)'!D190 -> 102.6 | E189: ='Jharkhand (Annexure-IV)'!E190 -> 780 | F189: ='Jharkhand (Annexure-IV)'!F190 -> 74.785 | G189: ='Jharkhand (Annexure-IV)'!G190 -> 0.7602339181 | H189: ='Jharkhand (Annexure-IV)'!H190 -> 0.7288986355 | I189: ='Jharkhand (Annexure-IV)'!L190 -> 0 | J189: ='Jharkhand (Annexure-IV)'!N190 -> 0 | K189: ='Jharkhand (Annexure-IV)'!O190 -> 0.1 | L189: ='Jharkhand (Annexure-IV)'!P190 -> 447 | M189: ='Jharkhand (Annexure-IV)'!Q190 -> 44.7 | N189: ='Jharkhand (Annexure-IV)'!R190 -> 447 | O189: ='Jharkhand (Annexure-IV)'!S190 -> 44.7 | P189: ='Jharkhand (Annexure-IV)'!U190 -> 0 | Q189: ='Jharkhand (Annexure-IV)'!W190 -> 0 | R189: ='Jharkhand (Annexure-IV)'!X190 -> 0.1 | S189: ='Jharkhand (Annexure-IV)'!Y190 -> 547 | T189: ='Jharkhand (Annexure-IV)'!Z190 -> 54.7 | U189: ='Jharkhand (Annexure-IV)'!AA190 -> 547 | V189: ='Jharkhand (Annexure-IV)'!AB190 -> 54.7 | W189: ='Jharkhand (Annexure-IV)'!AC190 -> Recommended as appraised | X189: 44.7 | Y189: =SUM(Bokaro:Simdega!M190) -> 0 | Z189: FALSE
B190: (d) 3 months | C190: ='Jharkhand (Annexure-IV)'!C191 -> 0 | D190: ='Jharkhand (Annexure-IV)'!D191 -> 0 | E190: ='Jharkhand (Annexure-IV)'!E191 -> 0 | F190: ='Jharkhand (Annexure-IV)'!F191 -> 0 | G190: ='Jharkhand (Annexure-IV)'!G191 ->  | H190: ='Jharkhand (Annexure-IV)'!H191 ->  | I190: ='Jharkhand (Annexure-IV)'!L191 -> 0 | J190: ='Jharkhand (Annexure-IV)'!N191 -> 0 | K190: ='Jharkhand (Annexure-IV)'!O191 -> 0.05 | L190: ='Jharkhand (Annexure-IV)'!P191 -> 0 | M190: ='Jharkhand (Annexure-IV)'!Q191 -> 0 | N190: ='Jharkhand (Annexure-IV)'!R191 -> 0 | O190: ='Jharkhand (Annexure-IV)'!S191 -> 0 | P190: ='Jharkhand (Annexure-IV)'!U191 -> 0 | Q190: ='Jharkhand (Annexure-IV)'!W191 -> 0 | R190: ='Jharkhand (Annexure-IV)'!X191 -> 0 | S190: ='Jharkhand (Annexure-IV)'!Y191 -> 0 | T190: ='Jharkhand (Annexure-IV)'!Z191 -> 0 | U190: ='Jharkhand (Annexure-IV)'!AA191 -> 0 | V190: ='Jharkhand (Annexure-IV)'!AB191 -> 0 | W190: ='Jharkhand (Annexure-IV)'!AC191 -> 0 | X190: 0 | Y190: =SUM(Bokaro:Simdega!M191) -> 0 | Z190: TRUE
B191: Sub Total | C191: ='Jharkhand (Annexure-IV)'!C192 -> 1026 | D191: ='Jharkhand (Annexure-IV)'!D192 -> 102.6 | E191: ='Jharkhand (Annexure-IV)'!E192 -> 780 | F191: ='Jharkhand (Annexure-IV)'!F192 -> 74.785 | G191: ='Jharkhand (Annexure-IV)'!G192 -> 0.7602339181 | H191: ='Jharkhand (Annexure-IV)'!H192 -> 0.7288986355 | I191: ='Jharkhand (Annexure-IV)'!L192 -> 0 | J191: ='Jharkhand (Annexure-IV)'!N192 -> 0 | K191: ='Jharkhand (Annexure-IV)'!O192 -> 0 | L191: ='Jharkhand (Annexure-IV)'!P192 -> 547 | M191: ='Jharkhand (Annexure-IV)'!Q192 -> 59.7 | N191: ='Jharkhand (Annexure-IV)'!R192 -> 547 | O191: ='Jharkhand (Annexure-IV)'!S192 -> 59.7 | P191: ='Jharkhand (Annexure-IV)'!U192 -> 0 | Q191: ='Jharkhand (Annexure-IV)'!W192 -> 0 | R191: ='Jharkhand (Annexure-IV)'!X192 -> 0 | S191: ='Jharkhand (Annexure-IV)'!Y192 -> 547 | T191: ='Jharkhand (Annexure-IV)'!Z192 -> 54.7 | U191: ='Jharkhand (Annexure-IV)'!AA192 -> 547 | V191: ='Jharkhand (Annexure-IV)'!AB192 -> 54.7 | W191: ='Jharkhand (Annexure-IV)'!AC192 -> 0 | X191: 0 | Z191: TRUE
A192: 6.07 | B192: Seasonal Hostel (Non Residential) | C192: ='Jharkhand (Annexure-IV)'!C193 -> 0 | D192: ='Jharkhand (Annexure-IV)'!D193 -> 0 | E192: ='Jharkhand (Annexure-IV)'!E193 -> 0 | F192: ='Jharkhand (Annexure-IV)'!F193 -> 0 | G192: ='Jharkhand (Annexure-IV)'!G193 ->  | H192: ='Jharkhand (Annexure-IV)'!H193 ->  | I192: ='Jharkhand (Annexure-IV)'!L193 -> 0 | J192: ='Jharkhand (Annexure-IV)'!N193 -> 0 | K192: ='Jharkhand (Annexure-IV)'!O193 -> 0 | L192: ='Jharkhand (Annexure-IV)'!P193 -> 0 | M192: ='Jharkhand (Annexure-IV)'!Q193 -> 0 | N192: ='Jharkhand (Annexure-IV)'!R193 -> 0 | O192: ='Jharkhand (Annexure-IV)'!S193 -> 0 | P192: ='Jharkhand (Annexure-IV)'!U193 -> 0 | Q192: ='Jharkhand (Annexure-IV)'!W193 -> 0 | R192: ='Jharkhand (Annexure-IV)'!X193 -> 0 | S192: ='Jharkhand (Annexure-IV)'!Y193 -> 0 | T192: ='Jharkhand (Annexure-IV)'!Z193 -> 0 | U192: ='Jharkhand (Annexure-IV)'!AA193 -> 0 | V192: ='Jharkhand (Annexure-IV)'!AB193 -> 0 | W192: ='Jharkhand (Annexure-IV)'!AC193 -> 0 | X192: 0 | Y192: =SUM(Bokaro:Simdega!M193) -> 0 | Z192: TRUE
B193: (a) 12 months | C193: ='Jharkhand (Annexure-IV)'!C194 -> 0 | D193: ='Jharkhand (Annexure-IV)'!D194 -> 0 | E193: ='Jharkhand (Annexure-IV)'!E194 -> 0 | F193: ='Jharkhand (Annexure-IV)'!F194 -> 0 | G193: ='Jharkhand (Annexure-IV)'!G194 ->  | H193: ='Jharkhand (Annexure-IV)'!H194 ->  | I193: ='Jharkhand (Annexure-IV)'!L194 -> 0 | J193: ='Jharkhand (Annexure-IV)'!N194 -> 0 | K193: ='Jharkhand (Annexure-IV)'!O194 -> 0.084 | L193: ='Jharkhand (Annexure-IV)'!P194 -> 0 | M193: ='Jharkhand (Annexure-IV)'!Q194 -> 0 | N193: ='Jharkhand (Annexure-IV)'!R194 -> 0 | O193: ='Jharkhand (Annexure-IV)'!S194 -> 0 | P193: ='Jharkhand (Annexure-IV)'!U194 -> 0 | Q193: ='Jharkhand (Annexure-IV)'!W194 -> 0 | R193: ='Jharkhand (Annexure-IV)'!X194 -> 0 | S193: ='Jharkhand (Annexure-IV)'!Y194 -> 0 | T193: ='Jharkhand (Annexure-IV)'!Z194 -> 0 | U193: ='Jharkhand (Annexure-IV)'!AA194 -> 0 | V193: ='Jharkhand (Annexure-IV)'!AB194 -> 0 | W193: ='Jharkhand (Annexure-IV)'!AC194 -> 0 | X193: 0 | Y193: =SUM(Bokaro:Simdega!M194) -> 0 | Z193: TRUE
B194: (b) 9 months (Drop-in-Centre) | C194: ='Jharkhand (Annexure-IV)'!C195 -> 739 | D194: ='Jharkhand (Annexure-IV)'!D195 -> 37.1717 | E194: ='Jharkhand (Annexure-IV)'!E195 -> 667 | F194: ='Jharkhand (Annexure-IV)'!F195 -> 32.038 | G194: ='Jharkhand (Annexure-IV)'!G195 -> 0.9025710419 | H194: ='Jharkhand (Annexure-IV)'!H195 -> 0.861892246 | I194: ='Jharkhand (Annexure-IV)'!L195 -> 0 | J194: ='Jharkhand (Annexure-IV)'!N195 -> 0 | K194: ='Jharkhand (Annexure-IV)'!O195 -> 0.063 | L194: ='Jharkhand (Annexure-IV)'!P195 -> 1250 | M194: ='Jharkhand (Annexure-IV)'!Q195 -> 78.75 | N194: ='Jharkhand (Annexure-IV)'!R195 -> 1250 | O194: ='Jharkhand (Annexure-IV)'!S195 -> 78.75 | P194: ='Jharkhand (Annexure-IV)'!U195 -> 0 | Q194: ='Jharkhand (Annexure-IV)'!W195 -> 0 | R194: ='Jharkhand (Annexure-IV)'!X195 -> 0.045 | S194: ='Jharkhand (Annexure-IV)'!Y195 -> 1225 | T194: ='Jharkhand (Annexure-IV)'!Z195 -> 55.125 | U194: ='Jharkhand (Annexure-IV)'!AA195 -> 1225 | V194: ='Jharkhand (Annexure-IV)'!AB195 -> 55.125 | W194: ='Jharkhand (Annexure-IV)'!AC195 -> Recommended as appraised | X194: z | Y194: =SUM(Bokaro:Simdega!M195) -> 0 | Z194: FALSE
B195: (c) 6 months | C195: ='Jharkhand (Annexure-IV)'!C196 -> 0 | D195: ='Jharkhand (Annexure-IV)'!D196 -> 0 | E195: ='Jharkhand (Annexure-IV)'!E196 -> 0 | F195: ='Jharkhand (Annexure-IV)'!F196 -> 0 | G195: ='Jharkhand (Annexure-IV)'!G196 ->  | H195: ='Jharkhand (Annexure-IV)'!H196 ->  | I195: ='Jharkhand (Annexure-IV)'!L196 -> 0 | J195: ='Jharkhand (Annexure-IV)'!N196 -> 0 | K195: ='Jharkhand (Annexure-IV)'!O196 -> 0.042 | L195: ='Jharkhand (Annexure-IV)'!P196 -> 492 | M195: ='Jharkhand (Annexure-IV)'!Q196 -> 20.664 | N195: ='Jharkhand (Annexure-IV)'!R196 -> 492 | O195: ='Jharkhand (Annexure-IV)'!S196 -> 20.664 | P195: ='Jharkhand (Annexure-IV)'!U196 -> 0 | Q195: ='Jharkhand (Annexure-IV)'!W196 -> 0 | R195: ='Jharkhand (Annexure-IV)'!X196 -> 0.03 | S195: ='Jharkhand (Annexure-IV)'!Y196 -> 517 | T195: ='Jharkhand (Annexure-IV)'!Z196 -> 15.51 | U195: ='Jharkhand (Annexure-IV)'!AA196 -> 517 | V195: ='Jharkhand (Annexure-IV)'!AB196 -> 15.51 | W195: ='Jharkhand (Annexure-IV)'!AC196 -> Recommended as appraised | X195: =(L195*K195)+P195+Q195 -> 20.664 | Y195: =SUM(Bokaro:Simdega!M196) -> 0 | Z195: FALSE
B196: (d) 3 months | C196: ='Jharkhand (Annexure-IV)'!C197 -> 0 | D196: ='Jharkhand (Annexure-IV)'!D197 -> 0 | E196: ='Jharkhand (Annexure-IV)'!E197 -> 0 | F196: ='Jharkhand (Annexure-IV)'!F197 -> 0 | G196: ='Jharkhand (Annexure-IV)'!G197 ->  | H196: ='Jharkhand (Annexure-IV)'!H197 ->  | I196: ='Jharkhand (Annexure-IV)'!L197 -> 0 | J196: ='Jharkhand (Annexure-IV)'!N197 -> 0 | K196: ='Jharkhand (Annexure-IV)'!O197 -> 0.063 | L196: ='Jharkhand (Annexure-IV)'!P197 -> 367 | M196: ='Jharkhand (Annexure-IV)'!Q197 -> 23.121 | N196: ='Jharkhand (Annexure-IV)'!R197 -> 367 | O196: ='Jharkhand (Annexure-IV)'!S197 -> 23.121 | P196: ='Jharkhand (Annexure-IV)'!U197 -> 0 | Q196: ='Jharkhand (Annexure-IV)'!W197 -> 0 | R196: ='Jharkhand (Annexure-IV)'!X197 -> 0.045 | S196: ='Jharkhand (Annexure-IV)'!Y197 -> 367 | T196: ='Jharkhand (Annexure-IV)'!Z197 -> 16.515 | U196: ='Jharkhand (Annexure-IV)'!AA197 -> 367 | V196: ='Jharkhand (Annexure-IV)'!AB197 -> 16.515 | W196: ='Jharkhand (Annexure-IV)'!AC197 -> Recommended as appraised | X196: 23.121 | Y196: =SUM(Bokaro:Simdega!M197) -> 0 | Z196: FALSE
B197: Sub Total | C197: ='Jharkhand (Annexure-IV)'!C198 -> 739 | D197: ='Jharkhand (Annexure-IV)'!D198 -> 37.1717 | E197: ='Jharkhand (Annexure-IV)'!E198 -> 667 | F197: ='Jharkhand (Annexure-IV)'!F198 -> 32.038 | G197: ='Jharkhand (Annexure-IV)'!G198 -> 0.9025710419 | H197: ='Jharkhand (Annexure-IV)'!H198 -> 0.861892246 | I197: ='Jharkhand (Annexure-IV)'!L198 -> 0 | J197: ='Jharkhand (Annexure-IV)'!N198 -> 0 | K197: ='Jharkhand (Annexure-IV)'!O198 -> 0 | L197: ='Jharkhand (Annexure-IV)'!P198 -> 2109 | M197: ='Jharkhand (Annexure-IV)'!Q198 -> 122.535 | N197: ='Jharkhand (Annexure-IV)'!R198 -> 2109 | O197: ='Jharkhand (Annexure-IV)'!S198 -> 122.535 | P197: ='Jharkhand (Annexure-IV)'!U198 -> 0 | Q197: ='Jharkhand (Annexure-IV)'!W198 -> 0 | R197: ='Jharkhand (Annexure-IV)'!X198 -> 0 | S197: ='Jharkhand (Annexure-IV)'!Y198 -> 2109 | T197: ='Jharkhand (Annexure-IV)'!Z198 -> 87.15 | U197: ='Jharkhand (Annexure-IV)'!AA198 -> 2109 | V197: ='Jharkhand (Annexure-IV)'!AB198 -> 87.15 | W197: ='Jharkhand (Annexure-IV)'!AC198 -> 0 | X197: 0 | Z197: TRUE
B198: Total | C198: ='Jharkhand (Annexure-IV)'!C199 -> 114958 | D198: ='Jharkhand (Annexure-IV)'!D199 -> 3712.1517 | E198: ='Jharkhand (Annexure-IV)'!E199 -> 80100 | F198: ='Jharkhand (Annexure-IV)'!F199 -> 2230.73613 | G198: ='Jharkhand (Annexure-IV)'!G199 -> 0.6967762139 | H198: ='Jharkhand (Annexure-IV)'!H199 -> 0.6009280628 | I198: ='Jharkhand (Annexure-IV)'!L199 -> 0 | J198: ='Jharkhand (Annexure-IV)'!N199 -> 0 | K198: ='Jharkhand (Annexure-IV)'!O199 -> 0 | L198: ='Jharkhand (Annexure-IV)'!P199 -> 58401 | M198: ='Jharkhand (Annexure-IV)'!Q199 -> 2614.065 | N198: ='Jharkhand (Annexure-IV)'!R199 -> 58401 | O198: ='Jharkhand (Annexure-IV)'!S199 -> 2614.065 | P198: ='Jharkhand (Annexure-IV)'!U199 -> 0 | Q198: ='Jharkhand (Annexure-IV)'!W199 -> 0 | R198: ='Jharkhand (Annexure-IV)'!X199 -> 0 | S198: ='Jharkhand (Annexure-IV)'!Y199 -> 54728 | T198: ='Jharkhand (Annexure-IV)'!Z199 -> 2069.815 | U198: ='Jharkhand (Annexure-IV)'!AA199 -> 54728 | V198: ='Jharkhand (Annexure-IV)'!AB199 -> 2069.815 | W198: ='Jharkhand (Annexure-IV)'!AC199 -> 0 | X198: 0 | Z198: TRUE
A199: II | B199: RETENTION | C199: ='Jharkhand (Annexure-IV)'!C200 -> 0 | D199: ='Jharkhand (Annexure-IV)'!D200 -> 0 | E199: ='Jharkhand (Annexure-IV)'!E200 -> 0 | F199: ='Jharkhand (Annexure-IV)'!F200 -> 0 | G199: ='Jharkhand (Annexure-IV)'!G200 ->  | H199: ='Jharkhand (Annexure-IV)'!H200 ->  | I199: ='Jharkhand (Annexure-IV)'!L200 -> 0 | J199: ='Jharkhand (Annexure-IV)'!N200 -> 0 | K199: ='Jharkhand (Annexure-IV)'!O200 -> 0 | L199: ='Jharkhand (Annexure-IV)'!P200 -> 0 | M199: ='Jharkhand (Annexure-IV)'!Q200 -> 0 | N199: ='Jharkhand (Annexure-IV)'!R200 -> 0 | O199: ='Jharkhand (Annexure-IV)'!S200 -> 0 | P199: ='Jharkhand (Annexure-IV)'!U200 -> 0 | Q199: ='Jharkhand (Annexure-IV)'!W200 -> 0 | R199: ='Jharkhand (Annexure-IV)'!X200 -> 0 | S199: ='Jharkhand (Annexure-IV)'!Y200 -> 0 | T199: ='Jharkhand (Annexure-IV)'!Z200 -> 0 | U199: ='Jharkhand (Annexure-IV)'!AA200 -> 0 | V199: ='Jharkhand (Annexure-IV)'!AB200 -> 0 | W199: ='Jharkhand (Annexure-IV)'!AC200 -> 0 | X199: 0 | Y199: =SUM(Bokaro:Simdega!M200) -> 0 | Z199: TRUE
A200: 7 | B200: Free Text Books | C200: ='Jharkhand (Annexure-IV)'!C201 -> 0 | D200: ='Jharkhand (Annexure-IV)'!D201 -> 0 | E200: ='Jharkhand (Annexure-IV)'!E201 -> 0 | F200: ='Jharkhand (Annexure-IV)'!F201 -> 0 | G200: ='Jharkhand (Annexure-IV)'!G201 ->  | H200: ='Jharkhand (Annexure-IV)'!H201 ->  | I200: ='Jharkhand (Annexure-IV)'!L201 -> 0 | J200: ='Jharkhand (Annexure-IV)'!N201 -> 0 | K200: ='Jharkhand (Annexure-IV)'!O201 -> 0 | L200: ='Jharkhand (Annexure-IV)'!P201 -> 0 | M200: ='Jharkhand (Annexure-IV)'!Q201 -> 0 | N200: ='Jharkhand (Annexure-IV)'!R201 -> 0 | O200: ='Jharkhand (Annexure-IV)'!S201 -> 0 | P200: ='Jharkhand (Annexure-IV)'!U201 -> 0 | Q200: ='Jharkhand (Annexure-IV)'!W201 -> 0 | R200: ='Jharkhand (Annexure-IV)'!X201 -> 0 | S200: ='Jharkhand (Annexure-IV)'!Y201 -> 0 | T200: ='Jharkhand (Annexure-IV)'!Z201 -> 0 | U200: ='Jharkhand (Annexure-IV)'!AA201 -> 0 | V200: ='Jharkhand (Annexure-IV)'!AB201 -> 0 | W200: ='Jharkhand (Annexure-IV)'!AC201 -> 0 | X200: 0 | Y200: =SUM(Bokaro:Simdega!M201) -> 0 | Z200: TRUE
... 340 more rows

Sheet FC (hidden)
A1: Outlay approved | B1: Capital Head (all civil works under SSA & KGBV) | C1: General Head | D1: FC Award | E1: Net General Head | F1: GOI Share (90% )
F2: Capital Head | G2: General Head | H2: Total
A3: ='Jharkhand (Annexure-IV)'!AB544 -> 153218.8812 | B3: ='Jharkhand (Annexure-IV)'!AB409+'Jharkhand (Annexure-IV)'!AB437 -> 9059.19659 | C3: =A3-B3 -> 144159.6846 | D3: 0 | E3: =C3 -> 144159.6846 | F3: =B3*60% -> 5435.517954 | G3: =E3*60% -> 86495.81076 | H3: =SUM(F3:G3) -> 91931.32871

Sheet Sheet2 (hidden)
A1: Sr. No | B1: Expected outcome | C1: Fund Approved | D1: Budget Head
C2: (Rs. In Lakh)
A3: 1 | B3: Enrolment of Out of school children | C3: ='Jharkhand (Annexure-IV)'!AB78+'Jharkhand (Annexure-IV)'!AB147+'Jharkhand (Annexure-IV)'!AB199 -> 2916.715 | D3: Residential Schools and Special Training (See serial No. 8 (4 and10) of Index.)
A4: 2 | B4: ASMITA (Child wise Data Base) PAB approved Rs. 65.20 lakh for Child wise data base, Rs. 24 lakh for internet connection and Rs. 10 lakh for Server. | C4: =REMS!D12+REMS!D13+REMS!D14 -> 99.2 | D4: REMS (See serial No. 8 (18) of Index.)
A5: 3 | B5: Shala Sidhi (Basic) | C5: =REMS!D6 -> 400.12 | D5: REMS @ Rs. 10/- per child
A6: 4 | B6: Padhe Bharat Badhe Bharat
B7: i. In Service Teacher Training | C7: ='Jharkhand (Annexure-IV)'!AB283+'Jharkhand (Annexure-IV)'!AB284+'Jharkhand (Annexure-IV)'!AB285+'Jharkhand (Annexure-IV)'!AB286+'Jharkhand (Annexure-IV)'!AB288+'Jharkhand (Annexure-IV)'!AB289+'Jharkhand (Annexure-IV)'!AB290+'Jharkhand (Annexure-IV)'!AB291 -> 2292.68 | D7: Teacher Training (See serial No. 8 (11) of Index.)
B8: ii. School Leadership | C8: ='Jharkhand (Annexure-IV)'!AB303+'Jharkhand (Annexure-IV)'!AB304 -> 17.2 | D8: Teacher Training (See serial No. 8 (11) of Index.)
B9: iii. Academic Support and Supervision (BRC and CRC) | C9: ='Jharkhand (Annexure-IV)'!AB320+'Jharkhand (Annexure-IV)'!AB330 -> 6083.0688 | D9: Academic Support and Supervision through BRC and CRC. (See serial No. 8 (12) of Index.)
B10: iv. Learning Enhancement Programme | C10: ='Jharkhand (Annexure-IV)'!AB419+'Jharkhand (Annexure-IV)'!AB420+'Jharkhand (Annexure-IV)'!AB421 -> 2989.141 | D10: Learning Enhancement Programme (See serial No. 8 (13) of Index.)
B11: v. Innovation Fund for Computer Aided Learning (CAL) * | C11: 600 | D11: Innovation for Computer Aided Learning - Rs. 25 lakh per district for CAL (See serial No. 8 (14) of Index.)
B12: vi. RAA | C12: 600 | D12: Innovation for Computer Aided Learning (RAA activities only) - Rs. 25 lakh per district for RAA (See serial No. 8 (14) of Index.)
B13: vii. Library | C13: ='Jharkhand (Annexure-IV)'!AB339 -> 0 | D13: Library (See serial No. 8 (15) of Index.)
B14: viii. Teacher Grant | C14: ='Jharkhand (Annexure-IV)'!AB346 -> 591.06 | D14: Annual Grant (See serial No. 8 (16) of Index.)
B15: ix. State Achievement Survey (SAS) | C15: =REMS!D3 -> 240 | D15: REMS (See serial No. 8 (18) of Index.)
B16: x. Innovation fund for Equity (Vidyanjali, Twinning amongst schools, Bal Sansad, Remedial Teaching and any activity related to CCE) | C16: ='Jharkhand (Annexure-IV)'!AB368 -> 1200 | D16: Innovation fund for Equity (See serial No. 8 (19) of Index.)

Sheet Breakup Interventions (hidden)
A1: Breakup of Interventions
A2: S.No. | B2: Category | C2: Financial Recommendation for 2016-17 | D2: %
B3: Access & Retention
A4: 1 | B4: Residential Schools | C4: ='Jharkhand (Annexure-IV)'!AB78 -> 846.9 | D4: =C4/$C$42*100 -> 0.5556353661 | E4: 2
A5: 2 | B5: Residential Hostels | C5: ='Jharkhand (Annexure-IV)'!AB143 -> 0 | D5: 0 | E5: 3
A6: 3 | B6: Transport/Escort Facility | C6: ='Jharkhand (Annexure-IV)'!AB147 -> 0 | D6: 0 | E6: 4
A7: 4 | B7: Uniforms | C7: ='Jharkhand (Annexure-IV)'!AB220 -> 17786.02 | D7: 11.6690775 | E7: 8
A8: 5 | B8: Reimbursement of Fee against 25% admission under Section 12(1)(c) of RTE Act 2009 | C8: ='Jharkhand (Annexure-IV)'!AB155 -> 0 | D8: 0 | E8: 5
B9: Sub Total | C9: =SUM(C4:C8) -> 18632.92 | D9: 12.22471287
B10: Quality
A11: 6 | B11: Teacher's Salary | C11: ='Jharkhand (Annexure-IV)'!AB279 -> 74253.16008 | D11: =C11/$C$42*100 -> 48.71611972 | E11: 10
A12: 7 | B12: Salary of Resource Teachers under CWSN | D12: 0
A13: 8 | B13: Textbooks | C13: ='Jharkhand (Annexure-IV)'!AB214 -> 6773.359 | D13: 4.443875083 | E13: 7
A14: 9 | B14: Special training | C14: ='Jharkhand (Annexure-IV)'!AB199 -> 2069.815 | D14: 1.357967193 | E14: 6
A15: 10 | B15: LEP | C15: ='Jharkhand (Annexure-IV)'!AB419+'Jharkhand (Annexure-IV)'!AB420+'Jharkhand (Annexure-IV)'!AB421 -> 2989.141 | D15: 1.961119913 | E15: 24.02
A16: 11 | B16: Teachers’ Training | C16: ='Jharkhand (Annexure-IV)'!AB305 -> 2973.59 | D16: 1.95091719 | E16: 11
A17: 12 | B17: Teachers' Training under CWSN | D17: 0
A18: 13 | B18: BRC | C18: ='Jharkhand (Annexure-IV)'!AB320 -> 1635.1528 | D18: 1.072793393 | E18: 12
A19: 14 | B19: CRC | C19: ='Jharkhand (Annexure-IV)'!AB330 -> 4447.916 | D19: 2.918195106 | E19: 13
A20: 15 | B20: TLE for new schools | C20: ='Jharkhand (Annexure-IV)'!AB224 -> 0 | D20: 0 | E20: 9
A21: 16 | B21: Teachers Grant | C21: ='Jharkhand (Annexure-IV)'!AB346 -> 591.06 | D21: 0.3877834922 | E21: 16
A22: 17 | B22: School Grant | C22: ='Jharkhand (Annexure-IV)'!AB350 -> 3000.72 | D22: 1.96871668 | E22: 17
A23: 18 | B23: REMS (with SPO) | C23: ='Jharkhand (Annexure-IV)'!AB355+'Jharkhand (Annexure-IV)'!AB428 -> 0 | D23: 0 | E23: 18 and 25.02
A24: 19 | B24: Innovative Activities | C24: ='Jharkhand (Annexure-IV)'!AB368 -> 1200 | D24: 0.7872977204 | E24: 21
A25: 20 | B25: Libraries in schools | C25: ='Jharkhand (Annexure-IV)'!AB339 -> 0 | D25: 0 | E25: 15
A26: 21 | B26: Innovation for CAL | C26: ='Jharkhand (Annexure-IV)'!AB335 -> 1200 | D26: 0.7872977204 | E26: 14
B27: Sub Total | C27: =SUM(C11:C26) -> 101133.9139 | D27: 66.35208321
B28: Equity
A29: 22 | B29: IE | C29: ='Jharkhand (Annexure-IV)'!AB362 -> 2122.17 | D29: =C29/$C$42*100 -> 1.392316336 | E29: 20
A30: 23 | B30: Community Mobilization | C30: ='Jharkhand (Annexure-IV)'!AB422 -> 756.028 | D30: =C30/$C$42*100 -> 0.4960159341 | E30: 24.03
A31: 24 | B31: SMC/PRI Training | C31: ='Jharkhand (Annexure-IV)'!AB372 -> 700.758 | D31: =C31/$C$42*100 -> 0.4597543133 | E31: 22
B32: Sub Total | C32: =SUM(C29:C31) -> 3578.956 | D32: =C32/$C$42*100 -> 2.348086583
A33: 25 | B33: Infrastructure Development
B34: Civil Works | C34: ='Jharkhand (Annexure-IV)'!AB409 -> 9058.19659 | D34: =C34/$C$42*100 -> 5.942914605 | E34: 23
B35: Maintenance Grant | C35: ='Jharkhand (Annexure-IV)'!AB358 -> 2816.025 | D35: =C35/$C$42*100 -> 1.847541719 | E35: 19
B36: Sub Total | C36: =SUM(C34:C35) -> 11874.22159 | D36: =C36/$C$42*100 -> 7.790456324
A37: 26 | B37: Programme Management | C37: ='Jharkhand (Annexure-IV)'!AB417+'Jharkhand (Annexure-IV)'!AB426 -> 5357.632 | D37: =C37/$C$42*100 -> 3.515042883 | E37: 24.01 and 25.01
B38: Total | C38: =C9+C27+C32+C36+C37 -> 140577.6435 | D38: =C38/$C$42*100 -> 92.23038187
B39: Gender
A40: 27 | B40: KGBV | C40: ='Jharkhand (Annexure-IV)'!AB543 -> 11842.46 | D40: =C40/$C$42*100 -> 7.769618135
B41: Sub Total | C41: =SUM(C40:C40) -> 11842.46 | D41: =C41/$C$42*100 -> 7.769618135
B42: Grand Total | C42: =C38+C41 -> 152420.1035 | D42: =C42/$C$42*100 -> 100
C44: ='Jharkhand (Annexure-IV)'!AB544 -> 153218.8812
C45: =C44-C42 -> 798.7777216

Sheet Sheet3 (hidden)
A2: Sl. No. | B2: Name of Distrcts | C2: Upgradation of PS to UPS | D2: Teachers' Salary (Recurring-sanctioned earlier) in position | M2: Teachers' Grant | Q2: School Grant | T2: Maintenance Grant | U2: Residential (Fresh) | Z2: Non-Residential (Fresh) | AE2: Seasonal Hostel (Residential) | AJ2: Seasonal Hostel (Residential)
D3: Primary Teachers | H3: Upper Primary Teachers | L3: Total | M3: Class I & II | N3: Class III to V | O3: Class VI to VIII | P3: Total | Q3: Primary | R3: Upper Primary | S3: Total | U3: 12 months | V3: 9 months | W3: 6 months | X3: 3 months | Y3: Total | Z3: 12 months | AA3: 9 months | AB3: 6 months | AC3: 3 months | AD3: Total | AE3: 12 months | AF3: 9 months | AG3: 6 months | AH3: 3 months | AI3: Total | AJ3: 12 months | AK3: 9 months | AL3: 6 months | AM3: 3 months | AN3: Total
D4: TET Qualified | E4: Trained | F4: Un-trained | G4: Total | H4: TET Qualified | I4: Trained | J4: Un-trained | K4: Total
A5: 1 | B5: Bokaro | C5: =Bokaro!P8 -> 0 | D5: =Bokaro!P250 -> 506 | E5: =Bokaro!P251 -> 2198 | F5: =Bokaro!P252 -> 257 | G5: =D5+E5+F5 -> 2961 | H5: =Bokaro!P257 -> 195 | I5: =Bokaro!P258 -> 369 | J5: =Bokaro!P259 -> 152 | K5: =H5+I5+J5 -> 716 | L5: =G5+K5 -> 3677 | M5: =Bokaro!P343 -> 2685 | N5: =Bokaro!P344 -> 2084 | O5: =Bokaro!P345 -> 933 | P5: =M5+N5+O5 -> 5702 | Q5: =Bokaro!P348 -> 1729 | R5: =Bokaro!P349 -> 560 | S5: =Q5+R5 -> 2289 | T5: =Bokaro!P357 -> 1719 | U5: =Bokaro!P158 -> 0 | V5: =Bokaro!P159 -> 50 | W5: =Bokaro!P160 -> 0 | X5: =Bokaro!P161 -> 0 | Y5: =U5+V5+W5+X5 -> 50 | Z5: =Bokaro!P170 -> 0 | AA5: =Bokaro!P171 -> 1103 | AB5: =Bokaro!P172 -> 1186 | AC5: =Bokaro!P173 -> 0 | AD5: =Z5+AA5+AB5+AC5 -> 2289 | AE5: =Bokaro!P188 -> 0 | AF5: =Bokaro!P189 -> 0 | AG5: =Bokaro!P190 -> 0 | AH5: =Bokaro!P191 -> 0 | AI5: =AE5+AF5+AG5+AH5 -> 0 | AJ5: =Bokaro!P194 -> 0 | AK5: =Bokaro!P195 -> 0 | AL5: =Bokaro!P196 -> 0 | AM5: =Bokaro!P197 -> 0 | AN5: =AJ5+AK5+AL5+AM5 -> 0 | AO5: =Bokaro!P316 -> 10 | AP5: =Bokaro!P326 -> 101 | AQ5: =Bokaro!P283 -> 2685 | AR5: =Bokaro!P285 -> 3663 | AS5: =Bokaro!P286 -> 750 | AT5: =AQ5+AR5+AS5 -> 7098 | AU5: =Bokaro!E279 -> 3677 | AV5: =Bokaro!P278 -> 3677 | AW5: =AU5-AV5 -> 0 | AX5: =Bokaro!D190 -> 0 | AY5: =Bokaro!E190 -> 0 | AZ5: =Bokaro!F190 -> 0 | BA5: =IF(AV5>0,AY5/AV5," ") -> 0 | BB5: =IF(AX5>0,AZ5/AX5," ") ->  | BC5: =Bokaro!AF424 -> TRUE | BD5: =Bokaro!#REF! ->  | BE5: =Bokaro!C220 -> 180259 | BF5: =Bokaro!#REF! -> 
A6: 2 | B6: Chatra | C6: =Chatra!P8 -> 0 | D6: =Chatra!P250 -> 323 | E6: =Chatra!P251 -> 2097 | F6: =Chatra!P252 -> 374 | G6: =D6+E6+F6 -> 2794 | H6: =Chatra!P257 -> 179 | I6: =Chatra!P258 -> 799 | J6: =Chatra!P259 -> 60 | K6: =H6+I6+J6 -> 1038 | L6: =G6+K6 -> 3832 | M6: =Chatra!P343 -> 1954 | N6: =Chatra!P344 -> 1924 | O6: =Chatra!P345 -> 1140 | P6: 5018 | Q6: =Chatra!P348 -> 1792 | R6: =Chatra!P349 -> 712 | S6: =Q6+R6 -> 2504 | T6: =Chatra!P357 -> 1803 | U6: =Chatra!P158 -> 0 | V6: =Chatra!P159 -> 0 | W6: =Chatra!P160 -> 165 | X6: =Chatra!P161 -> 0 | Y6: =U6+V6+W6+X6 -> 165 | Z6: =Chatra!P170 -> 0 | AA6: =Chatra!P171 -> 304 | AB6: =Chatra!P172 -> 2622 | AC6: =Chatra!P173 -> 0 | AD6: =Z6+AA6+AB6+AC6 -> 2926 | AE6: =Chatra!P188 -> 0 | AF6: =Chatra!P189 -> 0 | AG6: =Chatra!P190 -> 0 | AH6: =Chatra!P191 -> 0 | AI6: =AE6+AF6+AG6+AH6 -> 0 | AJ6: =Chatra!P194 -> 0 | AK6: =Chatra!P195 -> 0 | AL6: =Chatra!P196 -> 30 | AM6: =Chatra!P197 -> 30 | AN6: =AJ6+AK6+AL6+AM6 -> 60 | AO6: =Chatra!P316 -> 12 | AP6: =Chatra!P326 -> 115 | AQ6: =Chatra!P283 -> 2206 | AR6: =Chatra!P285 -> 3208 | AS6: =Chatra!P286 -> 963 | AT6: =AQ6+AR6+AS6 -> 6377 | AU6: =Chatra!E279 -> 3832 | AV6: =Chatra!P278 -> 3832 | AW6: =AU6-AV6 -> 0 | AX6: =Chatra!D190 -> 0 | AY6: =Chatra!E190 -> 0 | AZ6: =Chatra!F190 -> 0 | BA6: =IF(AV6>0,AY6/AV6," ") -> 0 | BB6: =IF(AX6>0,AZ6/AX6," ") ->  | BC6: =Chatra!AF424 -> TRUE | BD6: =Chatra!#REF! ->  | BE6: =Chatra!C220 -> 177873 | BF6: =Chatra!#REF! -> 
A7: 3 | B7: Deoghar | C7: =Deoghar!P8 -> 0 | D7: =Deoghar!P250 -> 675 | E7: =Deoghar!P251 -> 2582 | F7: =Deoghar!P252 -> 326 | G7: 3583 | H7: =Deoghar!P257 -> 180 | I7: =Deoghar!P258 -> 331 | J7: =Deoghar!P259 -> 122 | K7: 633 | L7: 4216 | M7: =Deoghar!P343 -> 2759 | N7: =Deoghar!P344 -> 2635 | O7: =Deoghar!P345 -> 886 | P7: 6280 | Q7: =Deoghar!P348 -> 2088 | R7: =Deoghar!P349 -> 661 | S7: 2749 | T7: =Deoghar!P357 -> 2075 | U7: =Deoghar!P158 -> 0 | V7: =Deoghar!P159 -> 66 | W7: =Deoghar!P160 -> 150 | X7: =Deoghar!P161 -> 0 | Y7: 216 | Z7: =Deoghar!P170 -> 0 | AA7: =Deoghar!P171 -> 1283 | AB7: =Deoghar!P172 -> 2476 | AC7: =Deoghar!P173 -> 0 | AD7: 3759 | AE7: =Deoghar!P188 -> 0 | AF7: =Deoghar!P189 -> 0 | AG7: =Deoghar!P190 -> 0 | AH7: =Deoghar!P191 -> 0 | AI7: 0 | AJ7: =Deoghar!P194 -> 0 | AK7: =Deoghar!P195 -> 32 | AL7: =Deoghar!P196 -> 0 | AM7: =Deoghar!P197 -> 0 | AN7: 32 | AO7: =Deoghar!P316 -> 10 | AP7: =Deoghar!P326 -> 105 | AQ7: =Deoghar!P283 -> 3082 | AR7: =Deoghar!P285 -> 4203 | AS7: =Deoghar!P286 -> 715 | AT7: 8000 | AU7: =Deoghar!E279 -> 4216 | AV7: =Deoghar!P278 -> 4216 | AW7: 0 | AX7: =Deoghar!D190 -> 0 | AY7: =Deoghar!E190 -> 0 | AZ7: =Deoghar!F190 -> 0 | BA7: 0 | BC7: =Deoghar!AF424 -> TRUE | BD7: =Deoghar!#REF! ->  | BE7: =Deoghar!C220 -> 214320 | BF7: =Deoghar!#REF! -> 
A8: 4 | B8: Dhanbad | C8: =Dhanbad!P8 -> 0 | D8: =Dhanbad!P250 -> 567 | E8: =Dhanbad!P251 -> 1570 | F8: =Dhanbad!P252 -> 171 | G8: 2308 | H8: =Dhanbad!P257 -> 351 | I8: =Dhanbad!P258 -> 250 | J8: =Dhanbad!P259 -> 10 | K8: 611 | L8: 2919 | M8: =Dhanbad!P343 -> 2845 | N8: =Dhanbad!P344 -> 2618 | O8: =Dhanbad!P345 -> 942 | P8: 6405 | Q8: =Dhanbad!P348 -> 1836 | R8: =Dhanbad!P349 -> 623 | S8: 2459 | T8: =Dhanbad!P357 -> 1818 | U8: =Dhanbad!P158 -> 0 | V8: =Dhanbad!P159 -> 0 | W8: =Dhanbad!P160 -> 0 | X8: =Dhanbad!P161 -> 0 | Y8: 0 | Z8: =Dhanbad!P170 -> 0 | AA8: =Dhanbad!P171 -> 775 | AB8: =Dhanbad!P172 -> 2362 | AC8: =Dhanbad!P173 -> 0 | AD8: 3137 | AE8: =Dhanbad!P188 -> 0 | AF8: =Dhanbad!P189 -> 0 | AG8: =Dhanbad!P190 -> 0 | AH8: =Dhanbad!P191 -> 0 | AI8: 0 | AJ8: =Dhanbad!P194 -> 0 | AK8: =Dhanbad!P195 -> 132 | AL8: =Dhanbad!P196 -> 25 | AM8: =Dhanbad!P197 -> 0 | AN8: 157 | AO8: =Dhanbad!P316 -> 10 | AP8: =Dhanbad!P326 -> 105 | AQ8: =Dhanbad!P283 -> 3177 | AR8: =Dhanbad!P285 -> 4332 | AS8: =Dhanbad!P286 -> 814 | AT8: 8323 | AU8: =Dhanbad!E279 -> 2919 | AV8: =Dhanbad!P278 -> 2919 | AW8: 0 | AX8: =Dhanbad!D190 -> 0 | AY8: =Dhanbad!E190 -> 0 | AZ8: =Dhanbad!F190 -> 0 | BA8: 0 | BC8: =Dhanbad!AF424 -> TRUE | BD8: =Dhanbad!#REF! ->  | BE8: =Dhanbad!C220 -> 235031 | BF8: =Dhanbad!#REF! -> 
A9: 5 | B9: Dumka | C9: =Dumka!P8 -> 0 | D9: =Dumka!P250 -> 202 | E9: =Dumka!P251 -> 1706 | F9: =Dumka!P252 -> 636 | G9: 2544 | H9: =Dumka!P257 -> 215 | I9: =Dumka!P258 -> 502 | J9: =Dumka!P259 -> 469 | K9: 1186 | L9: 3730 | M9: =Dumka!P343 -> 2383 | N9: =Dumka!P344 -> 2356 | O9: =Dumka!P345 -> 1501 | P9: 6240 | Q9: =Dumka!P348 -> 2464 | R9: =Dumka!P349 -> 822 | S9: 3286 | T9: =Dumka!P357 -> 2444 | U9: =Dumka!P158 -> 0 | V9: =Dumka!P159 -> 0 | W9: =Dumka!P160 -> 0 | X9: =Dumka!P161 -> 0 | Y9: 0 | Z9: =Dumka!P170 -> 0 | AA9: =Dumka!P171 -> 0 | AB9: =Dumka!P172 -> 423 | AC9: =Dumka!P173 -> 0 | AD9: 423 | AE9: =Dumka!P188 -> 0 | AF9: =Dumka!P189 -> 0 | AG9: =Dumka!P190 -> 24 | AH9: =Dumka!P191 -> 0 | AI9: 24 | AJ9: =Dumka!P194 -> 0 | AK9: =Dumka!P195 -> 42 | AL9: =Dumka!P196 -> 0 | AM9: =Dumka!P197 -> 0 | AN9: 42 | AO9: =Dumka!P316 -> 10 | AP9: =Dumka!P326 -> 128 | AQ9: =Dumka!P283 -> 2609 | AR9: =Dumka!P285 -> 3558 | AS9: =Dumka!P286 -> 1197 | AT9: 7364 | AU9: =Dumka!E279 -> 3730 | AV9: =Dumka!P278 -> 3730 | AW9: 0 | AX9: =Dumka!D190 -> 0 | AY9: =Dumka!E190 -> 0 | AZ9: =Dumka!F190 -> 0 | BA9: 0 | BC9: =Dumka!AF424 -> TRUE | BD9: =Dumka!#REF! ->  | BE9: =Dumka!C220 -> 221029 | BF9: =Dumka!#REF! -> 
A10: 6 | B10: Garhwa | C10: =Garhwa!P8 -> 0 | D10: =Garhwa!P250 -> 858 | E10: =Garhwa!P251 -> 1904 | F10: =Garhwa!P252 -> 262 | G10: 3024 | H10: =Garhwa!P257 -> 117 | I10: =Garhwa!P258 -> 265 | J10: =Garhwa!P259 -> 63 | K10: 445 | L10: 3469 | M10: =Garhwa!P343 -> 2468 | N10: =Garhwa!P344 -> 1908 | O10: =Garhwa!P345 -> 658 | P10: 5034 | Q10: =Garhwa!P348 -> 1512 | R10: =Garhwa!P349 -> 513 | S10: 2025 | T10: =Garhwa!P357 -> 1554 | U10: =Garhwa!P158 -> 0 | V10: =Garhwa!P159 -> 0 | W10: =Garhwa!P160 -> 0 | X10: =Garhwa!P161 -> 0 | Y10: 0 | Z10: =Garhwa!P170 -> 0 | AA10: =Garhwa!P171 -> 0 | AB10: =Garhwa!P172 -> 2630 | AC10: =Garhwa!P173 -> 0 | AD10: 2630 | AE10: =Garhwa!P188 -> 0 | AF10: =Garhwa!P189 -> 0 | AG10: =Garhwa!P190 -> 0 | AH10: =Garhwa!P191 -> 0 | AI10: 0 | AJ10: =Garhwa!P194 -> 0 | AK10: =Garhwa!P195 -> 0 | AL10: =Garhwa!P196 -> 0 | AM10: =Garhwa!P197 -> 0 | AN10: 0 | AO10: =Garhwa!P316 -> 20 | AP10: =Garhwa!P326 -> 73 | AQ10: =Garhwa!P283 -> 2481 | AR10: =Garhwa!P285 -> 3383 | AS10: =Garhwa!P286 -> 201 | AT10: 6065 | AU10: =Garhwa!E279 -> 3469 | AV10: =Garhwa!P278 -> 3469 | AW10: 0 | AX10: =Garhwa!D190 -> 0 | AY10: =Garhwa!E190 -> 0 | AZ10: =Garhwa!F190 -> 0 | BA10: 0 | BC10: =Garhwa!AF424 -> TRUE | BD10: =Garhwa!#REF! ->  | BE10: =Garhwa!C220 -> 243741 | BF10: =Garhwa!#REF! -> 
A11: 7 | B11: Giridih | C11: =Giridih!P8 -> 0 | D11: =Giridih!P250 -> 685 | E11: =Giridih!P251 -> 2865 | F11: =Giridih!P252 -> 1101 | G11: 4651 | H11: =Giridih!P257 -> 436 | I11: =Giridih!P258 -> 840 | J11: =Giridih!P259 -> 778 | K11: 2054 | L11: 6705 | M11: =Giridih!P343 -> 3326 | N11: =Giridih!P344 -> 3907 | O11: =Giridih!P345 -> 2464 | P11: 9697 | Q11: =Giridih!P348 -> 3326 | R11: =Giridih!P349 -> 1268 | S11: 4594 | T11: =Giridih!P357 -> 3290 | U11: =Giridih!P158 -> 0 | V11: =Giridih!P159 -> 0 | W11: =Giridih!P160 -> 0 | X11: =Giridih!P161 -> 0 | Y11: 0 | Z11: =Giridih!P170 -> 0 | AA11: =Giridih!P171 -> 545 | AB11: =Giridih!P172 -> 3673 | AC11: =Giridih!P173 -> 0 | AD11: 4218 | AE11: =Giridih!P188 -> 0 | AF11: =Giridih!P189 -> 0 | AG11: =Giridih!P190 -> 0 | AH11: =Giridih!P191 -> 0 | AI11: 0 | AJ11: =Giridih!P194 -> 0 | AK11: =Giridih!P195 -> 50 | AL11: =Giridih!P196 -> 25 | AM11: =Giridih!P197 -> 0 | AN11: 75 | AO11: =Giridih!P316 -> 13 | AP11: =Giridih!P326 -> 142 | AQ11: =Giridih!P283 -> 4139 | AR11: =Giridih!P285 -> 5644 | AS11: =Giridih!P286 -> 1764 | AT11: 11547 | AU11: =Giridih!E279 -> 6705 | AV11: =Giridih!P278 -> 6705 | AW11: 0 | AX11: =Giridih!D190 -> 0 | AY11: =Giridih!E190 -> 0 | AZ11: =Giridih!F190 -> 0 | BA11: 0 | BC11: =Giridih!AF424 -> TRUE | BD11: =Giridih!#REF! ->  | BE11: =Giridih!C220 -> 376949 | BF11: =Giridih!#REF! -> 
A12: 8 | B12: Godda | C12: =Godda!P8 -> 0 | D12: =Godda!P250 -> 237 | E12: =Godda!P251 -> 1055 | F12: =Godda!P252 -> 244 | G12: 1536 | H12: =Godda!P257 -> 199 | I12: =Godda!P258 -> 477 | J12: =Godda!P259 -> 105 | K12: 781 | L12: 2317 | M12: =Godda!P343 -> 2114 | N12: =Godda!P344 -> 2090 | O12: =Godda!P345 -> 1177 | P12: 5381 | Q12: =Godda!P348 -> 1719 | R12: =Godda!P349 -> 674 | S12: 2393 | T12: =Godda!P357 -> 1623 | U12: =Godda!P158 -> 0 | V12: =Godda!P159 -> 167 | W12: =Godda!P160 -> 50 | X12: =Godda!P161 -> 0 | Y12: 217 | Z12: =Godda!P170 -> 0 | AA12: =Godda!P171 -> 66 | AB12: =Godda!P172 -> 2357 | AC12: =Godda!P173 -> 0 | AD12: 2423 | AE12: =Godda!P188 -> 0 | AF12: =Godda!P189 -> 0 | AG12: =Godda!P190 -> 85 | AH12: =Godda!P191 -> 0 | AI12: 85 | AJ12: =Godda!P194 -> 0 | AK12: =Godda!P195 -> 133 | AL12: =Godda!P196 -> 0 | AM12: =Godda!P197 -> 52 | AN12: 185 | AO12: =Godda!P316 -> 9 | AP12: =Godda!P326 -> 114 | AQ12: =Godda!P283 -> 2262 | AR12: =Godda!P285 -> 3085 | AS12: =Godda!P286 -> 856 | AT12: 6203 | AU12: =Godda!E279 -> 2317 | AV12: =Godda!P278 -> 2317 | AW12: 0 | AX12: =Godda!D190 -> 10 | AY12: =Godda!E190 -> 100 | AZ12: =Godda!F190 -> 9.675 | BA12: 0.04315925766 | BB12: 0.9675 | BC12: =Godda!AF424 -> TRUE | BD12: =Godda!#REF! ->  | BE12: =Godda!C220 -> 208195 | BF12: =Godda!#REF! -> 
A13: 9 | B13: Gumla | C13: =Gumla!P8 -> 0 | D13: =Gumla!P250 -> 88 | E13: =Gumla!P251 -> 1490 | F13: =Gumla!P252 -> 267 | G13: 1845 | H13: =Gumla!P257 -> 49 | I13: =Gumla!P258 -> 554 | J13: =Gumla!P259 -> 95 | K13: 698 | L13: 2543 | M13: =Gumla!P343 -> 2012 | N13: =Gumla!P344 -> 1762 | O13: =Gumla!P345 -> 1018 | P13: 4792 | Q13: =Gumla!P348 -> 1719 | R13: =Gumla!P349 -> 654 | S13: 2373 | T13: =Gumla!P357 -> 1522 | U13: =Gumla!P158 -> 0 | V13: =Gumla!P159 -> 300 | W13: =Gumla!P160 -> 0 | X13: =Gumla!P161 -> 0 | Y13: 300 | Z13: =Gumla!P170 -> 0 | AA13: =Gumla!P171 -> 0 | AB13: =Gumla!P172 -> 1403 | AC13: =Gumla!P173 -> 0 | AD13: 1403 | AE13: =Gumla!P188 -> 0 | AF13: =Gumla!P189 -> 0 | AG13: =Gumla!P190 -> 40 | AH13: =Gumla!P191 -> 0 | AI13: 40 | AJ13: =Gumla!P194 -> 0 | AK13: =Gumla!P195 -> 0 | AL13: =Gumla!P196 -> 0 | AM13: =Gumla!P197 -> 0 | AN13: 0 | AO13: =Gumla!P316 -> 12 | AP13: =Gumla!P326 -> 118 | AQ13: =Gumla!P283 -> 1866 | AR13: =Gumla!P285 -> 2744 | AS13: =Gumla!P286 -> 746 | AT13: 5356 | AU13: =Gumla!E279 -> 2543 | AV13: =Gumla!P278 -> 2543 | AW13: 0 | AX13: =Gumla!D190 -> 20 | AY13: =Gumla!E190 -> 200 | AZ13: =Gumla!F190 -> 19.5 | BA13: 0.07864726701 | BB13: 0.975 | BC13: =Gumla!AF424 -> TRUE | BD13: =Gumla!#REF! ->  | BE13: =Gumla!C220 -> 163164 | BF13: =Gumla!#REF! -> 
A14: 10 | B14: Hazaribag | C14: =Hazaribagh!P8 -> 0 | D14: =Hazaribagh!P250 -> 995 | E14: =Hazaribagh!P251 -> 2511 | F14: =Hazaribagh!P252 -> 108 | G14: 3614 | H14: =Hazaribagh!P257 -> 238 | I14: =Hazaribagh!P258 -> 259 | J14: =Hazaribagh!P259 -> 15 | K14: 512 | L14: 4126 | M14: =Hazaribagh!P343 -> 2580 | N14: =Hazaribagh!P344 -> 2380 | O14: =Hazaribagh!P345 -> 1074 | P14: 6034 | Q14: =Hazaribagh!P348 -> 1574 | R14: =Hazaribagh!P349 -> 618 | S14: 2192 | T14: =Hazaribagh!P357 -> 1542 | U14: =Hazaribagh!P158 -> 0 | V14: =Hazaribagh!P159 -> 0 | W14: =Hazaribagh!P160 -> 0 | X14: =Hazaribagh!P161 -> 0 | Y14: 0 | Z14: =Hazaribagh!P170 -> 0 | AA14: =Hazaribagh!P171 -> 477 | AB14: =Hazaribagh!P172 -> 2789 | AC14: =Hazaribagh!P173 -> 0 | AD14: 3266 | AE14: =Hazaribagh!P188 -> 0 | AF14: =Hazaribagh!P189 -> 25 | AG14: =Hazaribagh!P190 -> 0 | AH14: =Hazaribagh!P191 -> 0 | AI14: 25 | AJ14: =Hazaribagh!P194 -> 0 | AK14: =Hazaribagh!P195 -> 55 | AL14: =Hazaribagh!P196 -> 0 | AM14: =Hazaribagh!P197 -> 0 | AN14: 55 | AO14: =Hazaribagh!P316 -> 16 | AP14: =Hazaribagh!P326 -> 114 | AQ14: =Hazaribagh!P283 -> 2913 | AR14: =Hazaribagh!P285 -> 3972 | AS14: =Hazaribagh!P286 -> 646 | AT14: 7531 | AU14: =Hazaribagh!E279 -> 4126 | AV14: =Hazaribagh!P278 -> 4126 | AW14: 0 | AX14: =Hazaribagh!D190 -> 0 | AY14: =Hazaribagh!E190 -> 0 | AZ14: =Hazaribagh!F190 -> 0 | BA14: 0 | BC14: =Hazaribagh!AF424 -> TRUE | BD14: =Hazaribagh!#REF! ->  | BE14: =Hazaribagh!C220 -> 216009 | BF14: =Hazaribagh!#REF! -> 
A15: 11 | B15: Jamtara | C15: =Jamtara!P8 -> 0 | D15: =Jamtara!P250 -> 145 | E15: =Jamtara!P251 -> 1173 | F15: =Jamtara!P252 -> 299 | G15: 1617 | H15: =Jamtara!P257 -> 177 | I15: =Jamtara!P258 -> 291 | J15: =Jamtara!P259 -> 62 | K15: 530 | L15: 2147 | M15: =Jamtara!P343 -> 1409 | N15: =Jamtara!P344 -> 1214 | O15: =Jamtara!P345 -> 645 | P15: 3268 | Q15: =Jamtara!P348 -> 1164 | R15: =Jamtara!P349 -> 452 | S15: 1616 | T15: =Jamtara!P357 -> 1189 | U15: =Jamtara!P158 -> 0 | V15: =Jamtara!P159 -> 105 | W15: =Jamtara!P160 -> 0 | X15: =Jamtara!P161 -> 0 | Y15: 105 | Z15: =Jamtara!P170 -> 0 | AA15: =Jamtara!P171 -> 95 | AB15: =Jamtara!P172 -> 580 | AC15: =Jamtara!P173 -> 0 | AD15: 675 | AE15: =Jamtara!P188 -> 0 | AF15: =Jamtara!P189 -> 0 | AG15: =Jamtara!P190 -> 0 | AH15: =Jamtara!P191 -> 0 | AI15: 0 | AJ15: =Jamtara!P194 -> 0 | AK15: =Jamtara!P195 -> 25 | AL15: =Jamtara!P196 -> 0 | AM15: =Jamtara!P197 -> 0 | AN15: 25 | AO15: =Jamtara!P316 -> 6 | AP15: =Jamtara!P326 -> 80 | AQ15: =Jamtara!P283 -> 1502 | AR15: =Jamtara!P285 -> 2048 | AS15: =Jamtara!P286 -> 641 | AT15: 4191 | AU15: =Jamtara!E279 -> 2147 | AV15: =Jamtara!P278 -> 2147 | AW15: 0 | AX15: =Jamtara!D190 -> 0 | AY15: =Jamtara!E190 -> 0 | AZ15: =Jamtara!F190 -> 0 | BA15: 0 | BC15: =Jamtara!AF424 -> TRUE | BD15: =Jamtara!#REF! ->  | BE15: =Jamtara!C220 -> 121729 | BF15: =Jamtara!#REF! -> 
A16: 12 | B16: Khunti | C16: =Khunti!P8 -> 0 | D16: =Khunti!P250 -> 37 | E16: =Khunti!P251 -> 691 | F16: =Khunti!P252 -> 197 | G16: 925 | H16: =Khunti!P257 -> 23 | I16: =Khunti!P258 -> 156 | J16: =Khunti!P259 -> 63 | K16: 242 | L16: 1167 | M16: =Khunti!P343 -> 1012 | N16: =Khunti!P344 -> 862 | O16: =Khunti!P345 -> 699 | P16: 2573 | Q16: =Khunti!P348 -> 1002 | R16: =Khunti!P349 -> 327 | S16: 1329 | T16: =Khunti!P357 -> 856 | U16: =Khunti!P158 -> 0 | V16: =Khunti!P159 -> 0 | W16: =Khunti!P160 -> 48 | X16: =Khunti!P161 -> 0 | Y16: 48 | Z16: =Khunti!P170 -> 0 | AA16: =Khunti!P171 -> 46 | AB16: =Khunti!P172 -> 1161 | AC16: =Khunti!P173 -> 0 | AD16: 1207 | AE16: =Khunti!P188 -> 0 | AF16: =Khunti!P189 -> 0 | AG16: =Khunti!P190 -> 48 | AH16: =Khunti!P191 -> 0 | AI16: 48 | AJ16: =Khunti!P194 -> 0 | AK16: =Khunti!P195 -> 25 | AL16: =Khunti!P196 -> 0 | AM16: =Khunti!P197 -> 0 | AN16: 25 | AO16: =Khunti!P316 -> 6 | AP16: =Khunti!P326 -> 63 | AQ16: =Khunti!P283 -> 969 | AR16: =Khunti!P285 -> 1508 | AS16: =Khunti!P286 -> 303 | AT16: 2780 | AU16: =Khunti!E279 -> 1167 | AV16: =Khunti!P278 -> 1167 | AW16: 0 | AX16: =Khunti!D190 -> 5 | AY16: =Khunti!E190 -> 50 | AZ16: =Khunti!F190 -> 5 | BA16: 0.04284490146 | BB16: 1 | BC16: =Khunti!AF424 -> TRUE | BD16: =Khunti!#REF! ->  | BE16: =Khunti!C220 -> 83741 | BF16: =Khunti!#REF! -> 
A17: 13 | B17: Kodarma | C17: =Kodarma!P8 -> 0 | D17: =Kodarma!P250 -> 275 | E17: =Kodarma!P251 -> 956 | F17: =Kodarma!P252 -> 170 | G17: 1401 | H17: =Kodarma!P257 -> 89 | I17: =Kodarma!P258 -> 271 | J17: =Kodarma!P259 -> 93 | K17: 453 | L17: 1854 | M17: =Kodarma!P343 -> 1098 | N17: =Kodarma!P344 -> 849 | O17: =Kodarma!P345 -> 559 | P17: 2506 | Q17: =Kodarma!P348 -> 718 | R17: =Kodarma!P349 -> 314 | S17: 1032 | T17: =Kodarma!P357 -> 710 | U17: =Kodarma!P158 -> 0 | V17: =Kodarma!P159 -> 0 | W17: =Kodarma!P160 -> 0 | X17: =Kodarma!P161 -> 0 | Y17: 0 | Z17: =Kodarma!P170 -> 0 | AA17: =Kodarma!P171 -> 141 | AB17: =Kodarma!P172 -> 1695 | AC17: =Kodarma!P173 -> 0 | AD17: 1836 | AE17: =Kodarma!P188 -> 0 | AF17: =Kodarma!P189 -> 0 | AG17: =Kodarma!P190 -> 0 | AH17: =Kodarma!P191 -> 0 | AI17: 0 | AJ17: =Kodarma!P194 -> 0 | AK17: =Kodarma!P195 -> 25 | AL17: =Kodarma!P196 -> 0 | AM17: =Kodarma!P197 -> 0 | AN17: 25 | AO17: =Kodarma!P316 -> 6 | AP17: =Kodarma!P326 -> 30 | AQ17: =Kodarma!P283 -> 1103 | AR17: =Kodarma!P285 -> 1505 | AS17: =Kodarma!P286 -> 454 | AT17: 3062 | AU17: =Kodarma!E279 -> 1854 | AV17: =Kodarma!P278 -> 1854 | AW17: 0 | AX17: =Kodarma!D190 -> 0 | AY17: =Kodarma!E190 -> 0 | AZ17: =Kodarma!F190 -> 0 | BA17: 0 | BC17: =Kodarma!AF424 -> TRUE | BD17: =Kodarma!#REF! ->  | BE17: =Kodarma!C220 -> 102918 | BF17: =Kodarma!#REF! -> 
A18: 14 | B18: Latehar | C18: =Latehar!P8 -> 0 | D18: =Latehar!P250 -> 168 | E18: =Latehar!P251 -> 941 | F18: =Latehar!P252 -> 154 | G18: 1263 | H18: =Latehar!P257 -> 45 | I18: =Latehar!P258 -> 275 | J18: =Latehar!P259 -> 57 | K18: 377 | L18: 1640 | M18: =Latehar!P343 -> 1312 | N18: =Latehar!P344 -> 1335 | O18: =Latehar!P345 -> 562 | P18: 3209 | Q18: =Latehar!P348 -> 1167 | R18: =Latehar!P349 -> 430 | S18: 1597 | T18: =Latehar!P357 -> 1186 | U18: =Latehar!P158 -> 0 | V18: =Latehar!P159 -> 0 | W18: =Latehar!P160 -> 0 | X18: =Latehar!P161 -> 0 | Y18: 0 | Z18: =Latehar!P170 -> 0 | AA18: =Latehar!P171 -> 29 | AB18: =Latehar!P172 -> 50 | AC18: =Latehar!P173 -> 0 | AD18: 79 | AE18: =Latehar!P188 -> 0 | AF18: =Latehar!P189 -> 50 | AG18: =Latehar!P190 -> 0 | AH18: =Latehar!P191 -> 0 | AI18: 50 | AJ18: =Latehar!P194 -> 0 | AK18: =Latehar!P195 -> 50 | AL18: =Latehar!P196 -> 299 | AM18: =Latehar!P197 -> 0 | AN18: 349 | AO18: =Latehar!P316 -> 9 | AP18: =Latehar!P326 -> 55 | AQ18: =Latehar!P283 -> 1473 | AR18: =Latehar!P285 -> 2009 | AS18: =Latehar!P286 -> 464 | AT18: 3946 | AU18: =Latehar!E279 -> 1640 | AV18: =Latehar!P278 -> 1640 | AW18: 0 | AX18: =Latehar!D190 -> 10 | AY18: =Latehar!E190 -> 70 | AZ18: =Latehar!F190 -> 7 | BA18: 0.04268292683 | BB18: 0.7 | BC18: =Latehar!AF424 -> TRUE | BD18: =Latehar!#REF! ->  | BE18: =Latehar!C220 -> 145513 | BF18: =Latehar!#REF! -> 
A19: 15 | B19: Lohardagga | C19: =Lohardaga!P8 -> 0 | D19: =Lohardaga!P250 -> 69 | E19: =Lohardaga!P251 -> 497 | F19: =Lohardaga!P252 -> 201 | G19: 767 | H19: =Lohardaga!P257 -> 34 | I19: =Lohardaga!P258 -> 61 | J19: =Lohardaga!P259 -> 7 | K19: 102 | L19: 869 | M19: =Lohardaga!P343 -> 779 | N19: =Lohardaga!P344 -> 731 | O19: =Lohardaga!P345 -> 219 | P19: 1729 | Q19: =Lohardaga!P348 -> 581 | R19: =Lohardaga!P349 -> 222 | S19: 803 | T19: =Lohardaga!P357 -> 574 | U19: =Lohardaga!P158 -> 0 | V19: =Lohardaga!P159 -> 100 | W19: =Lohardaga!P160 -> 0 | X19: =Lohardaga!P161 -> 0 | Y19: 100 | Z19: =Lohardaga!P170 -> 0 | AA19: =Lohardaga!P171 -> 656 | AB19: =Lohardaga!P172 -> 1470 | AC19: =Lohardaga!P173 -> 0 | AD19: 2126 | AE19: =Lohardaga!P188 -> 0 | AF19: =Lohardaga!P189 -> 0 | AG19: =Lohardaga!P190 -> 50 | AH19: =Lohardaga!P191 -> 0 | AI19: 50 | AJ19: =Lohardaga!P194 -> 0 | AK19: =Lohardaga!P195 -> 35 | AL19: =Lohardaga!P196 -> 0 | AM19: =Lohardaga!P197 -> 0 | AN19: 35 | AO19: =Lohardaga!P316 -> 7 | AP19: =Lohardaga!P326 -> 46 | AQ19: =Lohardaga!P283 -> 831 | AR19: =Lohardaga!P285 -> 1233 | AS19: =Lohardaga!P286 -> 178 | AT19: 2242 | AU19: =Lohardaga!E279 -> 869 | AV19: =Lohardaga!P278 -> 869 | AW19: 0 | AX19: =Lohardaga!D190 -> 5 | AY19: =Lohardaga!E190 -> 50 | AZ19: =Lohardaga!F190 -> 5 | BA19: 0.05753739931 | BB19: 1 | BC19: =Lohardaga!AF424 -> TRUE | BD19: =Lohardaga!#REF! ->  | BE19: =Lohardaga!C220 -> 71475 | BF19: =Lohardaga!#REF! -> 
A20: 16 | B20: Pakur | C20: =Pakur!P8 -> 0 | D20: =Pakur!P250 -> 166 | E20: =Pakur!P251 -> 1014 | F20: =Pakur!P252 -> 206 | G20: 1386 | H20: =Pakur!P257 -> 115 | I20: =Pakur!P258 -> 307 | J20: =Pakur!P259 -> 57 | K20: 479 | L20: 1865 | M20: =Pakur!P343 -> 1391 | N20: =Pakur!P344 -> 1210 | O20: =Pakur!P345 -> 570 | P20: 3171 | Q20: =Pakur!P348 -> 1035 | R20: =Pakur!P349 -> 453 | S20: 1488 | T20: =Pakur!P357 -> 934 | U20: =Pakur!P158 -> 0 | V20: =Pakur!P159 -> 0 | W20: =Pakur!P160 -> 1068 | X20: =Pakur!P161 -> 0 | Y20: 1068 | Z20: =Pakur!P170 -> 0 | AA20: =Pakur!P171 -> 202 | AB20: =Pakur!P172 -> 2739 | AC20: =Pakur!P173 -> 0 | AD20: 2941 | AE20: =Pakur!P188 -> 0 | AF20: =Pakur!P189 -> 0 | AG20: =Pakur!P190 -> 0 | AH20: =Pakur!P191 -> 0 | AI20: 0 | AJ20: =Pakur!P194 -> 0 | AK20: =Pakur!P195 -> 0 | AL20: =Pakur!P196 -> 19 | AM20: =Pakur!P197 -> 0 | AN20: 19 | AO20: =Pakur!P316 -> 6 | AP20: =Pakur!P326 -> 55 | AQ20: =Pakur!P283 -> 1395 | AR20: =Pakur!P285 -> 1902 | AS20: =Pakur!P286 -> 439 | AT20: 3736 | AU20: =Pakur!E279 -> 1865 | AV20: =Pakur!P278 -> 1865 | AW20: 0 | AX20: =Pakur!D190 -> 0 | AY20: =Pakur!E190 -> 0 | AZ20: =Pakur!F190 -> 0 | BA20: 0 | BC20: =Pakur!AF424 -> TRUE | BD20: =Pakur!#REF! ->  | BE20: =Pakur!C220 -> 147521 | BF20: =Pakur!#REF! -> 
A21: 17 | B21: Palamau | C21: =Palamau!P8 -> 0 | D21: =Palamau!P250 -> 587 | E21: =Palamau!P251 -> 2540 | F21: =Palamau!P252 -> 1240 | G21: 4367 | H21: =Palamau!P257 -> 242 | I21: =Palamau!P258 -> 440 | J21: =Palamau!P259 -> 365 | K21: 1047 | L21: 5414 | M21: =Palamau!P343 -> 2599 | N21: =Palamau!P344 -> 3861 | O21: =Palamau!P345 -> 1774 | P21: 8234 | Q21: =Palamau!P348 -> 2569 | R21: =Palamau!P349 -> 1313 | S21: 3882 | T21: =Palamau!P357 -> 2560 | U21: =Palamau!P158 -> 0 | V21: =Palamau!P159 -> 96 | W21: =Palamau!P160 -> 0 | X21: =Palamau!P161 -> 0 | Y21: 96 | Z21: =Palamau!P170 -> 0 | AA21: =Palamau!P171 -> 661 | AB21: =Palamau!P172 -> 2039 | AC21: =Palamau!P173 -> 0 | AD21: 2700 | AE21: =Palamau!P188 -> 0 | AF21: =Palamau!P189 -> 25 | AG21: =Palamau!P190 -> 0 | AH21: =Palamau!P191 -> 0 | AI21: 25 | AJ21: =Palamau!P194 -> 0 | AK21: =Palamau!P195 -> 25 | AL21: =Palamau!P196 -> 71 | AM21: =Palamau!P197 -> 0 | AN21: 96 | AO21: =Palamau!P316 -> 20 | AP21: =Palamau!P326 -> 143 | AQ21: =Palamau!P283 -> 3699 | AR21: =Palamau!P285 -> 5045 | AS21: =Palamau!P286 -> 1202 | AT21: 9946 | AU21: =Palamau!E279 -> 5414 | AV21: =Palamau!P278 -> 5414 | AW21: 0 | AX21: =Palamau!D190 -> 20 | AY21: =Palamau!E190 -> 100 | AZ21: =Palamau!F190 -> 10 | BA21: 0.0184706317 | BB21: 0.5 | BC21: =Palamau!AF424 -> TRUE | BD21: =Palamau!#REF! ->  | BE21: =Palamau!C220 -> 365074 | BF21: =Palamau!#REF! -> 
A22: 18 | B22: Paschmi Singhbhum | C22: =WestSinghbhum!P8 -> 0 | D22: =WestSinghbhum!P250 -> 41 | E22: =WestSinghbhum!P251 -> 1195 | F22: =WestSinghbhum!P252 -> 362 | G22: 1598 | H22: =WestSinghbhum!P257 -> 69 | I22: =WestSinghbhum!P258 -> 489 | J22: =WestSinghbhum!P259 -> 135 | K22: 693 | L22: 2291 | M22: =WestSinghbhum!P343 -> 2523 | N22: =WestSinghbhum!P344 -> 2591 | O22: =WestSinghbhum!P345 -> 1083 | P22: 6197 | Q22: =WestSinghbhum!P348 -> 2202 | R22: =WestSinghbhum!P349 -> 702 | S22: 2904 | T22: =WestSinghbhum!P357 -> 2167 | U22: =WestSinghbhum!P158 -> 0 | V22: =WestSinghbhum!P159 -> 0 | W22: =WestSinghbhum!P160 -> 0 | X22: =WestSinghbhum!P161 -> 0 | Y22: 0 | Z22: =WestSinghbhum!P170 -> 0 | AA22: =WestSinghbhum!P171 -> 35 | AB22: =WestSinghbhum!P172 -> 4625 | AC22: =WestSinghbhum!P173 -> 0 | AD22: 4660 | AE22: =WestSinghbhum!P188 -> 0 | AF22: =WestSinghbhum!P189 -> 0 | AG22: =WestSinghbhum!P190 -> 100 | AH22: =WestSinghbhum!P191 -> 0 | AI22: 100 | AJ22: =WestSinghbhum!P194 -> 0 | AK22: =WestSinghbhum!P195 -> 25 | AL22: =WestSinghbhum!P196 -> 0 | AM22: =WestSinghbhum!P197 -> 25 | AN22: 50 | AO22: =WestSinghbhum!P316 -> 18 | AP22: =WestSinghbhum!P326 -> 126 | AQ22: =WestSinghbhum!P283 -> 2867 | AR22: =WestSinghbhum!P285 -> 3910 | AS22: =WestSinghbhum!P286 -> 733 | AT22: 7510 | AU22: =WestSinghbhum!E279 -> 2291 | AV22: =WestSinghbhum!P278 -> 2291 | AW22: 0 | AX22: =WestSinghbhum!D190 -> 10 | AY22: =WestSinghbhum!E190 -> 0 | AZ22: =WestSinghbhum!F190 -> 0 | BA22: 0 | BB22: 0 | BC22: =WestSinghbhum!AF424 -> TRUE | BD22: =WestSinghbhum!#REF! ->  | BE22: =WestSinghbhum!C220 -> 243737 | BF22: =WestSinghbhum!#REF! -> 
